Workbook

Sheet INICIO
B2: REGISTRO ELECTRÓNICO ACADÉMICO DE ASISTENCIA Y CALIFICACION
D3: INGRESE SUS DATOS | F3: PRIMER PARCIAL | H3: SEGUNDO PARCIAL
C4: DOCENTE: | D4: Graciela Rivera Herrera | F4: ASISTENCIA | H4: ASISTENCIA
C5: FACULTAD: | D5: Ciencias de la Salud
C6: CARRERA: | D6: Enfermería | F6: ACTIVIDADES DE DOCENCIA | H6: ACTIVIDADES DE DOCENCIA
C7: PERIODO ACADÉMICO: | D7: 2024 - 2025
C8: SEMESTRE: | D8: 6to | F8: PRÁCTICAS DE APLICACIÓN Y EXPERIMENTACIÓN | H8: PRÁCTICAS DE APLICACIÓN Y EXPERIMENTACIÓN
C9: PARALELO: | D9: A
C10: ESPECIALIDAD: | F10: ACTIVIDADES DE APRENDIZAJE AUTÓNOMO | H10: ACTIVIDADES DE APRENDIZAJE AUTÓNOMO
C11: ASIGNATURA: | D11: Enfermería Gíneco oObstétrica II
C12: NRO. HORAS CLASE DIARIAS: | D12: 2 | F12: ACTA DE CALIFICACIONES PRIMER PARCIAL | H12: ACTA DE CALIFICACIONES PRIMER PARCIAL
F14: ACTA FINAL DE CALIFICACIONES
B15: PROGRAMA REGISTRADO 2021 - Contacto: svega@unach.edu.ec

Sheet AS1
L2: ASISTENCIAS REGISTRADAS EN EL PRIMER PARCIAL | AZ2: Total horas trabajadas | BF2: =COUNT(F5:BE5)*INICIO!D12 -> 52
E3: RECUERDE USTED TIENE | Y3: =INICIO!D12 -> 2 | Z3: HORAS DE CLASE AL DÍA CON ESTE CURSO
C4: N | D4: NUMERO DE CÉDULA | E4: APELLIDOS Y NOMBRES | F4: 2024-10-01 | G4: 2024-10-02 | H4: 2024-10-03 | I4: 2024-10-08 | J4: 2024-10-09 | K4: 2024-10-10 | L4: 2024-10-15 | M4: 2024-10-16 | N4: 2024-10-17 | O4: 2024-10-22 | P4: 2024-10-23 | Q4: 2024-10-24 | R4: 2024-10-29 | S4: 2024-10-30 | T4: 2024-10-31 | U4: 2024-11-05 | V4: 2024-11-06 | W4: 2024-11-07 | X4: 2024-11-12 | Y4: 2024-11-13 | Z4: 2024-11-14 | AA4: 2024-11-19 | AB4: 2024-11-20 | AC4: 2024-11-21 | AD4: 2024-11-26 | AE4: 2024-11-27 | AF4: 2024-11-28 | BF4: HORAS ASISTIDAS | BG4: CALIFICACION ASISTENCIA
C5: 1 | E5: DAQUILEMA LONDO SHIRLEY ESTEFAFANÍA | G5: 2 | H5: 2 | I5: 2 | J5: 2 | K5: 2 | L5: 2 | M5: 2 | N5: 2 | O5: 2 | P5: 2 | Q5: 2 | R5: 2 | S5: 2 | T5: 2 | U5: 2 | V5: 2 | W5: 2 | X5: 2 | Y5: 2 | Z5: 2 | AA5: 2 | AB5: 2 | AC5: 2 | AD5: 2 | AE5: 2 | AF5: 2 | BF5: =SUM(F5:BE5) -> 52 | BG5: =IF(PARCIAL1!L$8=0,0,(ROUND(((BF5*10)/PARCIAL1!L$8),1))) -> 10 | BI5: =IF(E5>$Y$3,0,E5) -> 0 | BJ5: 0 | BK5: 2 | BL5: 2 | BM5: 2 | BN5: 2 | BO5: 2 | BP5: 2 | BQ5: 2 | BR5: 2 | BS5: =IF(O5>$Y$3,0,O5) -> 2 | BT5: 2 | BU5: 2 | BV5: 2 | BW5: 2 | BX5: 2 | BY5: 2 | BZ5: 2 | CA5: 2 | CB5: 2 | CC5: =IF(Y5>$Y$3,0,Y5) -> 2 | CD5: 2 | CE5: 2 | CF5: 2 | CG5: 2 | CH5: 2 | CI5: 2 | CJ5: 2 | CK5: 0 | CL5: 0 | CM5: =IF(AI5>$Y$3,0,AI5) -> 0 | CN5: 0 | CO5: 0 | CP5: 0 | CQ5: 0 | CR5: 0 | CS5: 0 | CT5: 0 | CU5: 0 | CV5: 0 | CW5: =IF(AS5>$Y$3,0,AS5) -> 0 | CX5: 0 | CY5: 0 | CZ5: 0 | DA5: 0 | DB5: 0 | DC5: 0 | DD5: 0 | DE5: 0 | DF5: 0 | DG5: =IF(BC5>$Y$3,0,BC5) -> 0 | DH5: 0 | DI5: 0 | DJ5: =IF(#REF!>$Y$3,0,#REF!) ->  | DK5: =IF(#REF!>$Y$3,0,#REF!) ->  | DL5: =IF(#REF!>$Y$3,0,#REF!) ->  | DM5: =IF(#REF!>$Y$3,0,#REF!) ->  | DN5: =IF(#REF!>$Y$3,0,#REF!) ->  | DO5: =IF(#REF!>$Y$3,0,#REF!) ->  | DP5: =IF(#REF!>$Y$3,0,#REF!) ->  | DQ5: =IF(#REF!>$Y$3,0,#REF!) ->  | DR5: =IF(#REF!>$Y$3,0,#REF!) ->  | DS5: =IF(#REF!>$Y$3,0,#REF!) ->  | DT5: =IF(#REF!>$Y$3,0,#REF!) ->  | DU5: =IF(#REF!>$Y$3,0,#REF!) ->  | DV5: =IF(#REF!>$Y$3,0,#REF!) ->  | DW5: =IF(#REF!>$Y$3,0,#REF!) ->  | DX5: =IF(#REF!>$Y$3,0,#REF!) ->  | DY5: =IF(#REF!>$Y$3,0,#REF!) ->  | DZ5: =IF(#REF!>$Y$3,0,#REF!) ->  | EA5: =IF(#REF!>$Y$3,0,#REF!) ->  | EB5: =IF(#REF!>$Y$3,0,#REF!) ->  | EC5: =IF(#REF!>$Y$3,0,#REF!) ->  | ED5: =IF(#REF!>$Y$3,0,#REF!) ->  | EE5: =IF(#REF!>$Y$3,0,#REF!) ->  | EF5: =IF(#REF!>$Y$3,0,#REF!) ->  | EG5: =IF(#REF!>$Y$3,0,#REF!) ->  | EH5: =IF(#REF!>$Y$3,0,#REF!) ->  | EI5: =IF(#REF!>$Y$3,0,#REF!) ->  | EJ5: =IF(#REF!>$Y$3,0,#REF!) ->  | EK5: =IF(#REF!>$Y$3,0,#REF!) -> 
C6: 2 | E6: GOYES ORTIZ NATASHA DAYANA | F6: 2 | G6: 2 | H6: 2 | I6: 2 | J6: 2 | K6: 2 | L6: 2 | M6: 2 | N6: 2 | O6: 2 | P6: 2 | Q6: 2 | R6: 2 | S6: 2 | T6: 2 | U6: 2 | V6: 2 | W6: 2 | AC6: 2 | AD6: 2 | AE6: 2 | AF6: 2 | BF6: =SUM(F6:BE6) -> 44 | BG6: =IF(PARCIAL1!L$8=0,0,(ROUND(((BF6*10)/PARCIAL1!L$8),1))) -> 8.5 | BI6: =IF(E6>$Y$3,0,E6) -> 0 | BJ6: 2 | BK6: 2 | BL6: 2 | BM6: 2 | BN6: 2 | BO6: 2 | BP6: 2 | BQ6: 2 | BR6: 2 | BS6: 2 | BT6: 2 | BU6: 2 | BV6: 2 | BW6: 2 | BX6: 2 | BY6: 2 | BZ6: 2 | CA6: 2 | CB6: 0 | CC6: 0 | CD6: 0 | CE6: 0 | CF6: 0 | CG6: 2 | CH6: 2 | CI6: 2 | CJ6: 2 | CK6: 0 | CL6: 0 | CM6: 0 | CN6: 0 | CO6: 0 | CP6: 0 | CQ6: 0 | CR6: 0 | CS6: 0 | CT6: 0 | CU6: 0 | CV6: 0 | CW6: 0 | CX6: 0 | CY6: 0 | CZ6: 0 | DA6: 0 | DB6: 0 | DC6: 0 | DD6: 0 | DE6: 0 | DF6: 0 | DG6: 0 | DH6: 0 | DI6: 0 | DJ6: =IF(#REF!>$Y$3,0,#REF!) ->  | DK6: =IF(#REF!>$Y$3,0,#REF!) ->  | DL6: =IF(#REF!>$Y$3,0,#REF!) ->  | DM6: =IF(#REF!>$Y$3,0,#REF!) ->  | DN6: =IF(#REF!>$Y$3,0,#REF!) ->  | DO6: =IF(#REF!>$Y$3,0,#REF!) ->  | DP6: =IF(#REF!>$Y$3,0,#REF!) ->  | DQ6: =IF(#REF!>$Y$3,0,#REF!) ->  | DR6: =IF(#REF!>$Y$3,0,#REF!) ->  | DS6: =IF(#REF!>$Y$3,0,#REF!) ->  | DT6: =IF(#REF!>$Y$3,0,#REF!) ->  | DU6: =IF(#REF!>$Y$3,0,#REF!) ->  | DV6: =IF(#REF!>$Y$3,0,#REF!) ->  | DW6: =IF(#REF!>$Y$3,0,#REF!) ->  | DX6: =IF(#REF!>$Y$3,0,#REF!) ->  | DY6: =IF(#REF!>$Y$3,0,#REF!) ->  | DZ6: =IF(#REF!>$Y$3,0,#REF!) ->  | EA6: =IF(#REF!>$Y$3,0,#REF!) ->  | EB6: =IF(#REF!>$Y$3,0,#REF!) ->  | EC6: =IF(#REF!>$Y$3,0,#REF!) ->  | ED6: =IF(#REF!>$Y$3,0,#REF!) ->  | EE6: =IF(#REF!>$Y$3,0,#REF!) ->  | EF6: =IF(#REF!>$Y$3,0,#REF!) ->  | EG6: =IF(#REF!>$Y$3,0,#REF!) ->  | EH6: =IF(#REF!>$Y$3,0,#REF!) ->  | EI6: =IF(#REF!>$Y$3,0,#REF!) ->  | EJ6: =IF(#REF!>$Y$3,0,#REF!) ->  | EK6: =IF(#REF!>$Y$3,0,#REF!) -> 
C7: 3 | E7: GUADALUPE RUIZ YULISA NATALY | G7: 2 | H7: 2 | I7: 2 | J7: 2 | K7: 2 | L7: 2 | M7: 2 | N7: 2 | O7: 2 | P7: 2 | Q7: 2 | R7: 2 | S7: 2 | T7: 2 | U7: 2 | V7: 2 | W7: 2 | X7: 2 | Y7: 2 | Z7: 2 | AA7: 2 | AB7: 2 | AC7: 2 | AD7: 2 | AE7: 2 | AF7: 2 | BF7: =SUM(F7:BE7) -> 52 | BG7: =IF(PARCIAL1!L$8=0,0,(ROUND(((BF7*10)/PARCIAL1!L$8),1))) -> 10 | BJ7: =IF(F7>$Y$3,0,F7) -> 0 | BK7: =IF(G7>$Y$3,0,G7) -> 2 | BL7: =IF(H7>$Y$3,0,H7) -> 2 | BM7: =IF(I7>$Y$3,0,I7) -> 2 | BN7: =IF(J7>$Y$3,0,J7) -> 2 | BO7: =IF(K7>$Y$3,0,K7) -> 2 | BP7: =IF(L7>$Y$3,0,L7) -> 2 | BQ7: =IF(M7>$Y$3,0,M7) -> 2 | BR7: =IF(N7>$Y$3,0,N7) -> 2 | BS7: =IF(O7>$Y$3,0,O7) -> 2 | BT7: =IF(P7>$Y$3,0,P7) -> 2 | BU7: =IF(Q7>$Y$3,0,Q7) -> 2 | BV7: =IF(R7>$Y$3,0,R7) -> 2 | BW7: =IF(S7>$Y$3,0,S7) -> 2 | BX7: =IF(T7>$Y$3,0,T7) -> 2 | BY7: =IF(U7>$Y$3,0,U7) -> 2 | BZ7: =IF(V7>$Y$3,0,V7) -> 2 | CA7: =IF(W7>$Y$3,0,W7) -> 2 | CB7: =IF(X7>$Y$3,0,X7) -> 2 | CC7: =IF(Y7>$Y$3,0,Y7) -> 2 | CD7: =IF(Z7>$Y$3,0,Z7) -> 2 | CE7: =IF(AA7>$Y$3,0,AA7) -> 2 | CF7: =IF(AB7>$Y$3,0,AB7) -> 2 | CG7: =IF(AC7>$Y$3,0,AC7) -> 2 | CH7: =IF(AD7>$Y$3,0,AD7) -> 2 | CI7: =IF(AE7>$Y$3,0,AE7) -> 2 | CJ7: =IF(AF7>$Y$3,0,AF7) -> 2 | CK7: =IF(AG7>$Y$3,0,AG7) -> 0 | CL7: =IF(AH7>$Y$3,0,AH7) -> 0 | CM7: =IF(AI7>$Y$3,0,AI7) -> 0 | CN7: =IF(AJ7>$Y$3,0,AJ7) -> 0 | CO7: =IF(AK7>$Y$3,0,AK7) -> 0 | CP7: =IF(AL7>$Y$3,0,AL7) -> 0 | CQ7: =IF(AM7>$Y$3,0,AM7) -> 0 | CR7: =IF(AN7>$Y$3,0,AN7) -> 0 | CS7: =IF(AO7>$Y$3,0,AO7) -> 0 | CT7: =IF(AP7>$Y$3,0,AP7) -> 0 | CU7: =IF(AQ7>$Y$3,0,AQ7) -> 0 | CV7: =IF(AR7>$Y$3,0,AR7) -> 0 | CW7: =IF(AS7>$Y$3,0,AS7) -> 0 | CX7: =IF(AT7>$Y$3,0,AT7) -> 0 | CY7: =IF(AU7>$Y$3,0,AU7) -> 0 | CZ7: =IF(AV7>$Y$3,0,AV7) -> 0 | DA7: =IF(AW7>$Y$3,0,AW7) -> 0 | DB7: =IF(AX7>$Y$3,0,AX7) -> 0 | DC7: =IF(AY7>$Y$3,0,AY7) -> 0 | DD7: =IF(AZ7>$Y$3,0,AZ7) -> 0 | DE7: =IF(BA7>$Y$3,0,BA7) -> 0 | DF7: =IF(BB7>$Y$3,0,BB7) -> 0 | DG7: =IF(BC7>$Y$3,0,BC7) -> 0 | DH7: =IF(BD7>$Y$3,0,BD7) -> 0 | DI7: =IF(BE7>$Y$3,0,BE7) -> 0 | DJ7: =IF(#REF!>$Y$3,0,#REF!) ->  | DK7: =IF(#REF!>$Y$3,0,#REF!) ->  | DL7: =IF(#REF!>$Y$3,0,#REF!) ->  | DM7: =IF(#REF!>$Y$3,0,#REF!) ->  | DN7: =IF(#REF!>$Y$3,0,#REF!) ->  | DO7: =IF(#REF!>$Y$3,0,#REF!) ->  | DP7: =IF(#REF!>$Y$3,0,#REF!) ->  | DQ7: =IF(#REF!>$Y$3,0,#REF!) ->  | DR7: =IF(#REF!>$Y$3,0,#REF!) ->  | DS7: =IF(#REF!>$Y$3,0,#REF!) ->  | DT7: =IF(#REF!>$Y$3,0,#REF!) ->  | DU7: =IF(#REF!>$Y$3,0,#REF!) ->  | DV7: =IF(#REF!>$Y$3,0,#REF!) ->  | DW7: =IF(#REF!>$Y$3,0,#REF!) ->  | DX7: =IF(#REF!>$Y$3,0,#REF!) ->  | DY7: =IF(#REF!>$Y$3,0,#REF!) ->  | DZ7: =IF(#REF!>$Y$3,0,#REF!) ->  | EA7: =IF(#REF!>$Y$3,0,#REF!) ->  | EB7: =IF(#REF!>$Y$3,0,#REF!) ->  | EC7: =IF(#REF!>$Y$3,0,#REF!) ->  | ED7: =IF(#REF!>$Y$3,0,#REF!) ->  | EE7: =IF(#REF!>$Y$3,0,#REF!) ->  | EF7: =IF(#REF!>$Y$3,0,#REF!) ->  | EG7: =IF(#REF!>$Y$3,0,#REF!) ->  | EH7: =IF(#REF!>$Y$3,0,#REF!) ->  | EI7: =IF(#REF!>$Y$3,0,#REF!) ->  | EJ7: =IF(#REF!>$Y$3,0,#REF!) ->  | EK7: =IF(#REF!>$Y$3,0,#REF!) -> 
C8: 4 | E8: MELO CHAVEZ KEVIN JOSUE | F8: 2 | G8: 2 | H8: 2 | I8: 2 | J8: 2 | K8: 2 | L8: 2 | M8: 2 | N8: 2 | O8: 2 | P8: 2 | Q8: 2 | R8: 2 | S8: 2 | T8: 2 | U8: 2 | V8: 2 | W8: 2 | X8: 2 | Y8: 2 | Z8: 2 | AA8: 2 | AB8: 2 | AC8: 2 | AD8: 2 | AE8: 2 | AF8: 2 | BF8: =SUM(F8:BE8) -> 54 | BG8: =IF(PARCIAL1!L$8=0,0,(ROUND(((BF8*10)/PARCIAL1!L$8),1))) -> 10.4 | BJ8: 2 | BK8: 2 | BL8: 2 | BM8: 2 | BN8: 2 | BO8: 2 | BP8: 2 | BQ8: 2 | BR8: 2 | BS8: 2 | BT8: 2 | BU8: 2 | BV8: 2 | BW8: 2 | BX8: 2 | BY8: 2 | BZ8: 2 | CA8: 2 | CB8: 2 | CC8: 2 | CD8: 2 | CE8: 2 | CF8: 2 | CG8: 2 | CH8: 2 | CI8: 2 | CJ8: 2 | CK8: 0 | CL8: 0 | CM8: 0 | CN8: 0 | CO8: 0 | CP8: 0 | CQ8: 0 | CR8: 0 | CS8: 0 | CT8: 0 | CU8: 0 | CV8: 0 | CW8: 0 | CX8: 0 | CY8: 0 | CZ8: 0 | DA8: 0 | DB8: 0 | DC8: 0 | DD8: 0 | DE8: 0 | DF8: 0 | DG8: 0 | DH8: 0 | DI8: 0 | DJ8: =IF(#REF!>$Y$3,0,#REF!) ->  | DK8: =IF(#REF!>$Y$3,0,#REF!) ->  | DL8: =IF(#REF!>$Y$3,0,#REF!) ->  | DM8: =IF(#REF!>$Y$3,0,#REF!) ->  | DN8: =IF(#REF!>$Y$3,0,#REF!) ->  | DO8: =IF(#REF!>$Y$3,0,#REF!) ->  | DP8: =IF(#REF!>$Y$3,0,#REF!) ->  | DQ8: =IF(#REF!>$Y$3,0,#REF!) ->  | DR8: =IF(#REF!>$Y$3,0,#REF!) ->  | DS8: =IF(#REF!>$Y$3,0,#REF!) ->  | DT8: =IF(#REF!>$Y$3,0,#REF!) ->  | DU8: =IF(#REF!>$Y$3,0,#REF!) ->  | DV8: =IF(#REF!>$Y$3,0,#REF!) ->  | DW8: =IF(#REF!>$Y$3,0,#REF!) ->  | DX8: =IF(#REF!>$Y$3,0,#REF!) ->  | DY8: =IF(#REF!>$Y$3,0,#REF!) ->  | DZ8: =IF(#REF!>$Y$3,0,#REF!) ->  | EA8: =IF(#REF!>$Y$3,0,#REF!) ->  | EB8: =IF(#REF!>$Y$3,0,#REF!) ->  | EC8: =IF(#REF!>$Y$3,0,#REF!) ->  | ED8: =IF(#REF!>$Y$3,0,#REF!) ->  | EE8: =IF(#REF!>$Y$3,0,#REF!) ->  | EF8: =IF(#REF!>$Y$3,0,#REF!) ->  | EG8: =IF(#REF!>$Y$3,0,#REF!) ->  | EH8: =IF(#REF!>$Y$3,0,#REF!) ->  | EI8: =IF(#REF!>$Y$3,0,#REF!) ->  | EJ8: =IF(#REF!>$Y$3,0,#REF!) ->  | EK8: =IF(#REF!>$Y$3,0,#REF!) -> 
C9: 5 | E9: MULLO PAUCAR ADRIANA ANABEL | F9: 2 | G9: 2 | H9: 2 | I9: 2 | J9: 2 | K9: 2 | L9: 2 | M9: 2 | N9: 2 | O9: 2 | P9: 2 | Q9: 2 | R9: 2 | S9: 2 | T9: 2 | U9: 2 | V9: 2 | W9: 2 | X9: 2 | Y9: 2 | Z9: 2 | AA9: 2 | AB9: 2 | AC9: 2 | AD9: 2 | AE9: 2 | AF9: 2 | BF9: 54 | BG9: =IF(PARCIAL1!L$8=0,0,(ROUND(((BF9*10)/PARCIAL1!L$8),1))) -> 10.4 | BJ9: 2 | BK9: 2 | BL9: 2 | BM9: 2 | BN9: 2 | BO9: 2 | BP9: 2 | BQ9: 2 | BR9: 2 | BS9: 2 | BT9: 2 | BU9: 2 | BV9: 2 | BW9: 2 | BX9: 2 | BY9: 2 | BZ9: 2 | CA9: 2 | CB9: 2 | CC9: 2 | CD9: 2 | CE9: 2 | CF9: 2 | CG9: 2 | CH9: 2 | CI9: 2 | CJ9: 2 | CK9: 0 | CL9: 0 | CM9: 0 | CN9: 0 | CO9: 0 | CP9: 0 | CQ9: 0 | CR9: 0 | CS9: 0 | CT9: 0 | CU9: 0 | CV9: 0 | CW9: 0 | CX9: 0 | CY9: 0 | CZ9: 0 | DA9: 0 | DB9: 0 | DC9: 0 | DD9: 0 | DE9: 0 | DF9: 0 | DG9: 0 | DH9: 0 | DI9: 0 | DJ9: =IF(#REF!>$Y$3,0,#REF!) ->  | DK9: =IF(#REF!>$Y$3,0,#REF!) ->  | DL9: =IF(#REF!>$Y$3,0,#REF!) ->  | DM9: =IF(#REF!>$Y$3,0,#REF!) ->  | DN9: =IF(#REF!>$Y$3,0,#REF!) ->  | DO9: =IF(#REF!>$Y$3,0,#REF!) ->  | DP9: =IF(#REF!>$Y$3,0,#REF!) ->  | DQ9: =IF(#REF!>$Y$3,0,#REF!) ->  | DR9: =IF(#REF!>$Y$3,0,#REF!) ->  | DS9: =IF(#REF!>$Y$3,0,#REF!) ->  | DT9: =IF(#REF!>$Y$3,0,#REF!) ->  | DU9: =IF(#REF!>$Y$3,0,#REF!) ->  | DV9: =IF(#REF!>$Y$3,0,#REF!) ->  | DW9: =IF(#REF!>$Y$3,0,#REF!) ->  | DX9: =IF(#REF!>$Y$3,0,#REF!) ->  | DY9: =IF(#REF!>$Y$3,0,#REF!) ->  | DZ9: =IF(#REF!>$Y$3,0,#REF!) ->  | EA9: =IF(#REF!>$Y$3,0,#REF!) ->  | EB9: =IF(#REF!>$Y$3,0,#REF!) ->  | EC9: =IF(#REF!>$Y$3,0,#REF!) ->  | ED9: =IF(#REF!>$Y$3,0,#REF!) ->  | EE9: =IF(#REF!>$Y$3,0,#REF!) ->  | EF9: =IF(#REF!>$Y$3,0,#REF!) ->  | EG9: =IF(#REF!>$Y$3,0,#REF!) ->  | EH9: =IF(#REF!>$Y$3,0,#REF!) ->  | EI9: =IF(#REF!>$Y$3,0,#REF!) ->  | EJ9: =IF(#REF!>$Y$3,0,#REF!) ->  | EK9: =IF(#REF!>$Y$3,0,#REF!) -> 
C10: 6 | E10: NARANJO PALACIOS FERNANDA BRIGUITTE | F10: 2 | G10: 2 | H10: 2 | I10: 2 | J10: 2 | K10: 2 | L10: 2 | M10: 2 | N10: 2 | BF10: 18 | BG10: =IF(PARCIAL1!L$8=0,0,(ROUND(((BF10*10)/PARCIAL1!L$8),1))) -> 3.5 | BJ10: 2 | BK10: 2 | BL10: 2 | BM10: 2 | BN10: 2 | BO10: 2 | BP10: 2 | BQ10: 2 | BR10: 2 | BS10: 0 | BT10: 0 | BU10: 0 | BV10: 0 | BW10: 0 | BX10: 0 | BY10: 0 | BZ10: 0 | CA10: 0 | CB10: 0 | CC10: 0 | CD10: 0 | CE10: 0 | CF10: 0 | CG10: 0 | CH10: 0 | CI10: 0 | CJ10: 0 | CK10: 0 | CL10: 0 | CM10: 0 | CN10: 0 | CO10: 0 | CP10: 0 | CQ10: 0 | CR10: 0 | CS10: 0 | CT10: 0 | CU10: 0 | CV10: 0 | CW10: 0 | CX10: 0 | CY10: 0 | CZ10: 0 | DA10: 0 | DB10: 0 | DC10: 0 | DD10: 0 | DE10: 0 | DF10: 0 | DG10: 0 | DH10: 0 | DI10: 0 | DJ10: =IF(#REF!>$Y$3,0,#REF!) ->  | DK10: =IF(#REF!>$Y$3,0,#REF!) ->  | DL10: =IF(#REF!>$Y$3,0,#REF!) ->  | DM10: =IF(#REF!>$Y$3,0,#REF!) ->  | DN10: =IF(#REF!>$Y$3,0,#REF!) ->  | DO10: =IF(#REF!>$Y$3,0,#REF!) ->  | DP10: =IF(#REF!>$Y$3,0,#REF!) ->  | DQ10: =IF(#REF!>$Y$3,0,#REF!) ->  | DR10: =IF(#REF!>$Y$3,0,#REF!) ->  | DS10: =IF(#REF!>$Y$3,0,#REF!) ->  | DT10: =IF(#REF!>$Y$3,0,#REF!) ->  | DU10: =IF(#REF!>$Y$3,0,#REF!) ->  | DV10: =IF(#REF!>$Y$3,0,#REF!) ->  | DW10: =IF(#REF!>$Y$3,0,#REF!) ->  | DX10: =IF(#REF!>$Y$3,0,#REF!) ->  | DY10: =IF(#REF!>$Y$3,0,#REF!) ->  | DZ10: =IF(#REF!>$Y$3,0,#REF!) ->  | EA10: =IF(#REF!>$Y$3,0,#REF!) ->  | EB10: =IF(#REF!>$Y$3,0,#REF!) ->  | EC10: =IF(#REF!>$Y$3,0,#REF!) ->  | ED10: =IF(#REF!>$Y$3,0,#REF!) ->  | EE10: =IF(#REF!>$Y$3,0,#REF!) ->  | EF10: =IF(#REF!>$Y$3,0,#REF!) ->  | EG10: =IF(#REF!>$Y$3,0,#REF!) ->  | EH10: =IF(#REF!>$Y$3,0,#REF!) ->  | EI10: =IF(#REF!>$Y$3,0,#REF!) ->  | EJ10: =IF(#REF!>$Y$3,0,#REF!) ->  | EK10: =IF(#REF!>$Y$3,0,#REF!) -> 
C11: 7 | E11: SOTO VARGAS ERIKA SAMANTA | F11: 2 | G11: 2 | H11: 2 | I11: 2 | J11: 2 | K11: 2 | L11: 2 | M11: 2 | N11: 2 | O11: 2 | P11: 2 | Q11: 2 | R11: 2 | S11: 2 | T11: 2 | U11: 2 | V11: 2 | W11: 2 | X11: 2 | Y11: 2 | Z11: 2 | AA11: 2 | AB11: 2 | AC11: 2 | AD11: 2 | AE11: 2 | AF11: 2 | BF11: 54 | BG11: =IF(PARCIAL1!L$8=0,0,(ROUND(((BF11*10)/PARCIAL1!L$8),1))) -> 10.4 | BJ11: 2 | BK11: 2 | BL11: 2 | BM11: 2 | BN11: 2 | BO11: 2 | BP11: 2 | BQ11: 2 | BR11: 2 | BS11: 2 | BT11: 2 | BU11: 2 | BV11: 2 | BW11: 2 | BX11: 2 | BY11: 2 | BZ11: 2 | CA11: 2 | CB11: 2 | CC11: 2 | CD11: 2 | CE11: 2 | CF11: 2 | CG11: 2 | CH11: 2 | CI11: 2 | CJ11: 2 | CK11: 0 | CL11: 0 | CM11: 0 | CN11: 0 | CO11: 0 | CP11: 0 | CQ11: 0 | CR11: 0 | CS11: 0 | CT11: 0 | CU11: 0 | CV11: 0 | CW11: 0 | CX11: 0 | CY11: 0 | CZ11: 0 | DA11: 0 | DB11: 0 | DC11: 0 | DD11: 0 | DE11: 0 | DF11: 0 | DG11: 0 | DH11: 0 | DI11: 0 | DJ11: =IF(#REF!>$Y$3,0,#REF!) ->  | DK11: =IF(#REF!>$Y$3,0,#REF!) ->  | DL11: =IF(#REF!>$Y$3,0,#REF!) ->  | DM11: =IF(#REF!>$Y$3,0,#REF!) ->  | DN11: =IF(#REF!>$Y$3,0,#REF!) ->  | DO11: =IF(#REF!>$Y$3,0,#REF!) ->  | DP11: =IF(#REF!>$Y$3,0,#REF!) ->  | DQ11: =IF(#REF!>$Y$3,0,#REF!) ->  | DR11: =IF(#REF!>$Y$3,0,#REF!) ->  | DS11: =IF(#REF!>$Y$3,0,#REF!) ->  | DT11: =IF(#REF!>$Y$3,0,#REF!) ->  | DU11: =IF(#REF!>$Y$3,0,#REF!) ->  | DV11: =IF(#REF!>$Y$3,0,#REF!) ->  | DW11: =IF(#REF!>$Y$3,0,#REF!) ->  | DX11: =IF(#REF!>$Y$3,0,#REF!) ->  | DY11: =IF(#REF!>$Y$3,0,#REF!) ->  | DZ11: =IF(#REF!>$Y$3,0,#REF!) ->  | EA11: =IF(#REF!>$Y$3,0,#REF!) ->  | EB11: =IF(#REF!>$Y$3,0,#REF!) ->  | EC11: =IF(#REF!>$Y$3,0,#REF!) ->  | ED11: =IF(#REF!>$Y$3,0,#REF!) ->  | EE11: =IF(#REF!>$Y$3,0,#REF!) ->  | EF11: =IF(#REF!>$Y$3,0,#REF!) ->  | EG11: =IF(#REF!>$Y$3,0,#REF!) ->  | EH11: =IF(#REF!>$Y$3,0,#REF!) ->  | EI11: =IF(#REF!>$Y$3,0,#REF!) ->  | EJ11: =IF(#REF!>$Y$3,0,#REF!) ->  | EK11: =IF(#REF!>$Y$3,0,#REF!) -> 
C12: 8 | E12: VALLEJO ORDOÑEZ SAYONARA ELIZABETH | F12: 2 | G12: 2 | H12: 2 | I12: 2 | J12: 2 | K12: 2 | L12: 2 | M12: 2 | N12: 2 | O12: 2 | P12: 2 | Q12: 2 | R12: 2 | S12: 2 | T12: 2 | U12: 2 | V12: 2 | W12: 2 | X12: 2 | Y12: 2 | Z12: 2 | AA12: 2 | AB12: 2 | AC12: 2 | AD12: 2 | AE12: 2 | AF12: 2 | BF12: 54 | BG12: =IF(PARCIAL1!L$8=0,0,(ROUND(((BF12*10)/PARCIAL1!L$8),1))) -> 10.4 | BJ12: 2 | BK12: 2 | BL12: 2 | BM12: 2 | BN12: 2 | BO12: 2 | BP12: 2 | BQ12: 2 | BR12: 2 | BS12: 2 | BT12: 2 | BU12: 2 | BV12: 2 | BW12: 2 | BX12: 2 | BY12: 2 | BZ12: 2 | CA12: 2 | CB12: 2 | CC12: 2 | CD12: 2 | CE12: 2 | CF12: 2 | CG12: 2 | CH12: 2 | CI12: 2 | CJ12: 2 | CK12: 0 | CL12: 0 | CM12: 0 | CN12: 0 | CO12: 0 | CP12: 0 | CQ12: 0 | CR12: 0 | CS12: 0 | CT12: 0 | CU12: 0 | CV12: 0 | CW12: 0 | CX12: 0 | CY12: 0 | CZ12: 0 | DA12: 0 | DB12: 0 | DC12: 0 | DD12: 0 | DE12: 0 | DF12: 0 | DG12: 0 | DH12: 0 | DI12: 0 | DJ12: =IF(#REF!>$Y$3,0,#REF!) ->  | DK12: =IF(#REF!>$Y$3,0,#REF!) ->  | DL12: =IF(#REF!>$Y$3,0,#REF!) ->  | DM12: =IF(#REF!>$Y$3,0,#REF!) ->  | DN12: =IF(#REF!>$Y$3,0,#REF!) ->  | DO12: =IF(#REF!>$Y$3,0,#REF!) ->  | DP12: =IF(#REF!>$Y$3,0,#REF!) ->  | DQ12: =IF(#REF!>$Y$3,0,#REF!) ->  | DR12: =IF(#REF!>$Y$3,0,#REF!) ->  | DS12: =IF(#REF!>$Y$3,0,#REF!) ->  | DT12: =IF(#REF!>$Y$3,0,#REF!) ->  | DU12: =IF(#REF!>$Y$3,0,#REF!) ->  | DV12: =IF(#REF!>$Y$3,0,#REF!) ->  | DW12: =IF(#REF!>$Y$3,0,#REF!) ->  | DX12: =IF(#REF!>$Y$3,0,#REF!) ->  | DY12: =IF(#REF!>$Y$3,0,#REF!) ->  | DZ12: =IF(#REF!>$Y$3,0,#REF!) ->  | EA12: =IF(#REF!>$Y$3,0,#REF!) ->  | EB12: =IF(#REF!>$Y$3,0,#REF!) ->  | EC12: =IF(#REF!>$Y$3,0,#REF!) ->  | ED12: =IF(#REF!>$Y$3,0,#REF!) ->  | EE12: =IF(#REF!>$Y$3,0,#REF!) ->  | EF12: =IF(#REF!>$Y$3,0,#REF!) ->  | EG12: =IF(#REF!>$Y$3,0,#REF!) ->  | EH12: =IF(#REF!>$Y$3,0,#REF!) ->  | EI12: =IF(#REF!>$Y$3,0,#REF!) ->  | EJ12: =IF(#REF!>$Y$3,0,#REF!) ->  | EK12: =IF(#REF!>$Y$3,0,#REF!) -> 
C13: 9 | BF13: 0 | BG13: =IF(PARCIAL1!L$8=0,0,(ROUND(((BF13*10)/PARCIAL1!L$8),1))) -> 0 | BJ13: 0 | BK13: 0 | BL13: 0 | BM13: 0 | BN13: 0 | BO13: 0 | BP13: 0 | BQ13: 0 | BR13: 0 | BS13: 0 | BT13: 0 | BU13: 0 | BV13: 0 | BW13: 0 | BX13: 0 | BY13: 0 | BZ13: 0 | CA13: 0 | CB13: 0 | CC13: 0 | CD13: 0 | CE13: 0 | CF13: 0 | CG13: 0 | CH13: 0 | CI13: 0 | CJ13: 0 | CK13: 0 | CL13: 0 | CM13: 0 | CN13: 0 | CO13: 0 | CP13: 0 | CQ13: 0 | CR13: 0 | CS13: 0 | CT13: 0 | CU13: 0 | CV13: 0 | CW13: 0 | CX13: 0 | CY13: 0 | CZ13: 0 | DA13: 0 | DB13: 0 | DC13: 0 | DD13: 0 | DE13: 0 | DF13: 0 | DG13: 0 | DH13: 0 | DI13: 0 | DJ13: =IF(#REF!>$Y$3,0,#REF!) ->  | DK13: =IF(#REF!>$Y$3,0,#REF!) ->  | DL13: =IF(#REF!>$Y$3,0,#REF!) ->  | DM13: =IF(#REF!>$Y$3,0,#REF!) ->  | DN13: =IF(#REF!>$Y$3,0,#REF!) ->  | DO13: =IF(#REF!>$Y$3,0,#REF!) ->  | DP13: =IF(#REF!>$Y$3,0,#REF!) ->  | DQ13: =IF(#REF!>$Y$3,0,#REF!) ->  | DR13: =IF(#REF!>$Y$3,0,#REF!) ->  | DS13: =IF(#REF!>$Y$3,0,#REF!) ->  | DT13: =IF(#REF!>$Y$3,0,#REF!) ->  | DU13: =IF(#REF!>$Y$3,0,#REF!) ->  | DV13: =IF(#REF!>$Y$3,0,#REF!) ->  | DW13: =IF(#REF!>$Y$3,0,#REF!) ->  | DX13: =IF(#REF!>$Y$3,0,#REF!) ->  | DY13: =IF(#REF!>$Y$3,0,#REF!) ->  | DZ13: =IF(#REF!>$Y$3,0,#REF!) ->  | EA13: =IF(#REF!>$Y$3,0,#REF!) ->  | EB13: =IF(#REF!>$Y$3,0,#REF!) ->  | EC13: =IF(#REF!>$Y$3,0,#REF!) ->  | ED13: =IF(#REF!>$Y$3,0,#REF!) ->  | EE13: =IF(#REF!>$Y$3,0,#REF!) ->  | EF13: =IF(#REF!>$Y$3,0,#REF!) ->  | EG13: =IF(#REF!>$Y$3,0,#REF!) ->  | EH13: =IF(#REF!>$Y$3,0,#REF!) ->  | EI13: =IF(#REF!>$Y$3,0,#REF!) ->  | EJ13: =IF(#REF!>$Y$3,0,#REF!) ->  | EK13: =IF(#REF!>$Y$3,0,#REF!) -> 
C14: 10 | BF14: 0 | BG14: =IF(PARCIAL1!L$8=0,0,(ROUND(((BF14*10)/PARCIAL1!L$8),1))) -> 0 | BJ14: 0 | BK14: 0 | BL14: 0 | BM14: 0 | BN14: 0 | BO14: 0 | BP14: 0 | BQ14: 0 | BR14: 0 | BS14: 0 | BT14: 0 | BU14: 0 | BV14: 0 | BW14: 0 | BX14: 0 | BY14: 0 | BZ14: 0 | CA14: 0 | CB14: 0 | CC14: 0 | CD14: 0 | CE14: 0 | CF14: 0 | CG14: 0 | CH14: 0 | CI14: 0 | CJ14: 0 | CK14: 0 | CL14: 0 | CM14: 0 | CN14: 0 | CO14: 0 | CP14: 0 | CQ14: 0 | CR14: 0 | CS14: 0 | CT14: 0 | CU14: 0 | CV14: 0 | CW14: 0 | CX14: 0 | CY14: 0 | CZ14: 0 | DA14: 0 | DB14: 0 | DC14: 0 | DD14: 0 | DE14: 0 | DF14: 0 | DG14: 0 | DH14: 0 | DI14: 0 | DJ14: =IF(#REF!>$Y$3,0,#REF!) ->  | DK14: =IF(#REF!>$Y$3,0,#REF!) ->  | DL14: =IF(#REF!>$Y$3,0,#REF!) ->  | DM14: =IF(#REF!>$Y$3,0,#REF!) ->  | DN14: =IF(#REF!>$Y$3,0,#REF!) ->  | DO14: =IF(#REF!>$Y$3,0,#REF!) ->  | DP14: =IF(#REF!>$Y$3,0,#REF!) ->  | DQ14: =IF(#REF!>$Y$3,0,#REF!) ->  | DR14: =IF(#REF!>$Y$3,0,#REF!) ->  | DS14: =IF(#REF!>$Y$3,0,#REF!) ->  | DT14: =IF(#REF!>$Y$3,0,#REF!) ->  | DU14: =IF(#REF!>$Y$3,0,#REF!) ->  | DV14: =IF(#REF!>$Y$3,0,#REF!) ->  | DW14: =IF(#REF!>$Y$3,0,#REF!) ->  | DX14: =IF(#REF!>$Y$3,0,#REF!) ->  | DY14: =IF(#REF!>$Y$3,0,#REF!) ->  | DZ14: =IF(#REF!>$Y$3,0,#REF!) ->  | EA14: =IF(#REF!>$Y$3,0,#REF!) ->  | EB14: =IF(#REF!>$Y$3,0,#REF!) ->  | EC14: =IF(#REF!>$Y$3,0,#REF!) ->  | ED14: =IF(#REF!>$Y$3,0,#REF!) ->  | EE14: =IF(#REF!>$Y$3,0,#REF!) ->  | EF14: =IF(#REF!>$Y$3,0,#REF!) ->  | EG14: =IF(#REF!>$Y$3,0,#REF!) ->  | EH14: =IF(#REF!>$Y$3,0,#REF!) ->  | EI14: =IF(#REF!>$Y$3,0,#REF!) ->  | EJ14: =IF(#REF!>$Y$3,0,#REF!) ->  | EK14: =IF(#REF!>$Y$3,0,#REF!) -> 
C15: 11 | BF15: 0 | BG15: =IF(PARCIAL1!L$8=0,0,(ROUND(((BF15*10)/PARCIAL1!L$8),1))) -> 0 | BJ15: 0 | BK15: 0 | BL15: 0 | BM15: 0 | BN15: 0 | BO15: 0 | BP15: 0 | BQ15: 0 | BR15: 0 | BS15: 0 | BT15: 0 | BU15: 0 | BV15: 0 | BW15: 0 | BX15: 0 | BY15: 0 | BZ15: 0 | CA15: 0 | CB15: 0 | CC15: 0 | CD15: 0 | CE15: 0 | CF15: 0 | CG15: 0 | CH15: 0 | CI15: 0 | CJ15: 0 | CK15: 0 | CL15: 0 | CM15: 0 | CN15: 0 | CO15: 0 | CP15: 0 | CQ15: 0 | CR15: 0 | CS15: 0 | CT15: 0 | CU15: 0 | CV15: 0 | CW15: 0 | CX15: 0 | CY15: 0 | CZ15: 0 | DA15: 0 | DB15: 0 | DC15: 0 | DD15: 0 | DE15: 0 | DF15: 0 | DG15: 0 | DH15: 0 | DI15: 0 | DJ15: =IF(#REF!>$Y$3,0,#REF!) ->  | DK15: =IF(#REF!>$Y$3,0,#REF!) ->  | DL15: =IF(#REF!>$Y$3,0,#REF!) ->  | DM15: =IF(#REF!>$Y$3,0,#REF!) ->  | DN15: =IF(#REF!>$Y$3,0,#REF!) ->  | DO15: =IF(#REF!>$Y$3,0,#REF!) ->  | DP15: =IF(#REF!>$Y$3,0,#REF!) ->  | DQ15: =IF(#REF!>$Y$3,0,#REF!) ->  | DR15: =IF(#REF!>$Y$3,0,#REF!) ->  | DS15: =IF(#REF!>$Y$3,0,#REF!) ->  | DT15: =IF(#REF!>$Y$3,0,#REF!) ->  | DU15: =IF(#REF!>$Y$3,0,#REF!) ->  | DV15: =IF(#REF!>$Y$3,0,#REF!) ->  | DW15: =IF(#REF!>$Y$3,0,#REF!) ->  | DX15: =IF(#REF!>$Y$3,0,#REF!) ->  | DY15: =IF(#REF!>$Y$3,0,#REF!) ->  | DZ15: =IF(#REF!>$Y$3,0,#REF!) ->  | EA15: =IF(#REF!>$Y$3,0,#REF!) ->  | EB15: =IF(#REF!>$Y$3,0,#REF!) ->  | EC15: =IF(#REF!>$Y$3,0,#REF!) ->  | ED15: =IF(#REF!>$Y$3,0,#REF!) ->  | EE15: =IF(#REF!>$Y$3,0,#REF!) ->  | EF15: =IF(#REF!>$Y$3,0,#REF!) ->  | EG15: =IF(#REF!>$Y$3,0,#REF!) ->  | EH15: =IF(#REF!>$Y$3,0,#REF!) ->  | EI15: =IF(#REF!>$Y$3,0,#REF!) ->  | EJ15: =IF(#REF!>$Y$3,0,#REF!) ->  | EK15: =IF(#REF!>$Y$3,0,#REF!) -> 
C16: 12 | BF16: 0 | BG16: =IF(PARCIAL1!L$8=0,0,(ROUND(((BF16*10)/PARCIAL1!L$8),1))) -> 0 | BJ16: 0 | BK16: 0 | BL16: 0 | BM16: 0 | BN16: 0 | BO16: 0 | BP16: 0 | BQ16: 0 | BR16: 0 | BS16: 0 | BT16: 0 | BU16: 0 | BV16: 0 | BW16: 0 | BX16: 0 | BY16: 0 | BZ16: 0 | CA16: 0 | CB16: 0 | CC16: 0 | CD16: 0 | CE16: 0 | CF16: 0 | CG16: 0 | CH16: 0 | CI16: 0 | CJ16: 0 | CK16: 0 | CL16: 0 | CM16: 0 | CN16: 0 | CO16: 0 | CP16: 0 | CQ16: 0 | CR16: 0 | CS16: 0 | CT16: 0 | CU16: 0 | CV16: 0 | CW16: 0 | CX16: 0 | CY16: 0 | CZ16: 0 | DA16: 0 | DB16: 0 | DC16: 0 | DD16: 0 | DE16: 0 | DF16: 0 | DG16: 0 | DH16: 0 | DI16: 0 | DJ16: =IF(#REF!>$Y$3,0,#REF!) ->  | DK16: =IF(#REF!>$Y$3,0,#REF!) ->  | DL16: =IF(#REF!>$Y$3,0,#REF!) ->  | DM16: =IF(#REF!>$Y$3,0,#REF!) ->  | DN16: =IF(#REF!>$Y$3,0,#REF!) ->  | DO16: =IF(#REF!>$Y$3,0,#REF!) ->  | DP16: =IF(#REF!>$Y$3,0,#REF!) ->  | DQ16: =IF(#REF!>$Y$3,0,#REF!) ->  | DR16: =IF(#REF!>$Y$3,0,#REF!) ->  | DS16: =IF(#REF!>$Y$3,0,#REF!) ->  | DT16: =IF(#REF!>$Y$3,0,#REF!) ->  | DU16: =IF(#REF!>$Y$3,0,#REF!) ->  | DV16: =IF(#REF!>$Y$3,0,#REF!) ->  | DW16: =IF(#REF!>$Y$3,0,#REF!) ->  | DX16: =IF(#REF!>$Y$3,0,#REF!) ->  | DY16: =IF(#REF!>$Y$3,0,#REF!) ->  | DZ16: =IF(#REF!>$Y$3,0,#REF!) ->  | EA16: =IF(#REF!>$Y$3,0,#REF!) ->  | EB16: =IF(#REF!>$Y$3,0,#REF!) ->  | EC16: =IF(#REF!>$Y$3,0,#REF!) ->  | ED16: =IF(#REF!>$Y$3,0,#REF!) ->  | EE16: =IF(#REF!>$Y$3,0,#REF!) ->  | EF16: =IF(#REF!>$Y$3,0,#REF!) ->  | EG16: =IF(#REF!>$Y$3,0,#REF!) ->  | EH16: =IF(#REF!>$Y$3,0,#REF!) ->  | EI16: =IF(#REF!>$Y$3,0,#REF!) ->  | EJ16: =IF(#REF!>$Y$3,0,#REF!) ->  | EK16: =IF(#REF!>$Y$3,0,#REF!) -> 
C17: 13 | BF17: 0 | BG17: =IF(PARCIAL1!L$8=0,0,(ROUND(((BF17*10)/PARCIAL1!L$8),1))) -> 0 | BJ17: 0 | BK17: 0 | BL17: 0 | BM17: 0 | BN17: 0 | BO17: 0 | BP17: 0 | BQ17: 0 | BR17: 0 | BS17: 0 | BT17: 0 | BU17: 0 | BV17: 0 | BW17: 0 | BX17: 0 | BY17: 0 | BZ17: 0 | CA17: 0 | CB17: 0 | CC17: 0 | CD17: 0 | CE17: 0 | CF17: 0 | CG17: 0 | CH17: 0 | CI17: 0 | CJ17: 0 | CK17: 0 | CL17: 0 | CM17: 0 | CN17: 0 | CO17: 0 | CP17: 0 | CQ17: 0 | CR17: 0 | CS17: 0 | CT17: 0 | CU17: 0 | CV17: 0 | CW17: 0 | CX17: 0 | CY17: 0 | CZ17: 0 | DA17: 0 | DB17: 0 | DC17: 0 | DD17: 0 | DE17: 0 | DF17: 0 | DG17: 0 | DH17: 0 | DI17: 0 | DJ17: =IF(#REF!>$Y$3,0,#REF!) ->  | DK17: =IF(#REF!>$Y$3,0,#REF!) ->  | DL17: =IF(#REF!>$Y$3,0,#REF!) ->  | DM17: =IF(#REF!>$Y$3,0,#REF!) ->  | DN17: =IF(#REF!>$Y$3,0,#REF!) ->  | DO17: =IF(#REF!>$Y$3,0,#REF!) ->  | DP17: =IF(#REF!>$Y$3,0,#REF!) ->  | DQ17: =IF(#REF!>$Y$3,0,#REF!) ->  | DR17: =IF(#REF!>$Y$3,0,#REF!) ->  | DS17: =IF(#REF!>$Y$3,0,#REF!) ->  | DT17: =IF(#REF!>$Y$3,0,#REF!) ->  | DU17: =IF(#REF!>$Y$3,0,#REF!) ->  | DV17: =IF(#REF!>$Y$3,0,#REF!) ->  | DW17: =IF(#REF!>$Y$3,0,#REF!) ->  | DX17: =IF(#REF!>$Y$3,0,#REF!) ->  | DY17: =IF(#REF!>$Y$3,0,#REF!) ->  | DZ17: =IF(#REF!>$Y$3,0,#REF!) ->  | EA17: =IF(#REF!>$Y$3,0,#REF!) ->  | EB17: =IF(#REF!>$Y$3,0,#REF!) ->  | EC17: =IF(#REF!>$Y$3,0,#REF!) ->  | ED17: =IF(#REF!>$Y$3,0,#REF!) ->  | EE17: =IF(#REF!>$Y$3,0,#REF!) ->  | EF17: =IF(#REF!>$Y$3,0,#REF!) ->  | EG17: =IF(#REF!>$Y$3,0,#REF!) ->  | EH17: =IF(#REF!>$Y$3,0,#REF!) ->  | EI17: =IF(#REF!>$Y$3,0,#REF!) ->  | EJ17: =IF(#REF!>$Y$3,0,#REF!) ->  | EK17: =IF(#REF!>$Y$3,0,#REF!) -> 
C18: 14 | BF18: 0 | BG18: =IF(PARCIAL1!L$8=0,0,(ROUND(((BF18*10)/PARCIAL1!L$8),1))) -> 0 | BJ18: 0 | BK18: 0 | BL18: 0 | BM18: 0 | BN18: 0 | BO18: 0 | BP18: 0 | BQ18: 0 | BR18: 0 | BS18: 0 | BT18: 0 | BU18: 0 | BV18: 0 | BW18: 0 | BX18: 0 | BY18: 0 | BZ18: 0 | CA18: 0 | CB18: 0 | CC18: 0 | CD18: 0 | CE18: 0 | CF18: 0 | CG18: 0 | CH18: 0 | CI18: 0 | CJ18: 0 | CK18: 0 | CL18: 0 | CM18: 0 | CN18: 0 | CO18: 0 | CP18: 0 | CQ18: 0 | CR18: 0 | CS18: 0 | CT18: 0 | CU18: 0 | CV18: 0 | CW18: 0 | CX18: 0 | CY18: 0 | CZ18: 0 | DA18: 0 | DB18: 0 | DC18: 0 | DD18: 0 | DE18: 0 | DF18: 0 | DG18: 0 | DH18: 0 | DI18: 0 | DJ18: =IF(#REF!>$Y$3,0,#REF!) ->  | DK18: =IF(#REF!>$Y$3,0,#REF!) ->  | DL18: =IF(#REF!>$Y$3,0,#REF!) ->  | DM18: =IF(#REF!>$Y$3,0,#REF!) ->  | DN18: =IF(#REF!>$Y$3,0,#REF!) ->  | DO18: =IF(#REF!>$Y$3,0,#REF!) ->  | DP18: =IF(#REF!>$Y$3,0,#REF!) ->  | DQ18: =IF(#REF!>$Y$3,0,#REF!) ->  | DR18: =IF(#REF!>$Y$3,0,#REF!) ->  | DS18: =IF(#REF!>$Y$3,0,#REF!) ->  | DT18: =IF(#REF!>$Y$3,0,#REF!) ->  | DU18: =IF(#REF!>$Y$3,0,#REF!) ->  | DV18: =IF(#REF!>$Y$3,0,#REF!) ->  | DW18: =IF(#REF!>$Y$3,0,#REF!) ->  | DX18: =IF(#REF!>$Y$3,0,#REF!) ->  | DY18: =IF(#REF!>$Y$3,0,#REF!) ->  | DZ18: =IF(#REF!>$Y$3,0,#REF!) ->  | EA18: =IF(#REF!>$Y$3,0,#REF!) ->  | EB18: =IF(#REF!>$Y$3,0,#REF!) ->  | EC18: =IF(#REF!>$Y$3,0,#REF!) ->  | ED18: =IF(#REF!>$Y$3,0,#REF!) ->  | EE18: =IF(#REF!>$Y$3,0,#REF!) ->  | EF18: =IF(#REF!>$Y$3,0,#REF!) ->  | EG18: =IF(#REF!>$Y$3,0,#REF!) ->  | EH18: =IF(#REF!>$Y$3,0,#REF!) ->  | EI18: =IF(#REF!>$Y$3,0,#REF!) ->  | EJ18: =IF(#REF!>$Y$3,0,#REF!) ->  | EK18: =IF(#REF!>$Y$3,0,#REF!) -> 
C19: 15 | BF19: 0 | BG19: =IF(PARCIAL1!L$8=0,0,(ROUND(((BF19*10)/PARCIAL1!L$8),1))) -> 0 | BJ19: 0 | BK19: 0 | BL19: 0 | BM19: 0 | BN19: 0 | BO19: 0 | BP19: 0 | BQ19: 0 | BR19: 0 | BS19: 0 | BT19: 0 | BU19: 0 | BV19: 0 | BW19: 0 | BX19: 0 | BY19: 0 | BZ19: 0 | CA19: 0 | CB19: 0 | CC19: 0 | CD19: 0 | CE19: 0 | CF19: 0 | CG19: 0 | CH19: 0 | CI19: 0 | CJ19: 0 | CK19: 0 | CL19: 0 | CM19: 0 | CN19: 0 | CO19: 0 | CP19: 0 | CQ19: 0 | CR19: 0 | CS19: 0 | CT19: 0 | CU19: 0 | CV19: 0 | CW19: 0 | CX19: 0 | CY19: 0 | CZ19: 0 | DA19: 0 | DB19: 0 | DC19: 0 | DD19: 0 | DE19: 0 | DF19: 0 | DG19: 0 | DH19: 0 | DI19: 0 | DJ19: =IF(#REF!>$Y$3,0,#REF!) ->  | DK19: =IF(#REF!>$Y$3,0,#REF!) ->  | DL19: =IF(#REF!>$Y$3,0,#REF!) ->  | DM19: =IF(#REF!>$Y$3,0,#REF!) ->  | DN19: =IF(#REF!>$Y$3,0,#REF!) ->  | DO19: =IF(#REF!>$Y$3,0,#REF!) ->  | DP19: =IF(#REF!>$Y$3,0,#REF!) ->  | DQ19: =IF(#REF!>$Y$3,0,#REF!) ->  | DR19: =IF(#REF!>$Y$3,0,#REF!) ->  | DS19: =IF(#REF!>$Y$3,0,#REF!) ->  | DT19: =IF(#REF!>$Y$3,0,#REF!) ->  | DU19: =IF(#REF!>$Y$3,0,#REF!) ->  | DV19: =IF(#REF!>$Y$3,0,#REF!) ->  | DW19: =IF(#REF!>$Y$3,0,#REF!) ->  | DX19: =IF(#REF!>$Y$3,0,#REF!) ->  | DY19: =IF(#REF!>$Y$3,0,#REF!) ->  | DZ19: =IF(#REF!>$Y$3,0,#REF!) ->  | EA19: =IF(#REF!>$Y$3,0,#REF!) ->  | EB19: =IF(#REF!>$Y$3,0,#REF!) ->  | EC19: =IF(#REF!>$Y$3,0,#REF!) ->  | ED19: =IF(#REF!>$Y$3,0,#REF!) ->  | EE19: =IF(#REF!>$Y$3,0,#REF!) ->  | EF19: =IF(#REF!>$Y$3,0,#REF!) ->  | EG19: =IF(#REF!>$Y$3,0,#REF!) ->  | EH19: =IF(#REF!>$Y$3,0,#REF!) ->  | EI19: =IF(#REF!>$Y$3,0,#REF!) ->  | EJ19: =IF(#REF!>$Y$3,0,#REF!) ->  | EK19: =IF(#REF!>$Y$3,0,#REF!) -> 
C20: 16 | BF20: 0 | BG20: =IF(PARCIAL1!L$8=0,0,(ROUND(((BF20*10)/PARCIAL1!L$8),1))) -> 0 | BJ20: 0 | BK20: 0 | BL20: 0 | BM20: 0 | BN20: 0 | BO20: 0 | BP20: 0 | BQ20: 0 | BR20: 0 | BS20: 0 | BT20: 0 | BU20: 0 | BV20: 0 | BW20: 0 | BX20: 0 | BY20: 0 | BZ20: 0 | CA20: 0 | CB20: 0 | CC20: 0 | CD20: 0 | CE20: 0 | CF20: 0 | CG20: 0 | CH20: 0 | CI20: 0 | CJ20: 0 | CK20: 0 | CL20: 0 | CM20: 0 | CN20: 0 | CO20: 0 | CP20: 0 | CQ20: 0 | CR20: 0 | CS20: 0 | CT20: 0 | CU20: 0 | CV20: 0 | CW20: 0 | CX20: 0 | CY20: 0 | CZ20: 0 | DA20: 0 | DB20: 0 | DC20: 0 | DD20: 0 | DE20: 0 | DF20: 0 | DG20: 0 | DH20: 0 | DI20: 0 | DJ20: =IF(#REF!>$Y$3,0,#REF!) ->  | DK20: =IF(#REF!>$Y$3,0,#REF!) ->  | DL20: =IF(#REF!>$Y$3,0,#REF!) ->  | DM20: =IF(#REF!>$Y$3,0,#REF!) ->  | DN20: =IF(#REF!>$Y$3,0,#REF!) ->  | DO20: =IF(#REF!>$Y$3,0,#REF!) ->  | DP20: =IF(#REF!>$Y$3,0,#REF!) ->  | DQ20: =IF(#REF!>$Y$3,0,#REF!) ->  | DR20: =IF(#REF!>$Y$3,0,#REF!) ->  | DS20: =IF(#REF!>$Y$3,0,#REF!) ->  | DT20: =IF(#REF!>$Y$3,0,#REF!) ->  | DU20: =IF(#REF!>$Y$3,0,#REF!) ->  | DV20: =IF(#REF!>$Y$3,0,#REF!) ->  | DW20: =IF(#REF!>$Y$3,0,#REF!) ->  | DX20: =IF(#REF!>$Y$3,0,#REF!) ->  | DY20: =IF(#REF!>$Y$3,0,#REF!) ->  | DZ20: =IF(#REF!>$Y$3,0,#REF!) ->  | EA20: =IF(#REF!>$Y$3,0,#REF!) ->  | EB20: =IF(#REF!>$Y$3,0,#REF!) ->  | EC20: =IF(#REF!>$Y$3,0,#REF!) ->  | ED20: =IF(#REF!>$Y$3,0,#REF!) ->  | EE20: =IF(#REF!>$Y$3,0,#REF!) ->  | EF20: =IF(#REF!>$Y$3,0,#REF!) ->  | EG20: =IF(#REF!>$Y$3,0,#REF!) ->  | EH20: =IF(#REF!>$Y$3,0,#REF!) ->  | EI20: =IF(#REF!>$Y$3,0,#REF!) ->  | EJ20: =IF(#REF!>$Y$3,0,#REF!) ->  | EK20: =IF(#REF!>$Y$3,0,#REF!) -> 
C21: 17 | BF21: 0 | BG21: =IF(PARCIAL1!L$8=0,0,(ROUND(((BF21*10)/PARCIAL1!L$8),1))) -> 0 | BJ21: 0 | BK21: 0 | BL21: 0 | BM21: 0 | BN21: 0 | BO21: 0 | BP21: 0 | BQ21: 0 | BR21: 0 | BS21: 0 | BT21: 0 | BU21: 0 | BV21: 0 | BW21: 0 | BX21: 0 | BY21: 0 | BZ21: 0 | CA21: 0 | CB21: 0 | CC21: 0 | CD21: 0 | CE21: 0 | CF21: 0 | CG21: 0 | CH21: 0 | CI21: 0 | CJ21: 0 | CK21: 0 | CL21: 0 | CM21: 0 | CN21: 0 | CO21: 0 | CP21: 0 | CQ21: 0 | CR21: 0 | CS21: 0 | CT21: 0 | CU21: 0 | CV21: 0 | CW21: 0 | CX21: 0 | CY21: 0 | CZ21: 0 | DA21: 0 | DB21: 0 | DC21: 0 | DD21: 0 | DE21: 0 | DF21: 0 | DG21: 0 | DH21: 0 | DI21: 0 | DJ21: =IF(#REF!>$Y$3,0,#REF!) ->  | DK21: =IF(#REF!>$Y$3,0,#REF!) ->  | DL21: =IF(#REF!>$Y$3,0,#REF!) ->  | DM21: =IF(#REF!>$Y$3,0,#REF!) ->  | DN21: =IF(#REF!>$Y$3,0,#REF!) ->  | DO21: =IF(#REF!>$Y$3,0,#REF!) ->  | DP21: =IF(#REF!>$Y$3,0,#REF!) ->  | DQ21: =IF(#REF!>$Y$3,0,#REF!) ->  | DR21: =IF(#REF!>$Y$3,0,#REF!) ->  | DS21: =IF(#REF!>$Y$3,0,#REF!) ->  | DT21: =IF(#REF!>$Y$3,0,#REF!) ->  | DU21: =IF(#REF!>$Y$3,0,#REF!) ->  | DV21: =IF(#REF!>$Y$3,0,#REF!) ->  | DW21: =IF(#REF!>$Y$3,0,#REF!) ->  | DX21: =IF(#REF!>$Y$3,0,#REF!) ->  | DY21: =IF(#REF!>$Y$3,0,#REF!) ->  | DZ21: =IF(#REF!>$Y$3,0,#REF!) ->  | EA21: =IF(#REF!>$Y$3,0,#REF!) ->  | EB21: =IF(#REF!>$Y$3,0,#REF!) ->  | EC21: =IF(#REF!>$Y$3,0,#REF!) ->  | ED21: =IF(#REF!>$Y$3,0,#REF!) ->  | EE21: =IF(#REF!>$Y$3,0,#REF!) ->  | EF21: =IF(#REF!>$Y$3,0,#REF!) ->  | EG21: =IF(#REF!>$Y$3,0,#REF!) ->  | EH21: =IF(#REF!>$Y$3,0,#REF!) ->  | EI21: =IF(#REF!>$Y$3,0,#REF!) ->  | EJ21: =IF(#REF!>$Y$3,0,#REF!) ->  | EK21: =IF(#REF!>$Y$3,0,#REF!) -> 
C22: 18 | BF22: 0 | BG22: =IF(PARCIAL1!L$8=0,0,(ROUND(((BF22*10)/PARCIAL1!L$8),1))) -> 0 | BJ22: 0 | BK22: 0 | BL22: 0 | BM22: 0 | BN22: 0 | BO22: 0 | BP22: 0 | BQ22: 0 | BR22: 0 | BS22: 0 | BT22: 0 | BU22: 0 | BV22: 0 | BW22: 0 | BX22: 0 | BY22: 0 | BZ22: 0 | CA22: 0 | CB22: 0 | CC22: 0 | CD22: 0 | CE22: 0 | CF22: 0 | CG22: 0 | CH22: 0 | CI22: 0 | CJ22: 0 | CK22: 0 | CL22: 0 | CM22: 0 | CN22: 0 | CO22: 0 | CP22: 0 | CQ22: 0 | CR22: 0 | CS22: 0 | CT22: 0 | CU22: 0 | CV22: 0 | CW22: 0 | CX22: 0 | CY22: 0 | CZ22: 0 | DA22: 0 | DB22: 0 | DC22: 0 | DD22: 0 | DE22: 0 | DF22: 0 | DG22: 0 | DH22: 0 | DI22: 0 | DJ22: =IF(#REF!>$Y$3,0,#REF!) ->  | DK22: =IF(#REF!>$Y$3,0,#REF!) ->  | DL22: =IF(#REF!>$Y$3,0,#REF!) ->  | DM22: =IF(#REF!>$Y$3,0,#REF!) ->  | DN22: =IF(#REF!>$Y$3,0,#REF!) ->  | DO22: =IF(#REF!>$Y$3,0,#REF!) ->  | DP22: =IF(#REF!>$Y$3,0,#REF!) ->  | DQ22: =IF(#REF!>$Y$3,0,#REF!) ->  | DR22: =IF(#REF!>$Y$3,0,#REF!) ->  | DS22: =IF(#REF!>$Y$3,0,#REF!) ->  | DT22: =IF(#REF!>$Y$3,0,#REF!) ->  | DU22: =IF(#REF!>$Y$3,0,#REF!) ->  | DV22: =IF(#REF!>$Y$3,0,#REF!) ->  | DW22: =IF(#REF!>$Y$3,0,#REF!) ->  | DX22: =IF(#REF!>$Y$3,0,#REF!) ->  | DY22: =IF(#REF!>$Y$3,0,#REF!) ->  | DZ22: =IF(#REF!>$Y$3,0,#REF!) ->  | EA22: =IF(#REF!>$Y$3,0,#REF!) ->  | EB22: =IF(#REF!>$Y$3,0,#REF!) ->  | EC22: =IF(#REF!>$Y$3,0,#REF!) ->  | ED22: =IF(#REF!>$Y$3,0,#REF!) ->  | EE22: =IF(#REF!>$Y$3,0,#REF!) ->  | EF22: =IF(#REF!>$Y$3,0,#REF!) ->  | EG22: =IF(#REF!>$Y$3,0,#REF!) ->  | EH22: =IF(#REF!>$Y$3,0,#REF!) ->  | EI22: =IF(#REF!>$Y$3,0,#REF!) ->  | EJ22: =IF(#REF!>$Y$3,0,#REF!) ->  | EK22: =IF(#REF!>$Y$3,0,#REF!) -> 
C23: 19 | BF23: 0 | BG23: =IF(PARCIAL1!L$8=0,0,(ROUND(((BF23*10)/PARCIAL1!L$8),1))) -> 0 | BJ23: 0 | BK23: 0 | BL23: 0 | BM23: 0 | BN23: 0 | BO23: 0 | BP23: 0 | BQ23: 0 | BR23: 0 | BS23: 0 | BT23: 0 | BU23: 0 | BV23: 0 | BW23: 0 | BX23: 0 | BY23: 0 | BZ23: 0 | CA23: 0 | CB23: 0 | CC23: 0 | CD23: 0 | CE23: 0 | CF23: 0 | CG23: 0 | CH23: 0 | CI23: 0 | CJ23: 0 | CK23: 0 | CL23: 0 | CM23: 0 | CN23: 0 | CO23: 0 | CP23: 0 | CQ23: 0 | CR23: 0 | CS23: 0 | CT23: 0 | CU23: 0 | CV23: 0 | CW23: 0 | CX23: 0 | CY23: 0 | CZ23: 0 | DA23: 0 | DB23: 0 | DC23: 0 | DD23: 0 | DE23: 0 | DF23: 0 | DG23: 0 | DH23: 0 | DI23: 0 | DJ23: =IF(#REF!>$Y$3,0,#REF!) ->  | DK23: =IF(#REF!>$Y$3,0,#REF!) ->  | DL23: =IF(#REF!>$Y$3,0,#REF!) ->  | DM23: =IF(#REF!>$Y$3,0,#REF!) ->  | DN23: =IF(#REF!>$Y$3,0,#REF!) ->  | DO23: =IF(#REF!>$Y$3,0,#REF!) ->  | DP23: =IF(#REF!>$Y$3,0,#REF!) ->  | DQ23: =IF(#REF!>$Y$3,0,#REF!) ->  | DR23: =IF(#REF!>$Y$3,0,#REF!) ->  | DS23: =IF(#REF!>$Y$3,0,#REF!) ->  | DT23: =IF(#REF!>$Y$3,0,#REF!) ->  | DU23: =IF(#REF!>$Y$3,0,#REF!) ->  | DV23: =IF(#REF!>$Y$3,0,#REF!) ->  | DW23: =IF(#REF!>$Y$3,0,#REF!) ->  | DX23: =IF(#REF!>$Y$3,0,#REF!) ->  | DY23: =IF(#REF!>$Y$3,0,#REF!) ->  | DZ23: =IF(#REF!>$Y$3,0,#REF!) ->  | EA23: =IF(#REF!>$Y$3,0,#REF!) ->  | EB23: =IF(#REF!>$Y$3,0,#REF!) ->  | EC23: =IF(#REF!>$Y$3,0,#REF!) ->  | ED23: =IF(#REF!>$Y$3,0,#REF!) ->  | EE23: =IF(#REF!>$Y$3,0,#REF!) ->  | EF23: =IF(#REF!>$Y$3,0,#REF!) ->  | EG23: =IF(#REF!>$Y$3,0,#REF!) ->  | EH23: =IF(#REF!>$Y$3,0,#REF!) ->  | EI23: =IF(#REF!>$Y$3,0,#REF!) ->  | EJ23: =IF(#REF!>$Y$3,0,#REF!) ->  | EK23: =IF(#REF!>$Y$3,0,#REF!) -> 
C24: 20 | BF24: 0 | BG24: =IF(PARCIAL1!L$8=0,0,(ROUND(((BF24*10)/PARCIAL1!L$8),1))) -> 0 | BJ24: 0 | BK24: 0 | BL24: 0 | BM24: 0 | BN24: 0 | BO24: 0 | BP24: 0 | BQ24: 0 | BR24: 0 | BS24: 0 | BT24: 0 | BU24: 0 | BV24: 0 | BW24: 0 | BX24: 0 | BY24: 0 | BZ24: 0 | CA24: 0 | CB24: 0 | CC24: 0 | CD24: 0 | CE24: 0 | CF24: 0 | CG24: 0 | CH24: 0 | CI24: 0 | CJ24: 0 | CK24: 0 | CL24: 0 | CM24: 0 | CN24: 0 | CO24: 0 | CP24: 0 | CQ24: 0 | CR24: 0 | CS24: 0 | CT24: 0 | CU24: 0 | CV24: 0 | CW24: 0 | CX24: 0 | CY24: 0 | CZ24: 0 | DA24: 0 | DB24: 0 | DC24: 0 | DD24: 0 | DE24: 0 | DF24: 0 | DG24: 0 | DH24: 0 | DI24: 0 | DJ24: =IF(#REF!>$Y$3,0,#REF!) ->  | DK24: =IF(#REF!>$Y$3,0,#REF!) ->  | DL24: =IF(#REF!>$Y$3,0,#REF!) ->  | DM24: =IF(#REF!>$Y$3,0,#REF!) ->  | DN24: =IF(#REF!>$Y$3,0,#REF!) ->  | DO24: =IF(#REF!>$Y$3,0,#REF!) ->  | DP24: =IF(#REF!>$Y$3,0,#REF!) ->  | DQ24: =IF(#REF!>$Y$3,0,#REF!) ->  | DR24: =IF(#REF!>$Y$3,0,#REF!) ->  | DS24: =IF(#REF!>$Y$3,0,#REF!) ->  | DT24: =IF(#REF!>$Y$3,0,#REF!) ->  | DU24: =IF(#REF!>$Y$3,0,#REF!) ->  | DV24: =IF(#REF!>$Y$3,0,#REF!) ->  | DW24: =IF(#REF!>$Y$3,0,#REF!) ->  | DX24: =IF(#REF!>$Y$3,0,#REF!) ->  | DY24: =IF(#REF!>$Y$3,0,#REF!) ->  | DZ24: =IF(#REF!>$Y$3,0,#REF!) ->  | EA24: =IF(#REF!>$Y$3,0,#REF!) ->  | EB24: =IF(#REF!>$Y$3,0,#REF!) ->  | EC24: =IF(#REF!>$Y$3,0,#REF!) ->  | ED24: =IF(#REF!>$Y$3,0,#REF!) ->  | EE24: =IF(#REF!>$Y$3,0,#REF!) ->  | EF24: =IF(#REF!>$Y$3,0,#REF!) ->  | EG24: =IF(#REF!>$Y$3,0,#REF!) ->  | EH24: =IF(#REF!>$Y$3,0,#REF!) ->  | EI24: =IF(#REF!>$Y$3,0,#REF!) ->  | EJ24: =IF(#REF!>$Y$3,0,#REF!) ->  | EK24: =IF(#REF!>$Y$3,0,#REF!) -> 
C25: 21 | BF25: 0 | BG25: =IF(PARCIAL1!L$8=0,0,(ROUND(((BF25*10)/PARCIAL1!L$8),1))) -> 0 | BJ25: 0 | BK25: 0 | BL25: 0 | BM25: 0 | BN25: 0 | BO25: 0 | BP25: 0 | BQ25: 0 | BR25: 0 | BS25: 0 | BT25: 0 | BU25: 0 | BV25: 0 | BW25: 0 | BX25: 0 | BY25: 0 | BZ25: 0 | CA25: 0 | CB25: 0 | CC25: 0 | CD25: 0 | CE25: 0 | CF25: 0 | CG25: 0 | CH25: 0 | CI25: 0 | CJ25: 0 | CK25: 0 | CL25: 0 | CM25: 0 | CN25: 0 | CO25: 0 | CP25: 0 | CQ25: 0 | CR25: 0 | CS25: 0 | CT25: 0 | CU25: 0 | CV25: 0 | CW25: 0 | CX25: 0 | CY25: 0 | CZ25: 0 | DA25: 0 | DB25: 0 | DC25: 0 | DD25: 0 | DE25: 0 | DF25: 0 | DG25: 0 | DH25: 0 | DI25: 0 | DJ25: =IF(#REF!>$Y$3,0,#REF!) ->  | DK25: =IF(#REF!>$Y$3,0,#REF!) ->  | DL25: =IF(#REF!>$Y$3,0,#REF!) ->  | DM25: =IF(#REF!>$Y$3,0,#REF!) ->  | DN25: =IF(#REF!>$Y$3,0,#REF!) ->  | DO25: =IF(#REF!>$Y$3,0,#REF!) ->  | DP25: =IF(#REF!>$Y$3,0,#REF!) ->  | DQ25: =IF(#REF!>$Y$3,0,#REF!) ->  | DR25: =IF(#REF!>$Y$3,0,#REF!) ->  | DS25: =IF(#REF!>$Y$3,0,#REF!) ->  | DT25: =IF(#REF!>$Y$3,0,#REF!) ->  | DU25: =IF(#REF!>$Y$3,0,#REF!) ->  | DV25: =IF(#REF!>$Y$3,0,#REF!) ->  | DW25: =IF(#REF!>$Y$3,0,#REF!) ->  | DX25: =IF(#REF!>$Y$3,0,#REF!) ->  | DY25: =IF(#REF!>$Y$3,0,#REF!) ->  | DZ25: =IF(#REF!>$Y$3,0,#REF!) ->  | EA25: =IF(#REF!>$Y$3,0,#REF!) ->  | EB25: =IF(#REF!>$Y$3,0,#REF!) ->  | EC25: =IF(#REF!>$Y$3,0,#REF!) ->  | ED25: =IF(#REF!>$Y$3,0,#REF!) ->  | EE25: =IF(#REF!>$Y$3,0,#REF!) ->  | EF25: =IF(#REF!>$Y$3,0,#REF!) ->  | EG25: =IF(#REF!>$Y$3,0,#REF!) ->  | EH25: =IF(#REF!>$Y$3,0,#REF!) ->  | EI25: =IF(#REF!>$Y$3,0,#REF!) ->  | EJ25: =IF(#REF!>$Y$3,0,#REF!) ->  | EK25: =IF(#REF!>$Y$3,0,#REF!) -> 
C26: 22 | BF26: 0 | BG26: =IF(PARCIAL1!L$8=0,0,(ROUND(((BF26*10)/PARCIAL1!L$8),1))) -> 0 | BJ26: 0 | BK26: 0 | BL26: 0 | BM26: 0 | BN26: 0 | BO26: 0 | BP26: 0 | BQ26: 0 | BR26: 0 | BS26: 0 | BT26: 0 | BU26: 0 | BV26: 0 | BW26: 0 | BX26: 0 | BY26: 0 | BZ26: 0 | CA26: 0 | CB26: 0 | CC26: 0 | CD26: 0 | CE26: 0 | CF26: 0 | CG26: 0 | CH26: 0 | CI26: 0 | CJ26: 0 | CK26: 0 | CL26: 0 | CM26: 0 | CN26: 0 | CO26: 0 | CP26: 0 | CQ26: 0 | CR26: 0 | CS26: 0 | CT26: 0 | CU26: 0 | CV26: 0 | CW26: 0 | CX26: 0 | CY26: 0 | CZ26: 0 | DA26: 0 | DB26: 0 | DC26: 0 | DD26: 0 | DE26: 0 | DF26: 0 | DG26: 0 | DH26: 0 | DI26: 0 | DJ26: =IF(#REF!>$Y$3,0,#REF!) ->  | DK26: =IF(#REF!>$Y$3,0,#REF!) ->  | DL26: =IF(#REF!>$Y$3,0,#REF!) ->  | DM26: =IF(#REF!>$Y$3,0,#REF!) ->  | DN26: =IF(#REF!>$Y$3,0,#REF!) ->  | DO26: =IF(#REF!>$Y$3,0,#REF!) ->  | DP26: =IF(#REF!>$Y$3,0,#REF!) ->  | DQ26: =IF(#REF!>$Y$3,0,#REF!) ->  | DR26: =IF(#REF!>$Y$3,0,#REF!) ->  | DS26: =IF(#REF!>$Y$3,0,#REF!) ->  | DT26: =IF(#REF!>$Y$3,0,#REF!) ->  | DU26: =IF(#REF!>$Y$3,0,#REF!) ->  | DV26: =IF(#REF!>$Y$3,0,#REF!) ->  | DW26: =IF(#REF!>$Y$3,0,#REF!) ->  | DX26: =IF(#REF!>$Y$3,0,#REF!) ->  | DY26: =IF(#REF!>$Y$3,0,#REF!) ->  | DZ26: =IF(#REF!>$Y$3,0,#REF!) ->  | EA26: =IF(#REF!>$Y$3,0,#REF!) ->  | EB26: =IF(#REF!>$Y$3,0,#REF!) ->  | EC26: =IF(#REF!>$Y$3,0,#REF!) ->  | ED26: =IF(#REF!>$Y$3,0,#REF!) ->  | EE26: =IF(#REF!>$Y$3,0,#REF!) ->  | EF26: =IF(#REF!>$Y$3,0,#REF!) ->  | EG26: =IF(#REF!>$Y$3,0,#REF!) ->  | EH26: =IF(#REF!>$Y$3,0,#REF!) ->  | EI26: =IF(#REF!>$Y$3,0,#REF!) ->  | EJ26: =IF(#REF!>$Y$3,0,#REF!) ->  | EK26: =IF(#REF!>$Y$3,0,#REF!) -> 
C27: 23 | BF27: 0 | BG27: =IF(PARCIAL1!L$8=0,0,(ROUND(((BF27*10)/PARCIAL1!L$8),1))) -> 0 | BJ27: 0 | BK27: 0 | BL27: 0 | BM27: 0 | BN27: 0 | BO27: 0 | BP27: 0 | BQ27: 0 | BR27: 0 | BS27: 0 | BT27: 0 | BU27: 0 | BV27: 0 | BW27: 0 | BX27: 0 | BY27: 0 | BZ27: 0 | CA27: 0 | CB27: 0 | CC27: 0 | CD27: 0 | CE27: 0 | CF27: 0 | CG27: 0 | CH27: 0 | CI27: 0 | CJ27: 0 | CK27: 0 | CL27: 0 | CM27: 0 | CN27: 0 | CO27: 0 | CP27: 0 | CQ27: 0 | CR27: 0 | CS27: 0 | CT27: 0 | CU27: 0 | CV27: 0 | CW27: 0 | CX27: 0 | CY27: 0 | CZ27: 0 | DA27: 0 | DB27: 0 | DC27: 0 | DD27: 0 | DE27: 0 | DF27: 0 | DG27: 0 | DH27: 0 | DI27: 0 | DJ27: =IF(#REF!>$Y$3,0,#REF!) ->  | DK27: =IF(#REF!>$Y$3,0,#REF!) ->  | DL27: =IF(#REF!>$Y$3,0,#REF!) ->  | DM27: =IF(#REF!>$Y$3,0,#REF!) ->  | DN27: =IF(#REF!>$Y$3,0,#REF!) ->  | DO27: =IF(#REF!>$Y$3,0,#REF!) ->  | DP27: =IF(#REF!>$Y$3,0,#REF!) ->  | DQ27: =IF(#REF!>$Y$3,0,#REF!) ->  | DR27: =IF(#REF!>$Y$3,0,#REF!) ->  | DS27: =IF(#REF!>$Y$3,0,#REF!) ->  | DT27: =IF(#REF!>$Y$3,0,#REF!) ->  | DU27: =IF(#REF!>$Y$3,0,#REF!) ->  | DV27: =IF(#REF!>$Y$3,0,#REF!) ->  | DW27: =IF(#REF!>$Y$3,0,#REF!) ->  | DX27: =IF(#REF!>$Y$3,0,#REF!) ->  | DY27: =IF(#REF!>$Y$3,0,#REF!) ->  | DZ27: =IF(#REF!>$Y$3,0,#REF!) ->  | EA27: =IF(#REF!>$Y$3,0,#REF!) ->  | EB27: =IF(#REF!>$Y$3,0,#REF!) ->  | EC27: =IF(#REF!>$Y$3,0,#REF!) ->  | ED27: =IF(#REF!>$Y$3,0,#REF!) ->  | EE27: =IF(#REF!>$Y$3,0,#REF!) ->  | EF27: =IF(#REF!>$Y$3,0,#REF!) ->  | EG27: =IF(#REF!>$Y$3,0,#REF!) ->  | EH27: =IF(#REF!>$Y$3,0,#REF!) ->  | EI27: =IF(#REF!>$Y$3,0,#REF!) ->  | EJ27: =IF(#REF!>$Y$3,0,#REF!) ->  | EK27: =IF(#REF!>$Y$3,0,#REF!) -> 
C28: 24 | BF28: 0 | BG28: =IF(PARCIAL1!L$8=0,0,(ROUND(((BF28*10)/PARCIAL1!L$8),1))) -> 0 | BJ28: 0 | BK28: 0 | BL28: 0 | BM28: 0 | BN28: 0 | BO28: 0 | BP28: 0 | BQ28: 0 | BR28: 0 | BS28: 0 | BT28: 0 | BU28: 0 | BV28: 0 | BW28: 0 | BX28: 0 | BY28: 0 | BZ28: 0 | CA28: 0 | CB28: 0 | CC28: 0 | CD28: 0 | CE28: 0 | CF28: 0 | CG28: 0 | CH28: 0 | CI28: 0 | CJ28: 0 | CK28: 0 | CL28: 0 | CM28: 0 | CN28: 0 | CO28: 0 | CP28: 0 | CQ28: 0 | CR28: 0 | CS28: 0 | CT28: 0 | CU28: 0 | CV28: 0 | CW28: 0 | CX28: 0 | CY28: 0 | CZ28: 0 | DA28: 0 | DB28: 0 | DC28: 0 | DD28: 0 | DE28: 0 | DF28: 0 | DG28: 0 | DH28: 0 | DI28: 0 | DJ28: =IF(#REF!>$Y$3,0,#REF!) ->  | DK28: =IF(#REF!>$Y$3,0,#REF!) ->  | DL28: =IF(#REF!>$Y$3,0,#REF!) ->  | DM28: =IF(#REF!>$Y$3,0,#REF!) ->  | DN28: =IF(#REF!>$Y$3,0,#REF!) ->  | DO28: =IF(#REF!>$Y$3,0,#REF!) ->  | DP28: =IF(#REF!>$Y$3,0,#REF!) ->  | DQ28: =IF(#REF!>$Y$3,0,#REF!) ->  | DR28: =IF(#REF!>$Y$3,0,#REF!) ->  | DS28: =IF(#REF!>$Y$3,0,#REF!) ->  | DT28: =IF(#REF!>$Y$3,0,#REF!) ->  | DU28: =IF(#REF!>$Y$3,0,#REF!) ->  | DV28: =IF(#REF!>$Y$3,0,#REF!) ->  | DW28: =IF(#REF!>$Y$3,0,#REF!) ->  | DX28: =IF(#REF!>$Y$3,0,#REF!) ->  | DY28: =IF(#REF!>$Y$3,0,#REF!) ->  | DZ28: =IF(#REF!>$Y$3,0,#REF!) ->  | EA28: =IF(#REF!>$Y$3,0,#REF!) ->  | EB28: =IF(#REF!>$Y$3,0,#REF!) ->  | EC28: =IF(#REF!>$Y$3,0,#REF!) ->  | ED28: =IF(#REF!>$Y$3,0,#REF!) ->  | EE28: =IF(#REF!>$Y$3,0,#REF!) ->  | EF28: =IF(#REF!>$Y$3,0,#REF!) ->  | EG28: =IF(#REF!>$Y$3,0,#REF!) ->  | EH28: =IF(#REF!>$Y$3,0,#REF!) ->  | EI28: =IF(#REF!>$Y$3,0,#REF!) ->  | EJ28: =IF(#REF!>$Y$3,0,#REF!) ->  | EK28: =IF(#REF!>$Y$3,0,#REF!) -> 
C29: 25 | BF29: 0 | BG29: =IF(PARCIAL1!L$8=0,0,(ROUND(((BF29*10)/PARCIAL1!L$8),1))) -> 0 | BJ29: 0 | BK29: 0 | BL29: 0 | BM29: 0 | BN29: 0 | BO29: 0 | BP29: 0 | BQ29: 0 | BR29: 0 | BS29: 0 | BT29: 0 | BU29: 0 | BV29: 0 | BW29: 0 | BX29: 0 | BY29: 0 | BZ29: 0 | CA29: 0 | CB29: 0 | CC29: 0 | CD29: 0 | CE29: 0 | CF29: 0 | CG29: 0 | CH29: 0 | CI29: 0 | CJ29: 0 | CK29: 0 | CL29: 0 | CM29: 0 | CN29: 0 | CO29: 0 | CP29: 0 | CQ29: 0 | CR29: 0 | CS29: 0 | CT29: 0 | CU29: 0 | CV29: 0 | CW29: 0 | CX29: 0 | CY29: 0 | CZ29: 0 | DA29: 0 | DB29: 0 | DC29: 0 | DD29: 0 | DE29: 0 | DF29: 0 | DG29: 0 | DH29: 0 | DI29: 0 | DJ29: =IF(#REF!>$Y$3,0,#REF!) ->  | DK29: =IF(#REF!>$Y$3,0,#REF!) ->  | DL29: =IF(#REF!>$Y$3,0,#REF!) ->  | DM29: =IF(#REF!>$Y$3,0,#REF!) ->  | DN29: =IF(#REF!>$Y$3,0,#REF!) ->  | DO29: =IF(#REF!>$Y$3,0,#REF!) ->  | DP29: =IF(#REF!>$Y$3,0,#REF!) ->  | DQ29: =IF(#REF!>$Y$3,0,#REF!) ->  | DR29: =IF(#REF!>$Y$3,0,#REF!) ->  | DS29: =IF(#REF!>$Y$3,0,#REF!) ->  | DT29: =IF(#REF!>$Y$3,0,#REF!) ->  | DU29: =IF(#REF!>$Y$3,0,#REF!) ->  | DV29: =IF(#REF!>$Y$3,0,#REF!) ->  | DW29: =IF(#REF!>$Y$3,0,#REF!) ->  | DX29: =IF(#REF!>$Y$3,0,#REF!) ->  | DY29: =IF(#REF!>$Y$3,0,#REF!) ->  | DZ29: =IF(#REF!>$Y$3,0,#REF!) ->  | EA29: =IF(#REF!>$Y$3,0,#REF!) ->  | EB29: =IF(#REF!>$Y$3,0,#REF!) ->  | EC29: =IF(#REF!>$Y$3,0,#REF!) ->  | ED29: =IF(#REF!>$Y$3,0,#REF!) ->  | EE29: =IF(#REF!>$Y$3,0,#REF!) ->  | EF29: =IF(#REF!>$Y$3,0,#REF!) ->  | EG29: =IF(#REF!>$Y$3,0,#REF!) ->  | EH29: =IF(#REF!>$Y$3,0,#REF!) ->  | EI29: =IF(#REF!>$Y$3,0,#REF!) ->  | EJ29: =IF(#REF!>$Y$3,0,#REF!) ->  | EK29: =IF(#REF!>$Y$3,0,#REF!) -> 
C30: 26 | BF30: 0 | BG30: =IF(PARCIAL1!L$8=0,0,(ROUND(((BF30*10)/PARCIAL1!L$8),1))) -> 0 | BJ30: 0 | BK30: 0 | BL30: 0 | BM30: 0 | BN30: 0 | BO30: 0 | BP30: 0 | BQ30: 0 | BR30: 0 | BS30: 0 | BT30: 0 | BU30: 0 | BV30: 0 | BW30: 0 | BX30: 0 | BY30: 0 | BZ30: 0 | CA30: 0 | CB30: 0 | CC30: 0 | CD30: 0 | CE30: 0 | CF30: 0 | CG30: 0 | CH30: 0 | CI30: 0 | CJ30: 0 | CK30: 0 | CL30: 0 | CM30: 0 | CN30: 0 | CO30: 0 | CP30: 0 | CQ30: 0 | CR30: 0 | CS30: 0 | CT30: 0 | CU30: 0 | CV30: 0 | CW30: 0 | CX30: 0 | CY30: 0 | CZ30: 0 | DA30: 0 | DB30: 0 | DC30: 0 | DD30: 0 | DE30: 0 | DF30: 0 | DG30: 0 | DH30: 0 | DI30: 0 | DJ30: =IF(#REF!>$Y$3,0,#REF!) ->  | DK30: =IF(#REF!>$Y$3,0,#REF!) ->  | DL30: =IF(#REF!>$Y$3,0,#REF!) ->  | DM30: =IF(#REF!>$Y$3,0,#REF!) ->  | DN30: =IF(#REF!>$Y$3,0,#REF!) ->  | DO30: =IF(#REF!>$Y$3,0,#REF!) ->  | DP30: =IF(#REF!>$Y$3,0,#REF!) ->  | DQ30: =IF(#REF!>$Y$3,0,#REF!) ->  | DR30: =IF(#REF!>$Y$3,0,#REF!) ->  | DS30: =IF(#REF!>$Y$3,0,#REF!) ->  | DT30: =IF(#REF!>$Y$3,0,#REF!) ->  | DU30: =IF(#REF!>$Y$3,0,#REF!) ->  | DV30: =IF(#REF!>$Y$3,0,#REF!) ->  | DW30: =IF(#REF!>$Y$3,0,#REF!) ->  | DX30: =IF(#REF!>$Y$3,0,#REF!) ->  | DY30: =IF(#REF!>$Y$3,0,#REF!) ->  | DZ30: =IF(#REF!>$Y$3,0,#REF!) ->  | EA30: =IF(#REF!>$Y$3,0,#REF!) ->  | EB30: =IF(#REF!>$Y$3,0,#REF!) ->  | EC30: =IF(#REF!>$Y$3,0,#REF!) ->  | ED30: =IF(#REF!>$Y$3,0,#REF!) ->  | EE30: =IF(#REF!>$Y$3,0,#REF!) ->  | EF30: =IF(#REF!>$Y$3,0,#REF!) ->  | EG30: =IF(#REF!>$Y$3,0,#REF!) ->  | EH30: =IF(#REF!>$Y$3,0,#REF!) ->  | EI30: =IF(#REF!>$Y$3,0,#REF!) ->  | EJ30: =IF(#REF!>$Y$3,0,#REF!) ->  | EK30: =IF(#REF!>$Y$3,0,#REF!) -> 
C31: 27 | BF31: 0 | BG31: =IF(PARCIAL1!L$8=0,0,(ROUND(((BF31*10)/PARCIAL1!L$8),1))) -> 0 | BJ31: 0 | BK31: 0 | BL31: 0 | BM31: 0 | BN31: 0 | BO31: 0 | BP31: 0 | BQ31: 0 | BR31: 0 | BS31: 0 | BT31: 0 | BU31: 0 | BV31: 0 | BW31: 0 | BX31: 0 | BY31: 0 | BZ31: 0 | CA31: 0 | CB31: 0 | CC31: 0 | CD31: 0 | CE31: 0 | CF31: 0 | CG31: 0 | CH31: 0 | CI31: 0 | CJ31: 0 | CK31: 0 | CL31: 0 | CM31: 0 | CN31: 0 | CO31: 0 | CP31: 0 | CQ31: 0 | CR31: 0 | CS31: 0 | CT31: 0 | CU31: 0 | CV31: 0 | CW31: 0 | CX31: 0 | CY31: 0 | CZ31: 0 | DA31: 0 | DB31: 0 | DC31: 0 | DD31: 0 | DE31: 0 | DF31: 0 | DG31: 0 | DH31: 0 | DI31: 0 | DJ31: =IF(#REF!>$Y$3,0,#REF!) ->  | DK31: =IF(#REF!>$Y$3,0,#REF!) ->  | DL31: =IF(#REF!>$Y$3,0,#REF!) ->  | DM31: =IF(#REF!>$Y$3,0,#REF!) ->  | DN31: =IF(#REF!>$Y$3,0,#REF!) ->  | DO31: =IF(#REF!>$Y$3,0,#REF!) ->  | DP31: =IF(#REF!>$Y$3,0,#REF!) ->  | DQ31: =IF(#REF!>$Y$3,0,#REF!) ->  | DR31: =IF(#REF!>$Y$3,0,#REF!) ->  | DS31: =IF(#REF!>$Y$3,0,#REF!) ->  | DT31: =IF(#REF!>$Y$3,0,#REF!) ->  | DU31: =IF(#REF!>$Y$3,0,#REF!) ->  | DV31: =IF(#REF!>$Y$3,0,#REF!) ->  | DW31: =IF(#REF!>$Y$3,0,#REF!) ->  | DX31: =IF(#REF!>$Y$3,0,#REF!) ->  | DY31: =IF(#REF!>$Y$3,0,#REF!) ->  | DZ31: =IF(#REF!>$Y$3,0,#REF!) ->  | EA31: =IF(#REF!>$Y$3,0,#REF!) ->  | EB31: =IF(#REF!>$Y$3,0,#REF!) ->  | EC31: =IF(#REF!>$Y$3,0,#REF!) ->  | ED31: =IF(#REF!>$Y$3,0,#REF!) ->  | EE31: =IF(#REF!>$Y$3,0,#REF!) ->  | EF31: =IF(#REF!>$Y$3,0,#REF!) ->  | EG31: =IF(#REF!>$Y$3,0,#REF!) ->  | EH31: =IF(#REF!>$Y$3,0,#REF!) ->  | EI31: =IF(#REF!>$Y$3,0,#REF!) ->  | EJ31: =IF(#REF!>$Y$3,0,#REF!) ->  | EK31: =IF(#REF!>$Y$3,0,#REF!) -> 
C32: 28 | BF32: 0 | BG32: =IF(PARCIAL1!L$8=0,0,(ROUND(((BF32*10)/PARCIAL1!L$8),1))) -> 0 | BJ32: 0 | BK32: 0 | BL32: 0 | BM32: 0 | BN32: 0 | BO32: 0 | BP32: 0 | BQ32: 0 | BR32: 0 | BS32: 0 | BT32: 0 | BU32: 0 | BV32: 0 | BW32: 0 | BX32: 0 | BY32: 0 | BZ32: 0 | CA32: 0 | CB32: 0 | CC32: 0 | CD32: 0 | CE32: 0 | CF32: 0 | CG32: 0 | CH32: 0 | CI32: 0 | CJ32: 0 | CK32: 0 | CL32: 0 | CM32: 0 | CN32: 0 | CO32: 0 | CP32: 0 | CQ32: 0 | CR32: 0 | CS32: 0 | CT32: 0 | CU32: 0 | CV32: 0 | CW32: 0 | CX32: 0 | CY32: 0 | CZ32: 0 | DA32: 0 | DB32: 0 | DC32: 0 | DD32: 0 | DE32: 0 | DF32: 0 | DG32: 0 | DH32: 0 | DI32: 0 | DJ32: =IF(#REF!>$Y$3,0,#REF!) ->  | DK32: =IF(#REF!>$Y$3,0,#REF!) ->  | DL32: =IF(#REF!>$Y$3,0,#REF!) ->  | DM32: =IF(#REF!>$Y$3,0,#REF!) ->  | DN32: =IF(#REF!>$Y$3,0,#REF!) ->  | DO32: =IF(#REF!>$Y$3,0,#REF!) ->  | DP32: =IF(#REF!>$Y$3,0,#REF!) ->  | DQ32: =IF(#REF!>$Y$3,0,#REF!) ->  | DR32: =IF(#REF!>$Y$3,0,#REF!) ->  | DS32: =IF(#REF!>$Y$3,0,#REF!) ->  | DT32: =IF(#REF!>$Y$3,0,#REF!) ->  | DU32: =IF(#REF!>$Y$3,0,#REF!) ->  | DV32: =IF(#REF!>$Y$3,0,#REF!) ->  | DW32: =IF(#REF!>$Y$3,0,#REF!) ->  | DX32: =IF(#REF!>$Y$3,0,#REF!) ->  | DY32: =IF(#REF!>$Y$3,0,#REF!) ->  | DZ32: =IF(#REF!>$Y$3,0,#REF!) ->  | EA32: =IF(#REF!>$Y$3,0,#REF!) ->  | EB32: =IF(#REF!>$Y$3,0,#REF!) ->  | EC32: =IF(#REF!>$Y$3,0,#REF!) ->  | ED32: =IF(#REF!>$Y$3,0,#REF!) ->  | EE32: =IF(#REF!>$Y$3,0,#REF!) ->  | EF32: =IF(#REF!>$Y$3,0,#REF!) ->  | EG32: =IF(#REF!>$Y$3,0,#REF!) ->  | EH32: =IF(#REF!>$Y$3,0,#REF!) ->  | EI32: =IF(#REF!>$Y$3,0,#REF!) ->  | EJ32: =IF(#REF!>$Y$3,0,#REF!) ->  | EK32: =IF(#REF!>$Y$3,0,#REF!) -> 
C33: 29 | BF33: 0 | BG33: =IF(PARCIAL1!L$8=0,0,(ROUND(((BF33*10)/PARCIAL1!L$8),1))) -> 0 | BJ33: 0 | BK33: 0 | BL33: 0 | BM33: 0 | BN33: 0 | BO33: 0 | BP33: 0 | BQ33: 0 | BR33: 0 | BS33: 0 | BT33: 0 | BU33: 0 | BV33: 0 | BW33: 0 | BX33: 0 | BY33: 0 | BZ33: 0 | CA33: 0 | CB33: 0 | CC33: 0 | CD33: 0 | CE33: 0 | CF33: 0 | CG33: 0 | CH33: 0 | CI33: 0 | CJ33: 0 | CK33: 0 | CL33: 0 | CM33: 0 | CN33: 0 | CO33: 0 | CP33: 0 | CQ33: 0 | CR33: 0 | CS33: 0 | CT33: 0 | CU33: 0 | CV33: 0 | CW33: 0 | CX33: 0 | CY33: 0 | CZ33: 0 | DA33: 0 | DB33: 0 | DC33: 0 | DD33: 0 | DE33: 0 | DF33: 0 | DG33: 0 | DH33: 0 | DI33: 0 | DJ33: =IF(#REF!>$Y$3,0,#REF!) ->  | DK33: =IF(#REF!>$Y$3,0,#REF!) ->  | DL33: =IF(#REF!>$Y$3,0,#REF!) ->  | DM33: =IF(#REF!>$Y$3,0,#REF!) ->  | DN33: =IF(#REF!>$Y$3,0,#REF!) ->  | DO33: =IF(#REF!>$Y$3,0,#REF!) ->  | DP33: =IF(#REF!>$Y$3,0,#REF!) ->  | DQ33: =IF(#REF!>$Y$3,0,#REF!) ->  | DR33: =IF(#REF!>$Y$3,0,#REF!) ->  | DS33: =IF(#REF!>$Y$3,0,#REF!) ->  | DT33: =IF(#REF!>$Y$3,0,#REF!) ->  | DU33: =IF(#REF!>$Y$3,0,#REF!) ->  | DV33: =IF(#REF!>$Y$3,0,#REF!) ->  | DW33: =IF(#REF!>$Y$3,0,#REF!) ->  | DX33: =IF(#REF!>$Y$3,0,#REF!) ->  | DY33: =IF(#REF!>$Y$3,0,#REF!) ->  | DZ33: =IF(#REF!>$Y$3,0,#REF!) ->  | EA33: =IF(#REF!>$Y$3,0,#REF!) ->  | EB33: =IF(#REF!>$Y$3,0,#REF!) ->  | EC33: =IF(#REF!>$Y$3,0,#REF!) ->  | ED33: =IF(#REF!>$Y$3,0,#REF!) ->  | EE33: =IF(#REF!>$Y$3,0,#REF!) ->  | EF33: =IF(#REF!>$Y$3,0,#REF!) ->  | EG33: =IF(#REF!>$Y$3,0,#REF!) ->  | EH33: =IF(#REF!>$Y$3,0,#REF!) ->  | EI33: =IF(#REF!>$Y$3,0,#REF!) ->  | EJ33: =IF(#REF!>$Y$3,0,#REF!) ->  | EK33: =IF(#REF!>$Y$3,0,#REF!) -> 
C34: 30 | BF34: 0 | BG34: =IF(PARCIAL1!L$8=0,0,(ROUND(((BF34*10)/PARCIAL1!L$8),1))) -> 0 | BJ34: 0 | BK34: 0 | BL34: 0 | BM34: 0 | BN34: 0 | BO34: 0 | BP34: 0 | BQ34: 0 | BR34: 0 | BS34: 0 | BT34: 0 | BU34: 0 | BV34: 0 | BW34: 0 | BX34: 0 | BY34: 0 | BZ34: 0 | CA34: 0 | CB34: 0 | CC34: 0 | CD34: 0 | CE34: 0 | CF34: 0 | CG34: 0 | CH34: 0 | CI34: 0 | CJ34: 0 | CK34: 0 | CL34: 0 | CM34: 0 | CN34: 0 | CO34: 0 | CP34: 0 | CQ34: 0 | CR34: 0 | CS34: 0 | CT34: 0 | CU34: 0 | CV34: 0 | CW34: 0 | CX34: 0 | CY34: 0 | CZ34: 0 | DA34: 0 | DB34: 0 | DC34: 0 | DD34: 0 | DE34: 0 | DF34: 0 | DG34: 0 | DH34: 0 | DI34: 0 | DJ34: =IF(#REF!>$Y$3,0,#REF!) ->  | DK34: =IF(#REF!>$Y$3,0,#REF!) ->  | DL34: =IF(#REF!>$Y$3,0,#REF!) ->  | DM34: =IF(#REF!>$Y$3,0,#REF!) ->  | DN34: =IF(#REF!>$Y$3,0,#REF!) ->  | DO34: =IF(#REF!>$Y$3,0,#REF!) ->  | DP34: =IF(#REF!>$Y$3,0,#REF!) ->  | DQ34: =IF(#REF!>$Y$3,0,#REF!) ->  | DR34: =IF(#REF!>$Y$3,0,#REF!) ->  | DS34: =IF(#REF!>$Y$3,0,#REF!) ->  | DT34: =IF(#REF!>$Y$3,0,#REF!) ->  | DU34: =IF(#REF!>$Y$3,0,#REF!) ->  | DV34: =IF(#REF!>$Y$3,0,#REF!) ->  | DW34: =IF(#REF!>$Y$3,0,#REF!) ->  | DX34: =IF(#REF!>$Y$3,0,#REF!) ->  | DY34: =IF(#REF!>$Y$3,0,#REF!) ->  | DZ34: =IF(#REF!>$Y$3,0,#REF!) ->  | EA34: =IF(#REF!>$Y$3,0,#REF!) ->  | EB34: =IF(#REF!>$Y$3,0,#REF!) ->  | EC34: =IF(#REF!>$Y$3,0,#REF!) ->  | ED34: =IF(#REF!>$Y$3,0,#REF!) ->  | EE34: =IF(#REF!>$Y$3,0,#REF!) ->  | EF34: =IF(#REF!>$Y$3,0,#REF!) ->  | EG34: =IF(#REF!>$Y$3,0,#REF!) ->  | EH34: =IF(#REF!>$Y$3,0,#REF!) ->  | EI34: =IF(#REF!>$Y$3,0,#REF!) ->  | EJ34: =IF(#REF!>$Y$3,0,#REF!) ->  | EK34: =IF(#REF!>$Y$3,0,#REF!) -> 
C35: 31 | BF35: 0 | BG35: =IF(PARCIAL1!L$8=0,0,(ROUND(((BF35*10)/PARCIAL1!L$8),1))) -> 0 | BJ35: 0 | BK35: 0 | BL35: 0 | BM35: 0 | BN35: 0 | BO35: 0 | BP35: 0 | BQ35: 0 | BR35: 0 | BS35: 0 | BT35: 0 | BU35: 0 | BV35: 0 | BW35: 0 | BX35: 0 | BY35: 0 | BZ35: 0 | CA35: 0 | CB35: 0 | CC35: 0 | CD35: 0 | CE35: 0 | CF35: 0 | CG35: 0 | CH35: 0 | CI35: 0 | CJ35: 0 | CK35: 0 | CL35: 0 | CM35: 0 | CN35: 0 | CO35: 0 | CP35: 0 | CQ35: 0 | CR35: 0 | CS35: 0 | CT35: 0 | CU35: 0 | CV35: 0 | CW35: 0 | CX35: 0 | CY35: 0 | CZ35: 0 | DA35: 0 | DB35: 0 | DC35: 0 | DD35: 0 | DE35: 0 | DF35: 0 | DG35: 0 | DH35: 0 | DI35: 0 | DJ35: =IF(#REF!>$Y$3,0,#REF!) ->  | DK35: =IF(#REF!>$Y$3,0,#REF!) ->  | DL35: =IF(#REF!>$Y$3,0,#REF!) ->  | DM35: =IF(#REF!>$Y$3,0,#REF!) ->  | DN35: =IF(#REF!>$Y$3,0,#REF!) ->  | DO35: =IF(#REF!>$Y$3,0,#REF!) ->  | DP35: =IF(#REF!>$Y$3,0,#REF!) ->  | DQ35: =IF(#REF!>$Y$3,0,#REF!) ->  | DR35: =IF(#REF!>$Y$3,0,#REF!) ->  | DS35: =IF(#REF!>$Y$3,0,#REF!) ->  | DT35: =IF(#REF!>$Y$3,0,#REF!) ->  | DU35: =IF(#REF!>$Y$3,0,#REF!) ->  | DV35: =IF(#REF!>$Y$3,0,#REF!) ->  | DW35: =IF(#REF!>$Y$3,0,#REF!) ->  | DX35: =IF(#REF!>$Y$3,0,#REF!) ->  | DY35: =IF(#REF!>$Y$3,0,#REF!) ->  | DZ35: =IF(#REF!>$Y$3,0,#REF!) ->  | EA35: =IF(#REF!>$Y$3,0,#REF!) ->  | EB35: =IF(#REF!>$Y$3,0,#REF!) ->  | EC35: =IF(#REF!>$Y$3,0,#REF!) ->  | ED35: =IF(#REF!>$Y$3,0,#REF!) ->  | EE35: =IF(#REF!>$Y$3,0,#REF!) ->  | EF35: =IF(#REF!>$Y$3,0,#REF!) ->  | EG35: =IF(#REF!>$Y$3,0,#REF!) ->  | EH35: =IF(#REF!>$Y$3,0,#REF!) ->  | EI35: =IF(#REF!>$Y$3,0,#REF!) ->  | EJ35: =IF(#REF!>$Y$3,0,#REF!) ->  | EK35: =IF(#REF!>$Y$3,0,#REF!) -> 
C36: 32 | BF36: 0 | BG36: =IF(PARCIAL1!L$8=0,0,(ROUND(((BF36*10)/PARCIAL1!L$8),1))) -> 0 | BJ36: 0 | BK36: 0 | BL36: 0 | BM36: 0 | BN36: 0 | BO36: 0 | BP36: 0 | BQ36: 0 | BR36: 0 | BS36: 0 | BT36: 0 | BU36: 0 | BV36: 0 | BW36: 0 | BX36: 0 | BY36: 0 | BZ36: 0 | CA36: 0 | CB36: 0 | CC36: 0 | CD36: 0 | CE36: 0 | CF36: 0 | CG36: 0 | CH36: 0 | CI36: 0 | CJ36: 0 | CK36: 0 | CL36: 0 | CM36: 0 | CN36: 0 | CO36: 0 | CP36: 0 | CQ36: 0 | CR36: 0 | CS36: 0 | CT36: 0 | CU36: 0 | CV36: 0 | CW36: 0 | CX36: 0 | CY36: 0 | CZ36: 0 | DA36: 0 | DB36: 0 | DC36: 0 | DD36: 0 | DE36: 0 | DF36: 0 | DG36: 0 | DH36: 0 | DI36: 0 | DJ36: =IF(#REF!>$Y$3,0,#REF!) ->  | DK36: =IF(#REF!>$Y$3,0,#REF!) ->  | DL36: =IF(#REF!>$Y$3,0,#REF!) ->  | DM36: =IF(#REF!>$Y$3,0,#REF!) ->  | DN36: =IF(#REF!>$Y$3,0,#REF!) ->  | DO36: =IF(#REF!>$Y$3,0,#REF!) ->  | DP36: =IF(#REF!>$Y$3,0,#REF!) ->  | DQ36: =IF(#REF!>$Y$3,0,#REF!) ->  | DR36: =IF(#REF!>$Y$3,0,#REF!) ->  | DS36: =IF(#REF!>$Y$3,0,#REF!) ->  | DT36: =IF(#REF!>$Y$3,0,#REF!) ->  | DU36: =IF(#REF!>$Y$3,0,#REF!) ->  | DV36: =IF(#REF!>$Y$3,0,#REF!) ->  | DW36: =IF(#REF!>$Y$3,0,#REF!) ->  | DX36: =IF(#REF!>$Y$3,0,#REF!) ->  | DY36: =IF(#REF!>$Y$3,0,#REF!) ->  | DZ36: =IF(#REF!>$Y$3,0,#REF!) ->  | EA36: =IF(#REF!>$Y$3,0,#REF!) ->  | EB36: =IF(#REF!>$Y$3,0,#REF!) ->  | EC36: =IF(#REF!>$Y$3,0,#REF!) ->  | ED36: =IF(#REF!>$Y$3,0,#REF!) ->  | EE36: =IF(#REF!>$Y$3,0,#REF!) ->  | EF36: =IF(#REF!>$Y$3,0,#REF!) ->  | EG36: =IF(#REF!>$Y$3,0,#REF!) ->  | EH36: =IF(#REF!>$Y$3,0,#REF!) ->  | EI36: =IF(#REF!>$Y$3,0,#REF!) ->  | EJ36: =IF(#REF!>$Y$3,0,#REF!) ->  | EK36: =IF(#REF!>$Y$3,0,#REF!) -> 
C37: 33 | BF37: 0 | BG37: =IF(PARCIAL1!L$8=0,0,(ROUND(((BF37*10)/PARCIAL1!L$8),1))) -> 0 | BJ37: 0 | BK37: 0 | BL37: 0 | BM37: 0 | BN37: 0 | BO37: 0 | BP37: 0 | BQ37: 0 | BR37: 0 | BS37: 0 | BT37: 0 | BU37: 0 | BV37: 0 | BW37: 0 | BX37: 0 | BY37: 0 | BZ37: 0 | CA37: 0 | CB37: 0 | CC37: 0 | CD37: 0 | CE37: 0 | CF37: 0 | CG37: 0 | CH37: 0 | CI37: 0 | CJ37: 0 | CK37: 0 | CL37: 0 | CM37: 0 | CN37: 0 | CO37: 0 | CP37: 0 | CQ37: 0 | CR37: 0 | CS37: 0 | CT37: 0 | CU37: 0 | CV37: 0 | CW37: 0 | CX37: 0 | CY37: 0 | CZ37: 0 | DA37: 0 | DB37: 0 | DC37: 0 | DD37: 0 | DE37: 0 | DF37: 0 | DG37: 0 | DH37: 0 | DI37: 0 | DJ37: =IF(#REF!>$Y$3,0,#REF!) ->  | DK37: =IF(#REF!>$Y$3,0,#REF!) ->  | DL37: =IF(#REF!>$Y$3,0,#REF!) ->  | DM37: =IF(#REF!>$Y$3,0,#REF!) ->  | DN37: =IF(#REF!>$Y$3,0,#REF!) ->  | DO37: =IF(#REF!>$Y$3,0,#REF!) ->  | DP37: =IF(#REF!>$Y$3,0,#REF!) ->  | DQ37: =IF(#REF!>$Y$3,0,#REF!) ->  | DR37: =IF(#REF!>$Y$3,0,#REF!) ->  | DS37: =IF(#REF!>$Y$3,0,#REF!) ->  | DT37: =IF(#REF!>$Y$3,0,#REF!) ->  | DU37: =IF(#REF!>$Y$3,0,#REF!) ->  | DV37: =IF(#REF!>$Y$3,0,#REF!) ->  | DW37: =IF(#REF!>$Y$3,0,#REF!) ->  | DX37: =IF(#REF!>$Y$3,0,#REF!) ->  | DY37: =IF(#REF!>$Y$3,0,#REF!) ->  | DZ37: =IF(#REF!>$Y$3,0,#REF!) ->  | EA37: =IF(#REF!>$Y$3,0,#REF!) ->  | EB37: =IF(#REF!>$Y$3,0,#REF!) ->  | EC37: =IF(#REF!>$Y$3,0,#REF!) ->  | ED37: =IF(#REF!>$Y$3,0,#REF!) ->  | EE37: =IF(#REF!>$Y$3,0,#REF!) ->  | EF37: =IF(#REF!>$Y$3,0,#REF!) ->  | EG37: =IF(#REF!>$Y$3,0,#REF!) ->  | EH37: =IF(#REF!>$Y$3,0,#REF!) ->  | EI37: =IF(#REF!>$Y$3,0,#REF!) ->  | EJ37: =IF(#REF!>$Y$3,0,#REF!) ->  | EK37: =IF(#REF!>$Y$3,0,#REF!) -> 
C38: 34 | BF38: 0 | BG38: =IF(PARCIAL1!L$8=0,0,(ROUND(((BF38*10)/PARCIAL1!L$8),1))) -> 0 | BJ38: 0 | BK38: 0 | BL38: 0 | BM38: 0 | BN38: 0 | BO38: 0 | BP38: 0 | BQ38: 0 | BR38: 0 | BS38: 0 | BT38: 0 | BU38: 0 | BV38: 0 | BW38: 0 | BX38: 0 | BY38: 0 | BZ38: 0 | CA38: 0 | CB38: 0 | CC38: 0 | CD38: 0 | CE38: 0 | CF38: 0 | CG38: 0 | CH38: 0 | CI38: 0 | CJ38: 0 | CK38: 0 | CL38: 0 | CM38: 0 | CN38: 0 | CO38: 0 | CP38: 0 | CQ38: 0 | CR38: 0 | CS38: 0 | CT38: 0 | CU38: 0 | CV38: 0 | CW38: 0 | CX38: 0 | CY38: 0 | CZ38: 0 | DA38: 0 | DB38: 0 | DC38: 0 | DD38: 0 | DE38: 0 | DF38: 0 | DG38: 0 | DH38: 0 | DI38: 0 | DJ38: =IF(#REF!>$Y$3,0,#REF!) ->  | DK38: =IF(#REF!>$Y$3,0,#REF!) ->  | DL38: =IF(#REF!>$Y$3,0,#REF!) ->  | DM38: =IF(#REF!>$Y$3,0,#REF!) ->  | DN38: =IF(#REF!>$Y$3,0,#REF!) ->  | DO38: =IF(#REF!>$Y$3,0,#REF!) ->  | DP38: =IF(#REF!>$Y$3,0,#REF!) ->  | DQ38: =IF(#REF!>$Y$3,0,#REF!) ->  | DR38: =IF(#REF!>$Y$3,0,#REF!) ->  | DS38: =IF(#REF!>$Y$3,0,#REF!) ->  | DT38: =IF(#REF!>$Y$3,0,#REF!) ->  | DU38: =IF(#REF!>$Y$3,0,#REF!) ->  | DV38: =IF(#REF!>$Y$3,0,#REF!) ->  | DW38: =IF(#REF!>$Y$3,0,#REF!) ->  | DX38: =IF(#REF!>$Y$3,0,#REF!) ->  | DY38: =IF(#REF!>$Y$3,0,#REF!) ->  | DZ38: =IF(#REF!>$Y$3,0,#REF!) ->  | EA38: =IF(#REF!>$Y$3,0,#REF!) ->  | EB38: =IF(#REF!>$Y$3,0,#REF!) ->  | EC38: =IF(#REF!>$Y$3,0,#REF!) ->  | ED38: =IF(#REF!>$Y$3,0,#REF!) ->  | EE38: =IF(#REF!>$Y$3,0,#REF!) ->  | EF38: =IF(#REF!>$Y$3,0,#REF!) ->  | EG38: =IF(#REF!>$Y$3,0,#REF!) ->  | EH38: =IF(#REF!>$Y$3,0,#REF!) ->  | EI38: =IF(#REF!>$Y$3,0,#REF!) ->  | EJ38: =IF(#REF!>$Y$3,0,#REF!) ->  | EK38: =IF(#REF!>$Y$3,0,#REF!) -> 
C39: 35 | BF39: 0 | BG39: =IF(PARCIAL1!L$8=0,0,(ROUND(((BF39*10)/PARCIAL1!L$8),1))) -> 0 | BJ39: =IF(F39>$Y$3,0,F39) -> 0 | BK39: =IF(G39>$Y$3,0,G39) -> 0 | BL39: =IF(H39>$Y$3,0,H39) -> 0 | BM39: =IF(I39>$Y$3,0,I39) -> 0 | BN39: =IF(J39>$Y$3,0,J39) -> 0 | BO39: =IF(K39>$Y$3,0,K39) -> 0 | BP39: =IF(L39>$Y$3,0,L39) -> 0 | BQ39: =IF(M39>$Y$3,0,M39) -> 0 | BR39: =IF(N39>$Y$3,0,N39) -> 0 | BS39: =IF(O39>$Y$3,0,O39) -> 0 | BT39: =IF(P39>$Y$3,0,P39) -> 0 | BU39: =IF(Q39>$Y$3,0,Q39) -> 0 | BV39: =IF(R39>$Y$3,0,R39) -> 0 | BW39: =IF(S39>$Y$3,0,S39) -> 0 | BX39: =IF(T39>$Y$3,0,T39) -> 0 | BY39: =IF(U39>$Y$3,0,U39) -> 0 | BZ39: =IF(V39>$Y$3,0,V39) -> 0 | CA39: =IF(W39>$Y$3,0,W39) -> 0 | CB39: =IF(X39>$Y$3,0,X39) -> 0 | CC39: =IF(Y39>$Y$3,0,Y39) -> 0 | CD39: =IF(Z39>$Y$3,0,Z39) -> 0 | CE39: =IF(AA39>$Y$3,0,AA39) -> 0 | CF39: =IF(AB39>$Y$3,0,AB39) -> 0 | CG39: =IF(AC39>$Y$3,0,AC39) -> 0 | CH39: =IF(AD39>$Y$3,0,AD39) -> 0 | CI39: =IF(AE39>$Y$3,0,AE39) -> 0 | CJ39: =IF(AF39>$Y$3,0,AF39) -> 0 | CK39: =IF(AG39>$Y$3,0,AG39) -> 0 | CL39: =IF(AH39>$Y$3,0,AH39) -> 0 | CM39: =IF(AI39>$Y$3,0,AI39) -> 0 | CN39: =IF(AJ39>$Y$3,0,AJ39) -> 0 | CO39: =IF(AK39>$Y$3,0,AK39) -> 0 | CP39: =IF(AL39>$Y$3,0,AL39) -> 0 | CQ39: =IF(AM39>$Y$3,0,AM39) -> 0 | CR39: =IF(AN39>$Y$3,0,AN39) -> 0 | CS39: =IF(AO39>$Y$3,0,AO39) -> 0 | CT39: =IF(AP39>$Y$3,0,AP39) -> 0 | CU39: =IF(AQ39>$Y$3,0,AQ39) -> 0 | CV39: =IF(AR39>$Y$3,0,AR39) -> 0 | CW39: =IF(AS39>$Y$3,0,AS39) -> 0 | CX39: =IF(AT39>$Y$3,0,AT39) -> 0 | CY39: =IF(AU39>$Y$3,0,AU39) -> 0 | CZ39: =IF(AV39>$Y$3,0,AV39) -> 0 | DA39: =IF(AW39>$Y$3,0,AW39) -> 0 | DB39: =IF(AX39>$Y$3,0,AX39) -> 0 | DC39: =IF(AY39>$Y$3,0,AY39) -> 0 | DD39: =IF(AZ39>$Y$3,0,AZ39) -> 0 | DE39: =IF(BA39>$Y$3,0,BA39) -> 0 | DF39: =IF(BB39>$Y$3,0,BB39) -> 0 | DG39: =IF(BC39>$Y$3,0,BC39) -> 0 | DH39: =IF(BD39>$Y$3,0,BD39) -> 0 | DI39: =IF(BE39>$Y$3,0,BE39) -> 0 | DJ39: =IF(#REF!>$Y$3,0,#REF!) ->  | DK39: =IF(#REF!>$Y$3,0,#REF!) ->  | DL39: =IF(#REF!>$Y$3,0,#REF!) ->  | DM39: =IF(#REF!>$Y$3,0,#REF!) ->  | DN39: =IF(#REF!>$Y$3,0,#REF!) ->  | DO39: =IF(#REF!>$Y$3,0,#REF!) ->  | DP39: =IF(#REF!>$Y$3,0,#REF!) ->  | DQ39: =IF(#REF!>$Y$3,0,#REF!) ->  | DR39: =IF(#REF!>$Y$3,0,#REF!) ->  | DS39: =IF(#REF!>$Y$3,0,#REF!) ->  | DT39: =IF(#REF!>$Y$3,0,#REF!) ->  | DU39: =IF(#REF!>$Y$3,0,#REF!) ->  | DV39: =IF(#REF!>$Y$3,0,#REF!) ->  | DW39: =IF(#REF!>$Y$3,0,#REF!) ->  | DX39: =IF(#REF!>$Y$3,0,#REF!) ->  | DY39: =IF(#REF!>$Y$3,0,#REF!) ->  | DZ39: =IF(#REF!>$Y$3,0,#REF!) ->  | EA39: =IF(#REF!>$Y$3,0,#REF!) ->  | EB39: =IF(#REF!>$Y$3,0,#REF!) ->  | EC39: =IF(#REF!>$Y$3,0,#REF!) ->  | ED39: =IF(#REF!>$Y$3,0,#REF!) ->  | EE39: =IF(#REF!>$Y$3,0,#REF!) ->  | EF39: =IF(#REF!>$Y$3,0,#REF!) ->  | EG39: =IF(#REF!>$Y$3,0,#REF!) ->  | EH39: =IF(#REF!>$Y$3,0,#REF!) ->  | EI39: =IF(#REF!>$Y$3,0,#REF!) ->  | EJ39: =IF(#REF!>$Y$3,0,#REF!) ->  | EK39: =IF(#REF!>$Y$3,0,#REF!) -> 
C40: 36 | BF40: 0 | BG40: =IF(PARCIAL1!L$8=0,0,(ROUND(((BF40*10)/PARCIAL1!L$8),1))) -> 0 | BJ40: 0 | BK40: 0 | BL40: 0 | BM40: 0 | BN40: 0 | BO40: 0 | BP40: 0 | BQ40: 0 | BR40: 0 | BS40: 0 | BT40: 0 | BU40: 0 | BV40: 0 | BW40: 0 | BX40: 0 | BY40: 0 | BZ40: 0 | CA40: 0 | CB40: 0 | CC40: 0 | CD40: 0 | CE40: 0 | CF40: 0 | CG40: 0 | CH40: 0 | CI40: 0 | CJ40: 0 | CK40: 0 | CL40: 0 | CM40: 0 | CN40: 0 | CO40: 0 | CP40: 0 | CQ40: 0 | CR40: 0 | CS40: 0 | CT40: 0 | CU40: 0 | CV40: 0 | CW40: 0 | CX40: 0 | CY40: 0 | CZ40: 0 | DA40: 0 | DB40: 0 | DC40: 0 | DD40: 0 | DE40: 0 | DF40: 0 | DG40: 0 | DH40: 0 | DI40: 0 | DJ40: =IF(#REF!>$Y$3,0,#REF!) ->  | DK40: =IF(#REF!>$Y$3,0,#REF!) ->  | DL40: =IF(#REF!>$Y$3,0,#REF!) ->  | DM40: =IF(#REF!>$Y$3,0,#REF!) ->  | DN40: =IF(#REF!>$Y$3,0,#REF!) ->  | DO40: =IF(#REF!>$Y$3,0,#REF!) ->  | DP40: =IF(#REF!>$Y$3,0,#REF!) ->  | DQ40: =IF(#REF!>$Y$3,0,#REF!) ->  | DR40: =IF(#REF!>$Y$3,0,#REF!) ->  | DS40: =IF(#REF!>$Y$3,0,#REF!) ->  | DT40: =IF(#REF!>$Y$3,0,#REF!) ->  | DU40: =IF(#REF!>$Y$3,0,#REF!) ->  | DV40: =IF(#REF!>$Y$3,0,#REF!) ->  | DW40: =IF(#REF!>$Y$3,0,#REF!) ->  | DX40: =IF(#REF!>$Y$3,0,#REF!) ->  | DY40: =IF(#REF!>$Y$3,0,#REF!) ->  | DZ40: =IF(#REF!>$Y$3,0,#REF!) ->  | EA40: =IF(#REF!>$Y$3,0,#REF!) ->  | EB40: =IF(#REF!>$Y$3,0,#REF!) ->  | EC40: =IF(#REF!>$Y$3,0,#REF!) ->  | ED40: =IF(#REF!>$Y$3,0,#REF!) ->  | EE40: =IF(#REF!>$Y$3,0,#REF!) ->  | EF40: =IF(#REF!>$Y$3,0,#REF!) ->  | EG40: =IF(#REF!>$Y$3,0,#REF!) ->  | EH40: =IF(#REF!>$Y$3,0,#REF!) ->  | EI40: =IF(#REF!>$Y$3,0,#REF!) ->  | EJ40: =IF(#REF!>$Y$3,0,#REF!) ->  | EK40: =IF(#REF!>$Y$3,0,#REF!) -> 
C41: 37 | BF41: 0 | BG41: =IF(PARCIAL1!L$8=0,0,(ROUND(((BF41*10)/PARCIAL1!L$8),1))) -> 0 | BJ41: 0 | BK41: 0 | BL41: 0 | BM41: 0 | BN41: 0 | BO41: 0 | BP41: 0 | BQ41: 0 | BR41: 0 | BS41: 0 | BT41: 0 | BU41: 0 | BV41: 0 | BW41: 0 | BX41: 0 | BY41: 0 | BZ41: 0 | CA41: 0 | CB41: 0 | CC41: 0 | CD41: 0 | CE41: 0 | CF41: 0 | CG41: 0 | CH41: 0 | CI41: 0 | CJ41: 0 | CK41: 0 | CL41: 0 | CM41: 0 | CN41: 0 | CO41: 0 | CP41: 0 | CQ41: 0 | CR41: 0 | CS41: 0 | CT41: 0 | CU41: 0 | CV41: 0 | CW41: 0 | CX41: 0 | CY41: 0 | CZ41: 0 | DA41: 0 | DB41: 0 | DC41: 0 | DD41: 0 | DE41: 0 | DF41: 0 | DG41: 0 | DH41: 0 | DI41: 0 | DJ41: =IF(#REF!>$Y$3,0,#REF!) ->  | DK41: =IF(#REF!>$Y$3,0,#REF!) ->  | DL41: =IF(#REF!>$Y$3,0,#REF!) ->  | DM41: =IF(#REF!>$Y$3,0,#REF!) ->  | DN41: =IF(#REF!>$Y$3,0,#REF!) ->  | DO41: =IF(#REF!>$Y$3,0,#REF!) ->  | DP41: =IF(#REF!>$Y$3,0,#REF!) ->  | DQ41: =IF(#REF!>$Y$3,0,#REF!) ->  | DR41: =IF(#REF!>$Y$3,0,#REF!) ->  | DS41: =IF(#REF!>$Y$3,0,#REF!) ->  | DT41: =IF(#REF!>$Y$3,0,#REF!) ->  | DU41: =IF(#REF!>$Y$3,0,#REF!) ->  | DV41: =IF(#REF!>$Y$3,0,#REF!) ->  | DW41: =IF(#REF!>$Y$3,0,#REF!) ->  | DX41: =IF(#REF!>$Y$3,0,#REF!) ->  | DY41: =IF(#REF!>$Y$3,0,#REF!) ->  | DZ41: =IF(#REF!>$Y$3,0,#REF!) ->  | EA41: =IF(#REF!>$Y$3,0,#REF!) ->  | EB41: =IF(#REF!>$Y$3,0,#REF!) ->  | EC41: =IF(#REF!>$Y$3,0,#REF!) ->  | ED41: =IF(#REF!>$Y$3,0,#REF!) ->  | EE41: =IF(#REF!>$Y$3,0,#REF!) ->  | EF41: =IF(#REF!>$Y$3,0,#REF!) ->  | EG41: =IF(#REF!>$Y$3,0,#REF!) ->  | EH41: =IF(#REF!>$Y$3,0,#REF!) ->  | EI41: =IF(#REF!>$Y$3,0,#REF!) ->  | EJ41: =IF(#REF!>$Y$3,0,#REF!) ->  | EK41: =IF(#REF!>$Y$3,0,#REF!) -> 
C42: 38 | BF42: 0 | BG42: =IF(PARCIAL1!L$8=0,0,(ROUND(((BF42*10)/PARCIAL1!L$8),1))) -> 0 | BJ42: 0 | BK42: 0 | BL42: 0 | BM42: 0 | BN42: 0 | BO42: 0 | BP42: 0 | BQ42: 0 | BR42: 0 | BS42: 0 | BT42: 0 | BU42: 0 | BV42: 0 | BW42: 0 | BX42: 0 | BY42: 0 | BZ42: 0 | CA42: 0 | CB42: 0 | CC42: 0 | CD42: 0 | CE42: 0 | CF42: 0 | CG42: 0 | CH42: 0 | CI42: 0 | CJ42: 0 | CK42: 0 | CL42: 0 | CM42: 0 | CN42: 0 | CO42: 0 | CP42: 0 | CQ42: 0 | CR42: 0 | CS42: 0 | CT42: 0 | CU42: 0 | CV42: 0 | CW42: 0 | CX42: 0 | CY42: 0 | CZ42: 0 | DA42: 0 | DB42: 0 | DC42: 0 | DD42: 0 | DE42: 0 | DF42: 0 | DG42: 0 | DH42: 0 | DI42: 0 | DJ42: =IF(#REF!>$Y$3,0,#REF!) ->  | DK42: =IF(#REF!>$Y$3,0,#REF!) ->  | DL42: =IF(#REF!>$Y$3,0,#REF!) ->  | DM42: =IF(#REF!>$Y$3,0,#REF!) ->  | DN42: =IF(#REF!>$Y$3,0,#REF!) ->  | DO42: =IF(#REF!>$Y$3,0,#REF!) ->  | DP42: =IF(#REF!>$Y$3,0,#REF!) ->  | DQ42: =IF(#REF!>$Y$3,0,#REF!) ->  | DR42: =IF(#REF!>$Y$3,0,#REF!) ->  | DS42: =IF(#REF!>$Y$3,0,#REF!) ->  | DT42: =IF(#REF!>$Y$3,0,#REF!) ->  | DU42: =IF(#REF!>$Y$3,0,#REF!) ->  | DV42: =IF(#REF!>$Y$3,0,#REF!) ->  | DW42: =IF(#REF!>$Y$3,0,#REF!) ->  | DX42: =IF(#REF!>$Y$3,0,#REF!) ->  | DY42: =IF(#REF!>$Y$3,0,#REF!) ->  | DZ42: =IF(#REF!>$Y$3,0,#REF!) ->  | EA42: =IF(#REF!>$Y$3,0,#REF!) ->  | EB42: =IF(#REF!>$Y$3,0,#REF!) ->  | EC42: =IF(#REF!>$Y$3,0,#REF!) ->  | ED42: =IF(#REF!>$Y$3,0,#REF!) ->  | EE42: =IF(#REF!>$Y$3,0,#REF!) ->  | EF42: =IF(#REF!>$Y$3,0,#REF!) ->  | EG42: =IF(#REF!>$Y$3,0,#REF!) ->  | EH42: =IF(#REF!>$Y$3,0,#REF!) ->  | EI42: =IF(#REF!>$Y$3,0,#REF!) ->  | EJ42: =IF(#REF!>$Y$3,0,#REF!) ->  | EK42: =IF(#REF!>$Y$3,0,#REF!) -> 
C43: 39 | BF43: 0 | BG43: =IF(PARCIAL1!L$8=0,0,(ROUND(((BF43*10)/PARCIAL1!L$8),1))) -> 0 | BJ43: 0 | BK43: 0 | BL43: 0 | BM43: 0 | BN43: 0 | BO43: 0 | BP43: 0 | BQ43: 0 | BR43: 0 | BS43: 0 | BT43: 0 | BU43: 0 | BV43: 0 | BW43: 0 | BX43: 0 | BY43: 0 | BZ43: 0 | CA43: 0 | CB43: 0 | CC43: 0 | CD43: 0 | CE43: 0 | CF43: 0 | CG43: 0 | CH43: 0 | CI43: 0 | CJ43: 0 | CK43: 0 | CL43: 0 | CM43: 0 | CN43: 0 | CO43: 0 | CP43: 0 | CQ43: 0 | CR43: 0 | CS43: 0 | CT43: 0 | CU43: 0 | CV43: 0 | CW43: 0 | CX43: 0 | CY43: 0 | CZ43: 0 | DA43: 0 | DB43: 0 | DC43: 0 | DD43: 0 | DE43: 0 | DF43: 0 | DG43: 0 | DH43: 0 | DI43: 0 | DJ43: =IF(#REF!>$Y$3,0,#REF!) ->  | DK43: =IF(#REF!>$Y$3,0,#REF!) ->  | DL43: =IF(#REF!>$Y$3,0,#REF!) ->  | DM43: =IF(#REF!>$Y$3,0,#REF!) ->  | DN43: =IF(#REF!>$Y$3,0,#REF!) ->  | DO43: =IF(#REF!>$Y$3,0,#REF!) ->  | DP43: =IF(#REF!>$Y$3,0,#REF!) ->  | DQ43: =IF(#REF!>$Y$3,0,#REF!) ->  | DR43: =IF(#REF!>$Y$3,0,#REF!) ->  | DS43: =IF(#REF!>$Y$3,0,#REF!) ->  | DT43: =IF(#REF!>$Y$3,0,#REF!) ->  | DU43: =IF(#REF!>$Y$3,0,#REF!) ->  | DV43: =IF(#REF!>$Y$3,0,#REF!) ->  | DW43: =IF(#REF!>$Y$3,0,#REF!) ->  | DX43: =IF(#REF!>$Y$3,0,#REF!) ->  | DY43: =IF(#REF!>$Y$3,0,#REF!) ->  | DZ43: =IF(#REF!>$Y$3,0,#REF!) ->  | EA43: =IF(#REF!>$Y$3,0,#REF!) ->  | EB43: =IF(#REF!>$Y$3,0,#REF!) ->  | EC43: =IF(#REF!>$Y$3,0,#REF!) ->  | ED43: =IF(#REF!>$Y$3,0,#REF!) ->  | EE43: =IF(#REF!>$Y$3,0,#REF!) ->  | EF43: =IF(#REF!>$Y$3,0,#REF!) ->  | EG43: =IF(#REF!>$Y$3,0,#REF!) ->  | EH43: =IF(#REF!>$Y$3,0,#REF!) ->  | EI43: =IF(#REF!>$Y$3,0,#REF!) ->  | EJ43: =IF(#REF!>$Y$3,0,#REF!) ->  | EK43: =IF(#REF!>$Y$3,0,#REF!) -> 
C44: 40 | BF44: 0 | BG44: =IF(PARCIAL1!L$8=0,0,(ROUND(((BF44*10)/PARCIAL1!L$8),1))) -> 0 | BJ44: 0 | BK44: 0 | BL44: 0 | BM44: 0 | BN44: 0 | BO44: 0 | BP44: 0 | BQ44: 0 | BR44: 0 | BS44: 0 | BT44: 0 | BU44: 0 | BV44: 0 | BW44: 0 | BX44: 0 | BY44: 0 | BZ44: 0 | CA44: 0 | CB44: 0 | CC44: 0 | CD44: 0 | CE44: 0 | CF44: 0 | CG44: 0 | CH44: 0 | CI44: 0 | CJ44: 0 | CK44: 0 | CL44: 0 | CM44: 0 | CN44: 0 | CO44: 0 | CP44: 0 | CQ44: 0 | CR44: 0 | CS44: 0 | CT44: 0 | CU44: 0 | CV44: 0 | CW44: 0 | CX44: 0 | CY44: 0 | CZ44: 0 | DA44: 0 | DB44: 0 | DC44: 0 | DD44: 0 | DE44: 0 | DF44: 0 | DG44: 0 | DH44: 0 | DI44: 0 | DJ44: =IF(#REF!>$Y$3,0,#REF!) ->  | DK44: =IF(#REF!>$Y$3,0,#REF!) ->  | DL44: =IF(#REF!>$Y$3,0,#REF!) ->  | DM44: =IF(#REF!>$Y$3,0,#REF!) ->  | DN44: =IF(#REF!>$Y$3,0,#REF!) ->  | DO44: =IF(#REF!>$Y$3,0,#REF!) ->  | DP44: =IF(#REF!>$Y$3,0,#REF!) ->  | DQ44: =IF(#REF!>$Y$3,0,#REF!) ->  | DR44: =IF(#REF!>$Y$3,0,#REF!) ->  | DS44: =IF(#REF!>$Y$3,0,#REF!) ->  | DT44: =IF(#REF!>$Y$3,0,#REF!) ->  | DU44: =IF(#REF!>$Y$3,0,#REF!) ->  | DV44: =IF(#REF!>$Y$3,0,#REF!) ->  | DW44: =IF(#REF!>$Y$3,0,#REF!) ->  | DX44: =IF(#REF!>$Y$3,0,#REF!) ->  | DY44: =IF(#REF!>$Y$3,0,#REF!) ->  | DZ44: =IF(#REF!>$Y$3,0,#REF!) ->  | EA44: =IF(#REF!>$Y$3,0,#REF!) ->  | EB44: =IF(#REF!>$Y$3,0,#REF!) ->  | EC44: =IF(#REF!>$Y$3,0,#REF!) ->  | ED44: =IF(#REF!>$Y$3,0,#REF!) ->  | EE44: =IF(#REF!>$Y$3,0,#REF!) ->  | EF44: =IF(#REF!>$Y$3,0,#REF!) ->  | EG44: =IF(#REF!>$Y$3,0,#REF!) ->  | EH44: =IF(#REF!>$Y$3,0,#REF!) ->  | EI44: =IF(#REF!>$Y$3,0,#REF!) ->  | EJ44: =IF(#REF!>$Y$3,0,#REF!) ->  | EK44: =IF(#REF!>$Y$3,0,#REF!) -> 
C45: 41 | BF45: 0 | BG45: =IF(PARCIAL1!L$8=0,0,(ROUND(((BF45*10)/PARCIAL1!L$8),1))) -> 0 | BJ45: 0 | BK45: 0 | BL45: 0 | BM45: 0 | BN45: 0 | BO45: 0 | BP45: 0 | BQ45: 0 | BR45: 0 | BS45: 0 | BT45: 0 | BU45: 0 | BV45: 0 | BW45: 0 | BX45: 0 | BY45: 0 | BZ45: 0 | CA45: 0 | CB45: 0 | CC45: 0 | CD45: 0 | CE45: 0 | CF45: 0 | CG45: 0 | CH45: 0 | CI45: 0 | CJ45: 0 | CK45: 0 | CL45: 0 | CM45: 0 | CN45: 0 | CO45: 0 | CP45: 0 | CQ45: 0 | CR45: 0 | CS45: 0 | CT45: 0 | CU45: 0 | CV45: 0 | CW45: 0 | CX45: 0 | CY45: 0 | CZ45: 0 | DA45: 0 | DB45: 0 | DC45: 0 | DD45: 0 | DE45: 0 | DF45: 0 | DG45: 0 | DH45: 0 | DI45: 0 | DJ45: =IF(#REF!>$Y$3,0,#REF!) ->  | DK45: =IF(#REF!>$Y$3,0,#REF!) ->  | DL45: =IF(#REF!>$Y$3,0,#REF!) ->  | DM45: =IF(#REF!>$Y$3,0,#REF!) ->  | DN45: =IF(#REF!>$Y$3,0,#REF!) ->  | DO45: =IF(#REF!>$Y$3,0,#REF!) ->  | DP45: =IF(#REF!>$Y$3,0,#REF!) ->  | DQ45: =IF(#REF!>$Y$3,0,#REF!) ->  | DR45: =IF(#REF!>$Y$3,0,#REF!) ->  | DS45: =IF(#REF!>$Y$3,0,#REF!) ->  | DT45: =IF(#REF!>$Y$3,0,#REF!) ->  | DU45: =IF(#REF!>$Y$3,0,#REF!) ->  | DV45: =IF(#REF!>$Y$3,0,#REF!) ->  | DW45: =IF(#REF!>$Y$3,0,#REF!) ->  | DX45: =IF(#REF!>$Y$3,0,#REF!) ->  | DY45: =IF(#REF!>$Y$3,0,#REF!) ->  | DZ45: =IF(#REF!>$Y$3,0,#REF!) ->  | EA45: =IF(#REF!>$Y$3,0,#REF!) ->  | EB45: =IF(#REF!>$Y$3,0,#REF!) ->  | EC45: =IF(#REF!>$Y$3,0,#REF!) ->  | ED45: =IF(#REF!>$Y$3,0,#REF!) ->  | EE45: =IF(#REF!>$Y$3,0,#REF!) ->  | EF45: =IF(#REF!>$Y$3,0,#REF!) ->  | EG45: =IF(#REF!>$Y$3,0,#REF!) ->  | EH45: =IF(#REF!>$Y$3,0,#REF!) ->  | EI45: =IF(#REF!>$Y$3,0,#REF!) ->  | EJ45: =IF(#REF!>$Y$3,0,#REF!) ->  | EK45: =IF(#REF!>$Y$3,0,#REF!) -> 
C46: 42 | BF46: 0 | BG46: =IF(PARCIAL1!L$8=0,0,(ROUND(((BF46*10)/PARCIAL1!L$8),1))) -> 0 | BJ46: 0 | BK46: 0 | BL46: 0 | BM46: 0 | BN46: 0 | BO46: 0 | BP46: 0 | BQ46: 0 | BR46: 0 | BS46: 0 | BT46: 0 | BU46: 0 | BV46: 0 | BW46: 0 | BX46: 0 | BY46: 0 | BZ46: 0 | CA46: 0 | CB46: 0 | CC46: 0 | CD46: 0 | CE46: 0 | CF46: 0 | CG46: 0 | CH46: 0 | CI46: 0 | CJ46: 0 | CK46: 0 | CL46: 0 | CM46: 0 | CN46: 0 | CO46: 0 | CP46: 0 | CQ46: 0 | CR46: 0 | CS46: 0 | CT46: 0 | CU46: 0 | CV46: 0 | CW46: 0 | CX46: 0 | CY46: 0 | CZ46: 0 | DA46: 0 | DB46: 0 | DC46: 0 | DD46: 0 | DE46: 0 | DF46: 0 | DG46: 0 | DH46: 0 | DI46: 0 | DJ46: =IF(#REF!>$Y$3,0,#REF!) ->  | DK46: =IF(#REF!>$Y$3,0,#REF!) ->  | DL46: =IF(#REF!>$Y$3,0,#REF!) ->  | DM46: =IF(#REF!>$Y$3,0,#REF!) ->  | DN46: =IF(#REF!>$Y$3,0,#REF!) ->  | DO46: =IF(#REF!>$Y$3,0,#REF!) ->  | DP46: =IF(#REF!>$Y$3,0,#REF!) ->  | DQ46: =IF(#REF!>$Y$3,0,#REF!) ->  | DR46: =IF(#REF!>$Y$3,0,#REF!) ->  | DS46: =IF(#REF!>$Y$3,0,#REF!) ->  | DT46: =IF(#REF!>$Y$3,0,#REF!) ->  | DU46: =IF(#REF!>$Y$3,0,#REF!) ->  | DV46: =IF(#REF!>$Y$3,0,#REF!) ->  | DW46: =IF(#REF!>$Y$3,0,#REF!) ->  | DX46: =IF(#REF!>$Y$3,0,#REF!) ->  | DY46: =IF(#REF!>$Y$3,0,#REF!) ->  | DZ46: =IF(#REF!>$Y$3,0,#REF!) ->  | EA46: =IF(#REF!>$Y$3,0,#REF!) ->  | EB46: =IF(#REF!>$Y$3,0,#REF!) ->  | EC46: =IF(#REF!>$Y$3,0,#REF!) ->  | ED46: =IF(#REF!>$Y$3,0,#REF!) ->  | EE46: =IF(#REF!>$Y$3,0,#REF!) ->  | EF46: =IF(#REF!>$Y$3,0,#REF!) ->  | EG46: =IF(#REF!>$Y$3,0,#REF!) ->  | EH46: =IF(#REF!>$Y$3,0,#REF!) ->  | EI46: =IF(#REF!>$Y$3,0,#REF!) ->  | EJ46: =IF(#REF!>$Y$3,0,#REF!) ->  | EK46: =IF(#REF!>$Y$3,0,#REF!) -> 
C47: 43 | BF47: 0 | BG47: =IF(PARCIAL1!L$8=0,0,(ROUND(((BF47*10)/PARCIAL1!L$8),1))) -> 0 | BJ47: 0 | BK47: 0 | BL47: 0 | BM47: 0 | BN47: 0 | BO47: 0 | BP47: 0 | BQ47: 0 | BR47: 0 | BS47: 0 | BT47: 0 | BU47: 0 | BV47: 0 | BW47: 0 | BX47: 0 | BY47: 0 | BZ47: 0 | CA47: 0 | CB47: 0 | CC47: 0 | CD47: 0 | CE47: 0 | CF47: 0 | CG47: 0 | CH47: 0 | CI47: 0 | CJ47: 0 | CK47: 0 | CL47: 0 | CM47: 0 | CN47: 0 | CO47: 0 | CP47: 0 | CQ47: 0 | CR47: 0 | CS47: 0 | CT47: 0 | CU47: 0 | CV47: 0 | CW47: 0 | CX47: 0 | CY47: 0 | CZ47: 0 | DA47: 0 | DB47: 0 | DC47: 0 | DD47: 0 | DE47: 0 | DF47: 0 | DG47: 0 | DH47: 0 | DI47: 0 | DJ47: =IF(#REF!>$Y$3,0,#REF!) ->  | DK47: =IF(#REF!>$Y$3,0,#REF!) ->  | DL47: =IF(#REF!>$Y$3,0,#REF!) ->  | DM47: =IF(#REF!>$Y$3,0,#REF!) ->  | DN47: =IF(#REF!>$Y$3,0,#REF!) ->  | DO47: =IF(#REF!>$Y$3,0,#REF!) ->  | DP47: =IF(#REF!>$Y$3,0,#REF!) ->  | DQ47: =IF(#REF!>$Y$3,0,#REF!) ->  | DR47: =IF(#REF!>$Y$3,0,#REF!) ->  | DS47: =IF(#REF!>$Y$3,0,#REF!) ->  | DT47: =IF(#REF!>$Y$3,0,#REF!) ->  | DU47: =IF(#REF!>$Y$3,0,#REF!) ->  | DV47: =IF(#REF!>$Y$3,0,#REF!) ->  | DW47: =IF(#REF!>$Y$3,0,#REF!) ->  | DX47: =IF(#REF!>$Y$3,0,#REF!) ->  | DY47: =IF(#REF!>$Y$3,0,#REF!) ->  | DZ47: =IF(#REF!>$Y$3,0,#REF!) ->  | EA47: =IF(#REF!>$Y$3,0,#REF!) ->  | EB47: =IF(#REF!>$Y$3,0,#REF!) ->  | EC47: =IF(#REF!>$Y$3,0,#REF!) ->  | ED47: =IF(#REF!>$Y$3,0,#REF!) ->  | EE47: =IF(#REF!>$Y$3,0,#REF!) ->  | EF47: =IF(#REF!>$Y$3,0,#REF!) ->  | EG47: =IF(#REF!>$Y$3,0,#REF!) ->  | EH47: =IF(#REF!>$Y$3,0,#REF!) ->  | EI47: =IF(#REF!>$Y$3,0,#REF!) ->  | EJ47: =IF(#REF!>$Y$3,0,#REF!) ->  | EK47: =IF(#REF!>$Y$3,0,#REF!) -> 
C48: 44 | BF48: 0 | BG48: =IF(PARCIAL1!L$8=0,0,(ROUND(((BF48*10)/PARCIAL1!L$8),1))) -> 0 | BJ48: 0 | BK48: 0 | BL48: 0 | BM48: 0 | BN48: 0 | BO48: 0 | BP48: 0 | BQ48: 0 | BR48: 0 | BS48: 0 | BT48: 0 | BU48: 0 | BV48: 0 | BW48: 0 | BX48: 0 | BY48: 0 | BZ48: 0 | CA48: 0 | CB48: 0 | CC48: 0 | CD48: 0 | CE48: 0 | CF48: 0 | CG48: 0 | CH48: 0 | CI48: 0 | CJ48: 0 | CK48: 0 | CL48: 0 | CM48: 0 | CN48: 0 | CO48: 0 | CP48: 0 | CQ48: 0 | CR48: 0 | CS48: 0 | CT48: 0 | CU48: 0 | CV48: 0 | CW48: 0 | CX48: 0 | CY48: 0 | CZ48: 0 | DA48: 0 | DB48: 0 | DC48: 0 | DD48: 0 | DE48: 0 | DF48: 0 | DG48: 0 | DH48: 0 | DI48: 0 | DJ48: =IF(#REF!>$Y$3,0,#REF!) ->  | DK48: =IF(#REF!>$Y$3,0,#REF!) ->  | DL48: =IF(#REF!>$Y$3,0,#REF!) ->  | DM48: =IF(#REF!>$Y$3,0,#REF!) ->  | DN48: =IF(#REF!>$Y$3,0,#REF!) ->  | DO48: =IF(#REF!>$Y$3,0,#REF!) ->  | DP48: =IF(#REF!>$Y$3,0,#REF!) ->  | DQ48: =IF(#REF!>$Y$3,0,#REF!) ->  | DR48: =IF(#REF!>$Y$3,0,#REF!) ->  | DS48: =IF(#REF!>$Y$3,0,#REF!) ->  | DT48: =IF(#REF!>$Y$3,0,#REF!) ->  | DU48: =IF(#REF!>$Y$3,0,#REF!) ->  | DV48: =IF(#REF!>$Y$3,0,#REF!) ->  | DW48: =IF(#REF!>$Y$3,0,#REF!) ->  | DX48: =IF(#REF!>$Y$3,0,#REF!) ->  | DY48: =IF(#REF!>$Y$3,0,#REF!) ->  | DZ48: =IF(#REF!>$Y$3,0,#REF!) ->  | EA48: =IF(#REF!>$Y$3,0,#REF!) ->  | EB48: =IF(#REF!>$Y$3,0,#REF!) ->  | EC48: =IF(#REF!>$Y$3,0,#REF!) ->  | ED48: =IF(#REF!>$Y$3,0,#REF!) ->  | EE48: =IF(#REF!>$Y$3,0,#REF!) ->  | EF48: =IF(#REF!>$Y$3,0,#REF!) ->  | EG48: =IF(#REF!>$Y$3,0,#REF!) ->  | EH48: =IF(#REF!>$Y$3,0,#REF!) ->  | EI48: =IF(#REF!>$Y$3,0,#REF!) ->  | EJ48: =IF(#REF!>$Y$3,0,#REF!) ->  | EK48: =IF(#REF!>$Y$3,0,#REF!) -> 
C49: 45 | BF49: 0 | BG49: =IF(PARCIAL1!L$8=0,0,(ROUND(((BF49*10)/PARCIAL1!L$8),1))) -> 0 | BJ49: 0 | BK49: 0 | BL49: 0 | BM49: 0 | BN49: 0 | BO49: 0 | BP49: 0 | BQ49: 0 | BR49: 0 | BS49: 0 | BT49: 0 | BU49: 0 | BV49: 0 | BW49: 0 | BX49: 0 | BY49: 0 | BZ49: 0 | CA49: 0 | CB49: 0 | CC49: 0 | CD49: 0 | CE49: 0 | CF49: 0 | CG49: 0 | CH49: 0 | CI49: 0 | CJ49: 0 | CK49: 0 | CL49: 0 | CM49: 0 | CN49: 0 | CO49: 0 | CP49: 0 | CQ49: 0 | CR49: 0 | CS49: 0 | CT49: 0 | CU49: 0 | CV49: 0 | CW49: 0 | CX49: 0 | CY49: 0 | CZ49: 0 | DA49: 0 | DB49: 0 | DC49: 0 | DD49: 0 | DE49: 0 | DF49: 0 | DG49: 0 | DH49: 0 | DI49: 0 | DJ49: =IF(#REF!>$Y$3,0,#REF!) ->  | DK49: =IF(#REF!>$Y$3,0,#REF!) ->  | DL49: =IF(#REF!>$Y$3,0,#REF!) ->  | DM49: =IF(#REF!>$Y$3,0,#REF!) ->  | DN49: =IF(#REF!>$Y$3,0,#REF!) ->  | DO49: =IF(#REF!>$Y$3,0,#REF!) ->  | DP49: =IF(#REF!>$Y$3,0,#REF!) ->  | DQ49: =IF(#REF!>$Y$3,0,#REF!) ->  | DR49: =IF(#REF!>$Y$3,0,#REF!) ->  | DS49: =IF(#REF!>$Y$3,0,#REF!) ->  | DT49: =IF(#REF!>$Y$3,0,#REF!) ->  | DU49: =IF(#REF!>$Y$3,0,#REF!) ->  | DV49: =IF(#REF!>$Y$3,0,#REF!) ->  | DW49: =IF(#REF!>$Y$3,0,#REF!) ->  | DX49: =IF(#REF!>$Y$3,0,#REF!) ->  | DY49: =IF(#REF!>$Y$3,0,#REF!) ->  | DZ49: =IF(#REF!>$Y$3,0,#REF!) ->  | EA49: =IF(#REF!>$Y$3,0,#REF!) ->  | EB49: =IF(#REF!>$Y$3,0,#REF!) ->  | EC49: =IF(#REF!>$Y$3,0,#REF!) ->  | ED49: =IF(#REF!>$Y$3,0,#REF!) ->  | EE49: =IF(#REF!>$Y$3,0,#REF!) ->  | EF49: =IF(#REF!>$Y$3,0,#REF!) ->  | EG49: =IF(#REF!>$Y$3,0,#REF!) ->  | EH49: =IF(#REF!>$Y$3,0,#REF!) ->  | EI49: =IF(#REF!>$Y$3,0,#REF!) ->  | EJ49: =IF(#REF!>$Y$3,0,#REF!) ->  | EK49: =IF(#REF!>$Y$3,0,#REF!) -> 
C50: 46 | BF50: 0 | BG50: =IF(PARCIAL1!L$8=0,0,(ROUND(((BF50*10)/PARCIAL1!L$8),1))) -> 0 | BJ50: 0 | BK50: 0 | BL50: 0 | BM50: 0 | BN50: 0 | BO50: 0 | BP50: 0 | BQ50: 0 | BR50: 0 | BS50: 0 | BT50: 0 | BU50: 0 | BV50: 0 | BW50: 0 | BX50: 0 | BY50: 0 | BZ50: 0 | CA50: 0 | CB50: 0 | CC50: 0 | CD50: 0 | CE50: 0 | CF50: 0 | CG50: 0 | CH50: 0 | CI50: 0 | CJ50: 0 | CK50: 0 | CL50: 0 | CM50: 0 | CN50: 0 | CO50: 0 | CP50: 0 | CQ50: 0 | CR50: 0 | CS50: 0 | CT50: 0 | CU50: 0 | CV50: 0 | CW50: 0 | CX50: 0 | CY50: 0 | CZ50: 0 | DA50: 0 | DB50: 0 | DC50: 0 | DD50: 0 | DE50: 0 | DF50: 0 | DG50: 0 | DH50: 0 | DI50: 0 | DJ50: =IF(#REF!>$Y$3,0,#REF!) ->  | DK50: =IF(#REF!>$Y$3,0,#REF!) ->  | DL50: =IF(#REF!>$Y$3,0,#REF!) ->  | DM50: =IF(#REF!>$Y$3,0,#REF!) ->  | DN50: =IF(#REF!>$Y$3,0,#REF!) ->  | DO50: =IF(#REF!>$Y$3,0,#REF!) ->  | DP50: =IF(#REF!>$Y$3,0,#REF!) ->  | DQ50: =IF(#REF!>$Y$3,0,#REF!) ->  | DR50: =IF(#REF!>$Y$3,0,#REF!) ->  | DS50: =IF(#REF!>$Y$3,0,#REF!) ->  | DT50: =IF(#REF!>$Y$3,0,#REF!) ->  | DU50: =IF(#REF!>$Y$3,0,#REF!) ->  | DV50: =IF(#REF!>$Y$3,0,#REF!) ->  | DW50: =IF(#REF!>$Y$3,0,#REF!) ->  | DX50: =IF(#REF!>$Y$3,0,#REF!) ->  | DY50: =IF(#REF!>$Y$3,0,#REF!) ->  | DZ50: =IF(#REF!>$Y$3,0,#REF!) ->  | EA50: =IF(#REF!>$Y$3,0,#REF!) ->  | EB50: =IF(#REF!>$Y$3,0,#REF!) ->  | EC50: =IF(#REF!>$Y$3,0,#REF!) ->  | ED50: =IF(#REF!>$Y$3,0,#REF!) ->  | EE50: =IF(#REF!>$Y$3,0,#REF!) ->  | EF50: =IF(#REF!>$Y$3,0,#REF!) ->  | EG50: =IF(#REF!>$Y$3,0,#REF!) ->  | EH50: =IF(#REF!>$Y$3,0,#REF!) ->  | EI50: =IF(#REF!>$Y$3,0,#REF!) ->  | EJ50: =IF(#REF!>$Y$3,0,#REF!) ->  | EK50: =IF(#REF!>$Y$3,0,#REF!) -> 
C51: 47 | BF51: 0 | BG51: =IF(PARCIAL1!L$8=0,0,(ROUND(((BF51*10)/PARCIAL1!L$8),1))) -> 0 | BJ51: 0 | BK51: 0 | BL51: 0 | BM51: 0 | BN51: 0 | BO51: 0 | BP51: 0 | BQ51: 0 | BR51: 0 | BS51: 0 | BT51: 0 | BU51: 0 | BV51: 0 | BW51: 0 | BX51: 0 | BY51: 0 | BZ51: 0 | CA51: 0 | CB51: 0 | CC51: 0 | CD51: 0 | CE51: 0 | CF51: 0 | CG51: 0 | CH51: 0 | CI51: 0 | CJ51: 0 | CK51: 0 | CL51: 0 | CM51: 0 | CN51: 0 | CO51: 0 | CP51: 0 | CQ51: 0 | CR51: 0 | CS51: 0 | CT51: 0 | CU51: 0 | CV51: 0 | CW51: 0 | CX51: 0 | CY51: 0 | CZ51: 0 | DA51: 0 | DB51: 0 | DC51: 0 | DD51: 0 | DE51: 0 | DF51: 0 | DG51: 0 | DH51: 0 | DI51: 0 | DJ51: =IF(#REF!>$Y$3,0,#REF!) ->  | DK51: =IF(#REF!>$Y$3,0,#REF!) ->  | DL51: =IF(#REF!>$Y$3,0,#REF!) ->  | DM51: =IF(#REF!>$Y$3,0,#REF!) ->  | DN51: =IF(#REF!>$Y$3,0,#REF!) ->  | DO51: =IF(#REF!>$Y$3,0,#REF!) ->  | DP51: =IF(#REF!>$Y$3,0,#REF!) ->  | DQ51: =IF(#REF!>$Y$3,0,#REF!) ->  | DR51: =IF(#REF!>$Y$3,0,#REF!) ->  | DS51: =IF(#REF!>$Y$3,0,#REF!) ->  | DT51: =IF(#REF!>$Y$3,0,#REF!) ->  | DU51: =IF(#REF!>$Y$3,0,#REF!) ->  | DV51: =IF(#REF!>$Y$3,0,#REF!) ->  | DW51: =IF(#REF!>$Y$3,0,#REF!) ->  | DX51: =IF(#REF!>$Y$3,0,#REF!) ->  | DY51: =IF(#REF!>$Y$3,0,#REF!) ->  | DZ51: =IF(#REF!>$Y$3,0,#REF!) ->  | EA51: =IF(#REF!>$Y$3,0,#REF!) ->  | EB51: =IF(#REF!>$Y$3,0,#REF!) ->  | EC51: =IF(#REF!>$Y$3,0,#REF!) ->  | ED51: =IF(#REF!>$Y$3,0,#REF!) ->  | EE51: =IF(#REF!>$Y$3,0,#REF!) ->  | EF51: =IF(#REF!>$Y$3,0,#REF!) ->  | EG51: =IF(#REF!>$Y$3,0,#REF!) ->  | EH51: =IF(#REF!>$Y$3,0,#REF!) ->  | EI51: =IF(#REF!>$Y$3,0,#REF!) ->  | EJ51: =IF(#REF!>$Y$3,0,#REF!) ->  | EK51: =IF(#REF!>$Y$3,0,#REF!) -> 
C52: 48 | BF52: 0 | BG52: =IF(PARCIAL1!L$8=0,0,(ROUND(((BF52*10)/PARCIAL1!L$8),1))) -> 0 | BJ52: 0 | BK52: 0 | BL52: 0 | BM52: 0 | BN52: 0 | BO52: 0 | BP52: 0 | BQ52: 0 | BR52: 0 | BS52: 0 | BT52: 0 | BU52: 0 | BV52: 0 | BW52: 0 | BX52: 0 | BY52: 0 | BZ52: 0 | CA52: 0 | CB52: 0 | CC52: 0 | CD52: 0 | CE52: 0 | CF52: 0 | CG52: 0 | CH52: 0 | CI52: 0 | CJ52: 0 | CK52: 0 | CL52: 0 | CM52: 0 | CN52: 0 | CO52: 0 | CP52: 0 | CQ52: 0 | CR52: 0 | CS52: 0 | CT52: 0 | CU52: 0 | CV52: 0 | CW52: 0 | CX52: 0 | CY52: 0 | CZ52: 0 | DA52: 0 | DB52: 0 | DC52: 0 | DD52: 0 | DE52: 0 | DF52: 0 | DG52: 0 | DH52: 0 | DI52: 0 | DJ52: =IF(#REF!>$Y$3,0,#REF!) ->  | DK52: =IF(#REF!>$Y$3,0,#REF!) ->  | DL52: =IF(#REF!>$Y$3,0,#REF!) ->  | DM52: =IF(#REF!>$Y$3,0,#REF!) ->  | DN52: =IF(#REF!>$Y$3,0,#REF!) ->  | DO52: =IF(#REF!>$Y$3,0,#REF!) ->  | DP52: =IF(#REF!>$Y$3,0,#REF!) ->  | DQ52: =IF(#REF!>$Y$3,0,#REF!) ->  | DR52: =IF(#REF!>$Y$3,0,#REF!) ->  | DS52: =IF(#REF!>$Y$3,0,#REF!) ->  | DT52: =IF(#REF!>$Y$3,0,#REF!) ->  | DU52: =IF(#REF!>$Y$3,0,#REF!) ->  | DV52: =IF(#REF!>$Y$3,0,#REF!) ->  | DW52: =IF(#REF!>$Y$3,0,#REF!) ->  | DX52: =IF(#REF!>$Y$3,0,#REF!) ->  | DY52: =IF(#REF!>$Y$3,0,#REF!) ->  | DZ52: =IF(#REF!>$Y$3,0,#REF!) ->  | EA52: =IF(#REF!>$Y$3,0,#REF!) ->  | EB52: =IF(#REF!>$Y$3,0,#REF!) ->  | EC52: =IF(#REF!>$Y$3,0,#REF!) ->  | ED52: =IF(#REF!>$Y$3,0,#REF!) ->  | EE52: =IF(#REF!>$Y$3,0,#REF!) ->  | EF52: =IF(#REF!>$Y$3,0,#REF!) ->  | EG52: =IF(#REF!>$Y$3,0,#REF!) ->  | EH52: =IF(#REF!>$Y$3,0,#REF!) ->  | EI52: =IF(#REF!>$Y$3,0,#REF!) ->  | EJ52: =IF(#REF!>$Y$3,0,#REF!) ->  | EK52: =IF(#REF!>$Y$3,0,#REF!) -> 
C53: 49 | BF53: 0 | BG53: =IF(PARCIAL1!L$8=0,0,(ROUND(((BF53*10)/PARCIAL1!L$8),1))) -> 0 | BJ53: 0 | BK53: 0 | BL53: 0 | BM53: 0 | BN53: 0 | BO53: 0 | BP53: 0 | BQ53: 0 | BR53: 0 | BS53: 0 | BT53: 0 | BU53: 0 | BV53: 0 | BW53: 0 | BX53: 0 | BY53: 0 | BZ53: 0 | CA53: 0 | CB53: 0 | CC53: 0 | CD53: 0 | CE53: 0 | CF53: 0 | CG53: 0 | CH53: 0 | CI53: 0 | CJ53: 0 | CK53: 0 | CL53: 0 | CM53: 0 | CN53: 0 | CO53: 0 | CP53: 0 | CQ53: 0 | CR53: 0 | CS53: 0 | CT53: 0 | CU53: 0 | CV53: 0 | CW53: 0 | CX53: 0 | CY53: 0 | CZ53: 0 | DA53: 0 | DB53: 0 | DC53: 0 | DD53: 0 | DE53: 0 | DF53: 0 | DG53: 0 | DH53: 0 | DI53: 0 | DJ53: =IF(#REF!>$Y$3,0,#REF!) ->  | DK53: =IF(#REF!>$Y$3,0,#REF!) ->  | DL53: =IF(#REF!>$Y$3,0,#REF!) ->  | DM53: =IF(#REF!>$Y$3,0,#REF!) ->  | DN53: =IF(#REF!>$Y$3,0,#REF!) ->  | DO53: =IF(#REF!>$Y$3,0,#REF!) ->  | DP53: =IF(#REF!>$Y$3,0,#REF!) ->  | DQ53: =IF(#REF!>$Y$3,0,#REF!) ->  | DR53: =IF(#REF!>$Y$3,0,#REF!) ->  | DS53: =IF(#REF!>$Y$3,0,#REF!) ->  | DT53: =IF(#REF!>$Y$3,0,#REF!) ->  | DU53: =IF(#REF!>$Y$3,0,#REF!) ->  | DV53: =IF(#REF!>$Y$3,0,#REF!) ->  | DW53: =IF(#REF!>$Y$3,0,#REF!) ->  | DX53: =IF(#REF!>$Y$3,0,#REF!) ->  | DY53: =IF(#REF!>$Y$3,0,#REF!) ->  | DZ53: =IF(#REF!>$Y$3,0,#REF!) ->  | EA53: =IF(#REF!>$Y$3,0,#REF!) ->  | EB53: =IF(#REF!>$Y$3,0,#REF!) ->  | EC53: =IF(#REF!>$Y$3,0,#REF!) ->  | ED53: =IF(#REF!>$Y$3,0,#REF!) ->  | EE53: =IF(#REF!>$Y$3,0,#REF!) ->  | EF53: =IF(#REF!>$Y$3,0,#REF!) ->  | EG53: =IF(#REF!>$Y$3,0,#REF!) ->  | EH53: =IF(#REF!>$Y$3,0,#REF!) ->  | EI53: =IF(#REF!>$Y$3,0,#REF!) ->  | EJ53: =IF(#REF!>$Y$3,0,#REF!) ->  | EK53: =IF(#REF!>$Y$3,0,#REF!) -> 
C54: 50 | BF54: 0 | BG54: =IF(PARCIAL1!L$8=0,0,(ROUND(((BF54*10)/PARCIAL1!L$8),1))) -> 0 | BJ54: 0 | BK54: 0 | BL54: 0 | BM54: 0 | BN54: 0 | BO54: 0 | BP54: 0 | BQ54: 0 | BR54: 0 | BS54: 0 | BT54: 0 | BU54: 0 | BV54: 0 | BW54: 0 | BX54: 0 | BY54: 0 | BZ54: 0 | CA54: 0 | CB54: 0 | CC54: 0 | CD54: 0 | CE54: 0 | CF54: 0 | CG54: 0 | CH54: 0 | CI54: 0 | CJ54: 0 | CK54: 0 | CL54: 0 | CM54: 0 | CN54: 0 | CO54: 0 | CP54: 0 | CQ54: 0 | CR54: 0 | CS54: 0 | CT54: 0 | CU54: 0 | CV54: 0 | CW54: 0 | CX54: 0 | CY54: 0 | CZ54: 0 | DA54: 0 | DB54: 0 | DC54: 0 | DD54: 0 | DE54: 0 | DF54: 0 | DG54: 0 | DH54: 0 | DI54: 0 | DJ54: =IF(#REF!>$Y$3,0,#REF!) ->  | DK54: =IF(#REF!>$Y$3,0,#REF!) ->  | DL54: =IF(#REF!>$Y$3,0,#REF!) ->  | DM54: =IF(#REF!>$Y$3,0,#REF!) ->  | DN54: =IF(#REF!>$Y$3,0,#REF!) ->  | DO54: =IF(#REF!>$Y$3,0,#REF!) ->  | DP54: =IF(#REF!>$Y$3,0,#REF!) ->  | DQ54: =IF(#REF!>$Y$3,0,#REF!) ->  | DR54: =IF(#REF!>$Y$3,0,#REF!) ->  | DS54: =IF(#REF!>$Y$3,0,#REF!) ->  | DT54: =IF(#REF!>$Y$3,0,#REF!) ->  | DU54: =IF(#REF!>$Y$3,0,#REF!) ->  | DV54: =IF(#REF!>$Y$3,0,#REF!) ->  | DW54: =IF(#REF!>$Y$3,0,#REF!) ->  | DX54: =IF(#REF!>$Y$3,0,#REF!) ->  | DY54: =IF(#REF!>$Y$3,0,#REF!) ->  | DZ54: =IF(#REF!>$Y$3,0,#REF!) ->  | EA54: =IF(#REF!>$Y$3,0,#REF!) ->  | EB54: =IF(#REF!>$Y$3,0,#REF!) ->  | EC54: =IF(#REF!>$Y$3,0,#REF!) ->  | ED54: =IF(#REF!>$Y$3,0,#REF!) ->  | EE54: =IF(#REF!>$Y$3,0,#REF!) ->  | EF54: =IF(#REF!>$Y$3,0,#REF!) ->  | EG54: =IF(#REF!>$Y$3,0,#REF!) ->  | EH54: =IF(#REF!>$Y$3,0,#REF!) ->  | EI54: =IF(#REF!>$Y$3,0,#REF!) ->  | EJ54: =IF(#REF!>$Y$3,0,#REF!) ->  | EK54: =IF(#REF!>$Y$3,0,#REF!) -> 
C55: 51 | BF55: 0 | BG55: =IF(PARCIAL1!L$8=0,0,(ROUND(((BF55*10)/PARCIAL1!L$8),1))) -> 0 | BJ55: 0 | BK55: 0 | BL55: 0 | BM55: 0 | BN55: 0 | BO55: 0 | BP55: 0 | BQ55: 0 | BR55: 0 | BS55: 0 | BT55: 0 | BU55: 0 | BV55: 0 | BW55: 0 | BX55: 0 | BY55: 0 | BZ55: 0 | CA55: 0 | CB55: 0 | CC55: 0 | CD55: 0 | CE55: 0 | CF55: 0 | CG55: 0 | CH55: 0 | CI55: 0 | CJ55: 0 | CK55: 0 | CL55: 0 | CM55: 0 | CN55: 0 | CO55: 0 | CP55: 0 | CQ55: 0 | CR55: 0 | CS55: 0 | CT55: 0 | CU55: 0 | CV55: 0 | CW55: 0 | CX55: 0 | CY55: 0 | CZ55: 0 | DA55: 0 | DB55: 0 | DC55: 0 | DD55: 0 | DE55: 0 | DF55: 0 | DG55: 0 | DH55: 0 | DI55: 0 | DJ55: =IF(#REF!>$Y$3,0,#REF!) ->  | DK55: =IF(#REF!>$Y$3,0,#REF!) ->  | DL55: =IF(#REF!>$Y$3,0,#REF!) ->  | DM55: =IF(#REF!>$Y$3,0,#REF!) ->  | DN55: =IF(#REF!>$Y$3,0,#REF!) ->  | DO55: =IF(#REF!>$Y$3,0,#REF!) ->  | DP55: =IF(#REF!>$Y$3,0,#REF!) ->  | DQ55: =IF(#REF!>$Y$3,0,#REF!) ->  | DR55: =IF(#REF!>$Y$3,0,#REF!) ->  | DS55: =IF(#REF!>$Y$3,0,#REF!) ->  | DT55: =IF(#REF!>$Y$3,0,#REF!) ->  | DU55: =IF(#REF!>$Y$3,0,#REF!) ->  | DV55: =IF(#REF!>$Y$3,0,#REF!) ->  | DW55: =IF(#REF!>$Y$3,0,#REF!) ->  | DX55: =IF(#REF!>$Y$3,0,#REF!) ->  | DY55: =IF(#REF!>$Y$3,0,#REF!) ->  | DZ55: =IF(#REF!>$Y$3,0,#REF!) ->  | EA55: =IF(#REF!>$Y$3,0,#REF!) ->  | EB55: =IF(#REF!>$Y$3,0,#REF!) ->  | EC55: =IF(#REF!>$Y$3,0,#REF!) ->  | ED55: =IF(#REF!>$Y$3,0,#REF!) ->  | EE55: =IF(#REF!>$Y$3,0,#REF!) ->  | EF55: =IF(#REF!>$Y$3,0,#REF!) ->  | EG55: =IF(#REF!>$Y$3,0,#REF!) ->  | EH55: =IF(#REF!>$Y$3,0,#REF!) ->  | EI55: =IF(#REF!>$Y$3,0,#REF!) ->  | EJ55: =IF(#REF!>$Y$3,0,#REF!) ->  | EK55: =IF(#REF!>$Y$3,0,#REF!) -> 
C56: 52 | BF56: 0 | BG56: =IF(PARCIAL1!L$8=0,0,(ROUND(((BF56*10)/PARCIAL1!L$8),1))) -> 0 | BJ56: 0 | BK56: 0 | BL56: 0 | BM56: 0 | BN56: 0 | BO56: 0 | BP56: 0 | BQ56: 0 | BR56: 0 | BS56: 0 | BT56: 0 | BU56: 0 | BV56: 0 | BW56: 0 | BX56: 0 | BY56: 0 | BZ56: 0 | CA56: 0 | CB56: 0 | CC56: 0 | CD56: 0 | CE56: 0 | CF56: 0 | CG56: 0 | CH56: 0 | CI56: 0 | CJ56: 0 | CK56: 0 | CL56: 0 | CM56: 0 | CN56: 0 | CO56: 0 | CP56: 0 | CQ56: 0 | CR56: 0 | CS56: 0 | CT56: 0 | CU56: 0 | CV56: 0 | CW56: 0 | CX56: 0 | CY56: 0 | CZ56: 0 | DA56: 0 | DB56: 0 | DC56: 0 | DD56: 0 | DE56: 0 | DF56: 0 | DG56: 0 | DH56: 0 | DI56: 0 | DJ56: =IF(#REF!>$Y$3,0,#REF!) ->  | DK56: =IF(#REF!>$Y$3,0,#REF!) ->  | DL56: =IF(#REF!>$Y$3,0,#REF!) ->  | DM56: =IF(#REF!>$Y$3,0,#REF!) ->  | DN56: =IF(#REF!>$Y$3,0,#REF!) ->  | DO56: =IF(#REF!>$Y$3,0,#REF!) ->  | DP56: =IF(#REF!>$Y$3,0,#REF!) ->  | DQ56: =IF(#REF!>$Y$3,0,#REF!) ->  | DR56: =IF(#REF!>$Y$3,0,#REF!) ->  | DS56: =IF(#REF!>$Y$3,0,#REF!) ->  | DT56: =IF(#REF!>$Y$3,0,#REF!) ->  | DU56: =IF(#REF!>$Y$3,0,#REF!) ->  | DV56: =IF(#REF!>$Y$3,0,#REF!) ->  | DW56: =IF(#REF!>$Y$3,0,#REF!) ->  | DX56: =IF(#REF!>$Y$3,0,#REF!) ->  | DY56: =IF(#REF!>$Y$3,0,#REF!) ->  | DZ56: =IF(#REF!>$Y$3,0,#REF!) ->  | EA56: =IF(#REF!>$Y$3,0,#REF!) ->  | EB56: =IF(#REF!>$Y$3,0,#REF!) ->  | EC56: =IF(#REF!>$Y$3,0,#REF!) ->  | ED56: =IF(#REF!>$Y$3,0,#REF!) ->  | EE56: =IF(#REF!>$Y$3,0,#REF!) ->  | EF56: =IF(#REF!>$Y$3,0,#REF!) ->  | EG56: =IF(#REF!>$Y$3,0,#REF!) ->  | EH56: =IF(#REF!>$Y$3,0,#REF!) ->  | EI56: =IF(#REF!>$Y$3,0,#REF!) ->  | EJ56: =IF(#REF!>$Y$3,0,#REF!) ->  | EK56: =IF(#REF!>$Y$3,0,#REF!) -> 
C57: 53 | BF57: 0 | BG57: =IF(PARCIAL1!L$8=0,0,(ROUND(((BF57*10)/PARCIAL1!L$8),1))) -> 0 | BJ57: 0 | BK57: 0 | BL57: 0 | BM57: 0 | BN57: 0 | BO57: 0 | BP57: 0 | BQ57: 0 | BR57: 0 | BS57: 0 | BT57: 0 | BU57: 0 | BV57: 0 | BW57: 0 | BX57: 0 | BY57: 0 | BZ57: 0 | CA57: 0 | CB57: 0 | CC57: 0 | CD57: 0 | CE57: 0 | CF57: 0 | CG57: 0 | CH57: 0 | CI57: 0 | CJ57: 0 | CK57: 0 | CL57: 0 | CM57: 0 | CN57: 0 | CO57: 0 | CP57: 0 | CQ57: 0 | CR57: 0 | CS57: 0 | CT57: 0 | CU57: 0 | CV57: 0 | CW57: 0 | CX57: 0 | CY57: 0 | CZ57: 0 | DA57: 0 | DB57: 0 | DC57: 0 | DD57: 0 | DE57: 0 | DF57: 0 | DG57: 0 | DH57: 0 | DI57: 0 | DJ57: =IF(#REF!>$Y$3,0,#REF!) ->  | DK57: =IF(#REF!>$Y$3,0,#REF!) ->  | DL57: =IF(#REF!>$Y$3,0,#REF!) ->  | DM57: =IF(#REF!>$Y$3,0,#REF!) ->  | DN57: =IF(#REF!>$Y$3,0,#REF!) ->  | DO57: =IF(#REF!>$Y$3,0,#REF!) ->  | DP57: =IF(#REF!>$Y$3,0,#REF!) ->  | DQ57: =IF(#REF!>$Y$3,0,#REF!) ->  | DR57: =IF(#REF!>$Y$3,0,#REF!) ->  | DS57: =IF(#REF!>$Y$3,0,#REF!) ->  | DT57: =IF(#REF!>$Y$3,0,#REF!) ->  | DU57: =IF(#REF!>$Y$3,0,#REF!) ->  | DV57: =IF(#REF!>$Y$3,0,#REF!) ->  | DW57: =IF(#REF!>$Y$3,0,#REF!) ->  | DX57: =IF(#REF!>$Y$3,0,#REF!) ->  | DY57: =IF(#REF!>$Y$3,0,#REF!) ->  | DZ57: =IF(#REF!>$Y$3,0,#REF!) ->  | EA57: =IF(#REF!>$Y$3,0,#REF!) ->  | EB57: =IF(#REF!>$Y$3,0,#REF!) ->  | EC57: =IF(#REF!>$Y$3,0,#REF!) ->  | ED57: =IF(#REF!>$Y$3,0,#REF!) ->  | EE57: =IF(#REF!>$Y$3,0,#REF!) ->  | EF57: =IF(#REF!>$Y$3,0,#REF!) ->  | EG57: =IF(#REF!>$Y$3,0,#REF!) ->  | EH57: =IF(#REF!>$Y$3,0,#REF!) ->  | EI57: =IF(#REF!>$Y$3,0,#REF!) ->  | EJ57: =IF(#REF!>$Y$3,0,#REF!) ->  | EK57: =IF(#REF!>$Y$3,0,#REF!) -> 
C58: 54 | BF58: 0 | BG58: =IF(PARCIAL1!L$8=0,0,(ROUND(((BF58*10)/PARCIAL1!L$8),1))) -> 0 | BJ58: 0 | BK58: 0 | BL58: 0 | BM58: 0 | BN58: 0 | BO58: 0 | BP58: 0 | BQ58: 0 | BR58: 0 | BS58: 0 | BT58: 0 | BU58: 0 | BV58: 0 | BW58: 0 | BX58: 0 | BY58: 0 | BZ58: 0 | CA58: 0 | CB58: 0 | CC58: 0 | CD58: 0 | CE58: 0 | CF58: 0 | CG58: 0 | CH58: 0 | CI58: 0 | CJ58: 0 | CK58: 0 | CL58: 0 | CM58: 0 | CN58: 0 | CO58: 0 | CP58: 0 | CQ58: 0 | CR58: 0 | CS58: 0 | CT58: 0 | CU58: 0 | CV58: 0 | CW58: 0 | CX58: 0 | CY58: 0 | CZ58: 0 | DA58: 0 | DB58: 0 | DC58: 0 | DD58: 0 | DE58: 0 | DF58: 0 | DG58: 0 | DH58: 0 | DI58: 0 | DJ58: =IF(#REF!>$Y$3,0,#REF!) ->  | DK58: =IF(#REF!>$Y$3,0,#REF!) ->  | DL58: =IF(#REF!>$Y$3,0,#REF!) ->  | DM58: =IF(#REF!>$Y$3,0,#REF!) ->  | DN58: =IF(#REF!>$Y$3,0,#REF!) ->  | DO58: =IF(#REF!>$Y$3,0,#REF!) ->  | DP58: =IF(#REF!>$Y$3,0,#REF!) ->  | DQ58: =IF(#REF!>$Y$3,0,#REF!) ->  | DR58: =IF(#REF!>$Y$3,0,#REF!) ->  | DS58: =IF(#REF!>$Y$3,0,#REF!) ->  | DT58: =IF(#REF!>$Y$3,0,#REF!) ->  | DU58: =IF(#REF!>$Y$3,0,#REF!) ->  | DV58: =IF(#REF!>$Y$3,0,#REF!) ->  | DW58: =IF(#REF!>$Y$3,0,#REF!) ->  | DX58: =IF(#REF!>$Y$3,0,#REF!) ->  | DY58: =IF(#REF!>$Y$3,0,#REF!) ->  | DZ58: =IF(#REF!>$Y$3,0,#REF!) ->  | EA58: =IF(#REF!>$Y$3,0,#REF!) ->  | EB58: =IF(#REF!>$Y$3,0,#REF!) ->  | EC58: =IF(#REF!>$Y$3,0,#REF!) ->  | ED58: =IF(#REF!>$Y$3,0,#REF!) ->  | EE58: =IF(#REF!>$Y$3,0,#REF!) ->  | EF58: =IF(#REF!>$Y$3,0,#REF!) ->  | EG58: =IF(#REF!>$Y$3,0,#REF!) ->  | EH58: =IF(#REF!>$Y$3,0,#REF!) ->  | EI58: =IF(#REF!>$Y$3,0,#REF!) ->  | EJ58: =IF(#REF!>$Y$3,0,#REF!) ->  | EK58: =IF(#REF!>$Y$3,0,#REF!) -> 
C59: 55 | BF59: 0 | BG59: =IF(PARCIAL1!L$8=0,0,(ROUND(((BF59*10)/PARCIAL1!L$8),1))) -> 0 | BJ59: 0 | BK59: 0 | BL59: 0 | BM59: 0 | BN59: 0 | BO59: 0 | BP59: 0 | BQ59: 0 | BR59: 0 | BS59: 0 | BT59: 0 | BU59: 0 | BV59: 0 | BW59: 0 | BX59: 0 | BY59: 0 | BZ59: 0 | CA59: 0 | CB59: 0 | CC59: 0 | CD59: 0 | CE59: 0 | CF59: 0 | CG59: 0 | CH59: 0 | CI59: 0 | CJ59: 0 | CK59: 0 | CL59: 0 | CM59: 0 | CN59: 0 | CO59: 0 | CP59: 0 | CQ59: 0 | CR59: 0 | CS59: 0 | CT59: 0 | CU59: 0 | CV59: 0 | CW59: 0 | CX59: 0 | CY59: 0 | CZ59: 0 | DA59: 0 | DB59: 0 | DC59: 0 | DD59: 0 | DE59: 0 | DF59: 0 | DG59: 0 | DH59: 0 | DI59: 0 | DJ59: =IF(#REF!>$Y$3,0,#REF!) ->  | DK59: =IF(#REF!>$Y$3,0,#REF!) ->  | DL59: =IF(#REF!>$Y$3,0,#REF!) ->  | DM59: =IF(#REF!>$Y$3,0,#REF!) ->  | DN59: =IF(#REF!>$Y$3,0,#REF!) ->  | DO59: =IF(#REF!>$Y$3,0,#REF!) ->  | DP59: =IF(#REF!>$Y$3,0,#REF!) ->  | DQ59: =IF(#REF!>$Y$3,0,#REF!) ->  | DR59: =IF(#REF!>$Y$3,0,#REF!) ->  | DS59: =IF(#REF!>$Y$3,0,#REF!) ->  | DT59: =IF(#REF!>$Y$3,0,#REF!) ->  | DU59: =IF(#REF!>$Y$3,0,#REF!) ->  | DV59: =IF(#REF!>$Y$3,0,#REF!) ->  | DW59: =IF(#REF!>$Y$3,0,#REF!) ->  | DX59: =IF(#REF!>$Y$3,0,#REF!) ->  | DY59: =IF(#REF!>$Y$3,0,#REF!) ->  | DZ59: =IF(#REF!>$Y$3,0,#REF!) ->  | EA59: =IF(#REF!>$Y$3,0,#REF!) ->  | EB59: =IF(#REF!>$Y$3,0,#REF!) ->  | EC59: =IF(#REF!>$Y$3,0,#REF!) ->  | ED59: =IF(#REF!>$Y$3,0,#REF!) ->  | EE59: =IF(#REF!>$Y$3,0,#REF!) ->  | EF59: =IF(#REF!>$Y$3,0,#REF!) ->  | EG59: =IF(#REF!>$Y$3,0,#REF!) ->  | EH59: =IF(#REF!>$Y$3,0,#REF!) ->  | EI59: =IF(#REF!>$Y$3,0,#REF!) ->  | EJ59: =IF(#REF!>$Y$3,0,#REF!) ->  | EK59: =IF(#REF!>$Y$3,0,#REF!) -> 
C60: 56 | BF60: 0 | BG60: =IF(PARCIAL1!L$8=0,0,(ROUND(((BF60*10)/PARCIAL1!L$8),1))) -> 0 | BJ60: 0 | BK60: 0 | BL60: 0 | BM60: 0 | BN60: 0 | BO60: 0 | BP60: 0 | BQ60: 0 | BR60: 0 | BS60: 0 | BT60: 0 | BU60: 0 | BV60: 0 | BW60: 0 | BX60: 0 | BY60: 0 | BZ60: 0 | CA60: 0 | CB60: 0 | CC60: 0 | CD60: 0 | CE60: 0 | CF60: 0 | CG60: 0 | CH60: 0 | CI60: 0 | CJ60: 0 | CK60: 0 | CL60: 0 | CM60: 0 | CN60: 0 | CO60: 0 | CP60: 0 | CQ60: 0 | CR60: 0 | CS60: 0 | CT60: 0 | CU60: 0 | CV60: 0 | CW60: 0 | CX60: 0 | CY60: 0 | CZ60: 0 | DA60: 0 | DB60: 0 | DC60: 0 | DD60: 0 | DE60: 0 | DF60: 0 | DG60: 0 | DH60: 0 | DI60: 0 | DJ60: =IF(#REF!>$Y$3,0,#REF!) ->  | DK60: =IF(#REF!>$Y$3,0,#REF!) ->  | DL60: =IF(#REF!>$Y$3,0,#REF!) ->  | DM60: =IF(#REF!>$Y$3,0,#REF!) ->  | DN60: =IF(#REF!>$Y$3,0,#REF!) ->  | DO60: =IF(#REF!>$Y$3,0,#REF!) ->  | DP60: =IF(#REF!>$Y$3,0,#REF!) ->  | DQ60: =IF(#REF!>$Y$3,0,#REF!) ->  | DR60: =IF(#REF!>$Y$3,0,#REF!) ->  | DS60: =IF(#REF!>$Y$3,0,#REF!) ->  | DT60: =IF(#REF!>$Y$3,0,#REF!) ->  | DU60: =IF(#REF!>$Y$3,0,#REF!) ->  | DV60: =IF(#REF!>$Y$3,0,#REF!) ->  | DW60: =IF(#REF!>$Y$3,0,#REF!) ->  | DX60: =IF(#REF!>$Y$3,0,#REF!) ->  | DY60: =IF(#REF!>$Y$3,0,#REF!) ->  | DZ60: =IF(#REF!>$Y$3,0,#REF!) ->  | EA60: =IF(#REF!>$Y$3,0,#REF!) ->  | EB60: =IF(#REF!>$Y$3,0,#REF!) ->  | EC60: =IF(#REF!>$Y$3,0,#REF!) ->  | ED60: =IF(#REF!>$Y$3,0,#REF!) ->  | EE60: =IF(#REF!>$Y$3,0,#REF!) ->  | EF60: =IF(#REF!>$Y$3,0,#REF!) ->  | EG60: =IF(#REF!>$Y$3,0,#REF!) ->  | EH60: =IF(#REF!>$Y$3,0,#REF!) ->  | EI60: =IF(#REF!>$Y$3,0,#REF!) ->  | EJ60: =IF(#REF!>$Y$3,0,#REF!) ->  | EK60: =IF(#REF!>$Y$3,0,#REF!) -> 
C61: 57 | BF61: 0 | BG61: =IF(PARCIAL1!L$8=0,0,(ROUND(((BF61*10)/PARCIAL1!L$8),1))) -> 0 | BJ61: 0 | BK61: 0 | BL61: 0 | BM61: 0 | BN61: 0 | BO61: 0 | BP61: 0 | BQ61: 0 | BR61: 0 | BS61: 0 | BT61: 0 | BU61: 0 | BV61: 0 | BW61: 0 | BX61: 0 | BY61: 0 | BZ61: 0 | CA61: 0 | CB61: 0 | CC61: 0 | CD61: 0 | CE61: 0 | CF61: 0 | CG61: 0 | CH61: 0 | CI61: 0 | CJ61: 0 | CK61: 0 | CL61: 0 | CM61: 0 | CN61: 0 | CO61: 0 | CP61: 0 | CQ61: 0 | CR61: 0 | CS61: 0 | CT61: 0 | CU61: 0 | CV61: 0 | CW61: 0 | CX61: 0 | CY61: 0 | CZ61: 0 | DA61: 0 | DB61: 0 | DC61: 0 | DD61: 0 | DE61: 0 | DF61: 0 | DG61: 0 | DH61: 0 | DI61: 0 | DJ61: =IF(#REF!>$Y$3,0,#REF!) ->  | DK61: =IF(#REF!>$Y$3,0,#REF!) ->  | DL61: =IF(#REF!>$Y$3,0,#REF!) ->  | DM61: =IF(#REF!>$Y$3,0,#REF!) ->  | DN61: =IF(#REF!>$Y$3,0,#REF!) ->  | DO61: =IF(#REF!>$Y$3,0,#REF!) ->  | DP61: =IF(#REF!>$Y$3,0,#REF!) ->  | DQ61: =IF(#REF!>$Y$3,0,#REF!) ->  | DR61: =IF(#REF!>$Y$3,0,#REF!) ->  | DS61: =IF(#REF!>$Y$3,0,#REF!) ->  | DT61: =IF(#REF!>$Y$3,0,#REF!) ->  | DU61: =IF(#REF!>$Y$3,0,#REF!) ->  | DV61: =IF(#REF!>$Y$3,0,#REF!) ->  | DW61: =IF(#REF!>$Y$3,0,#REF!) ->  | DX61: =IF(#REF!>$Y$3,0,#REF!) ->  | DY61: =IF(#REF!>$Y$3,0,#REF!) ->  | DZ61: =IF(#REF!>$Y$3,0,#REF!) ->  | EA61: =IF(#REF!>$Y$3,0,#REF!) ->  | EB61: =IF(#REF!>$Y$3,0,#REF!) ->  | EC61: =IF(#REF!>$Y$3,0,#REF!) ->  | ED61: =IF(#REF!>$Y$3,0,#REF!) ->  | EE61: =IF(#REF!>$Y$3,0,#REF!) ->  | EF61: =IF(#REF!>$Y$3,0,#REF!) ->  | EG61: =IF(#REF!>$Y$3,0,#REF!) ->  | EH61: =IF(#REF!>$Y$3,0,#REF!) ->  | EI61: =IF(#REF!>$Y$3,0,#REF!) ->  | EJ61: =IF(#REF!>$Y$3,0,#REF!) ->  | EK61: =IF(#REF!>$Y$3,0,#REF!) -> 
C62: 58 | BF62: 0 | BG62: =IF(PARCIAL1!L$8=0,0,(ROUND(((BF62*10)/PARCIAL1!L$8),1))) -> 0 | BJ62: 0 | BK62: 0 | BL62: 0 | BM62: 0 | BN62: 0 | BO62: 0 | BP62: 0 | BQ62: 0 | BR62: 0 | BS62: 0 | BT62: 0 | BU62: 0 | BV62: 0 | BW62: 0 | BX62: 0 | BY62: 0 | BZ62: 0 | CA62: 0 | CB62: 0 | CC62: 0 | CD62: 0 | CE62: 0 | CF62: 0 | CG62: 0 | CH62: 0 | CI62: 0 | CJ62: 0 | CK62: 0 | CL62: 0 | CM62: 0 | CN62: 0 | CO62: 0 | CP62: 0 | CQ62: 0 | CR62: 0 | CS62: 0 | CT62: 0 | CU62: 0 | CV62: 0 | CW62: 0 | CX62: 0 | CY62: 0 | CZ62: 0 | DA62: 0 | DB62: 0 | DC62: 0 | DD62: 0 | DE62: 0 | DF62: 0 | DG62: 0 | DH62: 0 | DI62: 0 | DJ62: =IF(#REF!>$Y$3,0,#REF!) ->  | DK62: =IF(#REF!>$Y$3,0,#REF!) ->  | DL62: =IF(#REF!>$Y$3,0,#REF!) ->  | DM62: =IF(#REF!>$Y$3,0,#REF!) ->  | DN62: =IF(#REF!>$Y$3,0,#REF!) ->  | DO62: =IF(#REF!>$Y$3,0,#REF!) ->  | DP62: =IF(#REF!>$Y$3,0,#REF!) ->  | DQ62: =IF(#REF!>$Y$3,0,#REF!) ->  | DR62: =IF(#REF!>$Y$3,0,#REF!) ->  | DS62: =IF(#REF!>$Y$3,0,#REF!) ->  | DT62: =IF(#REF!>$Y$3,0,#REF!) ->  | DU62: =IF(#REF!>$Y$3,0,#REF!) ->  | DV62: =IF(#REF!>$Y$3,0,#REF!) ->  | DW62: =IF(#REF!>$Y$3,0,#REF!) ->  | DX62: =IF(#REF!>$Y$3,0,#REF!) ->  | DY62: =IF(#REF!>$Y$3,0,#REF!) ->  | DZ62: =IF(#REF!>$Y$3,0,#REF!) ->  | EA62: =IF(#REF!>$Y$3,0,#REF!) ->  | EB62: =IF(#REF!>$Y$3,0,#REF!) ->  | EC62: =IF(#REF!>$Y$3,0,#REF!) ->  | ED62: =IF(#REF!>$Y$3,0,#REF!) ->  | EE62: =IF(#REF!>$Y$3,0,#REF!) ->  | EF62: =IF(#REF!>$Y$3,0,#REF!) ->  | EG62: =IF(#REF!>$Y$3,0,#REF!) ->  | EH62: =IF(#REF!>$Y$3,0,#REF!) ->  | EI62: =IF(#REF!>$Y$3,0,#REF!) ->  | EJ62: =IF(#REF!>$Y$3,0,#REF!) ->  | EK62: =IF(#REF!>$Y$3,0,#REF!) -> 
C63: 59 | BF63: 0 | BG63: =IF(PARCIAL1!L$8=0,0,(ROUND(((BF63*10)/PARCIAL1!L$8),1))) -> 0 | BJ63: 0 | BK63: 0 | BL63: 0 | BM63: 0 | BN63: 0 | BO63: 0 | BP63: 0 | BQ63: 0 | BR63: 0 | BS63: 0 | BT63: 0 | BU63: 0 | BV63: 0 | BW63: 0 | BX63: 0 | BY63: 0 | BZ63: 0 | CA63: 0 | CB63: 0 | CC63: 0 | CD63: 0 | CE63: 0 | CF63: 0 | CG63: 0 | CH63: 0 | CI63: 0 | CJ63: 0 | CK63: 0 | CL63: 0 | CM63: 0 | CN63: 0 | CO63: 0 | CP63: 0 | CQ63: 0 | CR63: 0 | CS63: 0 | CT63: 0 | CU63: 0 | CV63: 0 | CW63: 0 | CX63: 0 | CY63: 0 | CZ63: 0 | DA63: 0 | DB63: 0 | DC63: 0 | DD63: 0 | DE63: 0 | DF63: 0 | DG63: 0 | DH63: 0 | DI63: 0 | DJ63: =IF(#REF!>$Y$3,0,#REF!) ->  | DK63: =IF(#REF!>$Y$3,0,#REF!) ->  | DL63: =IF(#REF!>$Y$3,0,#REF!) ->  | DM63: =IF(#REF!>$Y$3,0,#REF!) ->  | DN63: =IF(#REF!>$Y$3,0,#REF!) ->  | DO63: =IF(#REF!>$Y$3,0,#REF!) ->  | DP63: =IF(#REF!>$Y$3,0,#REF!) ->  | DQ63: =IF(#REF!>$Y$3,0,#REF!) ->  | DR63: =IF(#REF!>$Y$3,0,#REF!) ->  | DS63: =IF(#REF!>$Y$3,0,#REF!) ->  | DT63: =IF(#REF!>$Y$3,0,#REF!) ->  | DU63: =IF(#REF!>$Y$3,0,#REF!) ->  | DV63: =IF(#REF!>$Y$3,0,#REF!) ->  | DW63: =IF(#REF!>$Y$3,0,#REF!) ->  | DX63: =IF(#REF!>$Y$3,0,#REF!) ->  | DY63: =IF(#REF!>$Y$3,0,#REF!) ->  | DZ63: =IF(#REF!>$Y$3,0,#REF!) ->  | EA63: =IF(#REF!>$Y$3,0,#REF!) ->  | EB63: =IF(#REF!>$Y$3,0,#REF!) ->  | EC63: =IF(#REF!>$Y$3,0,#REF!) ->  | ED63: =IF(#REF!>$Y$3,0,#REF!) ->  | EE63: =IF(#REF!>$Y$3,0,#REF!) ->  | EF63: =IF(#REF!>$Y$3,0,#REF!) ->  | EG63: =IF(#REF!>$Y$3,0,#REF!) ->  | EH63: =IF(#REF!>$Y$3,0,#REF!) ->  | EI63: =IF(#REF!>$Y$3,0,#REF!) ->  | EJ63: =IF(#REF!>$Y$3,0,#REF!) ->  | EK63: =IF(#REF!>$Y$3,0,#REF!) -> 
C64: 60 | BF64: 0 | BG64: =IF(PARCIAL1!L$8=0,0,(ROUND(((BF64*10)/PARCIAL1!L$8),1))) -> 0 | BJ64: 0 | BK64: 0 | BL64: 0 | BM64: 0 | BN64: 0 | BO64: 0 | BP64: 0 | BQ64: 0 | BR64: 0 | BS64: 0 | BT64: 0 | BU64: 0 | BV64: 0 | BW64: 0 | BX64: 0 | BY64: 0 | BZ64: 0 | CA64: 0 | CB64: 0 | CC64: 0 | CD64: 0 | CE64: 0 | CF64: 0 | CG64: 0 | CH64: 0 | CI64: 0 | CJ64: 0 | CK64: 0 | CL64: 0 | CM64: 0 | CN64: 0 | CO64: 0 | CP64: 0 | CQ64: 0 | CR64: 0 | CS64: 0 | CT64: 0 | CU64: 0 | CV64: 0 | CW64: 0 | CX64: 0 | CY64: 0 | CZ64: 0 | DA64: 0 | DB64: 0 | DC64: 0 | DD64: 0 | DE64: 0 | DF64: 0 | DG64: 0 | DH64: 0 | DI64: 0 | DJ64: =IF(#REF!>$Y$3,0,#REF!) ->  | DK64: =IF(#REF!>$Y$3,0,#REF!) ->  | DL64: =IF(#REF!>$Y$3,0,#REF!) ->  | DM64: =IF(#REF!>$Y$3,0,#REF!) ->  | DN64: =IF(#REF!>$Y$3,0,#REF!) ->  | DO64: =IF(#REF!>$Y$3,0,#REF!) ->  | DP64: =IF(#REF!>$Y$3,0,#REF!) ->  | DQ64: =IF(#REF!>$Y$3,0,#REF!) ->  | DR64: =IF(#REF!>$Y$3,0,#REF!) ->  | DS64: =IF(#REF!>$Y$3,0,#REF!) ->  | DT64: =IF(#REF!>$Y$3,0,#REF!) ->  | DU64: =IF(#REF!>$Y$3,0,#REF!) ->  | DV64: =IF(#REF!>$Y$3,0,#REF!) ->  | DW64: =IF(#REF!>$Y$3,0,#REF!) ->  | DX64: =IF(#REF!>$Y$3,0,#REF!) ->  | DY64: =IF(#REF!>$Y$3,0,#REF!) ->  | DZ64: =IF(#REF!>$Y$3,0,#REF!) ->  | EA64: =IF(#REF!>$Y$3,0,#REF!) ->  | EB64: =IF(#REF!>$Y$3,0,#REF!) ->  | EC64: =IF(#REF!>$Y$3,0,#REF!) ->  | ED64: =IF(#REF!>$Y$3,0,#REF!) ->  | EE64: =IF(#REF!>$Y$3,0,#REF!) ->  | EF64: =IF(#REF!>$Y$3,0,#REF!) ->  | EG64: =IF(#REF!>$Y$3,0,#REF!) ->  | EH64: =IF(#REF!>$Y$3,0,#REF!) ->  | EI64: =IF(#REF!>$Y$3,0,#REF!) ->  | EJ64: =IF(#REF!>$Y$3,0,#REF!) ->  | EK64: =IF(#REF!>$Y$3,0,#REF!) -> 
C65: 61 | BF65: 0 | BG65: =IF(PARCIAL1!L$8=0,0,(ROUND(((BF65*10)/PARCIAL1!L$8),1))) -> 0 | BJ65: 0 | BK65: 0 | BL65: 0 | BM65: 0 | BN65: 0 | BO65: 0 | BP65: 0 | BQ65: 0 | BR65: 0 | BS65: 0 | BT65: 0 | BU65: 0 | BV65: 0 | BW65: 0 | BX65: 0 | BY65: 0 | BZ65: 0 | CA65: 0 | CB65: 0 | CC65: 0 | CD65: 0 | CE65: 0 | CF65: 0 | CG65: 0 | CH65: 0 | CI65: 0 | CJ65: 0 | CK65: 0 | CL65: 0 | CM65: 0 | CN65: 0 | CO65: 0 | CP65: 0 | CQ65: 0 | CR65: 0 | CS65: 0 | CT65: 0 | CU65: 0 | CV65: 0 | CW65: 0 | CX65: 0 | CY65: 0 | CZ65: 0 | DA65: 0 | DB65: 0 | DC65: 0 | DD65: 0 | DE65: 0 | DF65: 0 | DG65: 0 | DH65: 0 | DI65: 0 | DJ65: =IF(#REF!>$Y$3,0,#REF!) ->  | DK65: =IF(#REF!>$Y$3,0,#REF!) ->  | DL65: =IF(#REF!>$Y$3,0,#REF!) ->  | DM65: =IF(#REF!>$Y$3,0,#REF!) ->  | DN65: =IF(#REF!>$Y$3,0,#REF!) ->  | DO65: =IF(#REF!>$Y$3,0,#REF!) ->  | DP65: =IF(#REF!>$Y$3,0,#REF!) ->  | DQ65: =IF(#REF!>$Y$3,0,#REF!) ->  | DR65: =IF(#REF!>$Y$3,0,#REF!) ->  | DS65: =IF(#REF!>$Y$3,0,#REF!) ->  | DT65: =IF(#REF!>$Y$3,0,#REF!) ->  | DU65: =IF(#REF!>$Y$3,0,#REF!) ->  | DV65: =IF(#REF!>$Y$3,0,#REF!) ->  | DW65: =IF(#REF!>$Y$3,0,#REF!) ->  | DX65: =IF(#REF!>$Y$3,0,#REF!) ->  | DY65: =IF(#REF!>$Y$3,0,#REF!) ->  | DZ65: =IF(#REF!>$Y$3,0,#REF!) ->  | EA65: =IF(#REF!>$Y$3,0,#REF!) ->  | EB65: =IF(#REF!>$Y$3,0,#REF!) ->  | EC65: =IF(#REF!>$Y$3,0,#REF!) ->  | ED65: =IF(#REF!>$Y$3,0,#REF!) ->  | EE65: =IF(#REF!>$Y$3,0,#REF!) ->  | EF65: =IF(#REF!>$Y$3,0,#REF!) ->  | EG65: =IF(#REF!>$Y$3,0,#REF!) ->  | EH65: =IF(#REF!>$Y$3,0,#REF!) ->  | EI65: =IF(#REF!>$Y$3,0,#REF!) ->  | EJ65: =IF(#REF!>$Y$3,0,#REF!) ->  | EK65: =IF(#REF!>$Y$3,0,#REF!) -> 
C66: 62 | BF66: 0 | BG66: =IF(PARCIAL1!L$8=0,0,(ROUND(((BF66*10)/PARCIAL1!L$8),1))) -> 0 | BJ66: 0 | BK66: 0 | BL66: 0 | BM66: 0 | BN66: 0 | BO66: 0 | BP66: 0 | BQ66: 0 | BR66: 0 | BS66: 0 | BT66: 0 | BU66: 0 | BV66: 0 | BW66: 0 | BX66: 0 | BY66: 0 | BZ66: 0 | CA66: 0 | CB66: 0 | CC66: 0 | CD66: 0 | CE66: 0 | CF66: 0 | CG66: 0 | CH66: 0 | CI66: 0 | CJ66: 0 | CK66: 0 | CL66: 0 | CM66: 0 | CN66: 0 | CO66: 0 | CP66: 0 | CQ66: 0 | CR66: 0 | CS66: 0 | CT66: 0 | CU66: 0 | CV66: 0 | CW66: 0 | CX66: 0 | CY66: 0 | CZ66: 0 | DA66: 0 | DB66: 0 | DC66: 0 | DD66: 0 | DE66: 0 | DF66: 0 | DG66: 0 | DH66: 0 | DI66: 0 | DJ66: =IF(#REF!>$Y$3,0,#REF!) ->  | DK66: =IF(#REF!>$Y$3,0,#REF!) ->  | DL66: =IF(#REF!>$Y$3,0,#REF!) ->  | DM66: =IF(#REF!>$Y$3,0,#REF!) ->  | DN66: =IF(#REF!>$Y$3,0,#REF!) ->  | DO66: =IF(#REF!>$Y$3,0,#REF!) ->  | DP66: =IF(#REF!>$Y$3,0,#REF!) ->  | DQ66: =IF(#REF!>$Y$3,0,#REF!) ->  | DR66: =IF(#REF!>$Y$3,0,#REF!) ->  | DS66: =IF(#REF!>$Y$3,0,#REF!) ->  | DT66: =IF(#REF!>$Y$3,0,#REF!) ->  | DU66: =IF(#REF!>$Y$3,0,#REF!) ->  | DV66: =IF(#REF!>$Y$3,0,#REF!) ->  | DW66: =IF(#REF!>$Y$3,0,#REF!) ->  | DX66: =IF(#REF!>$Y$3,0,#REF!) ->  | DY66: =IF(#REF!>$Y$3,0,#REF!) ->  | DZ66: =IF(#REF!>$Y$3,0,#REF!) ->  | EA66: =IF(#REF!>$Y$3,0,#REF!) ->  | EB66: =IF(#REF!>$Y$3,0,#REF!) ->  | EC66: =IF(#REF!>$Y$3,0,#REF!) ->  | ED66: =IF(#REF!>$Y$3,0,#REF!) ->  | EE66: =IF(#REF!>$Y$3,0,#REF!) ->  | EF66: =IF(#REF!>$Y$3,0,#REF!) ->  | EG66: =IF(#REF!>$Y$3,0,#REF!) ->  | EH66: =IF(#REF!>$Y$3,0,#REF!) ->  | EI66: =IF(#REF!>$Y$3,0,#REF!) ->  | EJ66: =IF(#REF!>$Y$3,0,#REF!) ->  | EK66: =IF(#REF!>$Y$3,0,#REF!) -> 
C67: 63 | BF67: 0 | BG67: =IF(PARCIAL1!L$8=0,0,(ROUND(((BF67*10)/PARCIAL1!L$8),1))) -> 0 | BJ67: 0 | BK67: 0 | BL67: 0 | BM67: 0 | BN67: 0 | BO67: 0 | BP67: 0 | BQ67: 0 | BR67: 0 | BS67: 0 | BT67: 0 | BU67: 0 | BV67: 0 | BW67: 0 | BX67: 0 | BY67: 0 | BZ67: 0 | CA67: 0 | CB67: 0 | CC67: 0 | CD67: 0 | CE67: 0 | CF67: 0 | CG67: 0 | CH67: 0 | CI67: 0 | CJ67: 0 | CK67: 0 | CL67: 0 | CM67: 0 | CN67: 0 | CO67: 0 | CP67: 0 | CQ67: 0 | CR67: 0 | CS67: 0 | CT67: 0 | CU67: 0 | CV67: 0 | CW67: 0 | CX67: 0 | CY67: 0 | CZ67: 0 | DA67: 0 | DB67: 0 | DC67: 0 | DD67: 0 | DE67: 0 | DF67: 0 | DG67: 0 | DH67: 0 | DI67: 0 | DJ67: =IF(#REF!>$Y$3,0,#REF!) ->  | DK67: =IF(#REF!>$Y$3,0,#REF!) ->  | DL67: =IF(#REF!>$Y$3,0,#REF!) ->  | DM67: =IF(#REF!>$Y$3,0,#REF!) ->  | DN67: =IF(#REF!>$Y$3,0,#REF!) ->  | DO67: =IF(#REF!>$Y$3,0,#REF!) ->  | DP67: =IF(#REF!>$Y$3,0,#REF!) ->  | DQ67: =IF(#REF!>$Y$3,0,#REF!) ->  | DR67: =IF(#REF!>$Y$3,0,#REF!) ->  | DS67: =IF(#REF!>$Y$3,0,#REF!) ->  | DT67: =IF(#REF!>$Y$3,0,#REF!) ->  | DU67: =IF(#REF!>$Y$3,0,#REF!) ->  | DV67: =IF(#REF!>$Y$3,0,#REF!) ->  | DW67: =IF(#REF!>$Y$3,0,#REF!) ->  | DX67: =IF(#REF!>$Y$3,0,#REF!) ->  | DY67: =IF(#REF!>$Y$3,0,#REF!) ->  | DZ67: =IF(#REF!>$Y$3,0,#REF!) ->  | EA67: =IF(#REF!>$Y$3,0,#REF!) ->  | EB67: =IF(#REF!>$Y$3,0,#REF!) ->  | EC67: =IF(#REF!>$Y$3,0,#REF!) ->  | ED67: =IF(#REF!>$Y$3,0,#REF!) ->  | EE67: =IF(#REF!>$Y$3,0,#REF!) ->  | EF67: =IF(#REF!>$Y$3,0,#REF!) ->  | EG67: =IF(#REF!>$Y$3,0,#REF!) ->  | EH67: =IF(#REF!>$Y$3,0,#REF!) ->  | EI67: =IF(#REF!>$Y$3,0,#REF!) ->  | EJ67: =IF(#REF!>$Y$3,0,#REF!) ->  | EK67: =IF(#REF!>$Y$3,0,#REF!) -> 
C68: 64 | BF68: 0 | BG68: =IF(PARCIAL1!L$8=0,0,(ROUND(((BF68*10)/PARCIAL1!L$8),1))) -> 0 | BJ68: 0 | BK68: 0 | BL68: 0 | BM68: 0 | BN68: 0 | BO68: 0 | BP68: 0 | BQ68: 0 | BR68: 0 | BS68: 0 | BT68: 0 | BU68: 0 | BV68: 0 | BW68: 0 | BX68: 0 | BY68: 0 | BZ68: 0 | CA68: 0 | CB68: 0 | CC68: 0 | CD68: 0 | CE68: 0 | CF68: 0 | CG68: 0 | CH68: 0 | CI68: 0 | CJ68: 0 | CK68: 0 | CL68: 0 | CM68: 0 | CN68: 0 | CO68: 0 | CP68: 0 | CQ68: 0 | CR68: 0 | CS68: 0 | CT68: 0 | CU68: 0 | CV68: 0 | CW68: 0 | CX68: 0 | CY68: 0 | CZ68: 0 | DA68: 0 | DB68: 0 | DC68: 0 | DD68: 0 | DE68: 0 | DF68: 0 | DG68: 0 | DH68: 0 | DI68: 0 | DJ68: =IF(#REF!>$Y$3,0,#REF!) ->  | DK68: =IF(#REF!>$Y$3,0,#REF!) ->  | DL68: =IF(#REF!>$Y$3,0,#REF!) ->  | DM68: =IF(#REF!>$Y$3,0,#REF!) ->  | DN68: =IF(#REF!>$Y$3,0,#REF!) ->  | DO68: =IF(#REF!>$Y$3,0,#REF!) ->  | DP68: =IF(#REF!>$Y$3,0,#REF!) ->  | DQ68: =IF(#REF!>$Y$3,0,#REF!) ->  | DR68: =IF(#REF!>$Y$3,0,#REF!) ->  | DS68: =IF(#REF!>$Y$3,0,#REF!) ->  | DT68: =IF(#REF!>$Y$3,0,#REF!) ->  | DU68: =IF(#REF!>$Y$3,0,#REF!) ->  | DV68: =IF(#REF!>$Y$3,0,#REF!) ->  | DW68: =IF(#REF!>$Y$3,0,#REF!) ->  | DX68: =IF(#REF!>$Y$3,0,#REF!) ->  | DY68: =IF(#REF!>$Y$3,0,#REF!) ->  | DZ68: =IF(#REF!>$Y$3,0,#REF!) ->  | EA68: =IF(#REF!>$Y$3,0,#REF!) ->  | EB68: =IF(#REF!>$Y$3,0,#REF!) ->  | EC68: =IF(#REF!>$Y$3,0,#REF!) ->  | ED68: =IF(#REF!>$Y$3,0,#REF!) ->  | EE68: =IF(#REF!>$Y$3,0,#REF!) ->  | EF68: =IF(#REF!>$Y$3,0,#REF!) ->  | EG68: =IF(#REF!>$Y$3,0,#REF!) ->  | EH68: =IF(#REF!>$Y$3,0,#REF!) ->  | EI68: =IF(#REF!>$Y$3,0,#REF!) ->  | EJ68: =IF(#REF!>$Y$3,0,#REF!) ->  | EK68: =IF(#REF!>$Y$3,0,#REF!) -> 
C69: 65 | BF69: 0 | BG69: =IF(PARCIAL1!L$8=0,0,(ROUND(((BF69*10)/PARCIAL1!L$8),1))) -> 0 | BJ69: 0 | BK69: 0 | BL69: 0 | BM69: 0 | BN69: 0 | BO69: 0 | BP69: 0 | BQ69: 0 | BR69: 0 | BS69: 0 | BT69: 0 | BU69: 0 | BV69: 0 | BW69: 0 | BX69: 0 | BY69: 0 | BZ69: 0 | CA69: 0 | CB69: 0 | CC69: 0 | CD69: 0 | CE69: 0 | CF69: 0 | CG69: 0 | CH69: 0 | CI69: 0 | CJ69: 0 | CK69: 0 | CL69: 0 | CM69: 0 | CN69: 0 | CO69: 0 | CP69: 0 | CQ69: 0 | CR69: 0 | CS69: 0 | CT69: 0 | CU69: 0 | CV69: 0 | CW69: 0 | CX69: 0 | CY69: 0 | CZ69: 0 | DA69: 0 | DB69: 0 | DC69: 0 | DD69: 0 | DE69: 0 | DF69: 0 | DG69: 0 | DH69: 0 | DI69: 0 | DJ69: =IF(#REF!>$Y$3,0,#REF!) ->  | DK69: =IF(#REF!>$Y$3,0,#REF!) ->  | DL69: =IF(#REF!>$Y$3,0,#REF!) ->  | DM69: =IF(#REF!>$Y$3,0,#REF!) ->  | DN69: =IF(#REF!>$Y$3,0,#REF!) ->  | DO69: =IF(#REF!>$Y$3,0,#REF!) ->  | DP69: =IF(#REF!>$Y$3,0,#REF!) ->  | DQ69: =IF(#REF!>$Y$3,0,#REF!) ->  | DR69: =IF(#REF!>$Y$3,0,#REF!) ->  | DS69: =IF(#REF!>$Y$3,0,#REF!) ->  | DT69: =IF(#REF!>$Y$3,0,#REF!) ->  | DU69: =IF(#REF!>$Y$3,0,#REF!) ->  | DV69: =IF(#REF!>$Y$3,0,#REF!) ->  | DW69: =IF(#REF!>$Y$3,0,#REF!) ->  | DX69: =IF(#REF!>$Y$3,0,#REF!) ->  | DY69: =IF(#REF!>$Y$3,0,#REF!) ->  | DZ69: =IF(#REF!>$Y$3,0,#REF!) ->  | EA69: =IF(#REF!>$Y$3,0,#REF!) ->  | EB69: =IF(#REF!>$Y$3,0,#REF!) ->  | EC69: =IF(#REF!>$Y$3,0,#REF!) ->  | ED69: =IF(#REF!>$Y$3,0,#REF!) ->  | EE69: =IF(#REF!>$Y$3,0,#REF!) ->  | EF69: =IF(#REF!>$Y$3,0,#REF!) ->  | EG69: =IF(#REF!>$Y$3,0,#REF!) ->  | EH69: =IF(#REF!>$Y$3,0,#REF!) ->  | EI69: =IF(#REF!>$Y$3,0,#REF!) ->  | EJ69: =IF(#REF!>$Y$3,0,#REF!) ->  | EK69: =IF(#REF!>$Y$3,0,#REF!) -> 
C70: 66 | BF70: 0 | BG70: =IF(PARCIAL1!L$8=0,0,(ROUND(((BF70*10)/PARCIAL1!L$8),1))) -> 0 | BJ70: 0 | BK70: 0 | BL70: 0 | BM70: 0 | BN70: 0 | BO70: 0 | BP70: 0 | BQ70: 0 | BR70: 0 | BS70: 0 | BT70: 0 | BU70: 0 | BV70: 0 | BW70: 0 | BX70: 0 | BY70: 0 | BZ70: 0 | CA70: 0 | CB70: 0 | CC70: 0 | CD70: 0 | CE70: 0 | CF70: 0 | CG70: 0 | CH70: 0 | CI70: 0 | CJ70: 0 | CK70: 0 | CL70: 0 | CM70: 0 | CN70: 0 | CO70: 0 | CP70: 0 | CQ70: 0 | CR70: 0 | CS70: 0 | CT70: 0 | CU70: 0 | CV70: 0 | CW70: 0 | CX70: 0 | CY70: 0 | CZ70: 0 | DA70: 0 | DB70: 0 | DC70: 0 | DD70: 0 | DE70: 0 | DF70: 0 | DG70: 0 | DH70: 0 | DI70: 0 | DJ70: =IF(#REF!>$Y$3,0,#REF!) ->  | DK70: =IF(#REF!>$Y$3,0,#REF!) ->  | DL70: =IF(#REF!>$Y$3,0,#REF!) ->  | DM70: =IF(#REF!>$Y$3,0,#REF!) ->  | DN70: =IF(#REF!>$Y$3,0,#REF!) ->  | DO70: =IF(#REF!>$Y$3,0,#REF!) ->  | DP70: =IF(#REF!>$Y$3,0,#REF!) ->  | DQ70: =IF(#REF!>$Y$3,0,#REF!) ->  | DR70: =IF(#REF!>$Y$3,0,#REF!) ->  | DS70: =IF(#REF!>$Y$3,0,#REF!) ->  | DT70: =IF(#REF!>$Y$3,0,#REF!) ->  | DU70: =IF(#REF!>$Y$3,0,#REF!) ->  | DV70: =IF(#REF!>$Y$3,0,#REF!) ->  | DW70: =IF(#REF!>$Y$3,0,#REF!) ->  | DX70: =IF(#REF!>$Y$3,0,#REF!) ->  | DY70: =IF(#REF!>$Y$3,0,#REF!) ->  | DZ70: =IF(#REF!>$Y$3,0,#REF!) ->  | EA70: =IF(#REF!>$Y$3,0,#REF!) ->  | EB70: =IF(#REF!>$Y$3,0,#REF!) ->  | EC70: =IF(#REF!>$Y$3,0,#REF!) ->  | ED70: =IF(#REF!>$Y$3,0,#REF!) ->  | EE70: =IF(#REF!>$Y$3,0,#REF!) ->  | EF70: =IF(#REF!>$Y$3,0,#REF!) ->  | EG70: =IF(#REF!>$Y$3,0,#REF!) ->  | EH70: =IF(#REF!>$Y$3,0,#REF!) ->  | EI70: =IF(#REF!>$Y$3,0,#REF!) ->  | EJ70: =IF(#REF!>$Y$3,0,#REF!) ->  | EK70: =IF(#REF!>$Y$3,0,#REF!) -> 
C71: 67 | BF71: 0 | BG71: =IF(PARCIAL1!L$8=0,0,(ROUND(((BF71*10)/PARCIAL1!L$8),1))) -> 0 | BJ71: 0 | BK71: 0 | BL71: 0 | BM71: 0 | BN71: 0 | BO71: 0 | BP71: 0 | BQ71: 0 | BR71: 0 | BS71: 0 | BT71: 0 | BU71: 0 | BV71: 0 | BW71: 0 | BX71: 0 | BY71: 0 | BZ71: 0 | CA71: 0 | CB71: 0 | CC71: 0 | CD71: 0 | CE71: 0 | CF71: 0 | CG71: 0 | CH71: 0 | CI71: 0 | CJ71: 0 | CK71: 0 | CL71: 0 | CM71: 0 | CN71: 0 | CO71: 0 | CP71: 0 | CQ71: 0 | CR71: 0 | CS71: 0 | CT71: 0 | CU71: 0 | CV71: 0 | CW71: 0 | CX71: 0 | CY71: 0 | CZ71: 0 | DA71: 0 | DB71: 0 | DC71: 0 | DD71: 0 | DE71: 0 | DF71: 0 | DG71: 0 | DH71: 0 | DI71: 0 | DJ71: =IF(#REF!>$Y$3,0,#REF!) ->  | DK71: =IF(#REF!>$Y$3,0,#REF!) ->  | DL71: =IF(#REF!>$Y$3,0,#REF!) ->  | DM71: =IF(#REF!>$Y$3,0,#REF!) ->  | DN71: =IF(#REF!>$Y$3,0,#REF!) ->  | DO71: =IF(#REF!>$Y$3,0,#REF!) ->  | DP71: =IF(#REF!>$Y$3,0,#REF!) ->  | DQ71: =IF(#REF!>$Y$3,0,#REF!) ->  | DR71: =IF(#REF!>$Y$3,0,#REF!) ->  | DS71: =IF(#REF!>$Y$3,0,#REF!) ->  | DT71: =IF(#REF!>$Y$3,0,#REF!) ->  | DU71: =IF(#REF!>$Y$3,0,#REF!) ->  | DV71: =IF(#REF!>$Y$3,0,#REF!) ->  | DW71: =IF(#REF!>$Y$3,0,#REF!) ->  | DX71: =IF(#REF!>$Y$3,0,#REF!) ->  | DY71: =IF(#REF!>$Y$3,0,#REF!) ->  | DZ71: =IF(#REF!>$Y$3,0,#REF!) ->  | EA71: =IF(#REF!>$Y$3,0,#REF!) ->  | EB71: =IF(#REF!>$Y$3,0,#REF!) ->  | EC71: =IF(#REF!>$Y$3,0,#REF!) ->  | ED71: =IF(#REF!>$Y$3,0,#REF!) ->  | EE71: =IF(#REF!>$Y$3,0,#REF!) ->  | EF71: =IF(#REF!>$Y$3,0,#REF!) ->  | EG71: =IF(#REF!>$Y$3,0,#REF!) ->  | EH71: =IF(#REF!>$Y$3,0,#REF!) ->  | EI71: =IF(#REF!>$Y$3,0,#REF!) ->  | EJ71: =IF(#REF!>$Y$3,0,#REF!) ->  | EK71: =IF(#REF!>$Y$3,0,#REF!) -> 
C72: 68 | BF72: =SUM(F72:BE72) -> 0 | BG72: =IF(PARCIAL1!L$8=0,0,(ROUND(((BF72*10)/PARCIAL1!L$8),1))) -> 0 | BJ72: 0 | BK72: 0 | BL72: 0 | BM72: 0 | BN72: 0 | BO72: 0 | BP72: 0 | BQ72: 0 | BR72: 0 | BS72: 0 | BT72: 0 | BU72: 0 | BV72: 0 | BW72: 0 | BX72: 0 | BY72: 0 | BZ72: 0 | CA72: 0 | CB72: 0 | CC72: 0 | CD72: 0 | CE72: 0 | CF72: 0 | CG72: 0 | CH72: 0 | CI72: 0 | CJ72: 0 | CK72: 0 | CL72: 0 | CM72: 0 | CN72: 0 | CO72: 0 | CP72: 0 | CQ72: 0 | CR72: 0 | CS72: 0 | CT72: 0 | CU72: 0 | CV72: 0 | CW72: 0 | CX72: 0 | CY72: 0 | CZ72: 0 | DA72: 0 | DB72: 0 | DC72: 0 | DD72: 0 | DE72: 0 | DF72: 0 | DG72: 0 | DH72: 0 | DI72: 0 | DJ72: =IF(#REF!>$Y$3,0,#REF!) ->  | DK72: =IF(#REF!>$Y$3,0,#REF!) ->  | DL72: =IF(#REF!>$Y$3,0,#REF!) ->  | DM72: =IF(#REF!>$Y$3,0,#REF!) ->  | DN72: =IF(#REF!>$Y$3,0,#REF!) ->  | DO72: =IF(#REF!>$Y$3,0,#REF!) ->  | DP72: =IF(#REF!>$Y$3,0,#REF!) ->  | DQ72: =IF(#REF!>$Y$3,0,#REF!) ->  | DR72: =IF(#REF!>$Y$3,0,#REF!) ->  | DS72: =IF(#REF!>$Y$3,0,#REF!) ->  | DT72: =IF(#REF!>$Y$3,0,#REF!) ->  | DU72: =IF(#REF!>$Y$3,0,#REF!) ->  | DV72: =IF(#REF!>$Y$3,0,#REF!) ->  | DW72: =IF(#REF!>$Y$3,0,#REF!) ->  | DX72: =IF(#REF!>$Y$3,0,#REF!) ->  | DY72: =IF(#REF!>$Y$3,0,#REF!) ->  | DZ72: =IF(#REF!>$Y$3,0,#REF!) ->  | EA72: =IF(#REF!>$Y$3,0,#REF!) ->  | EB72: =IF(#REF!>$Y$3,0,#REF!) ->  | EC72: =IF(#REF!>$Y$3,0,#REF!) ->  | ED72: =IF(#REF!>$Y$3,0,#REF!) ->  | EE72: =IF(#REF!>$Y$3,0,#REF!) ->  | EF72: =IF(#REF!>$Y$3,0,#REF!) ->  | EG72: =IF(#REF!>$Y$3,0,#REF!) ->  | EH72: =IF(#REF!>$Y$3,0,#REF!) ->  | EI72: =IF(#REF!>$Y$3,0,#REF!) ->  | EJ72: =IF(#REF!>$Y$3,0,#REF!) ->  | EK72: =IF(#REF!>$Y$3,0,#REF!) -> 
C73: 69 | BF73: 0 | BG73: =IF(PARCIAL1!L$8=0,0,(ROUND(((BF73*10)/PARCIAL1!L$8),1))) -> 0 | BJ73: 0 | BK73: 0 | BL73: 0 | BM73: 0 | BN73: 0 | BO73: 0 | BP73: 0 | BQ73: 0 | BR73: 0 | BS73: 0 | BT73: 0 | BU73: 0 | BV73: 0 | BW73: 0 | BX73: 0 | BY73: 0 | BZ73: 0 | CA73: 0 | CB73: 0 | CC73: 0 | CD73: 0 | CE73: 0 | CF73: 0 | CG73: 0 | CH73: 0 | CI73: 0 | CJ73: 0 | CK73: 0 | CL73: 0 | CM73: 0 | CN73: 0 | CO73: 0 | CP73: 0 | CQ73: 0 | CR73: 0 | CS73: 0 | CT73: 0 | CU73: 0 | CV73: 0 | CW73: 0 | CX73: 0 | CY73: 0 | CZ73: 0 | DA73: 0 | DB73: 0 | DC73: 0 | DD73: 0 | DE73: 0 | DF73: 0 | DG73: 0 | DH73: 0 | DI73: 0 | DJ73: =IF(#REF!>$Y$3,0,#REF!) ->  | DK73: =IF(#REF!>$Y$3,0,#REF!) ->  | DL73: =IF(#REF!>$Y$3,0,#REF!) ->  | DM73: =IF(#REF!>$Y$3,0,#REF!) ->  | DN73: =IF(#REF!>$Y$3,0,#REF!) ->  | DO73: =IF(#REF!>$Y$3,0,#REF!) ->  | DP73: =IF(#REF!>$Y$3,0,#REF!) ->  | DQ73: =IF(#REF!>$Y$3,0,#REF!) ->  | DR73: =IF(#REF!>$Y$3,0,#REF!) ->  | DS73: =IF(#REF!>$Y$3,0,#REF!) ->  | DT73: =IF(#REF!>$Y$3,0,#REF!) ->  | DU73: =IF(#REF!>$Y$3,0,#REF!) ->  | DV73: =IF(#REF!>$Y$3,0,#REF!) ->  | DW73: =IF(#REF!>$Y$3,0,#REF!) ->  | DX73: =IF(#REF!>$Y$3,0,#REF!) ->  | DY73: =IF(#REF!>$Y$3,0,#REF!) ->  | DZ73: =IF(#REF!>$Y$3,0,#REF!) ->  | EA73: =IF(#REF!>$Y$3,0,#REF!) ->  | EB73: =IF(#REF!>$Y$3,0,#REF!) ->  | EC73: =IF(#REF!>$Y$3,0,#REF!) ->  | ED73: =IF(#REF!>$Y$3,0,#REF!) ->  | EE73: =IF(#REF!>$Y$3,0,#REF!) ->  | EF73: =IF(#REF!>$Y$3,0,#REF!) ->  | EG73: =IF(#REF!>$Y$3,0,#REF!) ->  | EH73: =IF(#REF!>$Y$3,0,#REF!) ->  | EI73: =IF(#REF!>$Y$3,0,#REF!) ->  | EJ73: =IF(#REF!>$Y$3,0,#REF!) ->  | EK73: =IF(#REF!>$Y$3,0,#REF!) -> 
C74: 70 | BF74: 0 | BG74: =IF(PARCIAL1!L$8=0,0,(ROUND(((BF74*10)/PARCIAL1!L$8),1))) -> 0 | BJ74: 0 | BK74: 0 | BL74: 0 | BM74: 0 | BN74: 0 | BO74: 0 | BP74: 0 | BQ74: 0 | BR74: 0 | BS74: 0 | BT74: 0 | BU74: 0 | BV74: 0 | BW74: 0 | BX74: 0 | BY74: 0 | BZ74: 0 | CA74: 0 | CB74: 0 | CC74: 0 | CD74: 0 | CE74: 0 | CF74: 0 | CG74: 0 | CH74: 0 | CI74: 0 | CJ74: 0 | CK74: 0 | CL74: 0 | CM74: 0 | CN74: 0 | CO74: 0 | CP74: 0 | CQ74: 0 | CR74: 0 | CS74: 0 | CT74: 0 | CU74: 0 | CV74: 0 | CW74: 0 | CX74: 0 | CY74: 0 | CZ74: 0 | DA74: 0 | DB74: 0 | DC74: 0 | DD74: 0 | DE74: 0 | DF74: 0 | DG74: 0 | DH74: 0 | DI74: 0 | DJ74: =IF(#REF!>$Y$3,0,#REF!) ->  | DK74: =IF(#REF!>$Y$3,0,#REF!) ->  | DL74: =IF(#REF!>$Y$3,0,#REF!) ->  | DM74: =IF(#REF!>$Y$3,0,#REF!) ->  | DN74: =IF(#REF!>$Y$3,0,#REF!) ->  | DO74: =IF(#REF!>$Y$3,0,#REF!) ->  | DP74: =IF(#REF!>$Y$3,0,#REF!) ->  | DQ74: =IF(#REF!>$Y$3,0,#REF!) ->  | DR74: =IF(#REF!>$Y$3,0,#REF!) ->  | DS74: =IF(#REF!>$Y$3,0,#REF!) ->  | DT74: =IF(#REF!>$Y$3,0,#REF!) ->  | DU74: =IF(#REF!>$Y$3,0,#REF!) ->  | DV74: =IF(#REF!>$Y$3,0,#REF!) ->  | DW74: =IF(#REF!>$Y$3,0,#REF!) ->  | DX74: =IF(#REF!>$Y$3,0,#REF!) ->  | DY74: =IF(#REF!>$Y$3,0,#REF!) ->  | DZ74: =IF(#REF!>$Y$3,0,#REF!) ->  | EA74: =IF(#REF!>$Y$3,0,#REF!) ->  | EB74: =IF(#REF!>$Y$3,0,#REF!) ->  | EC74: =IF(#REF!>$Y$3,0,#REF!) ->  | ED74: =IF(#REF!>$Y$3,0,#REF!) ->  | EE74: =IF(#REF!>$Y$3,0,#REF!) ->  | EF74: =IF(#REF!>$Y$3,0,#REF!) ->  | EG74: =IF(#REF!>$Y$3,0,#REF!) ->  | EH74: =IF(#REF!>$Y$3,0,#REF!) ->  | EI74: =IF(#REF!>$Y$3,0,#REF!) ->  | EJ74: =IF(#REF!>$Y$3,0,#REF!) ->  | EK74: =IF(#REF!>$Y$3,0,#REF!) -> 

Sheet DOC1
C2: Aprendizaje en contacto con el docente - PRIMER PARCIAL
C3: Conferencias, Seminarios, Estudios de Casos, Foros, Clases en Línea, Servicios realizados en escenarios laborables. Experiencias colectivas en proyectos: sistematización de prácticas de investigación-intervención, proyectos de integración de saberes, construcción de modelos y prototipos, proyectos de problematización, resolución de problemas, entornos virtuales, entre otros. Evaluaciones orales, escritas entre otras.
C4: N | D4: NRO DE CÉDULA | E4: NOMINA | F4: 1 | G4: 2 | H4: 3 | I4: 4 | J4: 5 | K4: 6 | L4: 7 | M4: 8 | N4: 9 | O4: 10 | P4: suma | Q4: PROMEDIO sobre 10 | R4: EQUIVALENCIA sobre 3,5
F5: Parcial I | G5: EXPOSICIÓN Inducción - conducción 10/10/24 | H5: EXPOSICIÓN Dolor del parto y estrategias | I5: EXPOSICIÓN Puerperio 29/10/24 - 5-6-7/11/24 | J5: PARTICIPACIÓN | K5: EXPOSICIÓN Trast. H del E. 12-13-14/11/24 | L5: LECCIÓN 14/11/24 | M5: EXPOSICIÓN Alto Riesgo Obst. 19/11/24 | N5: EXPOSICIÓN Pruebas Prenatales y valoración en el embarazo de ARO 21-26/11/24
C6: 1 | D6: =IF('AS1'!D5="","",'AS1'!D5) ->  | E6: =IF('AS1'!E5="","",'AS1'!E5) -> DAQUILEMA LONDO SHIRLEY ESTEFAFANÍA | F6: 7.8 | G6: 4.8 | H6: 9.4 | K6: 8.5 | L6: 7 | P6: =IF(COUNT(F6:O6)=0,"",SUM(F6:O6)) -> 37.5 | Q6: =IF(COUNT(F6:O6)=0,0,ROUND(P6/COUNT(F6:O6),2)) -> 7.5 | R6: =(Q6*3.5)/10 -> 2.625
C7: 2 | D7: =IF('AS1'!D6="","",'AS1'!D6) ->  | E7: =IF('AS1'!E6="","",'AS1'!E6) -> GOYES ORTIZ NATASHA DAYANA | F7: 6.6 | G7: 9 | J7: 10 | P7: 25.6 | Q7: 8.53 | R7: 2.9855
C8: 3 | D8: =IF('AS1'!D7="","",'AS1'!D7) ->  | E8: =IF('AS1'!E7="","",'AS1'!E7) -> GUADALUPE RUIZ YULISA NATALY | F8: 6.6 | G8: 7.4 | H8: 7.8 | J8: 10 | K8: 8 | L8: 6 | P8: 45.8 | Q8: 7.63 | R8: 2.6705
C9: 4 | D9: =IF('AS1'!D8="","",'AS1'!D8) ->  | E9: =IF('AS1'!E8="","",'AS1'!E8) -> MELO CHAVEZ KEVIN JOSUE | F9: 8.6 | G9: 7.6 | I9: 9 | J9: 10 | L9: 8.5 | M9: 8 | P9: 51.7 | Q9: 8.62 | R9: 3.017
C10: 5 | D10: =IF('AS1'!D9="","",'AS1'!D9) ->  | E10: =IF('AS1'!E9="","",'AS1'!E9) -> MULLO PAUCAR ADRIANA ANABEL | F10: 6.6 | I10: 9.8 | J10: 10 | L10: 8.5 | N10: 9 | P10: 43.9 | Q10: 8.78 | R10: 3.073
C11: 6 | D11: =IF('AS1'!D10="","",'AS1'!D10) ->  | E11: =IF('AS1'!E10="","",'AS1'!E10) -> NARANJO PALACIOS FERNANDA BRIGUITTE | Q11: 0 | R11: 0
C12: 7 | D12: =IF('AS1'!D11="","",'AS1'!D11) ->  | E12: =IF('AS1'!E11="","",'AS1'!E11) -> SOTO VARGAS ERIKA SAMANTA | F12: 4.8 | I12: 6.5 | L12: 6 | N12: 9 | P12: 26.3 | Q12: 6.58 | R12: 2.303
C13: 8 | D13: =IF('AS1'!D12="","",'AS1'!D12) ->  | E13: =IF('AS1'!E12="","",'AS1'!E12) -> VALLEJO ORDOÑEZ SAYONARA ELIZABETH | F13: 7.2 | I13: 7.26 | L13: 6 | M13: 7.4 | P13: 27.86 | Q13: 6.97 | R13: 2.4395
C14: 9 | D14: =IF('AS1'!D13="","",'AS1'!D13) ->  | E14: =IF('AS1'!E13="","",'AS1'!E13) ->  | Q14: 0 | R14: 0
C15: 10 | D15: =IF('AS1'!D14="","",'AS1'!D14) ->  | E15: =IF('AS1'!E14="","",'AS1'!E14) ->  | Q15: 0 | R15: 0
C16: 11 | D16: =IF('AS1'!D15="","",'AS1'!D15) ->  | E16: =IF('AS1'!E15="","",'AS1'!E15) ->  | Q16: 0 | R16: 0
C17: 12 | D17: =IF('AS1'!D16="","",'AS1'!D16) ->  | E17: =IF('AS1'!E16="","",'AS1'!E16) ->  | Q17: 0 | R17: 0
C18: 13 | D18: =IF('AS1'!D17="","",'AS1'!D17) ->  | E18: =IF('AS1'!E17="","",'AS1'!E17) ->  | Q18: 0 | R18: 0
C19: 14 | D19: =IF('AS1'!D18="","",'AS1'!D18) ->  | E19: =IF('AS1'!E18="","",'AS1'!E18) ->  | Q19: 0 | R19: 0
C20: 15 | D20: =IF('AS1'!D19="","",'AS1'!D19) ->  | E20: =IF('AS1'!E19="","",'AS1'!E19) ->  | Q20: 0 | R20: 0
C21: 16 | D21: =IF('AS1'!D20="","",'AS1'!D20) ->  | E21: =IF('AS1'!E20="","",'AS1'!E20) ->  | Q21: 0 | R21: 0
C22: 17 | D22: =IF('AS1'!D21="","",'AS1'!D21) ->  | E22: =IF('AS1'!E21="","",'AS1'!E21) ->  | Q22: 0 | R22: 0
C23: 18 | D23: =IF('AS1'!D22="","",'AS1'!D22) ->  | E23: =IF('AS1'!E22="","",'AS1'!E22) ->  | Q23: 0 | R23: 0
C24: 19 | D24: =IF('AS1'!D23="","",'AS1'!D23) ->  | E24: =IF('AS1'!E23="","",'AS1'!E23) ->  | Q24: 0 | R24: 0
C25: 20 | D25: =IF('AS1'!D24="","",'AS1'!D24) ->  | E25: =IF('AS1'!E24="","",'AS1'!E24) ->  | Q25: 0 | R25: 0
C26: 21 | D26: =IF('AS1'!D25="","",'AS1'!D25) ->  | E26: =IF('AS1'!E25="","",'AS1'!E25) ->  | Q26: 0 | R26: 0
C27: 22 | D27: =IF('AS1'!D26="","",'AS1'!D26) ->  | E27: =IF('AS1'!E26="","",'AS1'!E26) ->  | Q27: 0 | R27: 0
C28: 23 | D28: =IF('AS1'!D27="","",'AS1'!D27) ->  | E28: =IF('AS1'!E27="","",'AS1'!E27) ->  | Q28: 0 | R28: 0
C29: 24 | D29: =IF('AS1'!D28="","",'AS1'!D28) ->  | E29: =IF('AS1'!E28="","",'AS1'!E28) ->  | Q29: 0 | R29: 0
C30: 25 | D30: =IF('AS1'!D29="","",'AS1'!D29) ->  | E30: =IF('AS1'!E29="","",'AS1'!E29) ->  | Q30: 0 | R30: 0
C31: 26 | D31: =IF('AS1'!D30="","",'AS1'!D30) ->  | E31: =IF('AS1'!E30="","",'AS1'!E30) ->  | Q31: 0 | R31: 0
C32: 27 | D32: =IF('AS1'!D31="","",'AS1'!D31) ->  | E32: =IF('AS1'!E31="","",'AS1'!E31) ->  | Q32: 0 | R32: 0
C33: 28 | D33: =IF('AS1'!D32="","",'AS1'!D32) ->  | E33: =IF('AS1'!E32="","",'AS1'!E32) ->  | Q33: 0 | R33: 0
C34: 29 | D34: =IF('AS1'!D33="","",'AS1'!D33) ->  | E34: =IF('AS1'!E33="","",'AS1'!E33) ->  | Q34: 0 | R34: 0
C35: 30 | D35: =IF('AS1'!D34="","",'AS1'!D34) ->  | E35: =IF('AS1'!E34="","",'AS1'!E34) ->  | Q35: 0 | R35: 0
C36: 31 | D36: =IF('AS1'!D35="","",'AS1'!D35) ->  | E36: =IF('AS1'!E35="","",'AS1'!E35) ->  | Q36: 0 | R36: 0
C37: 32 | D37: =IF('AS1'!D36="","",'AS1'!D36) ->  | E37: =IF('AS1'!E36="","",'AS1'!E36) ->  | Q37: 0 | R37: 0
C38: 33 | D38: =IF('AS1'!D37="","",'AS1'!D37) ->  | E38: =IF('AS1'!E37="","",'AS1'!E37) ->  | P38: =IF(COUNT(F38:O38)=0,"",SUM(F38:O38)) ->  | Q38: =IF(COUNT(F38:O38)=0,0,ROUND(P38/COUNT(F38:O38),2)) -> 0 | R38: 0
C39: 34 | D39: =IF('AS1'!D38="","",'AS1'!D38) ->  | E39: =IF('AS1'!E38="","",'AS1'!E38) ->  | Q39: 0 | R39: 0
C40: 35 | D40: =IF('AS1'!D39="","",'AS1'!D39) ->  | E40: =IF('AS1'!E39="","",'AS1'!E39) ->  | Q40: 0 | R40: 0
C41: 36 | D41: =IF('AS1'!D40="","",'AS1'!D40) ->  | E41: =IF('AS1'!E40="","",'AS1'!E40) ->  | Q41: 0 | R41: 0
C42: 37 | D42: =IF('AS1'!D41="","",'AS1'!D41) ->  | E42: =IF('AS1'!E41="","",'AS1'!E41) ->  | Q42: 0 | R42: 0
C43: 38 | D43: =IF('AS1'!D42="","",'AS1'!D42) ->  | E43: =IF('AS1'!E42="","",'AS1'!E42) ->  | Q43: 0 | R43: 0
C44: 39 | D44: =IF('AS1'!D43="","",'AS1'!D43) ->  | E44: =IF('AS1'!E43="","",'AS1'!E43) ->  | Q44: 0 | R44: 0
C45: 40 | D45: =IF('AS1'!D44="","",'AS1'!D44) ->  | E45: =IF('AS1'!E44="","",'AS1'!E44) ->  | Q45: 0 | R45: 0
C46: 41 | D46: =IF('AS1'!D45="","",'AS1'!D45) ->  | E46: =IF('AS1'!E45="","",'AS1'!E45) ->  | Q46: 0 | R46: 0
C47: 42 | D47: =IF('AS1'!D46="","",'AS1'!D46) ->  | E47: =IF('AS1'!E46="","",'AS1'!E46) ->  | Q47: 0 | R47: 0
C48: 43 | D48: =IF('AS1'!D47="","",'AS1'!D47) ->  | E48: =IF('AS1'!E47="","",'AS1'!E47) ->  | Q48: 0 | R48: 0
C49: 44 | D49: =IF('AS1'!D48="","",'AS1'!D48) ->  | E49: =IF('AS1'!E48="","",'AS1'!E48) ->  | Q49: 0 | R49: 0
C50: 45 | D50: =IF('AS1'!D49="","",'AS1'!D49) ->  | E50: =IF('AS1'!E49="","",'AS1'!E49) ->  | Q50: 0 | R50: 0
C51: 46 | D51: =IF('AS1'!D50="","",'AS1'!D50) ->  | E51: =IF('AS1'!E50="","",'AS1'!E50) ->  | Q51: 0 | R51: 0
C52: 47 | D52: =IF('AS1'!D51="","",'AS1'!D51) ->  | E52: =IF('AS1'!E51="","",'AS1'!E51) ->  | Q52: 0 | R52: 0
C53: 48 | D53: =IF('AS1'!D52="","",'AS1'!D52) ->  | E53: =IF('AS1'!E52="","",'AS1'!E52) ->  | Q53: 0 | R53: 0
C54: 49 | D54: =IF('AS1'!D53="","",'AS1'!D53) ->  | E54: =IF('AS1'!E53="","",'AS1'!E53) ->  | Q54: 0 | R54: 0
C55: 50 | D55: =IF('AS1'!D54="","",'AS1'!D54) ->  | E55: =IF('AS1'!E54="","",'AS1'!E54) ->  | Q55: 0 | R55: 0
C56: 51 | D56: =IF('AS1'!D55="","",'AS1'!D55) ->  | E56: =IF('AS1'!E55="","",'AS1'!E55) ->  | Q56: 0 | R56: 0
C57: 52 | D57: =IF('AS1'!D56="","",'AS1'!D56) ->  | E57: =IF('AS1'!E56="","",'AS1'!E56) ->  | Q57: 0 | R57: 0
C58: 53 | D58: =IF('AS1'!D57="","",'AS1'!D57) ->  | E58: =IF('AS1'!E57="","",'AS1'!E57) ->  | Q58: 0 | R58: 0
C59: 54 | D59: =IF('AS1'!D58="","",'AS1'!D58) ->  | E59: =IF('AS1'!E58="","",'AS1'!E58) ->  | Q59: 0 | R59: 0
C60: 55 | D60: =IF('AS1'!D59="","",'AS1'!D59) ->  | E60: =IF('AS1'!E59="","",'AS1'!E59) ->  | Q60: 0 | R60: =(Q60*3.5)/10 -> 0
C61: 56 | D61: =IF('AS1'!D60="","",'AS1'!D60) ->  | E61: =IF('AS1'!E60="","",'AS1'!E60) ->  | Q61: 0 | R61: 0
C62: 57 | D62: =IF('AS1'!D61="","",'AS1'!D61) ->  | E62: =IF('AS1'!E61="","",'AS1'!E61) ->  | Q62: 0 | R62: 0
C63: 58 | D63: =IF('AS1'!D62="","",'AS1'!D62) ->  | E63: =IF('AS1'!E62="","",'AS1'!E62) ->  | Q63: 0 | R63: 0
C64: 59 | D64: =IF('AS1'!D63="","",'AS1'!D63) ->  | E64: =IF('AS1'!E63="","",'AS1'!E63) ->  | Q64: 0 | R64: 0
C65: 60 | D65: =IF('AS1'!D64="","",'AS1'!D64) ->  | E65: =IF('AS1'!E64="","",'AS1'!E64) ->  | Q65: 0 | R65: 0
C66: 61 | D66: =IF('AS1'!D65="","",'AS1'!D65) ->  | E66: =IF('AS1'!E65="","",'AS1'!E65) ->  | Q66: 0 | R66: 0
C67: 62 | D67: =IF('AS1'!D66="","",'AS1'!D66) ->  | E67: =IF('AS1'!E66="","",'AS1'!E66) ->  | Q67: 0 | R67: 0
C68: 63 | D68: =IF('AS1'!D67="","",'AS1'!D67) ->  | E68: =IF('AS1'!E67="","",'AS1'!E67) ->  | Q68: 0 | R68: 0
C69: 64 | D69: =IF('AS1'!D68="","",'AS1'!D68) ->  | E69: =IF('AS1'!E68="","",'AS1'!E68) ->  | Q69: 0 | R69: 0
C70: 65 | D70: =IF('AS1'!D69="","",'AS1'!D69) ->  | E70: =IF('AS1'!E69="","",'AS1'!E69) ->  | P70: =IF(COUNT(F70:O70)=0,"",SUM(F70:O70)) ->  | Q70: =IF(COUNT(F70:O70)=0,0,ROUND(P70/COUNT(F70:O70),2)) -> 0 | R70: 0
C71: 66 | D71: =IF('AS1'!D70="","",'AS1'!D70) ->  | E71: =IF('AS1'!E70="","",'AS1'!E70) ->  | Q71: 0 | R71: 0
C72: 67 | D72: =IF('AS1'!D71="","",'AS1'!D71) ->  | E72: =IF('AS1'!E71="","",'AS1'!E71) ->  | Q72: 0 | R72: 0
C73: 68 | D73: =IF('AS1'!D72="","",'AS1'!D72) ->  | E73: =IF('AS1'!E72="","",'AS1'!E72) ->  | Q73: 0 | R73: 0
C74: 69 | D74: =IF('AS1'!D73="","",'AS1'!D73) ->  | E74: =IF('AS1'!E73="","",'AS1'!E73) ->  | Q74: 0 | R74: 0
C75: 70 | D75: =IF('AS1'!D74="","",'AS1'!D74) ->  | E75: =IF('AS1'!E74="","",'AS1'!E74) ->  | Q75: 0 | R75: 0

Sheet PRAC1
C2: Aprendizaje práctico experimental - PRIMER PARCIAL
C3: Actividades desarrolladas en escenarios experimentales o laboratorios, prácticas de campo, trabajos de observación, resolución de problemas, talleres, manejo de base de datos y acervos bibliográficos entre otros.
C4: N | D4: NRO DE CÉDULA | E4: NOMINA | F4: 1 | G4: 2 | H4: 3 | I4: 4 | J4: 5 | K4: 6 | L4: 7 | M4: 8 | N4: 9 | O4: 10 | P4: suma | Q4: PROMEDIO sobre 10 | R4: EQUIVALENCIA sobre 3,5
F5: Lic. M. Londo | G5: Graciela Rivera Psicoprofilaxis | H5: Práctica hospitalaria
C6: 1 | D6: =IF('AS1'!D5="","",'AS1'!D5) ->  | E6: =IF('AS1'!E5="","",'AS1'!E5) -> DAQUILEMA LONDO SHIRLEY ESTEFAFANÍA | F6: 7.36 | H6: 6.3 | P6: =IF(COUNT(F6:O6)=0,"",SUM(F6:O6)) -> 13.66 | Q6: =IF(COUNT(F6:O6)=0,0,ROUND(P6/COUNT(F6:O6),2)) -> 6.83 | R6: =(Q6*3.5)/10 -> 2.3905
C7: 2 | D7: =IF('AS1'!D6="","",'AS1'!D6) ->  | E7: =IF('AS1'!E6="","",'AS1'!E6) -> GOYES ORTIZ NATASHA DAYANA | F7: 7.45 | G7: 9.2 | H7: 7.1 | P7: 23.75 | Q7: 7.92 | R7: =(Q7*3.5)/10 -> 2.772
C8: 3 | D8: =IF('AS1'!D7="","",'AS1'!D7) ->  | E8: =IF('AS1'!E7="","",'AS1'!E7) -> GUADALUPE RUIZ YULISA NATALY | F8: 7.06 | H8: 5.1 | P8: 12.16 | Q8: 6.08 | R8: =(Q8*3.5)/10 -> 2.128
C9: 4 | D9: =IF('AS1'!D8="","",'AS1'!D8) ->  | E9: =IF('AS1'!E8="","",'AS1'!E8) -> MELO CHAVEZ KEVIN JOSUE | F9: 6.74 | H9: 6.3 | P9: 13.04 | Q9: 6.52 | R9: 2.282
C10: 5 | D10: =IF('AS1'!D9="","",'AS1'!D9) ->  | E10: =IF('AS1'!E9="","",'AS1'!E9) -> MULLO PAUCAR ADRIANA ANABEL | F10: 6.79 | H10: 7.1 | P10: 13.89 | Q10: 6.95 | R10: 2.4325
C11: 6 | D11: =IF('AS1'!D10="","",'AS1'!D10) ->  | E11: =IF('AS1'!E10="","",'AS1'!E10) -> NARANJO PALACIOS FERNANDA BRIGUITTE | Q11: 0 | R11: 0
C12: 7 | D12: =IF('AS1'!D11="","",'AS1'!D11) ->  | E12: =IF('AS1'!E11="","",'AS1'!E11) -> SOTO VARGAS ERIKA SAMANTA | F12: 6.76 | H12: 7.5 | P12: 14.26 | Q12: 7.13 | R12: 2.4955
C13: 8 | D13: =IF('AS1'!D12="","",'AS1'!D12) ->  | E13: =IF('AS1'!E12="","",'AS1'!E12) -> VALLEJO ORDOÑEZ SAYONARA ELIZABETH | F13: 6.6 | H13: 5.3 | P13: 11.9 | Q13: 5.95 | R13: 2.0825
C14: 9 | D14: =IF('AS1'!D13="","",'AS1'!D13) ->  | E14: =IF('AS1'!E13="","",'AS1'!E13) ->  | Q14: 0 | R14: 0
C15: 10 | D15: =IF('AS1'!D14="","",'AS1'!D14) ->  | E15: =IF('AS1'!E14="","",'AS1'!E14) ->  | Q15: 0 | R15: 0
C16: 11 | D16: =IF('AS1'!D15="","",'AS1'!D15) ->  | E16: =IF('AS1'!E15="","",'AS1'!E15) ->  | Q16: 0 | R16: 0
C17: 12 | D17: =IF('AS1'!D16="","",'AS1'!D16) ->  | E17: =IF('AS1'!E16="","",'AS1'!E16) ->  | Q17: 0 | R17: 0
C18: 13 | D18: =IF('AS1'!D17="","",'AS1'!D17) ->  | E18: =IF('AS1'!E17="","",'AS1'!E17) ->  | Q18: 0 | R18: 0
C19: 14 | D19: =IF('AS1'!D18="","",'AS1'!D18) ->  | E19: =IF('AS1'!E18="","",'AS1'!E18) ->  | Q19: 0 | R19: 0
C20: 15 | D20: =IF('AS1'!D19="","",'AS1'!D19) ->  | E20: =IF('AS1'!E19="","",'AS1'!E19) ->  | Q20: 0 | R20: 0
C21: 16 | D21: =IF('AS1'!D20="","",'AS1'!D20) ->  | E21: =IF('AS1'!E20="","",'AS1'!E20) ->  | Q21: 0 | R21: 0
C22: 17 | D22: =IF('AS1'!D21="","",'AS1'!D21) ->  | E22: =IF('AS1'!E21="","",'AS1'!E21) ->  | Q22: 0 | R22: 0
C23: 18 | D23: =IF('AS1'!D22="","",'AS1'!D22) ->  | E23: =IF('AS1'!E22="","",'AS1'!E22) ->  | Q23: 0 | R23: 0
C24: 19 | D24: =IF('AS1'!D23="","",'AS1'!D23) ->  | E24: =IF('AS1'!E23="","",'AS1'!E23) ->  | Q24: 0 | R24: 0
C25: 20 | D25: =IF('AS1'!D24="","",'AS1'!D24) ->  | E25: =IF('AS1'!E24="","",'AS1'!E24) ->  | Q25: 0 | R25: 0
C26: 21 | D26: =IF('AS1'!D25="","",'AS1'!D25) ->  | E26: =IF('AS1'!E25="","",'AS1'!E25) ->  | Q26: 0 | R26: 0
C27: 22 | D27: =IF('AS1'!D26="","",'AS1'!D26) ->  | E27: =IF('AS1'!E26="","",'AS1'!E26) ->  | Q27: 0 | R27: 0
C28: 23 | D28: =IF('AS1'!D27="","",'AS1'!D27) ->  | E28: =IF('AS1'!E27="","",'AS1'!E27) ->  | Q28: 0 | R28: 0
C29: 24 | D29: =IF('AS1'!D28="","",'AS1'!D28) ->  | E29: =IF('AS1'!E28="","",'AS1'!E28) ->  | Q29: 0 | R29: 0
C30: 25 | D30: =IF('AS1'!D29="","",'AS1'!D29) ->  | E30: =IF('AS1'!E29="","",'AS1'!E29) ->  | Q30: 0 | R30: 0
C31: 26 | D31: =IF('AS1'!D30="","",'AS1'!D30) ->  | E31: =IF('AS1'!E30="","",'AS1'!E30) ->  | Q31: 0 | R31: 0
C32: 27 | D32: =IF('AS1'!D31="","",'AS1'!D31) ->  | E32: =IF('AS1'!E31="","",'AS1'!E31) ->  | Q32: 0 | R32: 0
C33: 28 | D33: =IF('AS1'!D32="","",'AS1'!D32) ->  | E33: =IF('AS1'!E32="","",'AS1'!E32) ->  | Q33: 0 | R33: 0
C34: 29 | D34: =IF('AS1'!D33="","",'AS1'!D33) ->  | E34: =IF('AS1'!E33="","",'AS1'!E33) ->  | Q34: 0 | R34: 0
C35: 30 | D35: =IF('AS1'!D34="","",'AS1'!D34) ->  | E35: =IF('AS1'!E34="","",'AS1'!E34) ->  | Q35: 0 | R35: 0
C36: 31 | D36: =IF('AS1'!D35="","",'AS1'!D35) ->  | E36: =IF('AS1'!E35="","",'AS1'!E35) ->  | Q36: 0 | R36: 0
C37: 32 | D37: =IF('AS1'!D36="","",'AS1'!D36) ->  | E37: =IF('AS1'!E36="","",'AS1'!E36) ->  | Q37: 0 | R37: 0
C38: 33 | D38: =IF('AS1'!D37="","",'AS1'!D37) ->  | E38: =IF('AS1'!E37="","",'AS1'!E37) ->  | P38: =IF(COUNT(F38:O38)=0,"",SUM(F38:O38)) ->  | Q38: =IF(COUNT(F38:O38)=0,0,ROUND(P38/COUNT(F38:O38),2)) -> 0 | R38: 0
C39: 34 | D39: =IF('AS1'!D38="","",'AS1'!D38) ->  | E39: =IF('AS1'!E38="","",'AS1'!E38) ->  | Q39: 0 | R39: 0
C40: 35 | D40: =IF('AS1'!D39="","",'AS1'!D39) ->  | E40: =IF('AS1'!E39="","",'AS1'!E39) ->  | Q40: 0 | R40: 0
C41: 36 | D41: =IF('AS1'!D40="","",'AS1'!D40) ->  | E41: =IF('AS1'!E40="","",'AS1'!E40) ->  | Q41: 0 | R41: 0
C42: 37 | D42: =IF('AS1'!D41="","",'AS1'!D41) ->  | E42: =IF('AS1'!E41="","",'AS1'!E41) ->  | Q42: 0 | R42: 0
C43: 38 | D43: =IF('AS1'!D42="","",'AS1'!D42) ->  | E43: =IF('AS1'!E42="","",'AS1'!E42) ->  | Q43: 0 | R43: 0
C44: 39 | D44: =IF('AS1'!D43="","",'AS1'!D43) ->  | E44: =IF('AS1'!E43="","",'AS1'!E43) ->  | Q44: 0 | R44: 0
C45: 40 | D45: =IF('AS1'!D44="","",'AS1'!D44) ->  | E45: =IF('AS1'!E44="","",'AS1'!E44) ->  | Q45: 0 | R45: 0
C46: 41 | D46: =IF('AS1'!D45="","",'AS1'!D45) ->  | E46: =IF('AS1'!E45="","",'AS1'!E45) ->  | Q46: 0 | R46: 0
C47: 42 | D47: =IF('AS1'!D46="","",'AS1'!D46) ->  | E47: =IF('AS1'!E46="","",'AS1'!E46) ->  | Q47: 0 | R47: 0
C48: 43 | D48: =IF('AS1'!D47="","",'AS1'!D47) ->  | E48: =IF('AS1'!E47="","",'AS1'!E47) ->  | Q48: 0 | R48: 0
C49: 44 | D49: =IF('AS1'!D48="","",'AS1'!D48) ->  | E49: =IF('AS1'!E48="","",'AS1'!E48) ->  | Q49: 0 | R49: 0
C50: 45 | D50: =IF('AS1'!D49="","",'AS1'!D49) ->  | E50: =IF('AS1'!E49="","",'AS1'!E49) ->  | Q50: 0 | R50: 0
C51: 46 | D51: =IF('AS1'!D50="","",'AS1'!D50) ->  | E51: =IF('AS1'!E50="","",'AS1'!E50) ->  | Q51: 0 | R51: 0
C52: 47 | D52: =IF('AS1'!D51="","",'AS1'!D51) ->  | E52: =IF('AS1'!E51="","",'AS1'!E51) ->  | Q52: 0 | R52: 0
C53: 48 | D53: =IF('AS1'!D52="","",'AS1'!D52) ->  | E53: =IF('AS1'!E52="","",'AS1'!E52) ->  | Q53: 0 | R53: 0
C54: 49 | D54: =IF('AS1'!D53="","",'AS1'!D53) ->  | E54: =IF('AS1'!E53="","",'AS1'!E53) ->  | Q54: 0 | R54: 0
C55: 50 | D55: =IF('AS1'!D54="","",'AS1'!D54) ->  | E55: =IF('AS1'!E54="","",'AS1'!E54) ->  | Q55: 0 | R55: 0
C56: 51 | D56: =IF('AS1'!D55="","",'AS1'!D55) ->  | E56: =IF('AS1'!E55="","",'AS1'!E55) ->  | Q56: 0 | R56: 0
C57: 52 | D57: =IF('AS1'!D56="","",'AS1'!D56) ->  | E57: =IF('AS1'!E56="","",'AS1'!E56) ->  | Q57: 0 | R57: 0
C58: 53 | D58: =IF('AS1'!D57="","",'AS1'!D57) ->  | E58: =IF('AS1'!E57="","",'AS1'!E57) ->  | Q58: 0 | R58: 0
C59: 54 | D59: =IF('AS1'!D58="","",'AS1'!D58) ->  | E59: =IF('AS1'!E58="","",'AS1'!E58) ->  | Q59: 0 | R59: 0
C60: 55 | D60: =IF('AS1'!D59="","",'AS1'!D59) ->  | E60: =IF('AS1'!E59="","",'AS1'!E59) ->  | Q60: 0 | R60: 0
C61: 56 | D61: =IF('AS1'!D60="","",'AS1'!D60) ->  | E61: =IF('AS1'!E60="","",'AS1'!E60) ->  | Q61: 0 | R61: 0
C62: 57 | D62: =IF('AS1'!D61="","",'AS1'!D61) ->  | E62: =IF('AS1'!E61="","",'AS1'!E61) ->  | Q62: 0 | R62: 0
C63: 58 | D63: =IF('AS1'!D62="","",'AS1'!D62) ->  | E63: =IF('AS1'!E62="","",'AS1'!E62) ->  | Q63: 0 | R63: 0
C64: 59 | D64: =IF('AS1'!D63="","",'AS1'!D63) ->  | E64: =IF('AS1'!E63="","",'AS1'!E63) ->  | Q64: 0 | R64: 0
C65: 60 | D65: =IF('AS1'!D64="","",'AS1'!D64) ->  | E65: =IF('AS1'!E64="","",'AS1'!E64) ->  | Q65: 0 | R65: 0
C66: 61 | D66: =IF('AS1'!D65="","",'AS1'!D65) ->  | E66: =IF('AS1'!E65="","",'AS1'!E65) ->  | Q66: 0 | R66: 0
C67: 62 | D67: =IF('AS1'!D66="","",'AS1'!D66) ->  | E67: =IF('AS1'!E66="","",'AS1'!E66) ->  | Q67: 0 | R67: 0
C68: 63 | D68: =IF('AS1'!D67="","",'AS1'!D67) ->  | E68: =IF('AS1'!E67="","",'AS1'!E67) ->  | Q68: 0 | R68: 0
C69: 64 | D69: =IF('AS1'!D68="","",'AS1'!D68) ->  | E69: =IF('AS1'!E68="","",'AS1'!E68) ->  | Q69: 0 | R69: 0
C70: 65 | D70: =IF('AS1'!D69="","",'AS1'!D69) ->  | E70: =IF('AS1'!E69="","",'AS1'!E69) ->  | P70: =IF(COUNT(F70:O70)=0,"",SUM(F70:O70)) ->  | Q70: =IF(COUNT(F70:O70)=0,0,ROUND(P70/COUNT(F70:O70),2)) -> 0 | R70: 0
C71: 66 | D71: =IF('AS1'!D70="","",'AS1'!D70) ->  | E71: =IF('AS1'!E70="","",'AS1'!E70) ->  | Q71: 0 | R71: 0
C72: 67 | D72: =IF('AS1'!D71="","",'AS1'!D71) ->  | E72: =IF('AS1'!E71="","",'AS1'!E71) ->  | Q72: 0 | R72: =(Q72*3.5)/10 -> 0
C73: 68 | D73: =IF('AS1'!D72="","",'AS1'!D72) ->  | E73: =IF('AS1'!E72="","",'AS1'!E72) ->  | Q73: 0 | R73: 0
C74: 69 | D74: =IF('AS1'!D73="","",'AS1'!D73) ->  | E74: =IF('AS1'!E73="","",'AS1'!E73) ->  | Q74: 0 | R74: 0
C75: 70 | D75: =IF('AS1'!D74="","",'AS1'!D74) ->  | E75: =IF('AS1'!E74="","",'AS1'!E74) ->  | Q75: 0 | R75: 0

Sheet AUT1
C2: ACTIVIDADES DE APRENDIZAJE AUTÓNOMO: Aprendizaje independiente e individual del estudiante - PRIMER PARCIAL
C3: Lectura, análisis y compresión de materiales bibliográficos y documentales tanto analógicos como digitales, generación de datos y búsqueda de información, elaboración individual de ensayos, trabajos y exposiciones.
C4: N | D4: NRO DE CÉDULA | E4: NOMINA | F4: 1 | G4: 2 | H4: 3 | I4: 4 | J4: 5 | K4: 6 | L4: 7 | M4: 8 | N4: 9 | O4: 10 | P4: suma | Q4: PROMEDIO sobre 10 | R4: EQUIVALENCIA sobre 3
F5: EXPOSICIÓN Proceso del parto 15-17-24/10/24 Monitorización de la FCF Variaciones de la FCF 22/10/24
C6: 1 | D6: =IF('AS1'!D5="","",'AS1'!D5) ->  | E6: =IF('AS1'!E5="","",'AS1'!E5) -> DAQUILEMA LONDO SHIRLEY ESTEFAFANÍA | F6: 9.4 | P6: =IF(COUNT(F6:O6)=0,"",SUM(F6:O6)) -> 9.4 | Q6: =IF(COUNT(F6:O6)=0,0,ROUND(P6/COUNT(F6:O6),2)) -> 9.4 | R6: =(Q6*3)/10 -> 2.82
C7: 2 | D7: =IF('AS1'!D6="","",'AS1'!D6) ->  | E7: =IF('AS1'!E6="","",'AS1'!E6) -> GOYES ORTIZ NATASHA DAYANA | F7: 9.2 | P7: 9.2 | Q7: 9.2 | R7: =(Q7*3)/10 -> 2.76
C8: 3 | D8: =IF('AS1'!D7="","",'AS1'!D7) ->  | E8: =IF('AS1'!E7="","",'AS1'!E7) -> GUADALUPE RUIZ YULISA NATALY | F8: 7.8 | P8: 7.8 | Q8: 7.8 | R8: =(Q8*3)/10 -> 2.34
C9: 4 | D9: =IF('AS1'!D8="","",'AS1'!D8) ->  | E9: =IF('AS1'!E8="","",'AS1'!E8) -> MELO CHAVEZ KEVIN JOSUE | F9: 9 | P9: 9 | Q9: 9 | R9: =(Q9*3)/10 -> 2.7
C10: 5 | D10: =IF('AS1'!D9="","",'AS1'!D9) ->  | E10: =IF('AS1'!E9="","",'AS1'!E9) -> MULLO PAUCAR ADRIANA ANABEL | F10: 7.4 | P10: 7.4 | Q10: 7.4 | R10: 2.22
C11: 6 | D11: =IF('AS1'!D10="","",'AS1'!D10) ->  | E11: =IF('AS1'!E10="","",'AS1'!E10) -> NARANJO PALACIOS FERNANDA BRIGUITTE | F11: 6.2 | P11: 6.2 | Q11: 6.2 | R11: 1.86
C12: 7 | D12: =IF('AS1'!D11="","",'AS1'!D11) ->  | E12: =IF('AS1'!E11="","",'AS1'!E11) -> SOTO VARGAS ERIKA SAMANTA | F12: 6.4 | P12: 6.4 | Q12: 6.4 | R12: 1.92
C13: 8 | D13: =IF('AS1'!D12="","",'AS1'!D12) ->  | E13: =IF('AS1'!E12="","",'AS1'!E12) -> VALLEJO ORDOÑEZ SAYONARA ELIZABETH | F13: 6.2 | P13: 6.2 | Q13: 6.2 | R13: 1.86
C14: 9 | D14: =IF('AS1'!D13="","",'AS1'!D13) ->  | E14: =IF('AS1'!E13="","",'AS1'!E13) ->  | Q14: 0 | R14: 0
C15: 10 | D15: =IF('AS1'!D14="","",'AS1'!D14) ->  | E15: =IF('AS1'!E14="","",'AS1'!E14) ->  | Q15: 0 | R15: 0
C16: 11 | D16: =IF('AS1'!D15="","",'AS1'!D15) ->  | E16: =IF('AS1'!E15="","",'AS1'!E15) ->  | Q16: 0 | R16: 0
C17: 12 | D17: =IF('AS1'!D16="","",'AS1'!D16) ->  | E17: =IF('AS1'!E16="","",'AS1'!E16) ->  | Q17: 0 | R17: 0
C18: 13 | D18: =IF('AS1'!D17="","",'AS1'!D17) ->  | E18: =IF('AS1'!E17="","",'AS1'!E17) ->  | Q18: 0 | R18: 0
C19: 14 | D19: =IF('AS1'!D18="","",'AS1'!D18) ->  | E19: =IF('AS1'!E18="","",'AS1'!E18) ->  | Q19: 0 | R19: 0
C20: 15 | D20: =IF('AS1'!D19="","",'AS1'!D19) ->  | E20: =IF('AS1'!E19="","",'AS1'!E19) ->  | Q20: 0 | R20: 0
C21: 16 | D21: =IF('AS1'!D20="","",'AS1'!D20) ->  | E21: =IF('AS1'!E20="","",'AS1'!E20) ->  | Q21: 0 | R21: 0
C22: 17 | D22: =IF('AS1'!D21="","",'AS1'!D21) ->  | E22: =IF('AS1'!E21="","",'AS1'!E21) ->  | Q22: 0 | R22: 0
C23: 18 | D23: =IF('AS1'!D22="","",'AS1'!D22) ->  | E23: =IF('AS1'!E22="","",'AS1'!E22) ->  | Q23: 0 | R23: 0
C24: 19 | D24: =IF('AS1'!D23="","",'AS1'!D23) ->  | E24: =IF('AS1'!E23="","",'AS1'!E23) ->  | Q24: 0 | R24: 0
C25: 20 | D25: =IF('AS1'!D24="","",'AS1'!D24) ->  | E25: =IF('AS1'!E24="","",'AS1'!E24) ->  | Q25: 0 | R25: 0
C26: 21 | D26: =IF('AS1'!D25="","",'AS1'!D25) ->  | E26: =IF('AS1'!E25="","",'AS1'!E25) ->  | Q26: 0 | R26: 0
C27: 22 | D27: =IF('AS1'!D26="","",'AS1'!D26) ->  | E27: =IF('AS1'!E26="","",'AS1'!E26) ->  | Q27: 0 | R27: 0
C28: 23 | D28: =IF('AS1'!D27="","",'AS1'!D27) ->  | E28: =IF('AS1'!E27="","",'AS1'!E27) ->  | F28: 10 | P28: 10 | Q28: 10 | R28: 3
C29: 24 | D29: =IF('AS1'!D28="","",'AS1'!D28) ->  | E29: =IF('AS1'!E28="","",'AS1'!E28) ->  | Q29: 0 | R29: 0
C30: 25 | D30: =IF('AS1'!D29="","",'AS1'!D29) ->  | E30: =IF('AS1'!E29="","",'AS1'!E29) ->  | Q30: 0 | R30: 0
C31: 26 | D31: =IF('AS1'!D30="","",'AS1'!D30) ->  | E31: =IF('AS1'!E30="","",'AS1'!E30) ->  | Q31: 0 | R31: 0
C32: 27 | D32: =IF('AS1'!D31="","",'AS1'!D31) ->  | E32: =IF('AS1'!E31="","",'AS1'!E31) ->  | Q32: 0 | R32: 0
C33: 28 | D33: =IF('AS1'!D32="","",'AS1'!D32) ->  | E33: =IF('AS1'!E32="","",'AS1'!E32) ->  | Q33: 0 | R33: 0
C34: 29 | D34: =IF('AS1'!D33="","",'AS1'!D33) ->  | E34: =IF('AS1'!E33="","",'AS1'!E33) ->  | Q34: 0 | R34: 0
C35: 30 | D35: =IF('AS1'!D34="","",'AS1'!D34) ->  | E35: =IF('AS1'!E34="","",'AS1'!E34) ->  | Q35: 0 | R35: 0
C36: 31 | D36: =IF('AS1'!D35="","",'AS1'!D35) ->  | E36: =IF('AS1'!E35="","",'AS1'!E35) ->  | Q36: 0 | R36: 0
C37: 32 | D37: =IF('AS1'!D36="","",'AS1'!D36) ->  | E37: =IF('AS1'!E36="","",'AS1'!E36) ->  | Q37: 0 | R37: 0
C38: 33 | D38: =IF('AS1'!D37="","",'AS1'!D37) ->  | E38: =IF('AS1'!E37="","",'AS1'!E37) ->  | P38: =IF(COUNT(F38:O38)=0,"",SUM(F38:O38)) ->  | Q38: =IF(COUNT(F38:O38)=0,0,ROUND(P38/COUNT(F38:O38),2)) -> 0 | R38: 0
C39: 34 | D39: =IF('AS1'!D38="","",'AS1'!D38) ->  | E39: =IF('AS1'!E38="","",'AS1'!E38) ->  | Q39: 0 | R39: 0
C40: 35 | D40: =IF('AS1'!D39="","",'AS1'!D39) ->  | E40: =IF('AS1'!E39="","",'AS1'!E39) ->  | Q40: 0 | R40: 0
C41: 36 | D41: =IF('AS1'!D40="","",'AS1'!D40) ->  | E41: =IF('AS1'!E40="","",'AS1'!E40) ->  | Q41: 0 | R41: 0
C42: 37 | D42: =IF('AS1'!D41="","",'AS1'!D41) ->  | E42: =IF('AS1'!E41="","",'AS1'!E41) ->  | Q42: 0 | R42: 0
C43: 38 | D43: =IF('AS1'!D42="","",'AS1'!D42) ->  | E43: =IF('AS1'!E42="","",'AS1'!E42) ->  | Q43: 0 | R43: 0
C44: 39 | D44: =IF('AS1'!D43="","",'AS1'!D43) ->  | E44: =IF('AS1'!E43="","",'AS1'!E43) ->  | Q44: 0 | R44: 0
C45: 40 | D45: =IF('AS1'!D44="","",'AS1'!D44) ->  | E45: =IF('AS1'!E44="","",'AS1'!E44) ->  | Q45: 0 | R45: 0
C46: 41 | D46: =IF('AS1'!D45="","",'AS1'!D45) ->  | E46: =IF('AS1'!E45="","",'AS1'!E45) ->  | Q46: 0 | R46: 0
C47: 42 | D47: =IF('AS1'!D46="","",'AS1'!D46) ->  | E47: =IF('AS1'!E46="","",'AS1'!E46) ->  | Q47: 0 | R47: 0
C48: 43 | D48: =IF('AS1'!D47="","",'AS1'!D47) ->  | E48: =IF('AS1'!E47="","",'AS1'!E47) ->  | Q48: 0 | R48: 0
C49: 44 | D49: =IF('AS1'!D48="","",'AS1'!D48) ->  | E49: =IF('AS1'!E48="","",'AS1'!E48) ->  | Q49: 0 | R49: 0
C50: 45 | D50: =IF('AS1'!D49="","",'AS1'!D49) ->  | E50: =IF('AS1'!E49="","",'AS1'!E49) ->  | Q50: 0 | R50: 0
C51: 46 | D51: =IF('AS1'!D50="","",'AS1'!D50) ->  | E51: =IF('AS1'!E50="","",'AS1'!E50) ->  | Q51: 0 | R51: 0
C52: 47 | D52: =IF('AS1'!D51="","",'AS1'!D51) ->  | E52: =IF('AS1'!E51="","",'AS1'!E51) ->  | Q52: 0 | R52: 0
C53: 48 | D53: =IF('AS1'!D52="","",'AS1'!D52) ->  | E53: =IF('AS1'!E52="","",'AS1'!E52) ->  | Q53: 0 | R53: 0
C54: 49 | D54: =IF('AS1'!D53="","",'AS1'!D53) ->  | E54: =IF('AS1'!E53="","",'AS1'!E53) ->  | Q54: 0 | R54: 0
C55: 50 | D55: =IF('AS1'!D54="","",'AS1'!D54) ->  | E55: =IF('AS1'!E54="","",'AS1'!E54) ->  | Q55: 0 | R55: 0
C56: 51 | D56: =IF('AS1'!D55="","",'AS1'!D55) ->  | E56: =IF('AS1'!E55="","",'AS1'!E55) ->  | Q56: 0 | R56: 0
C57: 52 | D57: =IF('AS1'!D56="","",'AS1'!D56) ->  | E57: =IF('AS1'!E56="","",'AS1'!E56) ->  | Q57: 0 | R57: 0
C58: 53 | D58: =IF('AS1'!D57="","",'AS1'!D57) ->  | E58: =IF('AS1'!E57="","",'AS1'!E57) ->  | Q58: 0 | R58: 0
C59: 54 | D59: =IF('AS1'!D58="","",'AS1'!D58) ->  | E59: =IF('AS1'!E58="","",'AS1'!E58) ->  | Q59: 0 | R59: 0
C60: 55 | D60: =IF('AS1'!D59="","",'AS1'!D59) ->  | E60: =IF('AS1'!E59="","",'AS1'!E59) ->  | Q60: 0 | R60: 0
C61: 56 | D61: =IF('AS1'!D60="","",'AS1'!D60) ->  | E61: =IF('AS1'!E60="","",'AS1'!E60) ->  | Q61: 0 | R61: 0
C62: 57 | D62: =IF('AS1'!D61="","",'AS1'!D61) ->  | E62: =IF('AS1'!E61="","",'AS1'!E61) ->  | Q62: 0 | R62: 0
C63: 58 | D63: =IF('AS1'!D62="","",'AS1'!D62) ->  | E63: =IF('AS1'!E62="","",'AS1'!E62) ->  | Q63: 0 | R63: 0
C64: 59 | D64: =IF('AS1'!D63="","",'AS1'!D63) ->  | E64: =IF('AS1'!E63="","",'AS1'!E63) ->  | Q64: 0 | R64: 0
C65: 60 | D65: =IF('AS1'!D64="","",'AS1'!D64) ->  | E65: =IF('AS1'!E64="","",'AS1'!E64) ->  | Q65: 0 | R65: 0
C66: 61 | D66: =IF('AS1'!D65="","",'AS1'!D65) ->  | E66: =IF('AS1'!E65="","",'AS1'!E65) ->  | Q66: 0 | R66: 0
C67: 62 | D67: =IF('AS1'!D66="","",'AS1'!D66) ->  | E67: =IF('AS1'!E66="","",'AS1'!E66) ->  | Q67: 0 | R67: 0
C68: 63 | D68: =IF('AS1'!D67="","",'AS1'!D67) ->  | E68: =IF('AS1'!E67="","",'AS1'!E67) ->  | Q68: 0 | R68: 0
C69: 64 | D69: =IF('AS1'!D68="","",'AS1'!D68) ->  | E69: =IF('AS1'!E68="","",'AS1'!E68) ->  | Q69: 0 | R69: 0
C70: 65 | D70: =IF('AS1'!D69="","",'AS1'!D69) ->  | E70: =IF('AS1'!E69="","",'AS1'!E69) ->  | P70: =IF(COUNT(F70:O70)=0,"",SUM(F70:O70)) ->  | Q70: =IF(COUNT(F70:O70)=0,0,ROUND(P70/COUNT(F70:O70),2)) -> 0 | R70: 0
C71: 66 | D71: =IF('AS1'!D70="","",'AS1'!D70) ->  | E71: =IF('AS1'!E70="","",'AS1'!E70) ->  | Q71: 0 | R71: 0
C72: 67 | D72: =IF('AS1'!D71="","",'AS1'!D71) ->  | E72: =IF('AS1'!E71="","",'AS1'!E71) ->  | Q72: 0 | R72: 0
C73: 68 | D73: =IF('AS1'!D72="","",'AS1'!D72) ->  | E73: =IF('AS1'!E72="","",'AS1'!E72) ->  | Q73: 0 | R73: =(Q73*3)/10 -> 0
C74: 69 | D74: =IF('AS1'!D73="","",'AS1'!D73) ->  | E74: =IF('AS1'!E73="","",'AS1'!E73) ->  | Q74: 0 | R74: 0
C75: 70 | D75: =IF('AS1'!D74="","",'AS1'!D74) ->  | E75: =IF('AS1'!E74="","",'AS1'!E74) ->  | Q75: 0 | R75: =(Q75*3)/10 -> 0

Sheet PARCIAL1
C2: UNIVERSIDAD NACIONAL DE CHIMBORAZO
C3: =CONCATENATE("FACULTAD DE ",INICIO!D5) -> FACULTAD DE Ciencias de la Salud
C4: =CONCATENATE("CARRERA DE ",INICIO!D6) -> CARRERA DE Enfermería
C5: ACTA DE CALIFICACIONES DEL PRIMER PARCIAL
C6: =CONCATENATE("SEMESTRE: ",INICIO!D8) -> SEMESTRE: 6to | J6: =CONCATENATE("ASIGNATURA: ",INICIO!D11) -> ASIGNATURA: Enfermería Gíneco oObstétrica II
C7: =CONCATENATE("PARALELO: ",INICIO!D9) -> PARALELO: A | J7: =CONCATENATE("DOCENTE: ",INICIO!D4) -> DOCENTE: Graciela Rivera Herrera
C8: =CONCATENATE("PERIODO LECTIVO: ",INICIO!D7) -> PERIODO LECTIVO: 2024 - 2025 | I8: No. Horas Totales Laboradas: | L8: ='AS1'!BF2 -> 52
F10: ASISTENCIA | H10: CALIFICACIONES | K10: PROMEDIO
C11: N | D11: NRO DE CÉDULA | E11: NOMINA | F11: N | G11: % | H11: Aprendizaje en contacto con el docente | I11: Aprendizaje práctico experimental | J11: Actividades de Aprendizaje Autónomo | K11: Números | L11: Letras
H12: 3,5 PUNTOS | I12: práctico experimenta | J12: 3 PUNTOS
C13: 1 | D13: =IF('AS1'!D5="","",'AS1'!D5) ->  | E13: =IF('AS1'!E5="","",'AS1'!E5) -> DAQUILEMA LONDO SHIRLEY ESTEFAFANÍA | F13: ='AS1'!BF5 -> 52 | G13: =IF(L$8=0,0,(F13*100)/L$8) -> 100 | H13: ='DOC1'!R6 -> 2.625 | I13: =PRAC1!R6 -> 2.3905 | J13: ='AUT1'!R6 -> 2.82 | K13: =ROUND(SUM(H13:J13),2) -> 7.84 | L13: =VLOOKUP(K13,RESERVADO!A$1:B$1001,2) -> SIETE.OCHENTAYCUATRO
C14: 2 | D14: =IF('AS1'!D6="","",'AS1'!D6) ->  | E14: =IF('AS1'!E6="","",'AS1'!E6) -> GOYES ORTIZ NATASHA DAYANA | F14: ='AS1'!BF6 -> 44 | G14: 84.61538462 | H14: ='DOC1'!R7 -> 2.9855 | I14: =PRAC1!R7 -> 2.772 | J14: ='AUT1'!R7 -> 2.76 | K14: =ROUND(SUM(H14:J14),2) -> 8.52 | L14: =VLOOKUP(K14,RESERVADO!A$1:B$1001,2) -> OCHO.CINCUENTAYDOS
C15: 3 | D15: =IF('AS1'!D7="","",'AS1'!D7) ->  | E15: =IF('AS1'!E7="","",'AS1'!E7) -> GUADALUPE RUIZ YULISA NATALY | F15: ='AS1'!BF7 -> 52 | G15: 100 | H15: ='DOC1'!R8 -> 2.6705 | I15: =PRAC1!R8 -> 2.128 | J15: ='AUT1'!R8 -> 2.34 | K15: =ROUND(SUM(H15:J15),2) -> 7.14 | L15: =VLOOKUP(K15,RESERVADO!A$1:B$1001,2) -> SIETE.CATORCE
C16: 4 | D16: =IF('AS1'!D8="","",'AS1'!D8) ->  | E16: =IF('AS1'!E8="","",'AS1'!E8) -> MELO CHAVEZ KEVIN JOSUE | F16: ='AS1'!BF8 -> 54 | G16: 103.8461538 | H16: ='DOC1'!R9 -> 3.017 | I16: =PRAC1!R9 -> 2.282 | J16: ='AUT1'!R9 -> 2.7 | K16: =ROUND(SUM(H16:J16),2) -> 8 | L16: =VLOOKUP(K16,RESERVADO!A$1:B$1001,2) -> OCHO
C17: 5 | D17: =IF('AS1'!D9="","",'AS1'!D9) ->  | E17: =IF('AS1'!E9="","",'AS1'!E9) -> MULLO PAUCAR ADRIANA ANABEL | F17: ='AS1'!BF9 -> 54 | G17: 103.8461538 | H17: ='DOC1'!R10 -> 3.073 | I17: =PRAC1!R10 -> 2.4325 | J17: ='AUT1'!R10 -> 2.22 | K17: 7.73 | L17: =VLOOKUP(K17,RESERVADO!A$1:B$1001,2) -> SIETE.SETENTAYTRES
C18: 6 | D18: =IF('AS1'!D10="","",'AS1'!D10) ->  | E18: =IF('AS1'!E10="","",'AS1'!E10) -> NARANJO PALACIOS FERNANDA BRIGUITTE | F18: ='AS1'!BF10 -> 18 | G18: 34.61538462 | H18: ='DOC1'!R11 -> 0 | I18: =PRAC1!R11 -> 0 | J18: ='AUT1'!R11 -> 1.86 | K18: 1.86 | L18: =VLOOKUP(K18,RESERVADO!A$1:B$1001,2) -> UNO.OCHENTAYSEIS
C19: 7 | D19: =IF('AS1'!D11="","",'AS1'!D11) ->  | E19: =IF('AS1'!E11="","",'AS1'!E11) -> SOTO VARGAS ERIKA SAMANTA | F19: ='AS1'!BF11 -> 54 | G19: 103.8461538 | H19: ='DOC1'!R12 -> 2.303 | I19: =PRAC1!R12 -> 2.4955 | J19: ='AUT1'!R12 -> 1.92 | K19: 6.72 | L19: =VLOOKUP(K19,RESERVADO!A$1:B$1001,2) -> SEIS.SETENTAYDOS
C20: 8 | D20: =IF('AS1'!D12="","",'AS1'!D12) ->  | E20: =IF('AS1'!E12="","",'AS1'!E12) -> VALLEJO ORDOÑEZ SAYONARA ELIZABETH | F20: ='AS1'!BF12 -> 54 | G20: 103.8461538 | H20: ='DOC1'!R13 -> 2.4395 | I20: =PRAC1!R13 -> 2.0825 | J20: ='AUT1'!R13 -> 1.86 | K20: 6.38 | L20: =VLOOKUP(K20,RESERVADO!A$1:B$1001,2) -> SEIS.TREINTAYOCHO
C21: 9 | D21: =IF('AS1'!D13="","",'AS1'!D13) ->  | E21: =IF('AS1'!E13="","",'AS1'!E13) ->  | F21: ='AS1'!BF13 -> 0 | G21: 0 | H21: ='DOC1'!R14 -> 0 | I21: =PRAC1!R14 -> 0 | J21: ='AUT1'!R14 -> 0 | K21: 0 | L21: =VLOOKUP(K21,RESERVADO!A$1:B$1001,2) -> CERO
C22: 10 | D22: =IF('AS1'!D14="","",'AS1'!D14) ->  | E22: =IF('AS1'!E14="","",'AS1'!E14) ->  | F22: ='AS1'!BF14 -> 0 | G22: 0 | H22: ='DOC1'!R15 -> 0 | I22: =PRAC1!R15 -> 0 | J22: ='AUT1'!R15 -> 0 | K22: 0 | L22: =VLOOKUP(K22,RESERVADO!A$1:B$1001,2) -> CERO
C23: 11 | D23: =IF('AS1'!D15="","",'AS1'!D15) ->  | E23: =IF('AS1'!E15="","",'AS1'!E15) ->  | F23: ='AS1'!BF15 -> 0 | G23: 0 | H23: ='DOC1'!R16 -> 0 | I23: =PRAC1!R16 -> 0 | J23: ='AUT1'!R16 -> 0 | K23: 0 | L23: =VLOOKUP(K23,RESERVADO!A$1:B$1001,2) -> CERO
C24: 12 | D24: =IF('AS1'!D16="","",'AS1'!D16) ->  | E24: =IF('AS1'!E16="","",'AS1'!E16) ->  | F24: ='AS1'!BF16 -> 0 | G24: 0 | H24: ='DOC1'!R17 -> 0 | I24: =PRAC1!R17 -> 0 | J24: ='AUT1'!R17 -> 0 | K24: 0 | L24: =VLOOKUP(K24,RESERVADO!A$1:B$1001,2) -> CERO
C25: 13 | D25: =IF('AS1'!D17="","",'AS1'!D17) ->  | E25: =IF('AS1'!E17="","",'AS1'!E17) ->  | F25: ='AS1'!BF17 -> 0 | G25: 0 | H25: ='DOC1'!R18 -> 0 | I25: =PRAC1!R18 -> 0 | J25: ='AUT1'!R18 -> 0 | K25: 0 | L25: =VLOOKUP(K25,RESERVADO!A$1:B$1001,2) -> CERO
C26: 14 | D26: =IF('AS1'!D18="","",'AS1'!D18) ->  | E26: =IF('AS1'!E18="","",'AS1'!E18) ->  | F26: ='AS1'!BF18 -> 0 | G26: 0 | H26: ='DOC1'!R19 -> 0 | I26: =PRAC1!R19 -> 0 | J26: ='AUT1'!R19 -> 0 | K26: 0 | L26: =VLOOKUP(K26,RESERVADO!A$1:B$1001,2) -> CERO
C27: 15 | D27: =IF('AS1'!D19="","",'AS1'!D19) ->  | E27: =IF('AS1'!E19="","",'AS1'!E19) ->  | F27: ='AS1'!BF19 -> 0 | G27: 0 | H27: ='DOC1'!R20 -> 0 | I27: =PRAC1!R20 -> 0 | J27: ='AUT1'!R20 -> 0 | K27: 0 | L27: =VLOOKUP(K27,RESERVADO!A$1:B$1001,2) -> CERO
C28: 16 | D28: =IF('AS1'!D20="","",'AS1'!D20) ->  | E28: =IF('AS1'!E20="","",'AS1'!E20) ->  | F28: ='AS1'!BF20 -> 0 | G28: 0 | H28: ='DOC1'!R21 -> 0 | I28: =PRAC1!R21 -> 0 | J28: ='AUT1'!R21 -> 0 | K28: 0 | L28: =VLOOKUP(K28,RESERVADO!A$1:B$1001,2) -> CERO
C29: 17 | D29: =IF('AS1'!D21="","",'AS1'!D21) ->  | E29: =IF('AS1'!E21="","",'AS1'!E21) ->  | F29: ='AS1'!BF21 -> 0 | G29: 0 | H29: ='DOC1'!R22 -> 0 | I29: =PRAC1!R22 -> 0 | J29: ='AUT1'!R22 -> 0 | K29: 0 | L29: =VLOOKUP(K29,RESERVADO!A$1:B$1001,2) -> CERO
C30: 18 | D30: =IF('AS1'!D22="","",'AS1'!D22) ->  | E30: =IF('AS1'!E22="","",'AS1'!E22) ->  | F30: ='AS1'!BF22 -> 0 | G30: 0 | H30: ='DOC1'!R23 -> 0 | I30: =PRAC1!R23 -> 0 | J30: ='AUT1'!R23 -> 0 | K30: 0 | L30: =VLOOKUP(K30,RESERVADO!A$1:B$1001,2) -> CERO
C31: 19 | D31: =IF('AS1'!D23="","",'AS1'!D23) ->  | E31: =IF('AS1'!E23="","",'AS1'!E23) ->  | F31: ='AS1'!BF23 -> 0 | G31: 0 | H31: ='DOC1'!R24 -> 0 | I31: =PRAC1!R24 -> 0 | J31: ='AUT1'!R24 -> 0 | K31: 0 | L31: =VLOOKUP(K31,RESERVADO!A$1:B$1001,2) -> CERO
C32: 20 | D32: =IF('AS1'!D24="","",'AS1'!D24) ->  | E32: =IF('AS1'!E24="","",'AS1'!E24) ->  | F32: ='AS1'!BF24 -> 0 | G32: 0 | H32: ='DOC1'!R25 -> 0 | I32: =PRAC1!R25 -> 0 | J32: ='AUT1'!R25 -> 0 | K32: 0 | L32: =VLOOKUP(K32,RESERVADO!A$1:B$1001,2) -> CERO
C33: 21 | D33: =IF('AS1'!D25="","",'AS1'!D25) ->  | E33: =IF('AS1'!E25="","",'AS1'!E25) ->  | F33: ='AS1'!BF25 -> 0 | G33: 0 | H33: ='DOC1'!R26 -> 0 | I33: =PRAC1!R26 -> 0 | J33: ='AUT1'!R26 -> 0 | K33: 0 | L33: =VLOOKUP(K33,RESERVADO!A$1:B$1001,2) -> CERO
C34: 22 | D34: =IF('AS1'!D26="","",'AS1'!D26) ->  | E34: =IF('AS1'!E26="","",'AS1'!E26) ->  | F34: ='AS1'!BF26 -> 0 | G34: 0 | H34: ='DOC1'!R27 -> 0 | I34: =PRAC1!R27 -> 0 | J34: ='AUT1'!R27 -> 0 | K34: 0 | L34: =VLOOKUP(K34,RESERVADO!A$1:B$1001,2) -> CERO
C35: 23 | D35: =IF('AS1'!D27="","",'AS1'!D27) ->  | E35: =IF('AS1'!E27="","",'AS1'!E27) ->  | F35: ='AS1'!BF27 -> 0 | G35: 0 | H35: ='DOC1'!R28 -> 0 | I35: =PRAC1!R28 -> 0 | J35: ='AUT1'!R28 -> 3 | K35: 3 | L35: =VLOOKUP(K35,RESERVADO!A$1:B$1001,2) -> TRES
C36: 24 | D36: =IF('AS1'!D28="","",'AS1'!D28) ->  | E36: =IF('AS1'!E28="","",'AS1'!E28) ->  | F36: ='AS1'!BF28 -> 0 | G36: =IF(L$8=0,0,(F36*100)/L$8) -> 0 | H36: ='DOC1'!R29 -> 0 | I36: =PRAC1!R29 -> 0 | J36: ='AUT1'!R29 -> 0 | K36: 0 | L36: =VLOOKUP(K36,RESERVADO!A$1:B$1001,2) -> CERO
C37: 25 | D37: =IF('AS1'!D29="","",'AS1'!D29) ->  | E37: =IF('AS1'!E29="","",'AS1'!E29) ->  | F37: ='AS1'!BF29 -> 0 | G37: 0 | H37: ='DOC1'!R30 -> 0 | I37: =PRAC1!R30 -> 0 | J37: ='AUT1'!R30 -> 0 | K37: 0 | L37: =VLOOKUP(K37,RESERVADO!A$1:B$1001,2) -> CERO
C38: 26 | D38: =IF('AS1'!D30="","",'AS1'!D30) ->  | E38: =IF('AS1'!E30="","",'AS1'!E30) ->  | F38: ='AS1'!BF30 -> 0 | G38: 0 | H38: ='DOC1'!R31 -> 0 | I38: =PRAC1!R31 -> 0 | J38: ='AUT1'!R31 -> 0 | K38: 0 | L38: =VLOOKUP(K38,RESERVADO!A$1:B$1001,2) -> CERO
C39: 27 | D39: =IF('AS1'!D31="","",'AS1'!D31) ->  | E39: =IF('AS1'!E31="","",'AS1'!E31) ->  | F39: ='AS1'!BF31 -> 0 | G39: 0 | H39: ='DOC1'!R32 -> 0 | I39: =PRAC1!R32 -> 0 | J39: ='AUT1'!R32 -> 0 | K39: 0 | L39: =VLOOKUP(K39,RESERVADO!A$1:B$1001,2) -> CERO
C40: 28 | D40: =IF('AS1'!D32="","",'AS1'!D32) ->  | E40: =IF('AS1'!E32="","",'AS1'!E32) ->  | F40: ='AS1'!BF32 -> 0 | G40: 0 | H40: ='DOC1'!R33 -> 0 | I40: =PRAC1!R33 -> 0 | J40: ='AUT1'!R33 -> 0 | K40: 0 | L40: =VLOOKUP(K40,RESERVADO!A$1:B$1001,2) -> CERO
C41: 29 | D41: =IF('AS1'!D33="","",'AS1'!D33) ->  | E41: =IF('AS1'!E33="","",'AS1'!E33) ->  | F41: ='AS1'!BF33 -> 0 | G41: 0 | H41: ='DOC1'!R34 -> 0 | I41: =PRAC1!R34 -> 0 | J41: ='AUT1'!R34 -> 0 | K41: 0 | L41: =VLOOKUP(K41,RESERVADO!A$1:B$1001,2) -> CERO
C42: 30 | D42: =IF('AS1'!D34="","",'AS1'!D34) ->  | E42: =IF('AS1'!E34="","",'AS1'!E34) ->  | F42: ='AS1'!BF34 -> 0 | G42: 0 | H42: ='DOC1'!R35 -> 0 | I42: =PRAC1!R35 -> 0 | J42: ='AUT1'!R35 -> 0 | K42: 0 | L42: =VLOOKUP(K42,RESERVADO!A$1:B$1001,2) -> CERO
C43: 31 | D43: =IF('AS1'!D35="","",'AS1'!D35) ->  | E43: =IF('AS1'!E35="","",'AS1'!E35) ->  | F43: ='AS1'!BF35 -> 0 | G43: 0 | H43: ='DOC1'!R36 -> 0 | I43: =PRAC1!R36 -> 0 | J43: ='AUT1'!R36 -> 0 | K43: 0 | L43: =VLOOKUP(K43,RESERVADO!A$1:B$1001,2) -> CERO
C44: 32 | D44: =IF('AS1'!D36="","",'AS1'!D36) ->  | E44: =IF('AS1'!E36="","",'AS1'!E36) ->  | F44: ='AS1'!BF36 -> 0 | G44: 0 | H44: ='DOC1'!R37 -> 0 | I44: =PRAC1!R37 -> 0 | J44: ='AUT1'!R37 -> 0 | K44: 0 | L44: =VLOOKUP(K44,RESERVADO!A$1:B$1001,2) -> CERO
C45: 33 | D45: =IF('AS1'!D37="","",'AS1'!D37) ->  | E45: =IF('AS1'!E37="","",'AS1'!E37) ->  | F45: ='AS1'!BF37 -> 0 | G45: 0 | H45: ='DOC1'!R38 -> 0 | I45: =PRAC1!R38 -> 0 | J45: ='AUT1'!R38 -> 0 | K45: 0 | L45: =VLOOKUP(K45,RESERVADO!A$1:B$1001,2) -> CERO
C46: 34 | D46: =IF('AS1'!D38="","",'AS1'!D38) ->  | E46: =IF('AS1'!E38="","",'AS1'!E38) ->  | F46: ='AS1'!BF38 -> 0 | G46: 0 | H46: ='DOC1'!R39 -> 0 | I46: =PRAC1!R39 -> 0 | J46: ='AUT1'!R39 -> 0 | K46: 0 | L46: =VLOOKUP(K46,RESERVADO!A$1:B$1001,2) -> CERO
C47: 35 | D47: =IF('AS1'!D39="","",'AS1'!D39) ->  | E47: =IF('AS1'!E39="","",'AS1'!E39) ->  | F47: ='AS1'!BF39 -> 0 | G47: 0 | H47: ='DOC1'!R40 -> 0 | I47: =PRAC1!R40 -> 0 | J47: ='AUT1'!R40 -> 0 | K47: 0 | L47: =VLOOKUP(K47,RESERVADO!A$1:B$1001,2) -> CERO
C48: 36 | D48: =IF('AS1'!D40="","",'AS1'!D40) ->  | E48: =IF('AS1'!E40="","",'AS1'!E40) ->  | F48: ='AS1'!BF40 -> 0 | G48: 0 | H48: ='DOC1'!R41 -> 0 | I48: =PRAC1!R41 -> 0 | J48: ='AUT1'!R41 -> 0 | K48: 0 | L48: =VLOOKUP(K48,RESERVADO!A$1:B$1001,2) -> CERO
C49: 37 | D49: =IF('AS1'!D41="","",'AS1'!D41) ->  | E49: =IF('AS1'!E41="","",'AS1'!E41) ->  | F49: ='AS1'!BF41 -> 0 | G49: 0 | H49: ='DOC1'!R42 -> 0 | I49: =PRAC1!R42 -> 0 | J49: ='AUT1'!R42 -> 0 | K49: 0 | L49: =VLOOKUP(K49,RESERVADO!A$1:B$1001,2) -> CERO
C50: 38 | D50: =IF('AS1'!D42="","",'AS1'!D42) ->  | E50: =IF('AS1'!E42="","",'AS1'!E42) ->  | F50: ='AS1'!BF42 -> 0 | G50: 0 | H50: ='DOC1'!R43 -> 0 | I50: =PRAC1!R43 -> 0 | J50: ='AUT1'!R43 -> 0 | K50: 0 | L50: =VLOOKUP(K50,RESERVADO!A$1:B$1001,2) -> CERO
C51: 39 | D51: =IF('AS1'!D43="","",'AS1'!D43) ->  | E51: =IF('AS1'!E43="","",'AS1'!E43) ->  | F51: ='AS1'!BF43 -> 0 | G51: 0 | H51: ='DOC1'!R44 -> 0 | I51: =PRAC1!R44 -> 0 | J51: ='AUT1'!R44 -> 0 | K51: 0 | L51: =VLOOKUP(K51,RESERVADO!A$1:B$1001,2) -> CERO
C52: 40 | D52: =IF('AS1'!D44="","",'AS1'!D44) ->  | E52: =IF('AS1'!E44="","",'AS1'!E44) ->  | F52: ='AS1'!BF44 -> 0 | G52: 0 | H52: ='DOC1'!R45 -> 0 | I52: =PRAC1!R45 -> 0 | J52: ='AUT1'!R45 -> 0 | K52: 0 | L52: =VLOOKUP(K52,RESERVADO!A$1:B$1001,2) -> CERO
C53: 41 | D53: =IF('AS1'!D45="","",'AS1'!D45) ->  | E53: =IF('AS1'!E45="","",'AS1'!E45) ->  | F53: ='AS1'!BF45 -> 0 | G53: 0 | H53: ='DOC1'!R46 -> 0 | I53: =PRAC1!R46 -> 0 | J53: ='AUT1'!R46 -> 0 | K53: 0 | L53: =VLOOKUP(K53,RESERVADO!A$1:B$1001,2) -> CERO
C54: 42 | D54: =IF('AS1'!D46="","",'AS1'!D46) ->  | E54: =IF('AS1'!E46="","",'AS1'!E46) ->  | F54: ='AS1'!BF46 -> 0 | G54: 0 | H54: ='DOC1'!R47 -> 0 | I54: =PRAC1!R47 -> 0 | J54: ='AUT1'!R47 -> 0 | K54: 0 | L54: =VLOOKUP(K54,RESERVADO!A$1:B$1001,2) -> CERO
C55: 43 | D55: =IF('AS1'!D47="","",'AS1'!D47) ->  | E55: =IF('AS1'!E47="","",'AS1'!E47) ->  | F55: ='AS1'!BF47 -> 0 | G55: 0 | H55: ='DOC1'!R48 -> 0 | I55: =PRAC1!R48 -> 0 | J55: ='AUT1'!R48 -> 0 | K55: 0 | L55: =VLOOKUP(K55,RESERVADO!A$1:B$1001,2) -> CERO
C56: 44 | D56: =IF('AS1'!D48="","",'AS1'!D48) ->  | E56: =IF('AS1'!E48="","",'AS1'!E48) ->  | F56: ='AS1'!BF48 -> 0 | G56: 0 | H56: ='DOC1'!R49 -> 0 | I56: =PRAC1!R49 -> 0 | J56: ='AUT1'!R49 -> 0 | K56: 0 | L56: =VLOOKUP(K56,RESERVADO!A$1:B$1001,2) -> CERO
C57: 45 | D57: =IF('AS1'!D49="","",'AS1'!D49) ->  | E57: =IF('AS1'!E49="","",'AS1'!E49) ->  | F57: ='AS1'!BF49 -> 0 | G57: 0 | H57: ='DOC1'!R50 -> 0 | I57: =PRAC1!R50 -> 0 | J57: ='AUT1'!R50 -> 0 | K57: 0 | L57: =VLOOKUP(K57,RESERVADO!A$1:B$1001,2) -> CERO
C58: 46 | D58: =IF('AS1'!D50="","",'AS1'!D50) ->  | E58: =IF('AS1'!E50="","",'AS1'!E50) ->  | F58: ='AS1'!BF50 -> 0 | G58: 0 | H58: ='DOC1'!R51 -> 0 | I58: =PRAC1!R51 -> 0 | J58: ='AUT1'!R51 -> 0 | K58: 0 | L58: =VLOOKUP(K58,RESERVADO!A$1:B$1001,2) -> CERO
C59: 47 | D59: =IF('AS1'!D51="","",'AS1'!D51) ->  | E59: =IF('AS1'!E51="","",'AS1'!E51) ->  | F59: ='AS1'!BF51 -> 0 | G59: 0 | H59: ='DOC1'!R52 -> 0 | I59: =PRAC1!R52 -> 0 | J59: ='AUT1'!R52 -> 0 | K59: 0 | L59: =VLOOKUP(K59,RESERVADO!A$1:B$1001,2) -> CERO
C60: 48 | D60: =IF('AS1'!D52="","",'AS1'!D52) ->  | E60: =IF('AS1'!E52="","",'AS1'!E52) ->  | F60: ='AS1'!BF52 -> 0 | G60: 0 | H60: ='DOC1'!R53 -> 0 | I60: =PRAC1!R53 -> 0 | J60: ='AUT1'!R53 -> 0 | K60: 0 | L60: =VLOOKUP(K60,RESERVADO!A$1:B$1001,2) -> CERO
C61: 49 | D61: =IF('AS1'!D53="","",'AS1'!D53) ->  | E61: =IF('AS1'!E53="","",'AS1'!E53) ->  | F61: ='AS1'!BF53 -> 0 | G61: 0 | H61: ='DOC1'!R54 -> 0 | I61: =PRAC1!R54 -> 0 | J61: ='AUT1'!R54 -> 0 | K61: 0 | L61: =VLOOKUP(K61,RESERVADO!A$1:B$1001,2) -> CERO
C62: 50 | D62: =IF('AS1'!D54="","",'AS1'!D54) ->  | E62: =IF('AS1'!E54="","",'AS1'!E54) ->  | F62: ='AS1'!BF54 -> 0 | G62: 0 | H62: ='DOC1'!R55 -> 0 | I62: =PRAC1!R55 -> 0 | J62: ='AUT1'!R55 -> 0 | K62: 0 | L62: =VLOOKUP(K62,RESERVADO!A$1:B$1001,2) -> CERO
C63: 51 | D63: =IF('AS1'!D55="","",'AS1'!D55) ->  | E63: =IF('AS1'!E55="","",'AS1'!E55) ->  | F63: ='AS1'!BF55 -> 0 | G63: 0 | H63: ='DOC1'!R56 -> 0 | I63: =PRAC1!R56 -> 0 | J63: ='AUT1'!R56 -> 0 | K63: 0 | L63: =VLOOKUP(K63,RESERVADO!A$1:B$1001,2) -> CERO
C64: 52 | D64: =IF('AS1'!D56="","",'AS1'!D56) ->  | E64: =IF('AS1'!E56="","",'AS1'!E56) ->  | F64: ='AS1'!BF56 -> 0 | G64: 0 | H64: ='DOC1'!R57 -> 0 | I64: =PRAC1!R57 -> 0 | J64: ='AUT1'!R57 -> 0 | K64: 0 | L64: =VLOOKUP(K64,RESERVADO!A$1:B$1001,2) -> CERO
C65: 53 | D65: =IF('AS1'!D57="","",'AS1'!D57) ->  | E65: =IF('AS1'!E57="","",'AS1'!E57) ->  | F65: ='AS1'!BF57 -> 0 | G65: 0 | H65: ='DOC1'!R58 -> 0 | I65: =PRAC1!R58 -> 0 | J65: ='AUT1'!R58 -> 0 | K65: 0 | L65: =VLOOKUP(K65,RESERVADO!A$1:B$1001,2) -> CERO
C66: 54 | D66: =IF('AS1'!D58="","",'AS1'!D58) ->  | E66: =IF('AS1'!E58="","",'AS1'!E58) ->  | F66: ='AS1'!BF58 -> 0 | G66: 0 | H66: ='DOC1'!R59 -> 0 | I66: =PRAC1!R59 -> 0 | J66: ='AUT1'!R59 -> 0 | K66: 0 | L66: =VLOOKUP(K66,RESERVADO!A$1:B$1001,2) -> CERO
C67: 55 | D67: =IF('AS1'!D59="","",'AS1'!D59) ->  | E67: =IF('AS1'!E59="","",'AS1'!E59) ->  | F67: ='AS1'!BF59 -> 0 | G67: 0 | H67: ='DOC1'!R60 -> 0 | I67: =PRAC1!R60 -> 0 | J67: ='AUT1'!R60 -> 0 | K67: 0 | L67: =VLOOKUP(K67,RESERVADO!A$1:B$1001,2) -> CERO
C68: 56 | D68: =IF('AS1'!D60="","",'AS1'!D60) ->  | E68: =IF('AS1'!E60="","",'AS1'!E60) ->  | F68: ='AS1'!BF60 -> 0 | G68: 0 | H68: ='DOC1'!R61 -> 0 | I68: =PRAC1!R61 -> 0 | J68: ='AUT1'!R61 -> 0 | K68: 0 | L68: =VLOOKUP(K68,RESERVADO!A$1:B$1001,2) -> CERO
C69: 57 | D69: =IF('AS1'!D61="","",'AS1'!D61) ->  | E69: =IF('AS1'!E61="","",'AS1'!E61) ->  | F69: ='AS1'!BF61 -> 0 | G69: 0 | H69: ='DOC1'!R62 -> 0 | I69: =PRAC1!R62 -> 0 | J69: ='AUT1'!R62 -> 0 | K69: 0 | L69: =VLOOKUP(K69,RESERVADO!A$1:B$1001,2) -> CERO
C70: 58 | D70: =IF('AS1'!D62="","",'AS1'!D62) ->  | E70: =IF('AS1'!E62="","",'AS1'!E62) ->  | F70: ='AS1'!BF62 -> 0 | G70: 0 | H70: ='DOC1'!R63 -> 0 | I70: =PRAC1!R63 -> 0 | J70: ='AUT1'!R63 -> 0 | K70: 0 | L70: =VLOOKUP(K70,RESERVADO!A$1:B$1001,2) -> CERO
C71: 59 | D71: =IF('AS1'!D63="","",'AS1'!D63) ->  | E71: =IF('AS1'!E63="","",'AS1'!E63) ->  | F71: ='AS1'!BF63 -> 0 | G71: 0 | H71: ='DOC1'!R64 -> 0 | I71: =PRAC1!R64 -> 0 | J71: ='AUT1'!R64 -> 0 | K71: 0 | L71: =VLOOKUP(K71,RESERVADO!A$1:B$1001,2) -> CERO
C72: 60 | D72: =IF('AS1'!D64="","",'AS1'!D64) ->  | E72: =IF('AS1'!E64="","",'AS1'!E64) ->  | F72: ='AS1'!BF64 -> 0 | G72: 0 | H72: ='DOC1'!R65 -> 0 | I72: =PRAC1!R65 -> 0 | J72: ='AUT1'!R65 -> 0 | K72: 0 | L72: =VLOOKUP(K72,RESERVADO!A$1:B$1001,2) -> CERO
C73: 61 | D73: =IF('AS1'!D65="","",'AS1'!D65) ->  | E73: =IF('AS1'!E65="","",'AS1'!E65) ->  | F73: ='AS1'!BF65 -> 0 | G73: 0 | H73: ='DOC1'!R66 -> 0 | I73: =PRAC1!R66 -> 0 | J73: ='AUT1'!R66 -> 0 | K73: 0 | L73: =VLOOKUP(K73,RESERVADO!A$1:B$1001,2) -> CERO
C74: 62 | D74: =IF('AS1'!D66="","",'AS1'!D66) ->  | E74: =IF('AS1'!E66="","",'AS1'!E66) ->  | F74: ='AS1'!BF66 -> 0 | G74: 0 | H74: ='DOC1'!R67 -> 0 | I74: =PRAC1!R67 -> 0 | J74: ='AUT1'!R67 -> 0 | K74: 0 | L74: =VLOOKUP(K74,RESERVADO!A$1:B$1001,2) -> CERO
C75: 63 | D75: =IF('AS1'!D67="","",'AS1'!D67) ->  | E75: =IF('AS1'!E67="","",'AS1'!E67) ->  | F75: ='AS1'!BF67 -> 0 | G75: 0 | H75: ='DOC1'!R68 -> 0 | I75: =PRAC1!R68 -> 0 | J75: ='AUT1'!R68 -> 0 | K75: 0 | L75: =VLOOKUP(K75,RESERVADO!A$1:B$1001,2) -> CERO
C76: 64 | D76: =IF('AS1'!D68="","",'AS1'!D68) ->  | E76: =IF('AS1'!E68="","",'AS1'!E68) ->  | F76: ='AS1'!BF68 -> 0 | G76: 0 | H76: ='DOC1'!R69 -> 0 | I76: =PRAC1!R69 -> 0 | J76: ='AUT1'!R69 -> 0 | K76: 0 | L76: =VLOOKUP(K76,RESERVADO!A$1:B$1001,2) -> CERO
C77: 65 | D77: =IF('AS1'!D69="","",'AS1'!D69) ->  | E77: =IF('AS1'!E69="","",'AS1'!E69) ->  | F77: ='AS1'!BF69 -> 0 | G77: 0 | H77: ='DOC1'!R70 -> 0 | I77: =PRAC1!R70 -> 0 | J77: ='AUT1'!R70 -> 0 | K77: 0 | L77: =VLOOKUP(K77,RESERVADO!A$1:B$1001,2) -> CERO
C78: 66 | D78: =IF('AS1'!D70="","",'AS1'!D70) ->  | E78: =IF('AS1'!E70="","",'AS1'!E70) ->  | F78: ='AS1'!BF70 -> 0 | G78: 0 | H78: ='DOC1'!R71 -> 0 | I78: =PRAC1!R71 -> 0 | J78: ='AUT1'!R71 -> 0 | K78: 0 | L78: =VLOOKUP(K78,RESERVADO!A$1:B$1001,2) -> CERO
C79: 67 | D79: =IF('AS1'!D71="","",'AS1'!D71) ->  | E79: =IF('AS1'!E71="","",'AS1'!E71) ->  | F79: ='AS1'!BF71 -> 0 | G79: 0 | H79: ='DOC1'!R72 -> 0 | I79: =PRAC1!R72 -> 0 | J79: ='AUT1'!R72 -> 0 | K79: 0 | L79: =VLOOKUP(K79,RESERVADO!A$1:B$1001,2) -> CERO
C80: 68 | D80: =IF('AS1'!D72="","",'AS1'!D72) ->  | E80: =IF('AS1'!E72="","",'AS1'!E72) ->  | F80: ='AS1'!BF72 -> 0 | G80: =IF(L$8=0,0,(F80*100)/L$8) -> 0 | H80: ='DOC1'!R73 -> 0 | I80: =PRAC1!R73 -> 0 | J80: ='AUT1'!R73 -> 0 | K80: =ROUND(SUM(H80:J80),2) -> 0 | L80: =VLOOKUP(K80,RESERVADO!A$1:B$1001,2) -> CERO
C81: 69 | D81: =IF('AS1'!D73="","",'AS1'!D73) ->  | E81: =IF('AS1'!E73="","",'AS1'!E73) ->  | F81: ='AS1'!BF73 -> 0 | G81: 0 | H81: ='DOC1'!R74 -> 0 | I81: =PRAC1!R74 -> 0 | J81: ='AUT1'!R74 -> 0 | K81: 0 | L81: =VLOOKUP(K81,RESERVADO!A$1:B$1001,2) -> CERO
C82: 70 | D82: =IF('AS1'!D74="","",'AS1'!D74) ->  | E82: =IF('AS1'!E74="","",'AS1'!E74) ->  | F82: ='AS1'!BF74 -> 0 | G82: 0 | H82: ='DOC1'!R75 -> 0 | I82: =PRAC1!R75 -> 0 | J82: ='AUT1'!R75 -> 0 | K82: 0 | L82: =VLOOKUP(K82,RESERVADO!A$1:B$1001,2) -> CERO

Sheet INFORME1 (hidden)
B3: INFORME ACADÉMICO
C5: =CONCATENATE(INICIO!C7,INICIO!D7) -> PERIODO ACADÉMICO: 2024 - 2025
C6: =CONCATENATE(INICIO!C5,INICIO!D5) -> FACULTAD: Ciencias de la Salud
C7: =CONCATENATE(INICIO!C6,INICIO!D6) -> CARRERA: Enfermería
C8: ESTADO: Vigente ( X ) No Vigente habilitada para registro de títulos ( )
C9: =CONCATENATE(INICIO!C8,INICIO!D8," ",INICIO!D9) -> SEMESTRE: 6to A
C10: =CONCATENATE(INICIO!C11,INICIO!D11) -> ASIGNATURA: Enfermería Gíneco oObstétrica II
C11: PARCIAL: Primero ( X ) Segundo ( )
C12: PROFESOR: | D12: =IF(INICIO!D4="","",INICIO!D4) -> Graciela Rivera Herrera
C13: FECHA: | D13: =TODAY() -> 2025-02-14
B15: 1. Resultados de aprendizaje evaluados
C16: N° Unidad | D16: Nombre unidad | G16: Resultados de aprendizaje
B20: 2. Rendimiento Académico
C21: Promedio de asistencia del curso: | F21: =CONCATENATE(ROUND(IF(F23=0,0,AVERAGEIF(PARCIAL1!G13:G82,">0")),2)," ","%") -> 91,83 %
C22: Promedio de calificaciones del curso: | F22: =IF(F23=0,0,AVERAGEIF(PARCIAL1!K13:K82,">0")) -> 6.354444444
C23: Numero Total de Estudiantes: | F23: =COUNTIF('AS1'!E5:E74,"*") -> 8
C24: Número de Estudiantes sin Calificaciones: | F24: =COUNTIFS(PARCIAL1!K13:K82,"=0",PARCIAL1!E13:E82,">*") -> 0
C25: Evaluación del logro de los resultados de aprendizaje:
C26: 1.00 - 4.00 | E26: 4.01 - 6.99 | G26: 7.00 – 10.00 | I26: Total de Matriculados
C27: No alcanza los resultados de aprendizaje requeridos | E27: Está próximo a alcanzar los resultados de aprendizaje requeridos. | G27: Alcanza los resultados de aprendizaje requeridos satisfactoriamente
C28: Número | D28: =(F23-(H28+F28))-F24 -> 1 | E28: Número | F28: =COUNTIFS(PARCIAL1!K13:K82,">=4,01",PARCIAL1!K13:K82,"<=6,99") -> 2 | G28: Número | H28: =COUNTIF(PARCIAL1!K13:K82,">=7") -> 5 | I28: =F23-F24 -> 8
C29: % | D29: =IF($I$28>0,(D28*100%)/$I$28," ") -> 0.125 | E29: % | F29: =IF($I$28>0,(F28*100%)/$I$28," ") -> 0.25 | G29: % | H29: =IF($I$28>0,(H28*100%)/$I$28," ") -> 0.625 | I29: 1
B31: 3. Registro de estudiantes que no alcanzan o están próximos a alcanzar los resultados de aprendizaje requeridos
C33: N° | D33: Estudiante | G33: Calificación Primer Parcial | H33: % de Asistencia Primer Parcial | I33: Causas del bajo rendimiento académico de los estudiantes
C34: 70 | G34: 0 | H34: 0

Sheet AS2
L2: ASISTENCIAS REGISTRADAS EN EL SEGUNDO PARCIAL | AZ2: Total horas trabajadas | BF2: =COUNT(F5:BE5)*INICIO!D12 -> 54
E3: RECUERDE USTED TIENE | Y3: =INICIO!D12 -> 2 | Z3: HORAS DE CLASE AL DÍA CON ESTE CURSO
C4: N | D4: NUMERO DE CÉDULA | E4: APELLIDOS Y NOMBRES | F4: 2024-12-03 | G4: 2024-12-04 | H4: 5/112-24 | I4: 2024-12-10 | J4: 2024-12-11 | K4: 2024-12-12 | L4: 2024-12-17 | M4: 2024-12-18 | N4: 2024-12-19 | O4: 1900-01-07 | P4: 1900-01-08 | Q4: 1900-01-09 | R4: 1900-01-14 | S4: 1900-01-15 | T4: 1900-01-16 | U4: 1900-01-21 | V4: 1900-01-22 | W4: 1900-01-23 | X4: 1900-01-28 | Y4: 1900-01-29 | Z4: 1900-01-30 | AA4: 2025-02-04 | AB4: 2025-02-05 | AC4: 2025-02-06 | AD4: 2025-02-11 | AE4: 2025-02-12 | AF4: 2025-02-13 | BF4: HORAS ASISTIDAS | BG4: CALIFICACION ASISTENCIA
C5: 1 | D5: =IF('AS1'!D5="","",'AS1'!D5) ->  | E5: =IF('AS1'!E5="","",'AS1'!E5) -> DAQUILEMA LONDO SHIRLEY ESTEFAFANÍA | F5: 2 | G5: 2 | H5: 2 | I5: 2 | J5: 2 | K5: 2 | L5: 2 | M5: 2 | N5: 2 | O5: 2 | P5: 2 | Q5: 2 | R5: 2 | S5: 2 | T5: 2 | U5: 2 | V5: 2 | W5: 2 | X5: 2 | Y5: 2 | Z5: 2 | AA5: 2 | AB5: 2 | AC5: 2 | AD5: 2 | AE5: 2 | AF5: 2 | BF5: =SUM(F5:BE5) -> 54 | BG5: =IF(PARCIAL1!L$8=0,0,(ROUND(((BF5*10)/PARCIAL2!L$8),1))) -> 10 | BI5: =IF(E5>$Y$3,0,E5) -> 0 | BJ5: 2 | BK5: 2 | BL5: 2 | BM5: 2 | BN5: 2 | BO5: 2 | BP5: 2 | BQ5: 2 | BR5: 2 | BS5: 2 | BT5: 2 | BU5: 2 | BV5: 2 | BW5: 2 | BX5: 2 | BY5: =IF(U5>$Y$3,0,U5) -> 2 | BZ5: 2 | CA5: 2 | CB5: 2 | CC5: 2 | CD5: 2 | CE5: 2 | CF5: 2 | CG5: 2 | CH5: 2 | CI5: 2 | CJ5: 2 | CK5: 0 | CL5: 0 | CM5: 0 | CN5: 0 | CO5: =IF(AK5>$Y$3,0,AK5) -> 0 | CP5: 0 | CQ5: 0 | CR5: 0 | CS5: 0 | CT5: 0 | CU5: 0 | CV5: 0 | CW5: 0 | CX5: 0 | CY5: 0 | CZ5: 0 | DA5: 0 | DB5: 0 | DC5: 0 | DD5: 0 | DE5: =IF(BA5>$Y$3,0,BA5) -> 0 | DF5: 0 | DG5: 0 | DH5: 0 | DI5: 0 | DJ5: =IF(#REF!>$Y$3,0,#REF!) ->  | DK5: =IF(#REF!>$Y$3,0,#REF!) ->  | DL5: =IF(#REF!>$Y$3,0,#REF!) ->  | DM5: =IF(#REF!>$Y$3,0,#REF!) ->  | DN5: =IF(#REF!>$Y$3,0,#REF!) ->  | DO5: =IF(#REF!>$Y$3,0,#REF!) ->  | DP5: =IF(#REF!>$Y$3,0,#REF!) ->  | DQ5: =IF(#REF!>$Y$3,0,#REF!) ->  | DR5: =IF(#REF!>$Y$3,0,#REF!) ->  | DS5: =IF(#REF!>$Y$3,0,#REF!) ->  | DT5: =IF(#REF!>$Y$3,0,#REF!) ->  | DU5: =IF(#REF!>$Y$3,0,#REF!) ->  | DV5: =IF(#REF!>$Y$3,0,#REF!) ->  | DW5: =IF(#REF!>$Y$3,0,#REF!) ->  | DX5: =IF(#REF!>$Y$3,0,#REF!) ->  | DY5: =IF(#REF!>$Y$3,0,#REF!) ->  | DZ5: =IF(#REF!>$Y$3,0,#REF!) ->  | EA5: =IF(#REF!>$Y$3,0,#REF!) ->  | EB5: =IF(#REF!>$Y$3,0,#REF!) ->  | EC5: =IF(#REF!>$Y$3,0,#REF!) ->  | ED5: =IF(#REF!>$Y$3,0,#REF!) ->  | EE5: =IF(#REF!>$Y$3,0,#REF!) ->  | EF5: =IF(#REF!>$Y$3,0,#REF!) ->  | EG5: =IF(#REF!>$Y$3,0,#REF!) ->  | EH5: =IF(#REF!>$Y$3,0,#REF!) ->  | EI5: =IF(#REF!>$Y$3,0,#REF!) ->  | EJ5: =IF(#REF!>$Y$3,0,#REF!) ->  | EK5: =IF(#REF!>$Y$3,0,#REF!) -> 
C6: 2 | D6: =IF('AS1'!D6="","",'AS1'!D6) ->  | E6: =IF('AS1'!E6="","",'AS1'!E6) -> GOYES ORTIZ NATASHA DAYANA | F6: 2 | G6: 2 | H6: 2 | I6: 2 | J6: 2 | K6: 2 | L6: 2 | M6: 2 | N6: 2 | O6: 2 | P6: 2 | Q6: 2 | R6: 2 | S6: 2 | T6: 2 | U6: 2 | V6: 2 | W6: 2 | X6: 2 | Y6: 2 | Z6: 2 | AA6: 2 | AB6: 2 | AC6: 2 | AD6: 2 | AE6: 2 | AF6: 2 | BF6: =SUM(F6:BE6) -> 54 | BG6: =IF(PARCIAL1!L$8=0,0,(ROUND(((BF6*10)/PARCIAL2!L$8),1))) -> 10 | BI6: 0 | BJ6: 2 | BK6: 2 | BL6: 2 | BM6: 2 | BN6: 2 | BO6: 2 | BP6: 2 | BQ6: 2 | BR6: 2 | BS6: 2 | BT6: 2 | BU6: 2 | BV6: 2 | BW6: 2 | BX6: 2 | BY6: 2 | BZ6: 2 | CA6: 2 | CB6: 2 | CC6: 2 | CD6: 2 | CE6: 2 | CF6: 2 | CG6: 2 | CH6: 2 | CI6: 2 | CJ6: 2 | CK6: 0 | CL6: 0 | CM6: 0 | CN6: 0 | CO6: 0 | CP6: 0 | CQ6: 0 | CR6: 0 | CS6: 0 | CT6: 0 | CU6: 0 | CV6: 0 | CW6: 0 | CX6: 0 | CY6: 0 | CZ6: 0 | DA6: 0 | DB6: 0 | DC6: 0 | DD6: 0 | DE6: 0 | DF6: 0 | DG6: 0 | DH6: 0 | DI6: 0 | DJ6: =IF(#REF!>$Y$3,0,#REF!) ->  | DK6: =IF(#REF!>$Y$3,0,#REF!) ->  | DL6: =IF(#REF!>$Y$3,0,#REF!) ->  | DM6: =IF(#REF!>$Y$3,0,#REF!) ->  | DN6: =IF(#REF!>$Y$3,0,#REF!) ->  | DO6: =IF(#REF!>$Y$3,0,#REF!) ->  | DP6: =IF(#REF!>$Y$3,0,#REF!) ->  | DQ6: =IF(#REF!>$Y$3,0,#REF!) ->  | DR6: =IF(#REF!>$Y$3,0,#REF!) ->  | DS6: =IF(#REF!>$Y$3,0,#REF!) ->  | DT6: =IF(#REF!>$Y$3,0,#REF!) ->  | DU6: =IF(#REF!>$Y$3,0,#REF!) ->  | DV6: =IF(#REF!>$Y$3,0,#REF!) ->  | DW6: =IF(#REF!>$Y$3,0,#REF!) ->  | DX6: =IF(#REF!>$Y$3,0,#REF!) ->  | DY6: =IF(#REF!>$Y$3,0,#REF!) ->  | DZ6: =IF(#REF!>$Y$3,0,#REF!) ->  | EA6: =IF(#REF!>$Y$3,0,#REF!) ->  | EB6: =IF(#REF!>$Y$3,0,#REF!) ->  | EC6: =IF(#REF!>$Y$3,0,#REF!) ->  | ED6: =IF(#REF!>$Y$3,0,#REF!) ->  | EE6: =IF(#REF!>$Y$3,0,#REF!) ->  | EF6: =IF(#REF!>$Y$3,0,#REF!) ->  | EG6: =IF(#REF!>$Y$3,0,#REF!) ->  | EH6: =IF(#REF!>$Y$3,0,#REF!) ->  | EI6: =IF(#REF!>$Y$3,0,#REF!) ->  | EJ6: =IF(#REF!>$Y$3,0,#REF!) ->  | EK6: =IF(#REF!>$Y$3,0,#REF!) -> 
C7: 3 | D7: =IF('AS1'!D7="","",'AS1'!D7) ->  | E7: =IF('AS1'!E7="","",'AS1'!E7) -> GUADALUPE RUIZ YULISA NATALY | F7: 2 | G7: 2 | H7: 2 | I7: 2 | J7: 2 | K7: 2 | L7: 2 | M7: 2 | N7: 2 | O7: 2 | P7: 2 | Q7: 2 | R7: 2 | S7: 2 | T7: 2 | U7: 2 | V7: 2 | W7: 2 | X7: 2 | Y7: 2 | Z7: 2 | AA7: 2 | AB7: 2 | AC7: 2 | AD7: 2 | AE7: 2 | AF7: 2 | BF7: =SUM(F7:BE7) -> 54 | BG7: =IF(PARCIAL1!L$8=0,0,(ROUND(((BF7*10)/PARCIAL2!L$8),1))) -> 10 | BJ7: 2 | BK7: 2 | BL7: 2 | BM7: 2 | BN7: 2 | BO7: 2 | BP7: 2 | BQ7: 2 | BR7: 2 | BS7: 2 | BT7: 2 | BU7: 2 | BV7: 2 | BW7: 2 | BX7: 2 | BY7: 2 | BZ7: 2 | CA7: 2 | CB7: 2 | CC7: 2 | CD7: 2 | CE7: 2 | CF7: 2 | CG7: 2 | CH7: 2 | CI7: 2 | CJ7: 2 | CK7: 0 | CL7: 0 | CM7: 0 | CN7: 0 | CO7: 0 | CP7: 0 | CQ7: 0 | CR7: 0 | CS7: 0 | CT7: 0 | CU7: 0 | CV7: 0 | CW7: 0 | CX7: 0 | CY7: 0 | CZ7: 0 | DA7: 0 | DB7: 0 | DC7: 0 | DD7: 0 | DE7: 0 | DF7: 0 | DG7: 0 | DH7: 0 | DI7: 0 | DJ7: =IF(#REF!>$Y$3,0,#REF!) ->  | DK7: =IF(#REF!>$Y$3,0,#REF!) ->  | DL7: =IF(#REF!>$Y$3,0,#REF!) ->  | DM7: =IF(#REF!>$Y$3,0,#REF!) ->  | DN7: =IF(#REF!>$Y$3,0,#REF!) ->  | DO7: =IF(#REF!>$Y$3,0,#REF!) ->  | DP7: =IF(#REF!>$Y$3,0,#REF!) ->  | DQ7: =IF(#REF!>$Y$3,0,#REF!) ->  | DR7: =IF(#REF!>$Y$3,0,#REF!) ->  | DS7: =IF(#REF!>$Y$3,0,#REF!) ->  | DT7: =IF(#REF!>$Y$3,0,#REF!) ->  | DU7: =IF(#REF!>$Y$3,0,#REF!) ->  | DV7: =IF(#REF!>$Y$3,0,#REF!) ->  | DW7: =IF(#REF!>$Y$3,0,#REF!) ->  | DX7: =IF(#REF!>$Y$3,0,#REF!) ->  | DY7: =IF(#REF!>$Y$3,0,#REF!) ->  | DZ7: =IF(#REF!>$Y$3,0,#REF!) ->  | EA7: =IF(#REF!>$Y$3,0,#REF!) ->  | EB7: =IF(#REF!>$Y$3,0,#REF!) ->  | EC7: =IF(#REF!>$Y$3,0,#REF!) ->  | ED7: =IF(#REF!>$Y$3,0,#REF!) ->  | EE7: =IF(#REF!>$Y$3,0,#REF!) ->  | EF7: =IF(#REF!>$Y$3,0,#REF!) ->  | EG7: =IF(#REF!>$Y$3,0,#REF!) ->  | EH7: =IF(#REF!>$Y$3,0,#REF!) ->  | EI7: =IF(#REF!>$Y$3,0,#REF!) ->  | EJ7: =IF(#REF!>$Y$3,0,#REF!) ->  | EK7: =IF(#REF!>$Y$3,0,#REF!) -> 
C8: 4 | D8: =IF('AS1'!D8="","",'AS1'!D8) ->  | E8: =IF('AS1'!E8="","",'AS1'!E8) -> MELO CHAVEZ KEVIN JOSUE | F8: 2 | G8: 2 | H8: 2 | I8: 2 | J8: 2 | K8: 2 | L8: 2 | M8: 2 | N8: 2 | O8: 2 | P8: 2 | Q8: 2 | R8: 0 | S8: 2 | T8: 0 | U8: 2 | V8: 2 | W8: 2 | X8: 2 | Y8: 2 | Z8: 2 | AA8: 2 | AB8: 2 | AC8: 2 | AD8: 2 | AE8: 2 | AF8: 2 | BF8: =SUM(F8:BE8) -> 50 | BG8: =IF(PARCIAL1!L$8=0,0,(ROUND(((BF8*10)/PARCIAL2!L$8),1))) -> 9.3 | BJ8: 2 | BK8: 2 | BL8: 2 | BM8: 2 | BN8: 2 | BO8: 2 | BP8: 2 | BQ8: 2 | BR8: 2 | BS8: 2 | BT8: 2 | BU8: 2 | BV8: 0 | BW8: 2 | BX8: 0 | BY8: 2 | BZ8: 2 | CA8: 2 | CB8: 2 | CC8: 2 | CD8: 2 | CE8: 2 | CF8: 2 | CG8: 2 | CH8: 2 | CI8: 2 | CJ8: 2 | CK8: 0 | CL8: 0 | CM8: 0 | CN8: 0 | CO8: 0 | CP8: 0 | CQ8: 0 | CR8: 0 | CS8: 0 | CT8: 0 | CU8: 0 | CV8: 0 | CW8: 0 | CX8: 0 | CY8: 0 | CZ8: 0 | DA8: 0 | DB8: 0 | DC8: 0 | DD8: 0 | DE8: 0 | DF8: 0 | DG8: 0 | DH8: 0 | DI8: 0 | DJ8: =IF(#REF!>$Y$3,0,#REF!) ->  | DK8: =IF(#REF!>$Y$3,0,#REF!) ->  | DL8: =IF(#REF!>$Y$3,0,#REF!) ->  | DM8: =IF(#REF!>$Y$3,0,#REF!) ->  | DN8: =IF(#REF!>$Y$3,0,#REF!) ->  | DO8: =IF(#REF!>$Y$3,0,#REF!) ->  | DP8: =IF(#REF!>$Y$3,0,#REF!) ->  | DQ8: =IF(#REF!>$Y$3,0,#REF!) ->  | DR8: =IF(#REF!>$Y$3,0,#REF!) ->  | DS8: =IF(#REF!>$Y$3,0,#REF!) ->  | DT8: =IF(#REF!>$Y$3,0,#REF!) ->  | DU8: =IF(#REF!>$Y$3,0,#REF!) ->  | DV8: =IF(#REF!>$Y$3,0,#REF!) ->  | DW8: =IF(#REF!>$Y$3,0,#REF!) ->  | DX8: =IF(#REF!>$Y$3,0,#REF!) ->  | DY8: =IF(#REF!>$Y$3,0,#REF!) ->  | DZ8: =IF(#REF!>$Y$3,0,#REF!) ->  | EA8: =IF(#REF!>$Y$3,0,#REF!) ->  | EB8: =IF(#REF!>$Y$3,0,#REF!) ->  | EC8: =IF(#REF!>$Y$3,0,#REF!) ->  | ED8: =IF(#REF!>$Y$3,0,#REF!) ->  | EE8: =IF(#REF!>$Y$3,0,#REF!) ->  | EF8: =IF(#REF!>$Y$3,0,#REF!) ->  | EG8: =IF(#REF!>$Y$3,0,#REF!) ->  | EH8: =IF(#REF!>$Y$3,0,#REF!) ->  | EI8: =IF(#REF!>$Y$3,0,#REF!) ->  | EJ8: =IF(#REF!>$Y$3,0,#REF!) ->  | EK8: =IF(#REF!>$Y$3,0,#REF!) -> 
C9: 5 | D9: =IF('AS1'!D9="","",'AS1'!D9) ->  | E9: =IF('AS1'!E9="","",'AS1'!E9) -> MULLO PAUCAR ADRIANA ANABEL | F9: 2 | G9: 2 | H9: 2 | I9: 0 | J9: 2 | K9: 2 | L9: 2 | M9: 2 | N9: 2 | O9: 2 | P9: 2 | Q9: 2 | R9: 2 | S9: 2 | T9: 2 | U9: 2 | V9: 2 | W9: 2 | X9: 2 | Y9: 2 | Z9: 2 | AA9: 2 | AB9: 2 | AC9: 2 | AD9: 2 | AE9: 2 | AF9: 2 | BF9: 52 | BG9: =IF(PARCIAL1!L$8=0,0,(ROUND(((BF9*10)/PARCIAL2!L$8),1))) -> 9.6 | BJ9: 2 | BK9: 2 | BL9: 2 | BM9: 0 | BN9: 2 | BO9: 2 | BP9: 2 | BQ9: 2 | BR9: 2 | BS9: 2 | BT9: 2 | BU9: 2 | BV9: 2 | BW9: 2 | BX9: 2 | BY9: 2 | BZ9: 2 | CA9: 2 | CB9: 2 | CC9: 2 | CD9: 2 | CE9: 2 | CF9: 2 | CG9: 2 | CH9: 2 | CI9: 2 | CJ9: 2 | CK9: 0 | CL9: 0 | CM9: 0 | CN9: 0 | CO9: 0 | CP9: 0 | CQ9: 0 | CR9: 0 | CS9: 0 | CT9: 0 | CU9: 0 | CV9: 0 | CW9: 0 | CX9: 0 | CY9: 0 | CZ9: 0 | DA9: 0 | DB9: 0 | DC9: 0 | DD9: 0 | DE9: 0 | DF9: 0 | DG9: 0 | DH9: 0 | DI9: 0 | DJ9: =IF(#REF!>$Y$3,0,#REF!) ->  | DK9: =IF(#REF!>$Y$3,0,#REF!) ->  | DL9: =IF(#REF!>$Y$3,0,#REF!) ->  | DM9: =IF(#REF!>$Y$3,0,#REF!) ->  | DN9: =IF(#REF!>$Y$3,0,#REF!) ->  | DO9: =IF(#REF!>$Y$3,0,#REF!) ->  | DP9: =IF(#REF!>$Y$3,0,#REF!) ->  | DQ9: =IF(#REF!>$Y$3,0,#REF!) ->  | DR9: =IF(#REF!>$Y$3,0,#REF!) ->  | DS9: =IF(#REF!>$Y$3,0,#REF!) ->  | DT9: =IF(#REF!>$Y$3,0,#REF!) ->  | DU9: =IF(#REF!>$Y$3,0,#REF!) ->  | DV9: =IF(#REF!>$Y$3,0,#REF!) ->  | DW9: =IF(#REF!>$Y$3,0,#REF!) ->  | DX9: =IF(#REF!>$Y$3,0,#REF!) ->  | DY9: =IF(#REF!>$Y$3,0,#REF!) ->  | DZ9: =IF(#REF!>$Y$3,0,#REF!) ->  | EA9: =IF(#REF!>$Y$3,0,#REF!) ->  | EB9: =IF(#REF!>$Y$3,0,#REF!) ->  | EC9: =IF(#REF!>$Y$3,0,#REF!) ->  | ED9: =IF(#REF!>$Y$3,0,#REF!) ->  | EE9: =IF(#REF!>$Y$3,0,#REF!) ->  | EF9: =IF(#REF!>$Y$3,0,#REF!) ->  | EG9: =IF(#REF!>$Y$3,0,#REF!) ->  | EH9: =IF(#REF!>$Y$3,0,#REF!) ->  | EI9: =IF(#REF!>$Y$3,0,#REF!) ->  | EJ9: =IF(#REF!>$Y$3,0,#REF!) ->  | EK9: =IF(#REF!>$Y$3,0,#REF!) -> 
C10: 6 | D10: =IF('AS1'!D10="","",'AS1'!D10) ->  | E10: =IF('AS1'!E10="","",'AS1'!E10) -> NARANJO PALACIOS FERNANDA BRIGUITTE | BF10: 0 | BG10: =IF(PARCIAL1!L$8=0,0,(ROUND(((BF10*10)/PARCIAL2!L$8),1))) -> 0 | BJ10: 0 | BK10: 0 | BL10: 0 | BM10: 0 | BN10: 0 | BO10: 0 | BP10: 0 | BQ10: 0 | BR10: 0 | BS10: 0 | BT10: 0 | BU10: 0 | BV10: 0 | BW10: 0 | BX10: 0 | BY10: 0 | BZ10: 0 | CA10: 0 | CB10: 0 | CC10: 0 | CD10: 0 | CE10: 0 | CF10: 0 | CG10: 0 | CH10: 0 | CI10: 0 | CJ10: 0 | CK10: 0 | CL10: 0 | CM10: 0 | CN10: 0 | CO10: 0 | CP10: 0 | CQ10: 0 | CR10: 0 | CS10: 0 | CT10: 0 | CU10: 0 | CV10: 0 | CW10: 0 | CX10: 0 | CY10: 0 | CZ10: 0 | DA10: 0 | DB10: 0 | DC10: 0 | DD10: 0 | DE10: 0 | DF10: 0 | DG10: 0 | DH10: 0 | DI10: 0 | DJ10: =IF(#REF!>$Y$3,0,#REF!) ->  | DK10: =IF(#REF!>$Y$3,0,#REF!) ->  | DL10: =IF(#REF!>$Y$3,0,#REF!) ->  | DM10: =IF(#REF!>$Y$3,0,#REF!) ->  | DN10: =IF(#REF!>$Y$3,0,#REF!) ->  | DO10: =IF(#REF!>$Y$3,0,#REF!) ->  | DP10: =IF(#REF!>$Y$3,0,#REF!) ->  | DQ10: =IF(#REF!>$Y$3,0,#REF!) ->  | DR10: =IF(#REF!>$Y$3,0,#REF!) ->  | DS10: =IF(#REF!>$Y$3,0,#REF!) ->  | DT10: =IF(#REF!>$Y$3,0,#REF!) ->  | DU10: =IF(#REF!>$Y$3,0,#REF!) ->  | DV10: =IF(#REF!>$Y$3,0,#REF!) ->  | DW10: =IF(#REF!>$Y$3,0,#REF!) ->  | DX10: =IF(#REF!>$Y$3,0,#REF!) ->  | DY10: =IF(#REF!>$Y$3,0,#REF!) ->  | DZ10: =IF(#REF!>$Y$3,0,#REF!) ->  | EA10: =IF(#REF!>$Y$3,0,#REF!) ->  | EB10: =IF(#REF!>$Y$3,0,#REF!) ->  | EC10: =IF(#REF!>$Y$3,0,#REF!) ->  | ED10: =IF(#REF!>$Y$3,0,#REF!) ->  | EE10: =IF(#REF!>$Y$3,0,#REF!) ->  | EF10: =IF(#REF!>$Y$3,0,#REF!) ->  | EG10: =IF(#REF!>$Y$3,0,#REF!) ->  | EH10: =IF(#REF!>$Y$3,0,#REF!) ->  | EI10: =IF(#REF!>$Y$3,0,#REF!) ->  | EJ10: =IF(#REF!>$Y$3,0,#REF!) ->  | EK10: =IF(#REF!>$Y$3,0,#REF!) -> 
C11: 7 | D11: =IF('AS1'!D11="","",'AS1'!D11) ->  | E11: =IF('AS1'!E11="","",'AS1'!E11) -> SOTO VARGAS ERIKA SAMANTA | F11: 2 | G11: 2 | H11: 2 | I11: 2 | J11: 2 | K11: 2 | L11: 2 | M11: 2 | N11: 2 | O11: 2 | P11: 2 | Q11: 2 | R11: 2 | S11: 2 | T11: 2 | U11: 2 | V11: 2 | W11: 2 | X11: 2 | Y11: 2 | Z11: 2 | AA11: 2 | AB11: 2 | AC11: 2 | AD11: 2 | AE11: 2 | AF11: 2 | BF11: 54 | BG11: =IF(PARCIAL1!L$8=0,0,(ROUND(((BF11*10)/PARCIAL2!L$8),1))) -> 10 | BJ11: 2 | BK11: 2 | BL11: 2 | BM11: 2 | BN11: 2 | BO11: 2 | BP11: 2 | BQ11: 2 | BR11: 2 | BS11: 2 | BT11: 2 | BU11: 2 | BV11: 2 | BW11: 2 | BX11: 2 | BY11: 2 | BZ11: 2 | CA11: 2 | CB11: 2 | CC11: 2 | CD11: 2 | CE11: 2 | CF11: 2 | CG11: 2 | CH11: 2 | CI11: 2 | CJ11: 2 | CK11: 0 | CL11: 0 | CM11: 0 | CN11: 0 | CO11: 0 | CP11: 0 | CQ11: 0 | CR11: 0 | CS11: 0 | CT11: 0 | CU11: 0 | CV11: 0 | CW11: 0 | CX11: 0 | CY11: 0 | CZ11: 0 | DA11: 0 | DB11: 0 | DC11: 0 | DD11: 0 | DE11: 0 | DF11: 0 | DG11: 0 | DH11: 0 | DI11: 0 | DJ11: =IF(#REF!>$Y$3,0,#REF!) ->  | DK11: =IF(#REF!>$Y$3,0,#REF!) ->  | DL11: =IF(#REF!>$Y$3,0,#REF!) ->  | DM11: =IF(#REF!>$Y$3,0,#REF!) ->  | DN11: =IF(#REF!>$Y$3,0,#REF!) ->  | DO11: =IF(#REF!>$Y$3,0,#REF!) ->  | DP11: =IF(#REF!>$Y$3,0,#REF!) ->  | DQ11: =IF(#REF!>$Y$3,0,#REF!) ->  | DR11: =IF(#REF!>$Y$3,0,#REF!) ->  | DS11: =IF(#REF!>$Y$3,0,#REF!) ->  | DT11: =IF(#REF!>$Y$3,0,#REF!) ->  | DU11: =IF(#REF!>$Y$3,0,#REF!) ->  | DV11: =IF(#REF!>$Y$3,0,#REF!) ->  | DW11: =IF(#REF!>$Y$3,0,#REF!) ->  | DX11: =IF(#REF!>$Y$3,0,#REF!) ->  | DY11: =IF(#REF!>$Y$3,0,#REF!) ->  | DZ11: =IF(#REF!>$Y$3,0,#REF!) ->  | EA11: =IF(#REF!>$Y$3,0,#REF!) ->  | EB11: =IF(#REF!>$Y$3,0,#REF!) ->  | EC11: =IF(#REF!>$Y$3,0,#REF!) ->  | ED11: =IF(#REF!>$Y$3,0,#REF!) ->  | EE11: =IF(#REF!>$Y$3,0,#REF!) ->  | EF11: =IF(#REF!>$Y$3,0,#REF!) ->  | EG11: =IF(#REF!>$Y$3,0,#REF!) ->  | EH11: =IF(#REF!>$Y$3,0,#REF!) ->  | EI11: =IF(#REF!>$Y$3,0,#REF!) ->  | EJ11: =IF(#REF!>$Y$3,0,#REF!) ->  | EK11: =IF(#REF!>$Y$3,0,#REF!) -> 
C12: 8 | D12: =IF('AS1'!D12="","",'AS1'!D12) ->  | E12: =IF('AS1'!E12="","",'AS1'!E12) -> VALLEJO ORDOÑEZ SAYONARA ELIZABETH | F12: 2 | G12: 2 | H12: 2 | J12: 2 | K12: 2 | L12: 2 | M12: 2 | N12: 2 | O12: 2 | P12: 2 | Q12: 2 | R12: 2 | S12: 2 | T12: 2 | U12: 2 | V12: 2 | W12: 2 | X12: 2 | Y12: 2 | Z12: 2 | AA12: 2 | AB12: 2 | AC12: 2 | AD12: 2 | AE12: 2 | AF12: 2 | BF12: 52 | BG12: =IF(PARCIAL1!L$8=0,0,(ROUND(((BF12*10)/PARCIAL2!L$8),1))) -> 9.6 | BJ12: 2 | BK12: 2 | BL12: 2 | BM12: 0 | BN12: 2 | BO12: 2 | BP12: 2 | BQ12: 2 | BR12: 2 | BS12: 2 | BT12: 2 | BU12: 2 | BV12: 2 | BW12: 2 | BX12: 2 | BY12: 2 | BZ12: 2 | CA12: 2 | CB12: 2 | CC12: 2 | CD12: 2 | CE12: 2 | CF12: 2 | CG12: 2 | CH12: 2 | CI12: 2 | CJ12: 2 | CK12: 0 | CL12: 0 | CM12: 0 | CN12: 0 | CO12: 0 | CP12: 0 | CQ12: 0 | CR12: 0 | CS12: 0 | CT12: 0 | CU12: 0 | CV12: 0 | CW12: 0 | CX12: 0 | CY12: 0 | CZ12: 0 | DA12: 0 | DB12: 0 | DC12: 0 | DD12: 0 | DE12: 0 | DF12: 0 | DG12: 0 | DH12: 0 | DI12: 0 | DJ12: =IF(#REF!>$Y$3,0,#REF!) ->  | DK12: =IF(#REF!>$Y$3,0,#REF!) ->  | DL12: =IF(#REF!>$Y$3,0,#REF!) ->  | DM12: =IF(#REF!>$Y$3,0,#REF!) ->  | DN12: =IF(#REF!>$Y$3,0,#REF!) ->  | DO12: =IF(#REF!>$Y$3,0,#REF!) ->  | DP12: =IF(#REF!>$Y$3,0,#REF!) ->  | DQ12: =IF(#REF!>$Y$3,0,#REF!) ->  | DR12: =IF(#REF!>$Y$3,0,#REF!) ->  | DS12: =IF(#REF!>$Y$3,0,#REF!) ->  | DT12: =IF(#REF!>$Y$3,0,#REF!) ->  | DU12: =IF(#REF!>$Y$3,0,#REF!) ->  | DV12: =IF(#REF!>$Y$3,0,#REF!) ->  | DW12: =IF(#REF!>$Y$3,0,#REF!) ->  | DX12: =IF(#REF!>$Y$3,0,#REF!) ->  | DY12: =IF(#REF!>$Y$3,0,#REF!) ->  | DZ12: =IF(#REF!>$Y$3,0,#REF!) ->  | EA12: =IF(#REF!>$Y$3,0,#REF!) ->  | EB12: =IF(#REF!>$Y$3,0,#REF!) ->  | EC12: =IF(#REF!>$Y$3,0,#REF!) ->  | ED12: =IF(#REF!>$Y$3,0,#REF!) ->  | EE12: =IF(#REF!>$Y$3,0,#REF!) ->  | EF12: =IF(#REF!>$Y$3,0,#REF!) ->  | EG12: =IF(#REF!>$Y$3,0,#REF!) ->  | EH12: =IF(#REF!>$Y$3,0,#REF!) ->  | EI12: =IF(#REF!>$Y$3,0,#REF!) ->  | EJ12: =IF(#REF!>$Y$3,0,#REF!) ->  | EK12: =IF(#REF!>$Y$3,0,#REF!) -> 
C13: 9 | D13: =IF('AS1'!D13="","",'AS1'!D13) ->  | E13: =IF('AS1'!E13="","",'AS1'!E13) ->  | BF13: 0 | BG13: =IF(PARCIAL1!L$8=0,0,(ROUND(((BF13*10)/PARCIAL2!L$8),1))) -> 0 | BJ13: 0 | BK13: 0 | BL13: 0 | BM13: 0 | BN13: 0 | BO13: 0 | BP13: 0 | BQ13: 0 | BR13: 0 | BS13: 0 | BT13: 0 | BU13: 0 | BV13: 0 | BW13: 0 | BX13: 0 | BY13: 0 | BZ13: 0 | CA13: 0 | CB13: 0 | CC13: 0 | CD13: 0 | CE13: 0 | CF13: 0 | CG13: 0 | CH13: 0 | CI13: 0 | CJ13: 0 | CK13: 0 | CL13: 0 | CM13: 0 | CN13: 0 | CO13: 0 | CP13: 0 | CQ13: 0 | CR13: 0 | CS13: 0 | CT13: 0 | CU13: 0 | CV13: 0 | CW13: 0 | CX13: 0 | CY13: 0 | CZ13: 0 | DA13: 0 | DB13: 0 | DC13: 0 | DD13: 0 | DE13: 0 | DF13: 0 | DG13: 0 | DH13: 0 | DI13: 0 | DJ13: =IF(#REF!>$Y$3,0,#REF!) ->  | DK13: =IF(#REF!>$Y$3,0,#REF!) ->  | DL13: =IF(#REF!>$Y$3,0,#REF!) ->  | DM13: =IF(#REF!>$Y$3,0,#REF!) ->  | DN13: =IF(#REF!>$Y$3,0,#REF!) ->  | DO13: =IF(#REF!>$Y$3,0,#REF!) ->  | DP13: =IF(#REF!>$Y$3,0,#REF!) ->  | DQ13: =IF(#REF!>$Y$3,0,#REF!) ->  | DR13: =IF(#REF!>$Y$3,0,#REF!) ->  | DS13: =IF(#REF!>$Y$3,0,#REF!) ->  | DT13: =IF(#REF!>$Y$3,0,#REF!) ->  | DU13: =IF(#REF!>$Y$3,0,#REF!) ->  | DV13: =IF(#REF!>$Y$3,0,#REF!) ->  | DW13: =IF(#REF!>$Y$3,0,#REF!) ->  | DX13: =IF(#REF!>$Y$3,0,#REF!) ->  | DY13: =IF(#REF!>$Y$3,0,#REF!) ->  | DZ13: =IF(#REF!>$Y$3,0,#REF!) ->  | EA13: =IF(#REF!>$Y$3,0,#REF!) ->  | EB13: =IF(#REF!>$Y$3,0,#REF!) ->  | EC13: =IF(#REF!>$Y$3,0,#REF!) ->  | ED13: =IF(#REF!>$Y$3,0,#REF!) ->  | EE13: =IF(#REF!>$Y$3,0,#REF!) ->  | EF13: =IF(#REF!>$Y$3,0,#REF!) ->  | EG13: =IF(#REF!>$Y$3,0,#REF!) ->  | EH13: =IF(#REF!>$Y$3,0,#REF!) ->  | EI13: =IF(#REF!>$Y$3,0,#REF!) ->  | EJ13: =IF(#REF!>$Y$3,0,#REF!) ->  | EK13: =IF(#REF!>$Y$3,0,#REF!) -> 
C14: 10 | D14: =IF('AS1'!D14="","",'AS1'!D14) ->  | E14: =IF('AS1'!E14="","",'AS1'!E14) ->  | BF14: 0 | BG14: =IF(PARCIAL1!L$8=0,0,(ROUND(((BF14*10)/PARCIAL2!L$8),1))) -> 0 | BJ14: 0 | BK14: 0 | BL14: 0 | BM14: 0 | BN14: 0 | BO14: 0 | BP14: 0 | BQ14: 0 | BR14: 0 | BS14: 0 | BT14: 0 | BU14: 0 | BV14: 0 | BW14: 0 | BX14: 0 | BY14: 0 | BZ14: 0 | CA14: 0 | CB14: 0 | CC14: 0 | CD14: 0 | CE14: 0 | CF14: 0 | CG14: 0 | CH14: 0 | CI14: 0 | CJ14: 0 | CK14: 0 | CL14: 0 | CM14: 0 | CN14: 0 | CO14: 0 | CP14: 0 | CQ14: 0 | CR14: 0 | CS14: 0 | CT14: 0 | CU14: 0 | CV14: 0 | CW14: 0 | CX14: 0 | CY14: 0 | CZ14: 0 | DA14: 0 | DB14: 0 | DC14: 0 | DD14: 0 | DE14: 0 | DF14: 0 | DG14: 0 | DH14: 0 | DI14: 0 | DJ14: =IF(#REF!>$Y$3,0,#REF!) ->  | DK14: =IF(#REF!>$Y$3,0,#REF!) ->  | DL14: =IF(#REF!>$Y$3,0,#REF!) ->  | DM14: =IF(#REF!>$Y$3,0,#REF!) ->  | DN14: =IF(#REF!>$Y$3,0,#REF!) ->  | DO14: =IF(#REF!>$Y$3,0,#REF!) ->  | DP14: =IF(#REF!>$Y$3,0,#REF!) ->  | DQ14: =IF(#REF!>$Y$3,0,#REF!) ->  | DR14: =IF(#REF!>$Y$3,0,#REF!) ->  | DS14: =IF(#REF!>$Y$3,0,#REF!) ->  | DT14: =IF(#REF!>$Y$3,0,#REF!) ->  | DU14: =IF(#REF!>$Y$3,0,#REF!) ->  | DV14: =IF(#REF!>$Y$3,0,#REF!) ->  | DW14: =IF(#REF!>$Y$3,0,#REF!) ->  | DX14: =IF(#REF!>$Y$3,0,#REF!) ->  | DY14: =IF(#REF!>$Y$3,0,#REF!) ->  | DZ14: =IF(#REF!>$Y$3,0,#REF!) ->  | EA14: =IF(#REF!>$Y$3,0,#REF!) ->  | EB14: =IF(#REF!>$Y$3,0,#REF!) ->  | EC14: =IF(#REF!>$Y$3,0,#REF!) ->  | ED14: =IF(#REF!>$Y$3,0,#REF!) ->  | EE14: =IF(#REF!>$Y$3,0,#REF!) ->  | EF14: =IF(#REF!>$Y$3,0,#REF!) ->  | EG14: =IF(#REF!>$Y$3,0,#REF!) ->  | EH14: =IF(#REF!>$Y$3,0,#REF!) ->  | EI14: =IF(#REF!>$Y$3,0,#REF!) ->  | EJ14: =IF(#REF!>$Y$3,0,#REF!) ->  | EK14: =IF(#REF!>$Y$3,0,#REF!) -> 
C15: 11 | D15: =IF('AS1'!D15="","",'AS1'!D15) ->  | E15: =IF('AS1'!E15="","",'AS1'!E15) ->  | BF15: 0 | BG15: =IF(PARCIAL1!L$8=0,0,(ROUND(((BF15*10)/PARCIAL2!L$8),1))) -> 0 | BJ15: 0 | BK15: 0 | BL15: 0 | BM15: 0 | BN15: 0 | BO15: 0 | BP15: 0 | BQ15: 0 | BR15: 0 | BS15: 0 | BT15: 0 | BU15: 0 | BV15: 0 | BW15: 0 | BX15: 0 | BY15: 0 | BZ15: 0 | CA15: 0 | CB15: 0 | CC15: 0 | CD15: 0 | CE15: 0 | CF15: 0 | CG15: 0 | CH15: 0 | CI15: 0 | CJ15: 0 | CK15: 0 | CL15: 0 | CM15: 0 | CN15: 0 | CO15: 0 | CP15: 0 | CQ15: 0 | CR15: 0 | CS15: 0 | CT15: 0 | CU15: 0 | CV15: 0 | CW15: 0 | CX15: 0 | CY15: 0 | CZ15: 0 | DA15: 0 | DB15: 0 | DC15: 0 | DD15: 0 | DE15: 0 | DF15: 0 | DG15: 0 | DH15: 0 | DI15: 0 | DJ15: =IF(#REF!>$Y$3,0,#REF!) ->  | DK15: =IF(#REF!>$Y$3,0,#REF!) ->  | DL15: =IF(#REF!>$Y$3,0,#REF!) ->  | DM15: =IF(#REF!>$Y$3,0,#REF!) ->  | DN15: =IF(#REF!>$Y$3,0,#REF!) ->  | DO15: =IF(#REF!>$Y$3,0,#REF!) ->  | DP15: =IF(#REF!>$Y$3,0,#REF!) ->  | DQ15: =IF(#REF!>$Y$3,0,#REF!) ->  | DR15: =IF(#REF!>$Y$3,0,#REF!) ->  | DS15: =IF(#REF!>$Y$3,0,#REF!) ->  | DT15: =IF(#REF!>$Y$3,0,#REF!) ->  | DU15: =IF(#REF!>$Y$3,0,#REF!) ->  | DV15: =IF(#REF!>$Y$3,0,#REF!) ->  | DW15: =IF(#REF!>$Y$3,0,#REF!) ->  | DX15: =IF(#REF!>$Y$3,0,#REF!) ->  | DY15: =IF(#REF!>$Y$3,0,#REF!) ->  | DZ15: =IF(#REF!>$Y$3,0,#REF!) ->  | EA15: =IF(#REF!>$Y$3,0,#REF!) ->  | EB15: =IF(#REF!>$Y$3,0,#REF!) ->  | EC15: =IF(#REF!>$Y$3,0,#REF!) ->  | ED15: =IF(#REF!>$Y$3,0,#REF!) ->  | EE15: =IF(#REF!>$Y$3,0,#REF!) ->  | EF15: =IF(#REF!>$Y$3,0,#REF!) ->  | EG15: =IF(#REF!>$Y$3,0,#REF!) ->  | EH15: =IF(#REF!>$Y$3,0,#REF!) ->  | EI15: =IF(#REF!>$Y$3,0,#REF!) ->  | EJ15: =IF(#REF!>$Y$3,0,#REF!) ->  | EK15: =IF(#REF!>$Y$3,0,#REF!) -> 
C16: 12 | D16: =IF('AS1'!D16="","",'AS1'!D16) ->  | E16: =IF('AS1'!E16="","",'AS1'!E16) ->  | BF16: 0 | BG16: =IF(PARCIAL1!L$8=0,0,(ROUND(((BF16*10)/PARCIAL2!L$8),1))) -> 0 | BJ16: 0 | BK16: 0 | BL16: 0 | BM16: 0 | BN16: 0 | BO16: 0 | BP16: 0 | BQ16: 0 | BR16: 0 | BS16: 0 | BT16: 0 | BU16: 0 | BV16: 0 | BW16: 0 | BX16: 0 | BY16: 0 | BZ16: 0 | CA16: 0 | CB16: 0 | CC16: 0 | CD16: 0 | CE16: 0 | CF16: 0 | CG16: 0 | CH16: 0 | CI16: 0 | CJ16: 0 | CK16: 0 | CL16: 0 | CM16: 0 | CN16: 0 | CO16: 0 | CP16: 0 | CQ16: 0 | CR16: 0 | CS16: 0 | CT16: 0 | CU16: 0 | CV16: 0 | CW16: 0 | CX16: 0 | CY16: 0 | CZ16: 0 | DA16: 0 | DB16: 0 | DC16: 0 | DD16: 0 | DE16: 0 | DF16: 0 | DG16: 0 | DH16: 0 | DI16: 0 | DJ16: =IF(#REF!>$Y$3,0,#REF!) ->  | DK16: =IF(#REF!>$Y$3,0,#REF!) ->  | DL16: =IF(#REF!>$Y$3,0,#REF!) ->  | DM16: =IF(#REF!>$Y$3,0,#REF!) ->  | DN16: =IF(#REF!>$Y$3,0,#REF!) ->  | DO16: =IF(#REF!>$Y$3,0,#REF!) ->  | DP16: =IF(#REF!>$Y$3,0,#REF!) ->  | DQ16: =IF(#REF!>$Y$3,0,#REF!) ->  | DR16: =IF(#REF!>$Y$3,0,#REF!) ->  | DS16: =IF(#REF!>$Y$3,0,#REF!) ->  | DT16: =IF(#REF!>$Y$3,0,#REF!) ->  | DU16: =IF(#REF!>$Y$3,0,#REF!) ->  | DV16: =IF(#REF!>$Y$3,0,#REF!) ->  | DW16: =IF(#REF!>$Y$3,0,#REF!) ->  | DX16: =IF(#REF!>$Y$3,0,#REF!) ->  | DY16: =IF(#REF!>$Y$3,0,#REF!) ->  | DZ16: =IF(#REF!>$Y$3,0,#REF!) ->  | EA16: =IF(#REF!>$Y$3,0,#REF!) ->  | EB16: =IF(#REF!>$Y$3,0,#REF!) ->  | EC16: =IF(#REF!>$Y$3,0,#REF!) ->  | ED16: =IF(#REF!>$Y$3,0,#REF!) ->  | EE16: =IF(#REF!>$Y$3,0,#REF!) ->  | EF16: =IF(#REF!>$Y$3,0,#REF!) ->  | EG16: =IF(#REF!>$Y$3,0,#REF!) ->  | EH16: =IF(#REF!>$Y$3,0,#REF!) ->  | EI16: =IF(#REF!>$Y$3,0,#REF!) ->  | EJ16: =IF(#REF!>$Y$3,0,#REF!) ->  | EK16: =IF(#REF!>$Y$3,0,#REF!) -> 
C17: 13 | D17: =IF('AS1'!D17="","",'AS1'!D17) ->  | E17: =IF('AS1'!E17="","",'AS1'!E17) ->  | BF17: 0 | BG17: =IF(PARCIAL1!L$8=0,0,(ROUND(((BF17*10)/PARCIAL2!L$8),1))) -> 0 | BJ17: 0 | BK17: 0 | BL17: 0 | BM17: 0 | BN17: 0 | BO17: 0 | BP17: 0 | BQ17: 0 | BR17: 0 | BS17: 0 | BT17: 0 | BU17: 0 | BV17: 0 | BW17: 0 | BX17: 0 | BY17: 0 | BZ17: 0 | CA17: 0 | CB17: 0 | CC17: 0 | CD17: 0 | CE17: 0 | CF17: 0 | CG17: 0 | CH17: 0 | CI17: 0 | CJ17: 0 | CK17: 0 | CL17: 0 | CM17: 0 | CN17: 0 | CO17: 0 | CP17: 0 | CQ17: 0 | CR17: 0 | CS17: 0 | CT17: 0 | CU17: 0 | CV17: 0 | CW17: 0 | CX17: 0 | CY17: 0 | CZ17: 0 | DA17: 0 | DB17: 0 | DC17: 0 | DD17: 0 | DE17: 0 | DF17: 0 | DG17: 0 | DH17: 0 | DI17: 0 | DJ17: =IF(#REF!>$Y$3,0,#REF!) ->  | DK17: =IF(#REF!>$Y$3,0,#REF!) ->  | DL17: =IF(#REF!>$Y$3,0,#REF!) ->  | DM17: =IF(#REF!>$Y$3,0,#REF!) ->  | DN17: =IF(#REF!>$Y$3,0,#REF!) ->  | DO17: =IF(#REF!>$Y$3,0,#REF!) ->  | DP17: =IF(#REF!>$Y$3,0,#REF!) ->  | DQ17: =IF(#REF!>$Y$3,0,#REF!) ->  | DR17: =IF(#REF!>$Y$3,0,#REF!) ->  | DS17: =IF(#REF!>$Y$3,0,#REF!) ->  | DT17: =IF(#REF!>$Y$3,0,#REF!) ->  | DU17: =IF(#REF!>$Y$3,0,#REF!) ->  | DV17: =IF(#REF!>$Y$3,0,#REF!) ->  | DW17: =IF(#REF!>$Y$3,0,#REF!) ->  | DX17: =IF(#REF!>$Y$3,0,#REF!) ->  | DY17: =IF(#REF!>$Y$3,0,#REF!) ->  | DZ17: =IF(#REF!>$Y$3,0,#REF!) ->  | EA17: =IF(#REF!>$Y$3,0,#REF!) ->  | EB17: =IF(#REF!>$Y$3,0,#REF!) ->  | EC17: =IF(#REF!>$Y$3,0,#REF!) ->  | ED17: =IF(#REF!>$Y$3,0,#REF!) ->  | EE17: =IF(#REF!>$Y$3,0,#REF!) ->  | EF17: =IF(#REF!>$Y$3,0,#REF!) ->  | EG17: =IF(#REF!>$Y$3,0,#REF!) ->  | EH17: =IF(#REF!>$Y$3,0,#REF!) ->  | EI17: =IF(#REF!>$Y$3,0,#REF!) ->  | EJ17: =IF(#REF!>$Y$3,0,#REF!) ->  | EK17: =IF(#REF!>$Y$3,0,#REF!) -> 
C18: 14 | D18: =IF('AS1'!D18="","",'AS1'!D18) ->  | E18: =IF('AS1'!E18="","",'AS1'!E18) ->  | BF18: 0 | BG18: =IF(PARCIAL1!L$8=0,0,(ROUND(((BF18*10)/PARCIAL2!L$8),1))) -> 0 | BJ18: 0 | BK18: 0 | BL18: 0 | BM18: 0 | BN18: 0 | BO18: 0 | BP18: 0 | BQ18: 0 | BR18: 0 | BS18: 0 | BT18: 0 | BU18: 0 | BV18: 0 | BW18: 0 | BX18: 0 | BY18: 0 | BZ18: 0 | CA18: 0 | CB18: 0 | CC18: 0 | CD18: 0 | CE18: 0 | CF18: 0 | CG18: 0 | CH18: 0 | CI18: 0 | CJ18: 0 | CK18: 0 | CL18: 0 | CM18: 0 | CN18: 0 | CO18: 0 | CP18: 0 | CQ18: 0 | CR18: 0 | CS18: 0 | CT18: 0 | CU18: 0 | CV18: 0 | CW18: 0 | CX18: 0 | CY18: 0 | CZ18: 0 | DA18: 0 | DB18: 0 | DC18: 0 | DD18: 0 | DE18: 0 | DF18: 0 | DG18: 0 | DH18: 0 | DI18: 0 | DJ18: =IF(#REF!>$Y$3,0,#REF!) ->  | DK18: =IF(#REF!>$Y$3,0,#REF!) ->  | DL18: =IF(#REF!>$Y$3,0,#REF!) ->  | DM18: =IF(#REF!>$Y$3,0,#REF!) ->  | DN18: =IF(#REF!>$Y$3,0,#REF!) ->  | DO18: =IF(#REF!>$Y$3,0,#REF!) ->  | DP18: =IF(#REF!>$Y$3,0,#REF!) ->  | DQ18: =IF(#REF!>$Y$3,0,#REF!) ->  | DR18: =IF(#REF!>$Y$3,0,#REF!) ->  | DS18: =IF(#REF!>$Y$3,0,#REF!) ->  | DT18: =IF(#REF!>$Y$3,0,#REF!) ->  | DU18: =IF(#REF!>$Y$3,0,#REF!) ->  | DV18: =IF(#REF!>$Y$3,0,#REF!) ->  | DW18: =IF(#REF!>$Y$3,0,#REF!) ->  | DX18: =IF(#REF!>$Y$3,0,#REF!) ->  | DY18: =IF(#REF!>$Y$3,0,#REF!) ->  | DZ18: =IF(#REF!>$Y$3,0,#REF!) ->  | EA18: =IF(#REF!>$Y$3,0,#REF!) ->  | EB18: =IF(#REF!>$Y$3,0,#REF!) ->  | EC18: =IF(#REF!>$Y$3,0,#REF!) ->  | ED18: =IF(#REF!>$Y$3,0,#REF!) ->  | EE18: =IF(#REF!>$Y$3,0,#REF!) ->  | EF18: =IF(#REF!>$Y$3,0,#REF!) ->  | EG18: =IF(#REF!>$Y$3,0,#REF!) ->  | EH18: =IF(#REF!>$Y$3,0,#REF!) ->  | EI18: =IF(#REF!>$Y$3,0,#REF!) ->  | EJ18: =IF(#REF!>$Y$3,0,#REF!) ->  | EK18: =IF(#REF!>$Y$3,0,#REF!) -> 
C19: 15 | D19: =IF('AS1'!D19="","",'AS1'!D19) ->  | E19: =IF('AS1'!E19="","",'AS1'!E19) ->  | BF19: 0 | BG19: =IF(PARCIAL1!L$8=0,0,(ROUND(((BF19*10)/PARCIAL2!L$8),1))) -> 0 | BJ19: 0 | BK19: 0 | BL19: 0 | BM19: 0 | BN19: 0 | BO19: 0 | BP19: 0 | BQ19: 0 | BR19: 0 | BS19: 0 | BT19: 0 | BU19: 0 | BV19: 0 | BW19: 0 | BX19: 0 | BY19: 0 | BZ19: 0 | CA19: 0 | CB19: 0 | CC19: 0 | CD19: 0 | CE19: 0 | CF19: 0 | CG19: 0 | CH19: 0 | CI19: 0 | CJ19: 0 | CK19: 0 | CL19: 0 | CM19: 0 | CN19: 0 | CO19: 0 | CP19: 0 | CQ19: 0 | CR19: 0 | CS19: 0 | CT19: 0 | CU19: 0 | CV19: 0 | CW19: 0 | CX19: 0 | CY19: 0 | CZ19: 0 | DA19: 0 | DB19: 0 | DC19: 0 | DD19: 0 | DE19: 0 | DF19: 0 | DG19: 0 | DH19: 0 | DI19: 0 | DJ19: =IF(#REF!>$Y$3,0,#REF!) ->  | DK19: =IF(#REF!>$Y$3,0,#REF!) ->  | DL19: =IF(#REF!>$Y$3,0,#REF!) ->  | DM19: =IF(#REF!>$Y$3,0,#REF!) ->  | DN19: =IF(#REF!>$Y$3,0,#REF!) ->  | DO19: =IF(#REF!>$Y$3,0,#REF!) ->  | DP19: =IF(#REF!>$Y$3,0,#REF!) ->  | DQ19: =IF(#REF!>$Y$3,0,#REF!) ->  | DR19: =IF(#REF!>$Y$3,0,#REF!) ->  | DS19: =IF(#REF!>$Y$3,0,#REF!) ->  | DT19: =IF(#REF!>$Y$3,0,#REF!) ->  | DU19: =IF(#REF!>$Y$3,0,#REF!) ->  | DV19: =IF(#REF!>$Y$3,0,#REF!) ->  | DW19: =IF(#REF!>$Y$3,0,#REF!) ->  | DX19: =IF(#REF!>$Y$3,0,#REF!) ->  | DY19: =IF(#REF!>$Y$3,0,#REF!) ->  | DZ19: =IF(#REF!>$Y$3,0,#REF!) ->  | EA19: =IF(#REF!>$Y$3,0,#REF!) ->  | EB19: =IF(#REF!>$Y$3,0,#REF!) ->  | EC19: =IF(#REF!>$Y$3,0,#REF!) ->  | ED19: =IF(#REF!>$Y$3,0,#REF!) ->  | EE19: =IF(#REF!>$Y$3,0,#REF!) ->  | EF19: =IF(#REF!>$Y$3,0,#REF!) ->  | EG19: =IF(#REF!>$Y$3,0,#REF!) ->  | EH19: =IF(#REF!>$Y$3,0,#REF!) ->  | EI19: =IF(#REF!>$Y$3,0,#REF!) ->  | EJ19: =IF(#REF!>$Y$3,0,#REF!) ->  | EK19: =IF(#REF!>$Y$3,0,#REF!) -> 
C20: 16 | D20: =IF('AS1'!D20="","",'AS1'!D20) ->  | E20: =IF('AS1'!E20="","",'AS1'!E20) ->  | BF20: 0 | BG20: =IF(PARCIAL1!L$8=0,0,(ROUND(((BF20*10)/PARCIAL2!L$8),1))) -> 0 | BJ20: 0 | BK20: 0 | BL20: 0 | BM20: 0 | BN20: 0 | BO20: 0 | BP20: 0 | BQ20: 0 | BR20: 0 | BS20: 0 | BT20: 0 | BU20: 0 | BV20: 0 | BW20: 0 | BX20: 0 | BY20: 0 | BZ20: 0 | CA20: 0 | CB20: 0 | CC20: 0 | CD20: 0 | CE20: 0 | CF20: 0 | CG20: 0 | CH20: 0 | CI20: 0 | CJ20: 0 | CK20: 0 | CL20: 0 | CM20: 0 | CN20: =IF(AJ20>$Y$3,0,AJ20) -> 0 | CO20: 0 | CP20: 0 | CQ20: 0 | CR20: 0 | CS20: 0 | CT20: 0 | CU20: 0 | CV20: 0 | CW20: 0 | CX20: 0 | CY20: 0 | CZ20: 0 | DA20: 0 | DB20: 0 | DC20: 0 | DD20: 0 | DE20: 0 | DF20: 0 | DG20: 0 | DH20: 0 | DI20: 0 | DJ20: =IF(#REF!>$Y$3,0,#REF!) ->  | DK20: =IF(#REF!>$Y$3,0,#REF!) ->  | DL20: =IF(#REF!>$Y$3,0,#REF!) ->  | DM20: =IF(#REF!>$Y$3,0,#REF!) ->  | DN20: =IF(#REF!>$Y$3,0,#REF!) ->  | DO20: =IF(#REF!>$Y$3,0,#REF!) ->  | DP20: =IF(#REF!>$Y$3,0,#REF!) ->  | DQ20: =IF(#REF!>$Y$3,0,#REF!) ->  | DR20: =IF(#REF!>$Y$3,0,#REF!) ->  | DS20: =IF(#REF!>$Y$3,0,#REF!) ->  | DT20: =IF(#REF!>$Y$3,0,#REF!) ->  | DU20: =IF(#REF!>$Y$3,0,#REF!) ->  | DV20: =IF(#REF!>$Y$3,0,#REF!) ->  | DW20: =IF(#REF!>$Y$3,0,#REF!) ->  | DX20: =IF(#REF!>$Y$3,0,#REF!) ->  | DY20: =IF(#REF!>$Y$3,0,#REF!) ->  | DZ20: =IF(#REF!>$Y$3,0,#REF!) ->  | EA20: =IF(#REF!>$Y$3,0,#REF!) ->  | EB20: =IF(#REF!>$Y$3,0,#REF!) ->  | EC20: =IF(#REF!>$Y$3,0,#REF!) ->  | ED20: =IF(#REF!>$Y$3,0,#REF!) ->  | EE20: =IF(#REF!>$Y$3,0,#REF!) ->  | EF20: =IF(#REF!>$Y$3,0,#REF!) ->  | EG20: =IF(#REF!>$Y$3,0,#REF!) ->  | EH20: =IF(#REF!>$Y$3,0,#REF!) ->  | EI20: =IF(#REF!>$Y$3,0,#REF!) ->  | EJ20: =IF(#REF!>$Y$3,0,#REF!) ->  | EK20: =IF(#REF!>$Y$3,0,#REF!) -> 
C21: 17 | D21: =IF('AS1'!D21="","",'AS1'!D21) ->  | E21: =IF('AS1'!E21="","",'AS1'!E21) ->  | BF21: 0 | BG21: =IF(PARCIAL1!L$8=0,0,(ROUND(((BF21*10)/PARCIAL2!L$8),1))) -> 0 | BJ21: =IF(F21>$Y$3,0,F21) -> 0 | BK21: 0 | BL21: 0 | BM21: 0 | BN21: 0 | BO21: 0 | BP21: 0 | BQ21: 0 | BR21: 0 | BS21: 0 | BT21: 0 | BU21: 0 | BV21: 0 | BW21: 0 | BX21: 0 | BY21: 0 | BZ21: =IF(V21>$Y$3,0,V21) -> 0 | CA21: 0 | CB21: 0 | CC21: 0 | CD21: 0 | CE21: 0 | CF21: 0 | CG21: 0 | CH21: 0 | CI21: 0 | CJ21: 0 | CK21: 0 | CL21: 0 | CM21: 0 | CN21: 0 | CO21: 0 | CP21: 0 | CQ21: 0 | CR21: 0 | CS21: 0 | CT21: 0 | CU21: 0 | CV21: 0 | CW21: 0 | CX21: 0 | CY21: 0 | CZ21: 0 | DA21: 0 | DB21: 0 | DC21: 0 | DD21: =IF(AZ21>$Y$3,0,AZ21) -> 0 | DE21: 0 | DF21: 0 | DG21: 0 | DH21: 0 | DI21: 0 | DJ21: =IF(#REF!>$Y$3,0,#REF!) ->  | DK21: =IF(#REF!>$Y$3,0,#REF!) ->  | DL21: =IF(#REF!>$Y$3,0,#REF!) ->  | DM21: =IF(#REF!>$Y$3,0,#REF!) ->  | DN21: =IF(#REF!>$Y$3,0,#REF!) ->  | DO21: =IF(#REF!>$Y$3,0,#REF!) ->  | DP21: =IF(#REF!>$Y$3,0,#REF!) ->  | DQ21: =IF(#REF!>$Y$3,0,#REF!) ->  | DR21: =IF(#REF!>$Y$3,0,#REF!) ->  | DS21: =IF(#REF!>$Y$3,0,#REF!) ->  | DT21: =IF(#REF!>$Y$3,0,#REF!) ->  | DU21: =IF(#REF!>$Y$3,0,#REF!) ->  | DV21: =IF(#REF!>$Y$3,0,#REF!) ->  | DW21: =IF(#REF!>$Y$3,0,#REF!) ->  | DX21: =IF(#REF!>$Y$3,0,#REF!) ->  | DY21: =IF(#REF!>$Y$3,0,#REF!) ->  | DZ21: =IF(#REF!>$Y$3,0,#REF!) ->  | EA21: =IF(#REF!>$Y$3,0,#REF!) ->  | EB21: =IF(#REF!>$Y$3,0,#REF!) ->  | EC21: =IF(#REF!>$Y$3,0,#REF!) ->  | ED21: =IF(#REF!>$Y$3,0,#REF!) ->  | EE21: =IF(#REF!>$Y$3,0,#REF!) ->  | EF21: =IF(#REF!>$Y$3,0,#REF!) ->  | EG21: =IF(#REF!>$Y$3,0,#REF!) ->  | EH21: =IF(#REF!>$Y$3,0,#REF!) ->  | EI21: =IF(#REF!>$Y$3,0,#REF!) ->  | EJ21: =IF(#REF!>$Y$3,0,#REF!) ->  | EK21: =IF(#REF!>$Y$3,0,#REF!) -> 
C22: 18 | D22: =IF('AS1'!D22="","",'AS1'!D22) ->  | E22: =IF('AS1'!E22="","",'AS1'!E22) ->  | BF22: 0 | BG22: =IF(PARCIAL1!L$8=0,0,(ROUND(((BF22*10)/PARCIAL2!L$8),1))) -> 0 | BJ22: 0 | BK22: 0 | BL22: 0 | BM22: 0 | BN22: 0 | BO22: 0 | BP22: 0 | BQ22: 0 | BR22: 0 | BS22: 0 | BT22: 0 | BU22: 0 | BV22: 0 | BW22: 0 | BX22: 0 | BY22: 0 | BZ22: 0 | CA22: 0 | CB22: 0 | CC22: 0 | CD22: 0 | CE22: 0 | CF22: 0 | CG22: 0 | CH22: 0 | CI22: 0 | CJ22: 0 | CK22: 0 | CL22: 0 | CM22: 0 | CN22: 0 | CO22: 0 | CP22: 0 | CQ22: 0 | CR22: 0 | CS22: 0 | CT22: 0 | CU22: 0 | CV22: 0 | CW22: 0 | CX22: 0 | CY22: 0 | CZ22: 0 | DA22: 0 | DB22: 0 | DC22: 0 | DD22: 0 | DE22: 0 | DF22: 0 | DG22: 0 | DH22: 0 | DI22: 0 | DJ22: =IF(#REF!>$Y$3,0,#REF!) ->  | DK22: =IF(#REF!>$Y$3,0,#REF!) ->  | DL22: =IF(#REF!>$Y$3,0,#REF!) ->  | DM22: =IF(#REF!>$Y$3,0,#REF!) ->  | DN22: =IF(#REF!>$Y$3,0,#REF!) ->  | DO22: =IF(#REF!>$Y$3,0,#REF!) ->  | DP22: =IF(#REF!>$Y$3,0,#REF!) ->  | DQ22: =IF(#REF!>$Y$3,0,#REF!) ->  | DR22: =IF(#REF!>$Y$3,0,#REF!) ->  | DS22: =IF(#REF!>$Y$3,0,#REF!) ->  | DT22: =IF(#REF!>$Y$3,0,#REF!) ->  | DU22: =IF(#REF!>$Y$3,0,#REF!) ->  | DV22: =IF(#REF!>$Y$3,0,#REF!) ->  | DW22: =IF(#REF!>$Y$3,0,#REF!) ->  | DX22: =IF(#REF!>$Y$3,0,#REF!) ->  | DY22: =IF(#REF!>$Y$3,0,#REF!) ->  | DZ22: =IF(#REF!>$Y$3,0,#REF!) ->  | EA22: =IF(#REF!>$Y$3,0,#REF!) ->  | EB22: =IF(#REF!>$Y$3,0,#REF!) ->  | EC22: =IF(#REF!>$Y$3,0,#REF!) ->  | ED22: =IF(#REF!>$Y$3,0,#REF!) ->  | EE22: =IF(#REF!>$Y$3,0,#REF!) ->  | EF22: =IF(#REF!>$Y$3,0,#REF!) ->  | EG22: =IF(#REF!>$Y$3,0,#REF!) ->  | EH22: =IF(#REF!>$Y$3,0,#REF!) ->  | EI22: =IF(#REF!>$Y$3,0,#REF!) ->  | EJ22: =IF(#REF!>$Y$3,0,#REF!) ->  | EK22: =IF(#REF!>$Y$3,0,#REF!) -> 
C23: 19 | D23: =IF('AS1'!D23="","",'AS1'!D23) ->  | E23: =IF('AS1'!E23="","",'AS1'!E23) ->  | BF23: 0 | BG23: =IF(PARCIAL1!L$8=0,0,(ROUND(((BF23*10)/PARCIAL2!L$8),1))) -> 0 | BJ23: 0 | BK23: 0 | BL23: 0 | BM23: 0 | BN23: 0 | BO23: 0 | BP23: 0 | BQ23: 0 | BR23: 0 | BS23: 0 | BT23: 0 | BU23: 0 | BV23: 0 | BW23: 0 | BX23: 0 | BY23: 0 | BZ23: 0 | CA23: 0 | CB23: 0 | CC23: 0 | CD23: 0 | CE23: 0 | CF23: 0 | CG23: 0 | CH23: 0 | CI23: 0 | CJ23: 0 | CK23: 0 | CL23: 0 | CM23: 0 | CN23: 0 | CO23: 0 | CP23: 0 | CQ23: 0 | CR23: 0 | CS23: 0 | CT23: 0 | CU23: 0 | CV23: 0 | CW23: 0 | CX23: 0 | CY23: 0 | CZ23: 0 | DA23: 0 | DB23: 0 | DC23: 0 | DD23: 0 | DE23: 0 | DF23: 0 | DG23: 0 | DH23: 0 | DI23: 0 | DJ23: =IF(#REF!>$Y$3,0,#REF!) ->  | DK23: =IF(#REF!>$Y$3,0,#REF!) ->  | DL23: =IF(#REF!>$Y$3,0,#REF!) ->  | DM23: =IF(#REF!>$Y$3,0,#REF!) ->  | DN23: =IF(#REF!>$Y$3,0,#REF!) ->  | DO23: =IF(#REF!>$Y$3,0,#REF!) ->  | DP23: =IF(#REF!>$Y$3,0,#REF!) ->  | DQ23: =IF(#REF!>$Y$3,0,#REF!) ->  | DR23: =IF(#REF!>$Y$3,0,#REF!) ->  | DS23: =IF(#REF!>$Y$3,0,#REF!) ->  | DT23: =IF(#REF!>$Y$3,0,#REF!) ->  | DU23: =IF(#REF!>$Y$3,0,#REF!) ->  | DV23: =IF(#REF!>$Y$3,0,#REF!) ->  | DW23: =IF(#REF!>$Y$3,0,#REF!) ->  | DX23: =IF(#REF!>$Y$3,0,#REF!) ->  | DY23: =IF(#REF!>$Y$3,0,#REF!) ->  | DZ23: =IF(#REF!>$Y$3,0,#REF!) ->  | EA23: =IF(#REF!>$Y$3,0,#REF!) ->  | EB23: =IF(#REF!>$Y$3,0,#REF!) ->  | EC23: =IF(#REF!>$Y$3,0,#REF!) ->  | ED23: =IF(#REF!>$Y$3,0,#REF!) ->  | EE23: =IF(#REF!>$Y$3,0,#REF!) ->  | EF23: =IF(#REF!>$Y$3,0,#REF!) ->  | EG23: =IF(#REF!>$Y$3,0,#REF!) ->  | EH23: =IF(#REF!>$Y$3,0,#REF!) ->  | EI23: =IF(#REF!>$Y$3,0,#REF!) ->  | EJ23: =IF(#REF!>$Y$3,0,#REF!) ->  | EK23: =IF(#REF!>$Y$3,0,#REF!) -> 
C24: 20 | D24: =IF('AS1'!D24="","",'AS1'!D24) ->  | E24: =IF('AS1'!E24="","",'AS1'!E24) ->  | BF24: 0 | BG24: =IF(PARCIAL1!L$8=0,0,(ROUND(((BF24*10)/PARCIAL2!L$8),1))) -> 0 | BJ24: 0 | BK24: 0 | BL24: 0 | BM24: 0 | BN24: 0 | BO24: 0 | BP24: 0 | BQ24: 0 | BR24: 0 | BS24: 0 | BT24: 0 | BU24: 0 | BV24: 0 | BW24: 0 | BX24: 0 | BY24: 0 | BZ24: 0 | CA24: 0 | CB24: 0 | CC24: 0 | CD24: 0 | CE24: 0 | CF24: 0 | CG24: 0 | CH24: 0 | CI24: 0 | CJ24: 0 | CK24: 0 | CL24: 0 | CM24: 0 | CN24: 0 | CO24: 0 | CP24: 0 | CQ24: 0 | CR24: 0 | CS24: 0 | CT24: 0 | CU24: 0 | CV24: 0 | CW24: 0 | CX24: 0 | CY24: 0 | CZ24: 0 | DA24: 0 | DB24: 0 | DC24: 0 | DD24: 0 | DE24: 0 | DF24: 0 | DG24: 0 | DH24: 0 | DI24: 0 | DJ24: =IF(#REF!>$Y$3,0,#REF!) ->  | DK24: =IF(#REF!>$Y$3,0,#REF!) ->  | DL24: =IF(#REF!>$Y$3,0,#REF!) ->  | DM24: =IF(#REF!>$Y$3,0,#REF!) ->  | DN24: =IF(#REF!>$Y$3,0,#REF!) ->  | DO24: =IF(#REF!>$Y$3,0,#REF!) ->  | DP24: =IF(#REF!>$Y$3,0,#REF!) ->  | DQ24: =IF(#REF!>$Y$3,0,#REF!) ->  | DR24: =IF(#REF!>$Y$3,0,#REF!) ->  | DS24: =IF(#REF!>$Y$3,0,#REF!) ->  | DT24: =IF(#REF!>$Y$3,0,#REF!) ->  | DU24: =IF(#REF!>$Y$3,0,#REF!) ->  | DV24: =IF(#REF!>$Y$3,0,#REF!) ->  | DW24: =IF(#REF!>$Y$3,0,#REF!) ->  | DX24: =IF(#REF!>$Y$3,0,#REF!) ->  | DY24: =IF(#REF!>$Y$3,0,#REF!) ->  | DZ24: =IF(#REF!>$Y$3,0,#REF!) ->  | EA24: =IF(#REF!>$Y$3,0,#REF!) ->  | EB24: =IF(#REF!>$Y$3,0,#REF!) ->  | EC24: =IF(#REF!>$Y$3,0,#REF!) ->  | ED24: =IF(#REF!>$Y$3,0,#REF!) ->  | EE24: =IF(#REF!>$Y$3,0,#REF!) ->  | EF24: =IF(#REF!>$Y$3,0,#REF!) ->  | EG24: =IF(#REF!>$Y$3,0,#REF!) ->  | EH24: =IF(#REF!>$Y$3,0,#REF!) ->  | EI24: =IF(#REF!>$Y$3,0,#REF!) ->  | EJ24: =IF(#REF!>$Y$3,0,#REF!) ->  | EK24: =IF(#REF!>$Y$3,0,#REF!) -> 
C25: 21 | D25: =IF('AS1'!D25="","",'AS1'!D25) ->  | E25: =IF('AS1'!E25="","",'AS1'!E25) ->  | BF25: 0 | BG25: =IF(PARCIAL1!L$8=0,0,(ROUND(((BF25*10)/PARCIAL2!L$8),1))) -> 0 | BJ25: 0 | BK25: 0 | BL25: 0 | BM25: 0 | BN25: 0 | BO25: 0 | BP25: 0 | BQ25: 0 | BR25: 0 | BS25: 0 | BT25: 0 | BU25: 0 | BV25: 0 | BW25: 0 | BX25: 0 | BY25: 0 | BZ25: 0 | CA25: 0 | CB25: 0 | CC25: 0 | CD25: 0 | CE25: 0 | CF25: 0 | CG25: 0 | CH25: 0 | CI25: 0 | CJ25: 0 | CK25: 0 | CL25: 0 | CM25: 0 | CN25: 0 | CO25: 0 | CP25: 0 | CQ25: 0 | CR25: 0 | CS25: 0 | CT25: 0 | CU25: 0 | CV25: 0 | CW25: 0 | CX25: 0 | CY25: 0 | CZ25: 0 | DA25: 0 | DB25: 0 | DC25: 0 | DD25: 0 | DE25: 0 | DF25: 0 | DG25: 0 | DH25: 0 | DI25: 0 | DJ25: =IF(#REF!>$Y$3,0,#REF!) ->  | DK25: =IF(#REF!>$Y$3,0,#REF!) ->  | DL25: =IF(#REF!>$Y$3,0,#REF!) ->  | DM25: =IF(#REF!>$Y$3,0,#REF!) ->  | DN25: =IF(#REF!>$Y$3,0,#REF!) ->  | DO25: =IF(#REF!>$Y$3,0,#REF!) ->  | DP25: =IF(#REF!>$Y$3,0,#REF!) ->  | DQ25: =IF(#REF!>$Y$3,0,#REF!) ->  | DR25: =IF(#REF!>$Y$3,0,#REF!) ->  | DS25: =IF(#REF!>$Y$3,0,#REF!) ->  | DT25: =IF(#REF!>$Y$3,0,#REF!) ->  | DU25: =IF(#REF!>$Y$3,0,#REF!) ->  | DV25: =IF(#REF!>$Y$3,0,#REF!) ->  | DW25: =IF(#REF!>$Y$3,0,#REF!) ->  | DX25: =IF(#REF!>$Y$3,0,#REF!) ->  | DY25: =IF(#REF!>$Y$3,0,#REF!) ->  | DZ25: =IF(#REF!>$Y$3,0,#REF!) ->  | EA25: =IF(#REF!>$Y$3,0,#REF!) ->  | EB25: =IF(#REF!>$Y$3,0,#REF!) ->  | EC25: =IF(#REF!>$Y$3,0,#REF!) ->  | ED25: =IF(#REF!>$Y$3,0,#REF!) ->  | EE25: =IF(#REF!>$Y$3,0,#REF!) ->  | EF25: =IF(#REF!>$Y$3,0,#REF!) ->  | EG25: =IF(#REF!>$Y$3,0,#REF!) ->  | EH25: =IF(#REF!>$Y$3,0,#REF!) ->  | EI25: =IF(#REF!>$Y$3,0,#REF!) ->  | EJ25: =IF(#REF!>$Y$3,0,#REF!) ->  | EK25: =IF(#REF!>$Y$3,0,#REF!) -> 
C26: 22 | D26: =IF('AS1'!D26="","",'AS1'!D26) ->  | E26: =IF('AS1'!E26="","",'AS1'!E26) ->  | BF26: 0 | BG26: =IF(PARCIAL1!L$8=0,0,(ROUND(((BF26*10)/PARCIAL2!L$8),1))) -> 0 | BJ26: 0 | BK26: 0 | BL26: 0 | BM26: 0 | BN26: 0 | BO26: 0 | BP26: 0 | BQ26: 0 | BR26: 0 | BS26: 0 | BT26: 0 | BU26: 0 | BV26: 0 | BW26: 0 | BX26: 0 | BY26: 0 | BZ26: 0 | CA26: 0 | CB26: 0 | CC26: 0 | CD26: 0 | CE26: 0 | CF26: 0 | CG26: 0 | CH26: 0 | CI26: 0 | CJ26: 0 | CK26: 0 | CL26: 0 | CM26: 0 | CN26: 0 | CO26: 0 | CP26: 0 | CQ26: 0 | CR26: 0 | CS26: 0 | CT26: 0 | CU26: 0 | CV26: 0 | CW26: 0 | CX26: 0 | CY26: 0 | CZ26: 0 | DA26: 0 | DB26: 0 | DC26: 0 | DD26: 0 | DE26: 0 | DF26: 0 | DG26: 0 | DH26: 0 | DI26: 0 | DJ26: =IF(#REF!>$Y$3,0,#REF!) ->  | DK26: =IF(#REF!>$Y$3,0,#REF!) ->  | DL26: =IF(#REF!>$Y$3,0,#REF!) ->  | DM26: =IF(#REF!>$Y$3,0,#REF!) ->  | DN26: =IF(#REF!>$Y$3,0,#REF!) ->  | DO26: =IF(#REF!>$Y$3,0,#REF!) ->  | DP26: =IF(#REF!>$Y$3,0,#REF!) ->  | DQ26: =IF(#REF!>$Y$3,0,#REF!) ->  | DR26: =IF(#REF!>$Y$3,0,#REF!) ->  | DS26: =IF(#REF!>$Y$3,0,#REF!) ->  | DT26: =IF(#REF!>$Y$3,0,#REF!) ->  | DU26: =IF(#REF!>$Y$3,0,#REF!) ->  | DV26: =IF(#REF!>$Y$3,0,#REF!) ->  | DW26: =IF(#REF!>$Y$3,0,#REF!) ->  | DX26: =IF(#REF!>$Y$3,0,#REF!) ->  | DY26: =IF(#REF!>$Y$3,0,#REF!) ->  | DZ26: =IF(#REF!>$Y$3,0,#REF!) ->  | EA26: =IF(#REF!>$Y$3,0,#REF!) ->  | EB26: =IF(#REF!>$Y$3,0,#REF!) ->  | EC26: =IF(#REF!>$Y$3,0,#REF!) ->  | ED26: =IF(#REF!>$Y$3,0,#REF!) ->  | EE26: =IF(#REF!>$Y$3,0,#REF!) ->  | EF26: =IF(#REF!>$Y$3,0,#REF!) ->  | EG26: =IF(#REF!>$Y$3,0,#REF!) ->  | EH26: =IF(#REF!>$Y$3,0,#REF!) ->  | EI26: =IF(#REF!>$Y$3,0,#REF!) ->  | EJ26: =IF(#REF!>$Y$3,0,#REF!) ->  | EK26: =IF(#REF!>$Y$3,0,#REF!) -> 
C27: 23 | D27: =IF('AS1'!D27="","",'AS1'!D27) ->  | E27: =IF('AS1'!E27="","",'AS1'!E27) ->  | BF27: 0 | BG27: =IF(PARCIAL1!L$8=0,0,(ROUND(((BF27*10)/PARCIAL2!L$8),1))) -> 0 | BJ27: 0 | BK27: 0 | BL27: 0 | BM27: 0 | BN27: 0 | BO27: 0 | BP27: 0 | BQ27: 0 | BR27: 0 | BS27: 0 | BT27: 0 | BU27: 0 | BV27: 0 | BW27: 0 | BX27: 0 | BY27: 0 | BZ27: 0 | CA27: 0 | CB27: 0 | CC27: 0 | CD27: 0 | CE27: 0 | CF27: 0 | CG27: 0 | CH27: 0 | CI27: 0 | CJ27: 0 | CK27: 0 | CL27: 0 | CM27: 0 | CN27: 0 | CO27: 0 | CP27: 0 | CQ27: 0 | CR27: 0 | CS27: 0 | CT27: 0 | CU27: 0 | CV27: 0 | CW27: 0 | CX27: 0 | CY27: 0 | CZ27: 0 | DA27: 0 | DB27: 0 | DC27: 0 | DD27: 0 | DE27: 0 | DF27: 0 | DG27: 0 | DH27: 0 | DI27: 0 | DJ27: =IF(#REF!>$Y$3,0,#REF!) ->  | DK27: =IF(#REF!>$Y$3,0,#REF!) ->  | DL27: =IF(#REF!>$Y$3,0,#REF!) ->  | DM27: =IF(#REF!>$Y$3,0,#REF!) ->  | DN27: =IF(#REF!>$Y$3,0,#REF!) ->  | DO27: =IF(#REF!>$Y$3,0,#REF!) ->  | DP27: =IF(#REF!>$Y$3,0,#REF!) ->  | DQ27: =IF(#REF!>$Y$3,0,#REF!) ->  | DR27: =IF(#REF!>$Y$3,0,#REF!) ->  | DS27: =IF(#REF!>$Y$3,0,#REF!) ->  | DT27: =IF(#REF!>$Y$3,0,#REF!) ->  | DU27: =IF(#REF!>$Y$3,0,#REF!) ->  | DV27: =IF(#REF!>$Y$3,0,#REF!) ->  | DW27: =IF(#REF!>$Y$3,0,#REF!) ->  | DX27: =IF(#REF!>$Y$3,0,#REF!) ->  | DY27: =IF(#REF!>$Y$3,0,#REF!) ->  | DZ27: =IF(#REF!>$Y$3,0,#REF!) ->  | EA27: =IF(#REF!>$Y$3,0,#REF!) ->  | EB27: =IF(#REF!>$Y$3,0,#REF!) ->  | EC27: =IF(#REF!>$Y$3,0,#REF!) ->  | ED27: =IF(#REF!>$Y$3,0,#REF!) ->  | EE27: =IF(#REF!>$Y$3,0,#REF!) ->  | EF27: =IF(#REF!>$Y$3,0,#REF!) ->  | EG27: =IF(#REF!>$Y$3,0,#REF!) ->  | EH27: =IF(#REF!>$Y$3,0,#REF!) ->  | EI27: =IF(#REF!>$Y$3,0,#REF!) ->  | EJ27: =IF(#REF!>$Y$3,0,#REF!) ->  | EK27: =IF(#REF!>$Y$3,0,#REF!) -> 
C28: 24 | D28: =IF('AS1'!D28="","",'AS1'!D28) ->  | E28: =IF('AS1'!E28="","",'AS1'!E28) ->  | BF28: 0 | BG28: =IF(PARCIAL1!L$8=0,0,(ROUND(((BF28*10)/PARCIAL2!L$8),1))) -> 0 | BJ28: 0 | BK28: 0 | BL28: 0 | BM28: 0 | BN28: 0 | BO28: 0 | BP28: 0 | BQ28: 0 | BR28: 0 | BS28: 0 | BT28: 0 | BU28: 0 | BV28: 0 | BW28: 0 | BX28: 0 | BY28: 0 | BZ28: 0 | CA28: 0 | CB28: 0 | CC28: 0 | CD28: 0 | CE28: 0 | CF28: 0 | CG28: 0 | CH28: 0 | CI28: 0 | CJ28: 0 | CK28: 0 | CL28: 0 | CM28: 0 | CN28: 0 | CO28: 0 | CP28: 0 | CQ28: 0 | CR28: 0 | CS28: 0 | CT28: 0 | CU28: 0 | CV28: 0 | CW28: 0 | CX28: 0 | CY28: 0 | CZ28: 0 | DA28: 0 | DB28: 0 | DC28: 0 | DD28: 0 | DE28: 0 | DF28: 0 | DG28: 0 | DH28: 0 | DI28: 0 | DJ28: =IF(#REF!>$Y$3,0,#REF!) ->  | DK28: =IF(#REF!>$Y$3,0,#REF!) ->  | DL28: =IF(#REF!>$Y$3,0,#REF!) ->  | DM28: =IF(#REF!>$Y$3,0,#REF!) ->  | DN28: =IF(#REF!>$Y$3,0,#REF!) ->  | DO28: =IF(#REF!>$Y$3,0,#REF!) ->  | DP28: =IF(#REF!>$Y$3,0,#REF!) ->  | DQ28: =IF(#REF!>$Y$3,0,#REF!) ->  | DR28: =IF(#REF!>$Y$3,0,#REF!) ->  | DS28: =IF(#REF!>$Y$3,0,#REF!) ->  | DT28: =IF(#REF!>$Y$3,0,#REF!) ->  | DU28: =IF(#REF!>$Y$3,0,#REF!) ->  | DV28: =IF(#REF!>$Y$3,0,#REF!) ->  | DW28: =IF(#REF!>$Y$3,0,#REF!) ->  | DX28: =IF(#REF!>$Y$3,0,#REF!) ->  | DY28: =IF(#REF!>$Y$3,0,#REF!) ->  | DZ28: =IF(#REF!>$Y$3,0,#REF!) ->  | EA28: =IF(#REF!>$Y$3,0,#REF!) ->  | EB28: =IF(#REF!>$Y$3,0,#REF!) ->  | EC28: =IF(#REF!>$Y$3,0,#REF!) ->  | ED28: =IF(#REF!>$Y$3,0,#REF!) ->  | EE28: =IF(#REF!>$Y$3,0,#REF!) ->  | EF28: =IF(#REF!>$Y$3,0,#REF!) ->  | EG28: =IF(#REF!>$Y$3,0,#REF!) ->  | EH28: =IF(#REF!>$Y$3,0,#REF!) ->  | EI28: =IF(#REF!>$Y$3,0,#REF!) ->  | EJ28: =IF(#REF!>$Y$3,0,#REF!) ->  | EK28: =IF(#REF!>$Y$3,0,#REF!) -> 
C29: 25 | D29: =IF('AS1'!D29="","",'AS1'!D29) ->  | E29: =IF('AS1'!E29="","",'AS1'!E29) ->  | BF29: 0 | BG29: =IF(PARCIAL1!L$8=0,0,(ROUND(((BF29*10)/PARCIAL2!L$8),1))) -> 0 | BJ29: 0 | BK29: 0 | BL29: 0 | BM29: 0 | BN29: 0 | BO29: 0 | BP29: 0 | BQ29: 0 | BR29: 0 | BS29: 0 | BT29: 0 | BU29: 0 | BV29: 0 | BW29: 0 | BX29: 0 | BY29: 0 | BZ29: 0 | CA29: 0 | CB29: 0 | CC29: 0 | CD29: 0 | CE29: 0 | CF29: 0 | CG29: 0 | CH29: 0 | CI29: 0 | CJ29: 0 | CK29: 0 | CL29: 0 | CM29: 0 | CN29: 0 | CO29: 0 | CP29: 0 | CQ29: 0 | CR29: 0 | CS29: 0 | CT29: 0 | CU29: 0 | CV29: 0 | CW29: 0 | CX29: 0 | CY29: 0 | CZ29: 0 | DA29: 0 | DB29: 0 | DC29: 0 | DD29: 0 | DE29: 0 | DF29: 0 | DG29: 0 | DH29: 0 | DI29: 0 | DJ29: =IF(#REF!>$Y$3,0,#REF!) ->  | DK29: =IF(#REF!>$Y$3,0,#REF!) ->  | DL29: =IF(#REF!>$Y$3,0,#REF!) ->  | DM29: =IF(#REF!>$Y$3,0,#REF!) ->  | DN29: =IF(#REF!>$Y$3,0,#REF!) ->  | DO29: =IF(#REF!>$Y$3,0,#REF!) ->  | DP29: =IF(#REF!>$Y$3,0,#REF!) ->  | DQ29: =IF(#REF!>$Y$3,0,#REF!) ->  | DR29: =IF(#REF!>$Y$3,0,#REF!) ->  | DS29: =IF(#REF!>$Y$3,0,#REF!) ->  | DT29: =IF(#REF!>$Y$3,0,#REF!) ->  | DU29: =IF(#REF!>$Y$3,0,#REF!) ->  | DV29: =IF(#REF!>$Y$3,0,#REF!) ->  | DW29: =IF(#REF!>$Y$3,0,#REF!) ->  | DX29: =IF(#REF!>$Y$3,0,#REF!) ->  | DY29: =IF(#REF!>$Y$3,0,#REF!) ->  | DZ29: =IF(#REF!>$Y$3,0,#REF!) ->  | EA29: =IF(#REF!>$Y$3,0,#REF!) ->  | EB29: =IF(#REF!>$Y$3,0,#REF!) ->  | EC29: =IF(#REF!>$Y$3,0,#REF!) ->  | ED29: =IF(#REF!>$Y$3,0,#REF!) ->  | EE29: =IF(#REF!>$Y$3,0,#REF!) ->  | EF29: =IF(#REF!>$Y$3,0,#REF!) ->  | EG29: =IF(#REF!>$Y$3,0,#REF!) ->  | EH29: =IF(#REF!>$Y$3,0,#REF!) ->  | EI29: =IF(#REF!>$Y$3,0,#REF!) ->  | EJ29: =IF(#REF!>$Y$3,0,#REF!) ->  | EK29: =IF(#REF!>$Y$3,0,#REF!) -> 
C30: 26 | D30: =IF('AS1'!D30="","",'AS1'!D30) ->  | E30: =IF('AS1'!E30="","",'AS1'!E30) ->  | BF30: 0 | BG30: =IF(PARCIAL1!L$8=0,0,(ROUND(((BF30*10)/PARCIAL2!L$8),1))) -> 0 | BJ30: 0 | BK30: 0 | BL30: 0 | BM30: 0 | BN30: 0 | BO30: 0 | BP30: 0 | BQ30: 0 | BR30: 0 | BS30: 0 | BT30: 0 | BU30: 0 | BV30: 0 | BW30: 0 | BX30: 0 | BY30: 0 | BZ30: 0 | CA30: 0 | CB30: 0 | CC30: 0 | CD30: 0 | CE30: 0 | CF30: 0 | CG30: 0 | CH30: 0 | CI30: 0 | CJ30: 0 | CK30: 0 | CL30: 0 | CM30: 0 | CN30: 0 | CO30: 0 | CP30: 0 | CQ30: 0 | CR30: 0 | CS30: 0 | CT30: 0 | CU30: 0 | CV30: 0 | CW30: 0 | CX30: 0 | CY30: 0 | CZ30: 0 | DA30: 0 | DB30: 0 | DC30: 0 | DD30: 0 | DE30: 0 | DF30: 0 | DG30: 0 | DH30: 0 | DI30: 0 | DJ30: =IF(#REF!>$Y$3,0,#REF!) ->  | DK30: =IF(#REF!>$Y$3,0,#REF!) ->  | DL30: =IF(#REF!>$Y$3,0,#REF!) ->  | DM30: =IF(#REF!>$Y$3,0,#REF!) ->  | DN30: =IF(#REF!>$Y$3,0,#REF!) ->  | DO30: =IF(#REF!>$Y$3,0,#REF!) ->  | DP30: =IF(#REF!>$Y$3,0,#REF!) ->  | DQ30: =IF(#REF!>$Y$3,0,#REF!) ->  | DR30: =IF(#REF!>$Y$3,0,#REF!) ->  | DS30: =IF(#REF!>$Y$3,0,#REF!) ->  | DT30: =IF(#REF!>$Y$3,0,#REF!) ->  | DU30: =IF(#REF!>$Y$3,0,#REF!) ->  | DV30: =IF(#REF!>$Y$3,0,#REF!) ->  | DW30: =IF(#REF!>$Y$3,0,#REF!) ->  | DX30: =IF(#REF!>$Y$3,0,#REF!) ->  | DY30: =IF(#REF!>$Y$3,0,#REF!) ->  | DZ30: =IF(#REF!>$Y$3,0,#REF!) ->  | EA30: =IF(#REF!>$Y$3,0,#REF!) ->  | EB30: =IF(#REF!>$Y$3,0,#REF!) ->  | EC30: =IF(#REF!>$Y$3,0,#REF!) ->  | ED30: =IF(#REF!>$Y$3,0,#REF!) ->  | EE30: =IF(#REF!>$Y$3,0,#REF!) ->  | EF30: =IF(#REF!>$Y$3,0,#REF!) ->  | EG30: =IF(#REF!>$Y$3,0,#REF!) ->  | EH30: =IF(#REF!>$Y$3,0,#REF!) ->  | EI30: =IF(#REF!>$Y$3,0,#REF!) ->  | EJ30: =IF(#REF!>$Y$3,0,#REF!) ->  | EK30: =IF(#REF!>$Y$3,0,#REF!) -> 
C31: 27 | D31: =IF('AS1'!D31="","",'AS1'!D31) ->  | E31: =IF('AS1'!E31="","",'AS1'!E31) ->  | BF31: 0 | BG31: =IF(PARCIAL1!L$8=0,0,(ROUND(((BF31*10)/PARCIAL2!L$8),1))) -> 0 | BJ31: 0 | BK31: 0 | BL31: 0 | BM31: 0 | BN31: 0 | BO31: 0 | BP31: 0 | BQ31: 0 | BR31: 0 | BS31: 0 | BT31: 0 | BU31: 0 | BV31: 0 | BW31: 0 | BX31: 0 | BY31: 0 | BZ31: 0 | CA31: 0 | CB31: 0 | CC31: 0 | CD31: 0 | CE31: 0 | CF31: 0 | CG31: 0 | CH31: 0 | CI31: 0 | CJ31: 0 | CK31: 0 | CL31: 0 | CM31: 0 | CN31: 0 | CO31: 0 | CP31: 0 | CQ31: 0 | CR31: 0 | CS31: 0 | CT31: 0 | CU31: 0 | CV31: 0 | CW31: 0 | CX31: 0 | CY31: 0 | CZ31: 0 | DA31: 0 | DB31: 0 | DC31: 0 | DD31: 0 | DE31: 0 | DF31: 0 | DG31: 0 | DH31: 0 | DI31: 0 | DJ31: =IF(#REF!>$Y$3,0,#REF!) ->  | DK31: =IF(#REF!>$Y$3,0,#REF!) ->  | DL31: =IF(#REF!>$Y$3,0,#REF!) ->  | DM31: =IF(#REF!>$Y$3,0,#REF!) ->  | DN31: =IF(#REF!>$Y$3,0,#REF!) ->  | DO31: =IF(#REF!>$Y$3,0,#REF!) ->  | DP31: =IF(#REF!>$Y$3,0,#REF!) ->  | DQ31: =IF(#REF!>$Y$3,0,#REF!) ->  | DR31: =IF(#REF!>$Y$3,0,#REF!) ->  | DS31: =IF(#REF!>$Y$3,0,#REF!) ->  | DT31: =IF(#REF!>$Y$3,0,#REF!) ->  | DU31: =IF(#REF!>$Y$3,0,#REF!) ->  | DV31: =IF(#REF!>$Y$3,0,#REF!) ->  | DW31: =IF(#REF!>$Y$3,0,#REF!) ->  | DX31: =IF(#REF!>$Y$3,0,#REF!) ->  | DY31: =IF(#REF!>$Y$3,0,#REF!) ->  | DZ31: =IF(#REF!>$Y$3,0,#REF!) ->  | EA31: =IF(#REF!>$Y$3,0,#REF!) ->  | EB31: =IF(#REF!>$Y$3,0,#REF!) ->  | EC31: =IF(#REF!>$Y$3,0,#REF!) ->  | ED31: =IF(#REF!>$Y$3,0,#REF!) ->  | EE31: =IF(#REF!>$Y$3,0,#REF!) ->  | EF31: =IF(#REF!>$Y$3,0,#REF!) ->  | EG31: =IF(#REF!>$Y$3,0,#REF!) ->  | EH31: =IF(#REF!>$Y$3,0,#REF!) ->  | EI31: =IF(#REF!>$Y$3,0,#REF!) ->  | EJ31: =IF(#REF!>$Y$3,0,#REF!) ->  | EK31: =IF(#REF!>$Y$3,0,#REF!) -> 
C32: 28 | D32: =IF('AS1'!D32="","",'AS1'!D32) ->  | E32: =IF('AS1'!E32="","",'AS1'!E32) ->  | BF32: 0 | BG32: =IF(PARCIAL1!L$8=0,0,(ROUND(((BF32*10)/PARCIAL2!L$8),1))) -> 0 | BJ32: 0 | BK32: 0 | BL32: 0 | BM32: 0 | BN32: 0 | BO32: 0 | BP32: 0 | BQ32: 0 | BR32: 0 | BS32: 0 | BT32: 0 | BU32: 0 | BV32: 0 | BW32: 0 | BX32: 0 | BY32: 0 | BZ32: 0 | CA32: 0 | CB32: 0 | CC32: 0 | CD32: 0 | CE32: 0 | CF32: 0 | CG32: 0 | CH32: 0 | CI32: 0 | CJ32: 0 | CK32: 0 | CL32: 0 | CM32: 0 | CN32: 0 | CO32: 0 | CP32: 0 | CQ32: 0 | CR32: 0 | CS32: 0 | CT32: 0 | CU32: 0 | CV32: 0 | CW32: 0 | CX32: 0 | CY32: 0 | CZ32: 0 | DA32: 0 | DB32: 0 | DC32: 0 | DD32: 0 | DE32: 0 | DF32: 0 | DG32: 0 | DH32: 0 | DI32: 0 | DJ32: =IF(#REF!>$Y$3,0,#REF!) ->  | DK32: =IF(#REF!>$Y$3,0,#REF!) ->  | DL32: =IF(#REF!>$Y$3,0,#REF!) ->  | DM32: =IF(#REF!>$Y$3,0,#REF!) ->  | DN32: =IF(#REF!>$Y$3,0,#REF!) ->  | DO32: =IF(#REF!>$Y$3,0,#REF!) ->  | DP32: =IF(#REF!>$Y$3,0,#REF!) ->  | DQ32: =IF(#REF!>$Y$3,0,#REF!) ->  | DR32: =IF(#REF!>$Y$3,0,#REF!) ->  | DS32: =IF(#REF!>$Y$3,0,#REF!) ->  | DT32: =IF(#REF!>$Y$3,0,#REF!) ->  | DU32: =IF(#REF!>$Y$3,0,#REF!) ->  | DV32: =IF(#REF!>$Y$3,0,#REF!) ->  | DW32: =IF(#REF!>$Y$3,0,#REF!) ->  | DX32: =IF(#REF!>$Y$3,0,#REF!) ->  | DY32: =IF(#REF!>$Y$3,0,#REF!) ->  | DZ32: =IF(#REF!>$Y$3,0,#REF!) ->  | EA32: =IF(#REF!>$Y$3,0,#REF!) ->  | EB32: =IF(#REF!>$Y$3,0,#REF!) ->  | EC32: =IF(#REF!>$Y$3,0,#REF!) ->  | ED32: =IF(#REF!>$Y$3,0,#REF!) ->  | EE32: =IF(#REF!>$Y$3,0,#REF!) ->  | EF32: =IF(#REF!>$Y$3,0,#REF!) ->  | EG32: =IF(#REF!>$Y$3,0,#REF!) ->  | EH32: =IF(#REF!>$Y$3,0,#REF!) ->  | EI32: =IF(#REF!>$Y$3,0,#REF!) ->  | EJ32: =IF(#REF!>$Y$3,0,#REF!) ->  | EK32: =IF(#REF!>$Y$3,0,#REF!) -> 
C33: 29 | D33: =IF('AS1'!D33="","",'AS1'!D33) ->  | E33: =IF('AS1'!E33="","",'AS1'!E33) ->  | BF33: 0 | BG33: =IF(PARCIAL1!L$8=0,0,(ROUND(((BF33*10)/PARCIAL2!L$8),1))) -> 0 | BJ33: 0 | BK33: 0 | BL33: 0 | BM33: 0 | BN33: 0 | BO33: 0 | BP33: 0 | BQ33: 0 | BR33: 0 | BS33: 0 | BT33: 0 | BU33: 0 | BV33: 0 | BW33: 0 | BX33: 0 | BY33: 0 | BZ33: 0 | CA33: 0 | CB33: 0 | CC33: 0 | CD33: 0 | CE33: 0 | CF33: 0 | CG33: 0 | CH33: 0 | CI33: 0 | CJ33: 0 | CK33: 0 | CL33: 0 | CM33: 0 | CN33: 0 | CO33: 0 | CP33: 0 | CQ33: 0 | CR33: 0 | CS33: 0 | CT33: 0 | CU33: 0 | CV33: 0 | CW33: 0 | CX33: 0 | CY33: 0 | CZ33: 0 | DA33: 0 | DB33: 0 | DC33: 0 | DD33: 0 | DE33: 0 | DF33: 0 | DG33: 0 | DH33: 0 | DI33: 0 | DJ33: =IF(#REF!>$Y$3,0,#REF!) ->  | DK33: =IF(#REF!>$Y$3,0,#REF!) ->  | DL33: =IF(#REF!>$Y$3,0,#REF!) ->  | DM33: =IF(#REF!>$Y$3,0,#REF!) ->  | DN33: =IF(#REF!>$Y$3,0,#REF!) ->  | DO33: =IF(#REF!>$Y$3,0,#REF!) ->  | DP33: =IF(#REF!>$Y$3,0,#REF!) ->  | DQ33: =IF(#REF!>$Y$3,0,#REF!) ->  | DR33: =IF(#REF!>$Y$3,0,#REF!) ->  | DS33: =IF(#REF!>$Y$3,0,#REF!) ->  | DT33: =IF(#REF!>$Y$3,0,#REF!) ->  | DU33: =IF(#REF!>$Y$3,0,#REF!) ->  | DV33: =IF(#REF!>$Y$3,0,#REF!) ->  | DW33: =IF(#REF!>$Y$3,0,#REF!) ->  | DX33: =IF(#REF!>$Y$3,0,#REF!) ->  | DY33: =IF(#REF!>$Y$3,0,#REF!) ->  | DZ33: =IF(#REF!>$Y$3,0,#REF!) ->  | EA33: =IF(#REF!>$Y$3,0,#REF!) ->  | EB33: =IF(#REF!>$Y$3,0,#REF!) ->  | EC33: =IF(#REF!>$Y$3,0,#REF!) ->  | ED33: =IF(#REF!>$Y$3,0,#REF!) ->  | EE33: =IF(#REF!>$Y$3,0,#REF!) ->  | EF33: =IF(#REF!>$Y$3,0,#REF!) ->  | EG33: =IF(#REF!>$Y$3,0,#REF!) ->  | EH33: =IF(#REF!>$Y$3,0,#REF!) ->  | EI33: =IF(#REF!>$Y$3,0,#REF!) ->  | EJ33: =IF(#REF!>$Y$3,0,#REF!) ->  | EK33: =IF(#REF!>$Y$3,0,#REF!) -> 
C34: 30 | D34: =IF('AS1'!D34="","",'AS1'!D34) ->  | E34: =IF('AS1'!E34="","",'AS1'!E34) ->  | BF34: 0 | BG34: =IF(PARCIAL1!L$8=0,0,(ROUND(((BF34*10)/PARCIAL2!L$8),1))) -> 0 | BJ34: 0 | BK34: 0 | BL34: 0 | BM34: 0 | BN34: 0 | BO34: 0 | BP34: 0 | BQ34: 0 | BR34: 0 | BS34: 0 | BT34: 0 | BU34: 0 | BV34: 0 | BW34: 0 | BX34: 0 | BY34: 0 | BZ34: 0 | CA34: 0 | CB34: 0 | CC34: 0 | CD34: 0 | CE34: 0 | CF34: 0 | CG34: 0 | CH34: 0 | CI34: 0 | CJ34: 0 | CK34: 0 | CL34: 0 | CM34: 0 | CN34: 0 | CO34: 0 | CP34: 0 | CQ34: 0 | CR34: 0 | CS34: 0 | CT34: 0 | CU34: 0 | CV34: 0 | CW34: 0 | CX34: 0 | CY34: 0 | CZ34: 0 | DA34: 0 | DB34: 0 | DC34: 0 | DD34: 0 | DE34: 0 | DF34: 0 | DG34: 0 | DH34: 0 | DI34: 0 | DJ34: =IF(#REF!>$Y$3,0,#REF!) ->  | DK34: =IF(#REF!>$Y$3,0,#REF!) ->  | DL34: =IF(#REF!>$Y$3,0,#REF!) ->  | DM34: =IF(#REF!>$Y$3,0,#REF!) ->  | DN34: =IF(#REF!>$Y$3,0,#REF!) ->  | DO34: =IF(#REF!>$Y$3,0,#REF!) ->  | DP34: =IF(#REF!>$Y$3,0,#REF!) ->  | DQ34: =IF(#REF!>$Y$3,0,#REF!) ->  | DR34: =IF(#REF!>$Y$3,0,#REF!) ->  | DS34: =IF(#REF!>$Y$3,0,#REF!) ->  | DT34: =IF(#REF!>$Y$3,0,#REF!) ->  | DU34: =IF(#REF!>$Y$3,0,#REF!) ->  | DV34: =IF(#REF!>$Y$3,0,#REF!) ->  | DW34: =IF(#REF!>$Y$3,0,#REF!) ->  | DX34: =IF(#REF!>$Y$3,0,#REF!) ->  | DY34: =IF(#REF!>$Y$3,0,#REF!) ->  | DZ34: =IF(#REF!>$Y$3,0,#REF!) ->  | EA34: =IF(#REF!>$Y$3,0,#REF!) ->  | EB34: =IF(#REF!>$Y$3,0,#REF!) ->  | EC34: =IF(#REF!>$Y$3,0,#REF!) ->  | ED34: =IF(#REF!>$Y$3,0,#REF!) ->  | EE34: =IF(#REF!>$Y$3,0,#REF!) ->  | EF34: =IF(#REF!>$Y$3,0,#REF!) ->  | EG34: =IF(#REF!>$Y$3,0,#REF!) ->  | EH34: =IF(#REF!>$Y$3,0,#REF!) ->  | EI34: =IF(#REF!>$Y$3,0,#REF!) ->  | EJ34: =IF(#REF!>$Y$3,0,#REF!) ->  | EK34: =IF(#REF!>$Y$3,0,#REF!) -> 
C35: 31 | D35: =IF('AS1'!D35="","",'AS1'!D35) ->  | E35: =IF('AS1'!E35="","",'AS1'!E35) ->  | BF35: 0 | BG35: =IF(PARCIAL1!L$8=0,0,(ROUND(((BF35*10)/PARCIAL2!L$8),1))) -> 0 | BJ35: 0 | BK35: 0 | BL35: 0 | BM35: 0 | BN35: 0 | BO35: 0 | BP35: 0 | BQ35: 0 | BR35: 0 | BS35: 0 | BT35: 0 | BU35: 0 | BV35: 0 | BW35: 0 | BX35: 0 | BY35: 0 | BZ35: 0 | CA35: 0 | CB35: 0 | CC35: 0 | CD35: 0 | CE35: 0 | CF35: 0 | CG35: 0 | CH35: 0 | CI35: 0 | CJ35: 0 | CK35: 0 | CL35: 0 | CM35: 0 | CN35: 0 | CO35: 0 | CP35: 0 | CQ35: 0 | CR35: 0 | CS35: 0 | CT35: 0 | CU35: 0 | CV35: 0 | CW35: 0 | CX35: 0 | CY35: 0 | CZ35: 0 | DA35: 0 | DB35: 0 | DC35: 0 | DD35: 0 | DE35: 0 | DF35: 0 | DG35: 0 | DH35: 0 | DI35: 0 | DJ35: =IF(#REF!>$Y$3,0,#REF!) ->  | DK35: =IF(#REF!>$Y$3,0,#REF!) ->  | DL35: =IF(#REF!>$Y$3,0,#REF!) ->  | DM35: =IF(#REF!>$Y$3,0,#REF!) ->  | DN35: =IF(#REF!>$Y$3,0,#REF!) ->  | DO35: =IF(#REF!>$Y$3,0,#REF!) ->  | DP35: =IF(#REF!>$Y$3,0,#REF!) ->  | DQ35: =IF(#REF!>$Y$3,0,#REF!) ->  | DR35: =IF(#REF!>$Y$3,0,#REF!) ->  | DS35: =IF(#REF!>$Y$3,0,#REF!) ->  | DT35: =IF(#REF!>$Y$3,0,#REF!) ->  | DU35: =IF(#REF!>$Y$3,0,#REF!) ->  | DV35: =IF(#REF!>$Y$3,0,#REF!) ->  | DW35: =IF(#REF!>$Y$3,0,#REF!) ->  | DX35: =IF(#REF!>$Y$3,0,#REF!) ->  | DY35: =IF(#REF!>$Y$3,0,#REF!) ->  | DZ35: =IF(#REF!>$Y$3,0,#REF!) ->  | EA35: =IF(#REF!>$Y$3,0,#REF!) ->  | EB35: =IF(#REF!>$Y$3,0,#REF!) ->  | EC35: =IF(#REF!>$Y$3,0,#REF!) ->  | ED35: =IF(#REF!>$Y$3,0,#REF!) ->  | EE35: =IF(#REF!>$Y$3,0,#REF!) ->  | EF35: =IF(#REF!>$Y$3,0,#REF!) ->  | EG35: =IF(#REF!>$Y$3,0,#REF!) ->  | EH35: =IF(#REF!>$Y$3,0,#REF!) ->  | EI35: =IF(#REF!>$Y$3,0,#REF!) ->  | EJ35: =IF(#REF!>$Y$3,0,#REF!) ->  | EK35: =IF(#REF!>$Y$3,0,#REF!) -> 
C36: 32 | D36: =IF('AS1'!D36="","",'AS1'!D36) ->  | E36: =IF('AS1'!E36="","",'AS1'!E36) ->  | BF36: 0 | BG36: =IF(PARCIAL1!L$8=0,0,(ROUND(((BF36*10)/PARCIAL2!L$8),1))) -> 0 | BJ36: 0 | BK36: 0 | BL36: 0 | BM36: 0 | BN36: 0 | BO36: 0 | BP36: 0 | BQ36: 0 | BR36: 0 | BS36: 0 | BT36: 0 | BU36: 0 | BV36: 0 | BW36: 0 | BX36: 0 | BY36: =IF(U36>$Y$3,0,U36) -> 0 | BZ36: 0 | CA36: 0 | CB36: 0 | CC36: 0 | CD36: 0 | CE36: 0 | CF36: 0 | CG36: 0 | CH36: 0 | CI36: 0 | CJ36: 0 | CK36: 0 | CL36: 0 | CM36: 0 | CN36: 0 | CO36: 0 | CP36: 0 | CQ36: 0 | CR36: 0 | CS36: 0 | CT36: 0 | CU36: 0 | CV36: 0 | CW36: 0 | CX36: 0 | CY36: 0 | CZ36: 0 | DA36: 0 | DB36: =IF(AX36>$Y$3,0,AX36) -> 0 | DC36: 0 | DD36: 0 | DE36: 0 | DF36: 0 | DG36: 0 | DH36: 0 | DI36: 0 | DJ36: =IF(#REF!>$Y$3,0,#REF!) ->  | DK36: =IF(#REF!>$Y$3,0,#REF!) ->  | DL36: =IF(#REF!>$Y$3,0,#REF!) ->  | DM36: =IF(#REF!>$Y$3,0,#REF!) ->  | DN36: =IF(#REF!>$Y$3,0,#REF!) ->  | DO36: =IF(#REF!>$Y$3,0,#REF!) ->  | DP36: =IF(#REF!>$Y$3,0,#REF!) ->  | DQ36: =IF(#REF!>$Y$3,0,#REF!) ->  | DR36: =IF(#REF!>$Y$3,0,#REF!) ->  | DS36: =IF(#REF!>$Y$3,0,#REF!) ->  | DT36: =IF(#REF!>$Y$3,0,#REF!) ->  | DU36: =IF(#REF!>$Y$3,0,#REF!) ->  | DV36: =IF(#REF!>$Y$3,0,#REF!) ->  | DW36: =IF(#REF!>$Y$3,0,#REF!) ->  | DX36: =IF(#REF!>$Y$3,0,#REF!) ->  | DY36: =IF(#REF!>$Y$3,0,#REF!) ->  | DZ36: =IF(#REF!>$Y$3,0,#REF!) ->  | EA36: =IF(#REF!>$Y$3,0,#REF!) ->  | EB36: =IF(#REF!>$Y$3,0,#REF!) ->  | EC36: =IF(#REF!>$Y$3,0,#REF!) ->  | ED36: =IF(#REF!>$Y$3,0,#REF!) ->  | EE36: =IF(#REF!>$Y$3,0,#REF!) ->  | EF36: =IF(#REF!>$Y$3,0,#REF!) ->  | EG36: =IF(#REF!>$Y$3,0,#REF!) ->  | EH36: =IF(#REF!>$Y$3,0,#REF!) ->  | EI36: =IF(#REF!>$Y$3,0,#REF!) ->  | EJ36: =IF(#REF!>$Y$3,0,#REF!) ->  | EK36: =IF(#REF!>$Y$3,0,#REF!) -> 
C37: 33 | D37: =IF('AS1'!D37="","",'AS1'!D37) ->  | E37: =IF('AS1'!E37="","",'AS1'!E37) ->  | BF37: 0 | BG37: =IF(PARCIAL1!L$8=0,0,(ROUND(((BF37*10)/PARCIAL2!L$8),1))) -> 0 | BJ37: =IF(F37>$Y$3,0,F37) -> 0 | BK37: 0 | BL37: 0 | BM37: 0 | BN37: 0 | BO37: 0 | BP37: 0 | BQ37: 0 | BR37: 0 | BS37: 0 | BT37: 0 | BU37: 0 | BV37: 0 | BW37: 0 | BX37: 0 | BY37: 0 | BZ37: 0 | CA37: 0 | CB37: 0 | CC37: 0 | CD37: 0 | CE37: 0 | CF37: 0 | CG37: 0 | CH37: 0 | CI37: 0 | CJ37: 0 | CK37: 0 | CL37: 0 | CM37: 0 | CN37: 0 | CO37: 0 | CP37: =IF(AL37>$Y$3,0,AL37) -> 0 | CQ37: 0 | CR37: 0 | CS37: 0 | CT37: 0 | CU37: 0 | CV37: 0 | CW37: 0 | CX37: 0 | CY37: 0 | CZ37: 0 | DA37: 0 | DB37: 0 | DC37: 0 | DD37: 0 | DE37: 0 | DF37: 0 | DG37: 0 | DH37: 0 | DI37: 0 | DJ37: =IF(#REF!>$Y$3,0,#REF!) ->  | DK37: =IF(#REF!>$Y$3,0,#REF!) ->  | DL37: =IF(#REF!>$Y$3,0,#REF!) ->  | DM37: =IF(#REF!>$Y$3,0,#REF!) ->  | DN37: =IF(#REF!>$Y$3,0,#REF!) ->  | DO37: =IF(#REF!>$Y$3,0,#REF!) ->  | DP37: =IF(#REF!>$Y$3,0,#REF!) ->  | DQ37: =IF(#REF!>$Y$3,0,#REF!) ->  | DR37: =IF(#REF!>$Y$3,0,#REF!) ->  | DS37: =IF(#REF!>$Y$3,0,#REF!) ->  | DT37: =IF(#REF!>$Y$3,0,#REF!) ->  | DU37: =IF(#REF!>$Y$3,0,#REF!) ->  | DV37: =IF(#REF!>$Y$3,0,#REF!) ->  | DW37: =IF(#REF!>$Y$3,0,#REF!) ->  | DX37: =IF(#REF!>$Y$3,0,#REF!) ->  | DY37: =IF(#REF!>$Y$3,0,#REF!) ->  | DZ37: =IF(#REF!>$Y$3,0,#REF!) ->  | EA37: =IF(#REF!>$Y$3,0,#REF!) ->  | EB37: =IF(#REF!>$Y$3,0,#REF!) ->  | EC37: =IF(#REF!>$Y$3,0,#REF!) ->  | ED37: =IF(#REF!>$Y$3,0,#REF!) ->  | EE37: =IF(#REF!>$Y$3,0,#REF!) ->  | EF37: =IF(#REF!>$Y$3,0,#REF!) ->  | EG37: =IF(#REF!>$Y$3,0,#REF!) ->  | EH37: =IF(#REF!>$Y$3,0,#REF!) ->  | EI37: =IF(#REF!>$Y$3,0,#REF!) ->  | EJ37: =IF(#REF!>$Y$3,0,#REF!) ->  | EK37: =IF(#REF!>$Y$3,0,#REF!) -> 
C38: 34 | D38: =IF('AS1'!D38="","",'AS1'!D38) ->  | E38: =IF('AS1'!E38="","",'AS1'!E38) ->  | BF38: 0 | BG38: =IF(PARCIAL1!L$8=0,0,(ROUND(((BF38*10)/PARCIAL2!L$8),1))) -> 0 | BJ38: 0 | BK38: 0 | BL38: 0 | BM38: 0 | BN38: 0 | BO38: 0 | BP38: 0 | BQ38: 0 | BR38: 0 | BS38: 0 | BT38: 0 | BU38: 0 | BV38: 0 | BW38: 0 | BX38: 0 | BY38: 0 | BZ38: 0 | CA38: 0 | CB38: 0 | CC38: 0 | CD38: 0 | CE38: 0 | CF38: 0 | CG38: 0 | CH38: 0 | CI38: 0 | CJ38: 0 | CK38: 0 | CL38: 0 | CM38: 0 | CN38: 0 | CO38: =IF(AK38>$Y$3,0,AK38) -> 0 | CP38: 0 | CQ38: 0 | CR38: 0 | CS38: 0 | CT38: 0 | CU38: 0 | CV38: 0 | CW38: 0 | CX38: 0 | CY38: 0 | CZ38: 0 | DA38: 0 | DB38: 0 | DC38: 0 | DD38: 0 | DE38: 0 | DF38: 0 | DG38: 0 | DH38: 0 | DI38: 0 | DJ38: =IF(#REF!>$Y$3,0,#REF!) ->  | DK38: =IF(#REF!>$Y$3,0,#REF!) ->  | DL38: =IF(#REF!>$Y$3,0,#REF!) ->  | DM38: =IF(#REF!>$Y$3,0,#REF!) ->  | DN38: =IF(#REF!>$Y$3,0,#REF!) ->  | DO38: =IF(#REF!>$Y$3,0,#REF!) ->  | DP38: =IF(#REF!>$Y$3,0,#REF!) ->  | DQ38: =IF(#REF!>$Y$3,0,#REF!) ->  | DR38: =IF(#REF!>$Y$3,0,#REF!) ->  | DS38: =IF(#REF!>$Y$3,0,#REF!) ->  | DT38: =IF(#REF!>$Y$3,0,#REF!) ->  | DU38: =IF(#REF!>$Y$3,0,#REF!) ->  | DV38: =IF(#REF!>$Y$3,0,#REF!) ->  | DW38: =IF(#REF!>$Y$3,0,#REF!) ->  | DX38: =IF(#REF!>$Y$3,0,#REF!) ->  | DY38: =IF(#REF!>$Y$3,0,#REF!) ->  | DZ38: =IF(#REF!>$Y$3,0,#REF!) ->  | EA38: =IF(#REF!>$Y$3,0,#REF!) ->  | EB38: =IF(#REF!>$Y$3,0,#REF!) ->  | EC38: =IF(#REF!>$Y$3,0,#REF!) ->  | ED38: =IF(#REF!>$Y$3,0,#REF!) ->  | EE38: =IF(#REF!>$Y$3,0,#REF!) ->  | EF38: =IF(#REF!>$Y$3,0,#REF!) ->  | EG38: =IF(#REF!>$Y$3,0,#REF!) ->  | EH38: =IF(#REF!>$Y$3,0,#REF!) ->  | EI38: =IF(#REF!>$Y$3,0,#REF!) ->  | EJ38: =IF(#REF!>$Y$3,0,#REF!) ->  | EK38: =IF(#REF!>$Y$3,0,#REF!) -> 
C39: 35 | D39: =IF('AS1'!D39="","",'AS1'!D39) ->  | E39: =IF('AS1'!E39="","",'AS1'!E39) ->  | BF39: 0 | BG39: =IF(PARCIAL1!L$8=0,0,(ROUND(((BF39*10)/PARCIAL2!L$8),1))) -> 0 | BJ39: 0 | BK39: 0 | BL39: 0 | BM39: 0 | BN39: 0 | BO39: 0 | BP39: 0 | BQ39: 0 | BR39: 0 | BS39: 0 | BT39: 0 | BU39: 0 | BV39: 0 | BW39: 0 | BX39: 0 | BY39: 0 | BZ39: 0 | CA39: 0 | CB39: 0 | CC39: 0 | CD39: 0 | CE39: 0 | CF39: 0 | CG39: 0 | CH39: 0 | CI39: 0 | CJ39: 0 | CK39: 0 | CL39: 0 | CM39: 0 | CN39: 0 | CO39: 0 | CP39: 0 | CQ39: 0 | CR39: 0 | CS39: 0 | CT39: 0 | CU39: 0 | CV39: 0 | CW39: 0 | CX39: 0 | CY39: 0 | CZ39: 0 | DA39: 0 | DB39: 0 | DC39: 0 | DD39: 0 | DE39: 0 | DF39: 0 | DG39: 0 | DH39: 0 | DI39: 0 | DJ39: =IF(#REF!>$Y$3,0,#REF!) ->  | DK39: =IF(#REF!>$Y$3,0,#REF!) ->  | DL39: =IF(#REF!>$Y$3,0,#REF!) ->  | DM39: =IF(#REF!>$Y$3,0,#REF!) ->  | DN39: =IF(#REF!>$Y$3,0,#REF!) ->  | DO39: =IF(#REF!>$Y$3,0,#REF!) ->  | DP39: =IF(#REF!>$Y$3,0,#REF!) ->  | DQ39: =IF(#REF!>$Y$3,0,#REF!) ->  | DR39: =IF(#REF!>$Y$3,0,#REF!) ->  | DS39: =IF(#REF!>$Y$3,0,#REF!) ->  | DT39: =IF(#REF!>$Y$3,0,#REF!) ->  | DU39: =IF(#REF!>$Y$3,0,#REF!) ->  | DV39: =IF(#REF!>$Y$3,0,#REF!) ->  | DW39: =IF(#REF!>$Y$3,0,#REF!) ->  | DX39: =IF(#REF!>$Y$3,0,#REF!) ->  | DY39: =IF(#REF!>$Y$3,0,#REF!) ->  | DZ39: =IF(#REF!>$Y$3,0,#REF!) ->  | EA39: =IF(#REF!>$Y$3,0,#REF!) ->  | EB39: =IF(#REF!>$Y$3,0,#REF!) ->  | EC39: =IF(#REF!>$Y$3,0,#REF!) ->  | ED39: =IF(#REF!>$Y$3,0,#REF!) ->  | EE39: =IF(#REF!>$Y$3,0,#REF!) ->  | EF39: =IF(#REF!>$Y$3,0,#REF!) ->  | EG39: =IF(#REF!>$Y$3,0,#REF!) ->  | EH39: =IF(#REF!>$Y$3,0,#REF!) ->  | EI39: =IF(#REF!>$Y$3,0,#REF!) ->  | EJ39: =IF(#REF!>$Y$3,0,#REF!) ->  | EK39: =IF(#REF!>$Y$3,0,#REF!) -> 
C40: 36 | D40: =IF('AS1'!D40="","",'AS1'!D40) ->  | E40: =IF('AS1'!E40="","",'AS1'!E40) ->  | BF40: 0 | BG40: =IF(PARCIAL1!L$8=0,0,(ROUND(((BF40*10)/PARCIAL2!L$8),1))) -> 0 | BJ40: 0 | BK40: 0 | BL40: 0 | BM40: 0 | BN40: 0 | BO40: 0 | BP40: 0 | BQ40: 0 | BR40: 0 | BS40: 0 | BT40: 0 | BU40: 0 | BV40: 0 | BW40: 0 | BX40: 0 | BY40: 0 | BZ40: 0 | CA40: 0 | CB40: 0 | CC40: 0 | CD40: 0 | CE40: 0 | CF40: 0 | CG40: 0 | CH40: 0 | CI40: 0 | CJ40: 0 | CK40: 0 | CL40: 0 | CM40: 0 | CN40: 0 | CO40: 0 | CP40: 0 | CQ40: 0 | CR40: 0 | CS40: 0 | CT40: 0 | CU40: 0 | CV40: 0 | CW40: 0 | CX40: 0 | CY40: 0 | CZ40: 0 | DA40: 0 | DB40: 0 | DC40: 0 | DD40: 0 | DE40: 0 | DF40: 0 | DG40: 0 | DH40: 0 | DI40: 0 | DJ40: =IF(#REF!>$Y$3,0,#REF!) ->  | DK40: =IF(#REF!>$Y$3,0,#REF!) ->  | DL40: =IF(#REF!>$Y$3,0,#REF!) ->  | DM40: =IF(#REF!>$Y$3,0,#REF!) ->  | DN40: =IF(#REF!>$Y$3,0,#REF!) ->  | DO40: =IF(#REF!>$Y$3,0,#REF!) ->  | DP40: =IF(#REF!>$Y$3,0,#REF!) ->  | DQ40: =IF(#REF!>$Y$3,0,#REF!) ->  | DR40: =IF(#REF!>$Y$3,0,#REF!) ->  | DS40: =IF(#REF!>$Y$3,0,#REF!) ->  | DT40: =IF(#REF!>$Y$3,0,#REF!) ->  | DU40: =IF(#REF!>$Y$3,0,#REF!) ->  | DV40: =IF(#REF!>$Y$3,0,#REF!) ->  | DW40: =IF(#REF!>$Y$3,0,#REF!) ->  | DX40: =IF(#REF!>$Y$3,0,#REF!) ->  | DY40: =IF(#REF!>$Y$3,0,#REF!) ->  | DZ40: =IF(#REF!>$Y$3,0,#REF!) ->  | EA40: =IF(#REF!>$Y$3,0,#REF!) ->  | EB40: =IF(#REF!>$Y$3,0,#REF!) ->  | EC40: =IF(#REF!>$Y$3,0,#REF!) ->  | ED40: =IF(#REF!>$Y$3,0,#REF!) ->  | EE40: =IF(#REF!>$Y$3,0,#REF!) ->  | EF40: =IF(#REF!>$Y$3,0,#REF!) ->  | EG40: =IF(#REF!>$Y$3,0,#REF!) ->  | EH40: =IF(#REF!>$Y$3,0,#REF!) ->  | EI40: =IF(#REF!>$Y$3,0,#REF!) ->  | EJ40: =IF(#REF!>$Y$3,0,#REF!) ->  | EK40: =IF(#REF!>$Y$3,0,#REF!) -> 
C41: 37 | D41: =IF('AS1'!D41="","",'AS1'!D41) ->  | E41: =IF('AS1'!E41="","",'AS1'!E41) ->  | BF41: 0 | BG41: =IF(PARCIAL1!L$8=0,0,(ROUND(((BF41*10)/PARCIAL2!L$8),1))) -> 0 | BJ41: 0 | BK41: 0 | BL41: 0 | BM41: 0 | BN41: 0 | BO41: 0 | BP41: 0 | BQ41: 0 | BR41: 0 | BS41: 0 | BT41: 0 | BU41: 0 | BV41: 0 | BW41: 0 | BX41: 0 | BY41: 0 | BZ41: 0 | CA41: 0 | CB41: 0 | CC41: 0 | CD41: 0 | CE41: 0 | CF41: 0 | CG41: 0 | CH41: 0 | CI41: 0 | CJ41: 0 | CK41: 0 | CL41: 0 | CM41: 0 | CN41: 0 | CO41: 0 | CP41: 0 | CQ41: 0 | CR41: 0 | CS41: 0 | CT41: 0 | CU41: 0 | CV41: 0 | CW41: 0 | CX41: 0 | CY41: 0 | CZ41: 0 | DA41: 0 | DB41: 0 | DC41: 0 | DD41: 0 | DE41: 0 | DF41: 0 | DG41: 0 | DH41: 0 | DI41: 0 | DJ41: =IF(#REF!>$Y$3,0,#REF!) ->  | DK41: =IF(#REF!>$Y$3,0,#REF!) ->  | DL41: =IF(#REF!>$Y$3,0,#REF!) ->  | DM41: =IF(#REF!>$Y$3,0,#REF!) ->  | DN41: =IF(#REF!>$Y$3,0,#REF!) ->  | DO41: =IF(#REF!>$Y$3,0,#REF!) ->  | DP41: =IF(#REF!>$Y$3,0,#REF!) ->  | DQ41: =IF(#REF!>$Y$3,0,#REF!) ->  | DR41: =IF(#REF!>$Y$3,0,#REF!) ->  | DS41: =IF(#REF!>$Y$3,0,#REF!) ->  | DT41: =IF(#REF!>$Y$3,0,#REF!) ->  | DU41: =IF(#REF!>$Y$3,0,#REF!) ->  | DV41: =IF(#REF!>$Y$3,0,#REF!) ->  | DW41: =IF(#REF!>$Y$3,0,#REF!) ->  | DX41: =IF(#REF!>$Y$3,0,#REF!) ->  | DY41: =IF(#REF!>$Y$3,0,#REF!) ->  | DZ41: =IF(#REF!>$Y$3,0,#REF!) ->  | EA41: =IF(#REF!>$Y$3,0,#REF!) ->  | EB41: =IF(#REF!>$Y$3,0,#REF!) ->  | EC41: =IF(#REF!>$Y$3,0,#REF!) ->  | ED41: =IF(#REF!>$Y$3,0,#REF!) ->  | EE41: =IF(#REF!>$Y$3,0,#REF!) ->  | EF41: =IF(#REF!>$Y$3,0,#REF!) ->  | EG41: =IF(#REF!>$Y$3,0,#REF!) ->  | EH41: =IF(#REF!>$Y$3,0,#REF!) ->  | EI41: =IF(#REF!>$Y$3,0,#REF!) ->  | EJ41: =IF(#REF!>$Y$3,0,#REF!) ->  | EK41: =IF(#REF!>$Y$3,0,#REF!) -> 
C42: 38 | D42: =IF('AS1'!D42="","",'AS1'!D42) ->  | E42: =IF('AS1'!E42="","",'AS1'!E42) ->  | BF42: 0 | BG42: =IF(PARCIAL1!L$8=0,0,(ROUND(((BF42*10)/PARCIAL2!L$8),1))) -> 0 | BJ42: 0 | BK42: 0 | BL42: 0 | BM42: 0 | BN42: 0 | BO42: 0 | BP42: 0 | BQ42: 0 | BR42: 0 | BS42: 0 | BT42: 0 | BU42: 0 | BV42: 0 | BW42: 0 | BX42: 0 | BY42: 0 | BZ42: 0 | CA42: 0 | CB42: 0 | CC42: 0 | CD42: 0 | CE42: 0 | CF42: 0 | CG42: 0 | CH42: 0 | CI42: 0 | CJ42: 0 | CK42: 0 | CL42: 0 | CM42: 0 | CN42: 0 | CO42: 0 | CP42: 0 | CQ42: 0 | CR42: 0 | CS42: 0 | CT42: 0 | CU42: 0 | CV42: 0 | CW42: 0 | CX42: 0 | CY42: 0 | CZ42: 0 | DA42: 0 | DB42: 0 | DC42: 0 | DD42: 0 | DE42: 0 | DF42: 0 | DG42: 0 | DH42: 0 | DI42: 0 | DJ42: =IF(#REF!>$Y$3,0,#REF!) ->  | DK42: =IF(#REF!>$Y$3,0,#REF!) ->  | DL42: =IF(#REF!>$Y$3,0,#REF!) ->  | DM42: =IF(#REF!>$Y$3,0,#REF!) ->  | DN42: =IF(#REF!>$Y$3,0,#REF!) ->  | DO42: =IF(#REF!>$Y$3,0,#REF!) ->  | DP42: =IF(#REF!>$Y$3,0,#REF!) ->  | DQ42: =IF(#REF!>$Y$3,0,#REF!) ->  | DR42: =IF(#REF!>$Y$3,0,#REF!) ->  | DS42: =IF(#REF!>$Y$3,0,#REF!) ->  | DT42: =IF(#REF!>$Y$3,0,#REF!) ->  | DU42: =IF(#REF!>$Y$3,0,#REF!) ->  | DV42: =IF(#REF!>$Y$3,0,#REF!) ->  | DW42: =IF(#REF!>$Y$3,0,#REF!) ->  | DX42: =IF(#REF!>$Y$3,0,#REF!) ->  | DY42: =IF(#REF!>$Y$3,0,#REF!) ->  | DZ42: =IF(#REF!>$Y$3,0,#REF!) ->  | EA42: =IF(#REF!>$Y$3,0,#REF!) ->  | EB42: =IF(#REF!>$Y$3,0,#REF!) ->  | EC42: =IF(#REF!>$Y$3,0,#REF!) ->  | ED42: =IF(#REF!>$Y$3,0,#REF!) ->  | EE42: =IF(#REF!>$Y$3,0,#REF!) ->  | EF42: =IF(#REF!>$Y$3,0,#REF!) ->  | EG42: =IF(#REF!>$Y$3,0,#REF!) ->  | EH42: =IF(#REF!>$Y$3,0,#REF!) ->  | EI42: =IF(#REF!>$Y$3,0,#REF!) ->  | EJ42: =IF(#REF!>$Y$3,0,#REF!) ->  | EK42: =IF(#REF!>$Y$3,0,#REF!) -> 
C43: 39 | D43: =IF('AS1'!D43="","",'AS1'!D43) ->  | E43: =IF('AS1'!E43="","",'AS1'!E43) ->  | BF43: 0 | BG43: =IF(PARCIAL1!L$8=0,0,(ROUND(((BF43*10)/PARCIAL2!L$8),1))) -> 0 | BJ43: 0 | BK43: 0 | BL43: 0 | BM43: 0 | BN43: 0 | BO43: 0 | BP43: 0 | BQ43: 0 | BR43: 0 | BS43: 0 | BT43: 0 | BU43: 0 | BV43: 0 | BW43: 0 | BX43: 0 | BY43: 0 | BZ43: 0 | CA43: 0 | CB43: 0 | CC43: 0 | CD43: 0 | CE43: 0 | CF43: 0 | CG43: 0 | CH43: 0 | CI43: 0 | CJ43: 0 | CK43: 0 | CL43: 0 | CM43: 0 | CN43: 0 | CO43: 0 | CP43: 0 | CQ43: 0 | CR43: 0 | CS43: 0 | CT43: 0 | CU43: 0 | CV43: 0 | CW43: 0 | CX43: 0 | CY43: 0 | CZ43: 0 | DA43: 0 | DB43: 0 | DC43: 0 | DD43: 0 | DE43: 0 | DF43: 0 | DG43: 0 | DH43: 0 | DI43: 0 | DJ43: =IF(#REF!>$Y$3,0,#REF!) ->  | DK43: =IF(#REF!>$Y$3,0,#REF!) ->  | DL43: =IF(#REF!>$Y$3,0,#REF!) ->  | DM43: =IF(#REF!>$Y$3,0,#REF!) ->  | DN43: =IF(#REF!>$Y$3,0,#REF!) ->  | DO43: =IF(#REF!>$Y$3,0,#REF!) ->  | DP43: =IF(#REF!>$Y$3,0,#REF!) ->  | DQ43: =IF(#REF!>$Y$3,0,#REF!) ->  | DR43: =IF(#REF!>$Y$3,0,#REF!) ->  | DS43: =IF(#REF!>$Y$3,0,#REF!) ->  | DT43: =IF(#REF!>$Y$3,0,#REF!) ->  | DU43: =IF(#REF!>$Y$3,0,#REF!) ->  | DV43: =IF(#REF!>$Y$3,0,#REF!) ->  | DW43: =IF(#REF!>$Y$3,0,#REF!) ->  | DX43: =IF(#REF!>$Y$3,0,#REF!) ->  | DY43: =IF(#REF!>$Y$3,0,#REF!) ->  | DZ43: =IF(#REF!>$Y$3,0,#REF!) ->  | EA43: =IF(#REF!>$Y$3,0,#REF!) ->  | EB43: =IF(#REF!>$Y$3,0,#REF!) ->  | EC43: =IF(#REF!>$Y$3,0,#REF!) ->  | ED43: =IF(#REF!>$Y$3,0,#REF!) ->  | EE43: =IF(#REF!>$Y$3,0,#REF!) ->  | EF43: =IF(#REF!>$Y$3,0,#REF!) ->  | EG43: =IF(#REF!>$Y$3,0,#REF!) ->  | EH43: =IF(#REF!>$Y$3,0,#REF!) ->  | EI43: =IF(#REF!>$Y$3,0,#REF!) ->  | EJ43: =IF(#REF!>$Y$3,0,#REF!) ->  | EK43: =IF(#REF!>$Y$3,0,#REF!) -> 
C44: 40 | D44: =IF('AS1'!D44="","",'AS1'!D44) ->  | E44: =IF('AS1'!E44="","",'AS1'!E44) ->  | BF44: 0 | BG44: =IF(PARCIAL1!L$8=0,0,(ROUND(((BF44*10)/PARCIAL2!L$8),1))) -> 0 | BJ44: 0 | BK44: 0 | BL44: 0 | BM44: 0 | BN44: 0 | BO44: 0 | BP44: 0 | BQ44: 0 | BR44: 0 | BS44: 0 | BT44: 0 | BU44: 0 | BV44: 0 | BW44: 0 | BX44: 0 | BY44: 0 | BZ44: 0 | CA44: 0 | CB44: 0 | CC44: 0 | CD44: 0 | CE44: 0 | CF44: 0 | CG44: 0 | CH44: 0 | CI44: 0 | CJ44: 0 | CK44: 0 | CL44: 0 | CM44: 0 | CN44: 0 | CO44: 0 | CP44: 0 | CQ44: 0 | CR44: 0 | CS44: 0 | CT44: 0 | CU44: 0 | CV44: 0 | CW44: 0 | CX44: 0 | CY44: 0 | CZ44: 0 | DA44: 0 | DB44: 0 | DC44: 0 | DD44: 0 | DE44: 0 | DF44: 0 | DG44: 0 | DH44: 0 | DI44: 0 | DJ44: =IF(#REF!>$Y$3,0,#REF!) ->  | DK44: =IF(#REF!>$Y$3,0,#REF!) ->  | DL44: =IF(#REF!>$Y$3,0,#REF!) ->  | DM44: =IF(#REF!>$Y$3,0,#REF!) ->  | DN44: =IF(#REF!>$Y$3,0,#REF!) ->  | DO44: =IF(#REF!>$Y$3,0,#REF!) ->  | DP44: =IF(#REF!>$Y$3,0,#REF!) ->  | DQ44: =IF(#REF!>$Y$3,0,#REF!) ->  | DR44: =IF(#REF!>$Y$3,0,#REF!) ->  | DS44: =IF(#REF!>$Y$3,0,#REF!) ->  | DT44: =IF(#REF!>$Y$3,0,#REF!) ->  | DU44: =IF(#REF!>$Y$3,0,#REF!) ->  | DV44: =IF(#REF!>$Y$3,0,#REF!) ->  | DW44: =IF(#REF!>$Y$3,0,#REF!) ->  | DX44: =IF(#REF!>$Y$3,0,#REF!) ->  | DY44: =IF(#REF!>$Y$3,0,#REF!) ->  | DZ44: =IF(#REF!>$Y$3,0,#REF!) ->  | EA44: =IF(#REF!>$Y$3,0,#REF!) ->  | EB44: =IF(#REF!>$Y$3,0,#REF!) ->  | EC44: =IF(#REF!>$Y$3,0,#REF!) ->  | ED44: =IF(#REF!>$Y$3,0,#REF!) ->  | EE44: =IF(#REF!>$Y$3,0,#REF!) ->  | EF44: =IF(#REF!>$Y$3,0,#REF!) ->  | EG44: =IF(#REF!>$Y$3,0,#REF!) ->  | EH44: =IF(#REF!>$Y$3,0,#REF!) ->  | EI44: =IF(#REF!>$Y$3,0,#REF!) ->  | EJ44: =IF(#REF!>$Y$3,0,#REF!) ->  | EK44: =IF(#REF!>$Y$3,0,#REF!) -> 
C45: 41 | D45: =IF('AS1'!D45="","",'AS1'!D45) ->  | E45: =IF('AS1'!E45="","",'AS1'!E45) ->  | BF45: 0 | BG45: =IF(PARCIAL1!L$8=0,0,(ROUND(((BF45*10)/PARCIAL2!L$8),1))) -> 0 | BJ45: 0 | BK45: 0 | BL45: 0 | BM45: 0 | BN45: 0 | BO45: 0 | BP45: 0 | BQ45: 0 | BR45: 0 | BS45: 0 | BT45: 0 | BU45: 0 | BV45: 0 | BW45: 0 | BX45: 0 | BY45: 0 | BZ45: 0 | CA45: 0 | CB45: 0 | CC45: 0 | CD45: 0 | CE45: 0 | CF45: 0 | CG45: 0 | CH45: 0 | CI45: 0 | CJ45: 0 | CK45: 0 | CL45: 0 | CM45: 0 | CN45: 0 | CO45: 0 | CP45: 0 | CQ45: 0 | CR45: 0 | CS45: 0 | CT45: 0 | CU45: 0 | CV45: 0 | CW45: 0 | CX45: 0 | CY45: 0 | CZ45: 0 | DA45: 0 | DB45: 0 | DC45: 0 | DD45: 0 | DE45: 0 | DF45: 0 | DG45: 0 | DH45: 0 | DI45: 0 | DJ45: =IF(#REF!>$Y$3,0,#REF!) ->  | DK45: =IF(#REF!>$Y$3,0,#REF!) ->  | DL45: =IF(#REF!>$Y$3,0,#REF!) ->  | DM45: =IF(#REF!>$Y$3,0,#REF!) ->  | DN45: =IF(#REF!>$Y$3,0,#REF!) ->  | DO45: =IF(#REF!>$Y$3,0,#REF!) ->  | DP45: =IF(#REF!>$Y$3,0,#REF!) ->  | DQ45: =IF(#REF!>$Y$3,0,#REF!) ->  | DR45: =IF(#REF!>$Y$3,0,#REF!) ->  | DS45: =IF(#REF!>$Y$3,0,#REF!) ->  | DT45: =IF(#REF!>$Y$3,0,#REF!) ->  | DU45: =IF(#REF!>$Y$3,0,#REF!) ->  | DV45: =IF(#REF!>$Y$3,0,#REF!) ->  | DW45: =IF(#REF!>$Y$3,0,#REF!) ->  | DX45: =IF(#REF!>$Y$3,0,#REF!) ->  | DY45: =IF(#REF!>$Y$3,0,#REF!) ->  | DZ45: =IF(#REF!>$Y$3,0,#REF!) ->  | EA45: =IF(#REF!>$Y$3,0,#REF!) ->  | EB45: =IF(#REF!>$Y$3,0,#REF!) ->  | EC45: =IF(#REF!>$Y$3,0,#REF!) ->  | ED45: =IF(#REF!>$Y$3,0,#REF!) ->  | EE45: =IF(#REF!>$Y$3,0,#REF!) ->  | EF45: =IF(#REF!>$Y$3,0,#REF!) ->  | EG45: =IF(#REF!>$Y$3,0,#REF!) ->  | EH45: =IF(#REF!>$Y$3,0,#REF!) ->  | EI45: =IF(#REF!>$Y$3,0,#REF!) ->  | EJ45: =IF(#REF!>$Y$3,0,#REF!) ->  | EK45: =IF(#REF!>$Y$3,0,#REF!) -> 
C46: 42 | D46: =IF('AS1'!D46="","",'AS1'!D46) ->  | E46: =IF('AS1'!E46="","",'AS1'!E46) ->  | BF46: 0 | BG46: =IF(PARCIAL1!L$8=0,0,(ROUND(((BF46*10)/PARCIAL2!L$8),1))) -> 0 | BJ46: 0 | BK46: 0 | BL46: 0 | BM46: 0 | BN46: 0 | BO46: 0 | BP46: 0 | BQ46: 0 | BR46: 0 | BS46: 0 | BT46: 0 | BU46: 0 | BV46: 0 | BW46: 0 | BX46: 0 | BY46: 0 | BZ46: 0 | CA46: 0 | CB46: 0 | CC46: 0 | CD46: 0 | CE46: 0 | CF46: 0 | CG46: 0 | CH46: 0 | CI46: 0 | CJ46: 0 | CK46: 0 | CL46: 0 | CM46: 0 | CN46: 0 | CO46: 0 | CP46: 0 | CQ46: 0 | CR46: 0 | CS46: 0 | CT46: 0 | CU46: 0 | CV46: 0 | CW46: 0 | CX46: 0 | CY46: 0 | CZ46: 0 | DA46: 0 | DB46: 0 | DC46: 0 | DD46: 0 | DE46: 0 | DF46: 0 | DG46: 0 | DH46: 0 | DI46: 0 | DJ46: =IF(#REF!>$Y$3,0,#REF!) ->  | DK46: =IF(#REF!>$Y$3,0,#REF!) ->  | DL46: =IF(#REF!>$Y$3,0,#REF!) ->  | DM46: =IF(#REF!>$Y$3,0,#REF!) ->  | DN46: =IF(#REF!>$Y$3,0,#REF!) ->  | DO46: =IF(#REF!>$Y$3,0,#REF!) ->  | DP46: =IF(#REF!>$Y$3,0,#REF!) ->  | DQ46: =IF(#REF!>$Y$3,0,#REF!) ->  | DR46: =IF(#REF!>$Y$3,0,#REF!) ->  | DS46: =IF(#REF!>$Y$3,0,#REF!) ->  | DT46: =IF(#REF!>$Y$3,0,#REF!) ->  | DU46: =IF(#REF!>$Y$3,0,#REF!) ->  | DV46: =IF(#REF!>$Y$3,0,#REF!) ->  | DW46: =IF(#REF!>$Y$3,0,#REF!) ->  | DX46: =IF(#REF!>$Y$3,0,#REF!) ->  | DY46: =IF(#REF!>$Y$3,0,#REF!) ->  | DZ46: =IF(#REF!>$Y$3,0,#REF!) ->  | EA46: =IF(#REF!>$Y$3,0,#REF!) ->  | EB46: =IF(#REF!>$Y$3,0,#REF!) ->  | EC46: =IF(#REF!>$Y$3,0,#REF!) ->  | ED46: =IF(#REF!>$Y$3,0,#REF!) ->  | EE46: =IF(#REF!>$Y$3,0,#REF!) ->  | EF46: =IF(#REF!>$Y$3,0,#REF!) ->  | EG46: =IF(#REF!>$Y$3,0,#REF!) ->  | EH46: =IF(#REF!>$Y$3,0,#REF!) ->  | EI46: =IF(#REF!>$Y$3,0,#REF!) ->  | EJ46: =IF(#REF!>$Y$3,0,#REF!) ->  | EK46: =IF(#REF!>$Y$3,0,#REF!) -> 
C47: 43 | D47: =IF('AS1'!D47="","",'AS1'!D47) ->  | E47: =IF('AS1'!E47="","",'AS1'!E47) ->  | BF47: 0 | BG47: =IF(PARCIAL1!L$8=0,0,(ROUND(((BF47*10)/PARCIAL2!L$8),1))) -> 0 | BJ47: 0 | BK47: 0 | BL47: 0 | BM47: 0 | BN47: 0 | BO47: 0 | BP47: 0 | BQ47: 0 | BR47: 0 | BS47: 0 | BT47: 0 | BU47: 0 | BV47: 0 | BW47: 0 | BX47: 0 | BY47: 0 | BZ47: 0 | CA47: 0 | CB47: 0 | CC47: 0 | CD47: 0 | CE47: 0 | CF47: 0 | CG47: 0 | CH47: 0 | CI47: 0 | CJ47: 0 | CK47: 0 | CL47: 0 | CM47: 0 | CN47: 0 | CO47: 0 | CP47: 0 | CQ47: 0 | CR47: 0 | CS47: 0 | CT47: 0 | CU47: 0 | CV47: 0 | CW47: 0 | CX47: 0 | CY47: 0 | CZ47: 0 | DA47: 0 | DB47: 0 | DC47: 0 | DD47: 0 | DE47: 0 | DF47: 0 | DG47: 0 | DH47: 0 | DI47: 0 | DJ47: =IF(#REF!>$Y$3,0,#REF!) ->  | DK47: =IF(#REF!>$Y$3,0,#REF!) ->  | DL47: =IF(#REF!>$Y$3,0,#REF!) ->  | DM47: =IF(#REF!>$Y$3,0,#REF!) ->  | DN47: =IF(#REF!>$Y$3,0,#REF!) ->  | DO47: =IF(#REF!>$Y$3,0,#REF!) ->  | DP47: =IF(#REF!>$Y$3,0,#REF!) ->  | DQ47: =IF(#REF!>$Y$3,0,#REF!) ->  | DR47: =IF(#REF!>$Y$3,0,#REF!) ->  | DS47: =IF(#REF!>$Y$3,0,#REF!) ->  | DT47: =IF(#REF!>$Y$3,0,#REF!) ->  | DU47: =IF(#REF!>$Y$3,0,#REF!) ->  | DV47: =IF(#REF!>$Y$3,0,#REF!) ->  | DW47: =IF(#REF!>$Y$3,0,#REF!) ->  | DX47: =IF(#REF!>$Y$3,0,#REF!) ->  | DY47: =IF(#REF!>$Y$3,0,#REF!) ->  | DZ47: =IF(#REF!>$Y$3,0,#REF!) ->  | EA47: =IF(#REF!>$Y$3,0,#REF!) ->  | EB47: =IF(#REF!>$Y$3,0,#REF!) ->  | EC47: =IF(#REF!>$Y$3,0,#REF!) ->  | ED47: =IF(#REF!>$Y$3,0,#REF!) ->  | EE47: =IF(#REF!>$Y$3,0,#REF!) ->  | EF47: =IF(#REF!>$Y$3,0,#REF!) ->  | EG47: =IF(#REF!>$Y$3,0,#REF!) ->  | EH47: =IF(#REF!>$Y$3,0,#REF!) ->  | EI47: =IF(#REF!>$Y$3,0,#REF!) ->  | EJ47: =IF(#REF!>$Y$3,0,#REF!) ->  | EK47: =IF(#REF!>$Y$3,0,#REF!) -> 
C48: 44 | D48: =IF('AS1'!D48="","",'AS1'!D48) ->  | E48: =IF('AS1'!E48="","",'AS1'!E48) ->  | BF48: 0 | BG48: =IF(PARCIAL1!L$8=0,0,(ROUND(((BF48*10)/PARCIAL2!L$8),1))) -> 0 | BJ48: 0 | BK48: 0 | BL48: 0 | BM48: 0 | BN48: 0 | BO48: 0 | BP48: 0 | BQ48: 0 | BR48: 0 | BS48: 0 | BT48: 0 | BU48: 0 | BV48: 0 | BW48: 0 | BX48: 0 | BY48: 0 | BZ48: 0 | CA48: 0 | CB48: 0 | CC48: 0 | CD48: 0 | CE48: 0 | CF48: 0 | CG48: 0 | CH48: 0 | CI48: 0 | CJ48: 0 | CK48: 0 | CL48: 0 | CM48: 0 | CN48: 0 | CO48: 0 | CP48: 0 | CQ48: 0 | CR48: 0 | CS48: 0 | CT48: 0 | CU48: 0 | CV48: 0 | CW48: 0 | CX48: 0 | CY48: 0 | CZ48: 0 | DA48: 0 | DB48: 0 | DC48: 0 | DD48: 0 | DE48: 0 | DF48: 0 | DG48: 0 | DH48: 0 | DI48: 0 | DJ48: =IF(#REF!>$Y$3,0,#REF!) ->  | DK48: =IF(#REF!>$Y$3,0,#REF!) ->  | DL48: =IF(#REF!>$Y$3,0,#REF!) ->  | DM48: =IF(#REF!>$Y$3,0,#REF!) ->  | DN48: =IF(#REF!>$Y$3,0,#REF!) ->  | DO48: =IF(#REF!>$Y$3,0,#REF!) ->  | DP48: =IF(#REF!>$Y$3,0,#REF!) ->  | DQ48: =IF(#REF!>$Y$3,0,#REF!) ->  | DR48: =IF(#REF!>$Y$3,0,#REF!) ->  | DS48: =IF(#REF!>$Y$3,0,#REF!) ->  | DT48: =IF(#REF!>$Y$3,0,#REF!) ->  | DU48: =IF(#REF!>$Y$3,0,#REF!) ->  | DV48: =IF(#REF!>$Y$3,0,#REF!) ->  | DW48: =IF(#REF!>$Y$3,0,#REF!) ->  | DX48: =IF(#REF!>$Y$3,0,#REF!) ->  | DY48: =IF(#REF!>$Y$3,0,#REF!) ->  | DZ48: =IF(#REF!>$Y$3,0,#REF!) ->  | EA48: =IF(#REF!>$Y$3,0,#REF!) ->  | EB48: =IF(#REF!>$Y$3,0,#REF!) ->  | EC48: =IF(#REF!>$Y$3,0,#REF!) ->  | ED48: =IF(#REF!>$Y$3,0,#REF!) ->  | EE48: =IF(#REF!>$Y$3,0,#REF!) ->  | EF48: =IF(#REF!>$Y$3,0,#REF!) ->  | EG48: =IF(#REF!>$Y$3,0,#REF!) ->  | EH48: =IF(#REF!>$Y$3,0,#REF!) ->  | EI48: =IF(#REF!>$Y$3,0,#REF!) ->  | EJ48: =IF(#REF!>$Y$3,0,#REF!) ->  | EK48: =IF(#REF!>$Y$3,0,#REF!) -> 
C49: 45 | D49: =IF('AS1'!D49="","",'AS1'!D49) ->  | E49: =IF('AS1'!E49="","",'AS1'!E49) ->  | BF49: 0 | BG49: =IF(PARCIAL1!L$8=0,0,(ROUND(((BF49*10)/PARCIAL2!L$8),1))) -> 0 | BJ49: 0 | BK49: 0 | BL49: 0 | BM49: 0 | BN49: 0 | BO49: 0 | BP49: 0 | BQ49: 0 | BR49: 0 | BS49: 0 | BT49: 0 | BU49: 0 | BV49: 0 | BW49: 0 | BX49: 0 | BY49: 0 | BZ49: 0 | CA49: 0 | CB49: 0 | CC49: 0 | CD49: 0 | CE49: 0 | CF49: 0 | CG49: 0 | CH49: 0 | CI49: 0 | CJ49: 0 | CK49: 0 | CL49: 0 | CM49: 0 | CN49: 0 | CO49: 0 | CP49: 0 | CQ49: 0 | CR49: 0 | CS49: 0 | CT49: 0 | CU49: 0 | CV49: 0 | CW49: 0 | CX49: 0 | CY49: 0 | CZ49: 0 | DA49: 0 | DB49: 0 | DC49: 0 | DD49: 0 | DE49: 0 | DF49: 0 | DG49: 0 | DH49: 0 | DI49: 0 | DJ49: =IF(#REF!>$Y$3,0,#REF!) ->  | DK49: =IF(#REF!>$Y$3,0,#REF!) ->  | DL49: =IF(#REF!>$Y$3,0,#REF!) ->  | DM49: =IF(#REF!>$Y$3,0,#REF!) ->  | DN49: =IF(#REF!>$Y$3,0,#REF!) ->  | DO49: =IF(#REF!>$Y$3,0,#REF!) ->  | DP49: =IF(#REF!>$Y$3,0,#REF!) ->  | DQ49: =IF(#REF!>$Y$3,0,#REF!) ->  | DR49: =IF(#REF!>$Y$3,0,#REF!) ->  | DS49: =IF(#REF!>$Y$3,0,#REF!) ->  | DT49: =IF(#REF!>$Y$3,0,#REF!) ->  | DU49: =IF(#REF!>$Y$3,0,#REF!) ->  | DV49: =IF(#REF!>$Y$3,0,#REF!) ->  | DW49: =IF(#REF!>$Y$3,0,#REF!) ->  | DX49: =IF(#REF!>$Y$3,0,#REF!) ->  | DY49: =IF(#REF!>$Y$3,0,#REF!) ->  | DZ49: =IF(#REF!>$Y$3,0,#REF!) ->  | EA49: =IF(#REF!>$Y$3,0,#REF!) ->  | EB49: =IF(#REF!>$Y$3,0,#REF!) ->  | EC49: =IF(#REF!>$Y$3,0,#REF!) ->  | ED49: =IF(#REF!>$Y$3,0,#REF!) ->  | EE49: =IF(#REF!>$Y$3,0,#REF!) ->  | EF49: =IF(#REF!>$Y$3,0,#REF!) ->  | EG49: =IF(#REF!>$Y$3,0,#REF!) ->  | EH49: =IF(#REF!>$Y$3,0,#REF!) ->  | EI49: =IF(#REF!>$Y$3,0,#REF!) ->  | EJ49: =IF(#REF!>$Y$3,0,#REF!) ->  | EK49: =IF(#REF!>$Y$3,0,#REF!) -> 
C50: 46 | D50: =IF('AS1'!D50="","",'AS1'!D50) ->  | E50: =IF('AS1'!E50="","",'AS1'!E50) ->  | BF50: 0 | BG50: =IF(PARCIAL1!L$8=0,0,(ROUND(((BF50*10)/PARCIAL2!L$8),1))) -> 0 | BJ50: 0 | BK50: 0 | BL50: 0 | BM50: 0 | BN50: 0 | BO50: 0 | BP50: 0 | BQ50: 0 | BR50: 0 | BS50: 0 | BT50: 0 | BU50: 0 | BV50: 0 | BW50: 0 | BX50: 0 | BY50: 0 | BZ50: 0 | CA50: 0 | CB50: 0 | CC50: 0 | CD50: 0 | CE50: 0 | CF50: 0 | CG50: 0 | CH50: 0 | CI50: 0 | CJ50: 0 | CK50: 0 | CL50: 0 | CM50: 0 | CN50: 0 | CO50: 0 | CP50: 0 | CQ50: 0 | CR50: 0 | CS50: 0 | CT50: 0 | CU50: 0 | CV50: 0 | CW50: 0 | CX50: 0 | CY50: 0 | CZ50: 0 | DA50: 0 | DB50: 0 | DC50: 0 | DD50: 0 | DE50: 0 | DF50: 0 | DG50: 0 | DH50: 0 | DI50: 0 | DJ50: =IF(#REF!>$Y$3,0,#REF!) ->  | DK50: =IF(#REF!>$Y$3,0,#REF!) ->  | DL50: =IF(#REF!>$Y$3,0,#REF!) ->  | DM50: =IF(#REF!>$Y$3,0,#REF!) ->  | DN50: =IF(#REF!>$Y$3,0,#REF!) ->  | DO50: =IF(#REF!>$Y$3,0,#REF!) ->  | DP50: =IF(#REF!>$Y$3,0,#REF!) ->  | DQ50: =IF(#REF!>$Y$3,0,#REF!) ->  | DR50: =IF(#REF!>$Y$3,0,#REF!) ->  | DS50: =IF(#REF!>$Y$3,0,#REF!) ->  | DT50: =IF(#REF!>$Y$3,0,#REF!) ->  | DU50: =IF(#REF!>$Y$3,0,#REF!) ->  | DV50: =IF(#REF!>$Y$3,0,#REF!) ->  | DW50: =IF(#REF!>$Y$3,0,#REF!) ->  | DX50: =IF(#REF!>$Y$3,0,#REF!) ->  | DY50: =IF(#REF!>$Y$3,0,#REF!) ->  | DZ50: =IF(#REF!>$Y$3,0,#REF!) ->  | EA50: =IF(#REF!>$Y$3,0,#REF!) ->  | EB50: =IF(#REF!>$Y$3,0,#REF!) ->  | EC50: =IF(#REF!>$Y$3,0,#REF!) ->  | ED50: =IF(#REF!>$Y$3,0,#REF!) ->  | EE50: =IF(#REF!>$Y$3,0,#REF!) ->  | EF50: =IF(#REF!>$Y$3,0,#REF!) ->  | EG50: =IF(#REF!>$Y$3,0,#REF!) ->  | EH50: =IF(#REF!>$Y$3,0,#REF!) ->  | EI50: =IF(#REF!>$Y$3,0,#REF!) ->  | EJ50: =IF(#REF!>$Y$3,0,#REF!) ->  | EK50: =IF(#REF!>$Y$3,0,#REF!) -> 
C51: 47 | D51: =IF('AS1'!D51="","",'AS1'!D51) ->  | E51: =IF('AS1'!E51="","",'AS1'!E51) ->  | BF51: 0 | BG51: =IF(PARCIAL1!L$8=0,0,(ROUND(((BF51*10)/PARCIAL2!L$8),1))) -> 0 | BJ51: 0 | BK51: 0 | BL51: 0 | BM51: 0 | BN51: 0 | BO51: 0 | BP51: 0 | BQ51: 0 | BR51: 0 | BS51: 0 | BT51: 0 | BU51: 0 | BV51: 0 | BW51: 0 | BX51: 0 | BY51: 0 | BZ51: 0 | CA51: 0 | CB51: 0 | CC51: 0 | CD51: 0 | CE51: 0 | CF51: 0 | CG51: 0 | CH51: 0 | CI51: 0 | CJ51: 0 | CK51: 0 | CL51: 0 | CM51: 0 | CN51: 0 | CO51: 0 | CP51: 0 | CQ51: 0 | CR51: 0 | CS51: 0 | CT51: 0 | CU51: 0 | CV51: 0 | CW51: 0 | CX51: 0 | CY51: 0 | CZ51: 0 | DA51: 0 | DB51: 0 | DC51: 0 | DD51: 0 | DE51: 0 | DF51: 0 | DG51: 0 | DH51: 0 | DI51: 0 | DJ51: =IF(#REF!>$Y$3,0,#REF!) ->  | DK51: =IF(#REF!>$Y$3,0,#REF!) ->  | DL51: =IF(#REF!>$Y$3,0,#REF!) ->  | DM51: =IF(#REF!>$Y$3,0,#REF!) ->  | DN51: =IF(#REF!>$Y$3,0,#REF!) ->  | DO51: =IF(#REF!>$Y$3,0,#REF!) ->  | DP51: =IF(#REF!>$Y$3,0,#REF!) ->  | DQ51: =IF(#REF!>$Y$3,0,#REF!) ->  | DR51: =IF(#REF!>$Y$3,0,#REF!) ->  | DS51: =IF(#REF!>$Y$3,0,#REF!) ->  | DT51: =IF(#REF!>$Y$3,0,#REF!) ->  | DU51: =IF(#REF!>$Y$3,0,#REF!) ->  | DV51: =IF(#REF!>$Y$3,0,#REF!) ->  | DW51: =IF(#REF!>$Y$3,0,#REF!) ->  | DX51: =IF(#REF!>$Y$3,0,#REF!) ->  | DY51: =IF(#REF!>$Y$3,0,#REF!) ->  | DZ51: =IF(#REF!>$Y$3,0,#REF!) ->  | EA51: =IF(#REF!>$Y$3,0,#REF!) ->  | EB51: =IF(#REF!>$Y$3,0,#REF!) ->  | EC51: =IF(#REF!>$Y$3,0,#REF!) ->  | ED51: =IF(#REF!>$Y$3,0,#REF!) ->  | EE51: =IF(#REF!>$Y$3,0,#REF!) ->  | EF51: =IF(#REF!>$Y$3,0,#REF!) ->  | EG51: =IF(#REF!>$Y$3,0,#REF!) ->  | EH51: =IF(#REF!>$Y$3,0,#REF!) ->  | EI51: =IF(#REF!>$Y$3,0,#REF!) ->  | EJ51: =IF(#REF!>$Y$3,0,#REF!) ->  | EK51: =IF(#REF!>$Y$3,0,#REF!) -> 
C52: 48 | D52: =IF('AS1'!D52="","",'AS1'!D52) ->  | E52: =IF('AS1'!E52="","",'AS1'!E52) ->  | BF52: 0 | BG52: =IF(PARCIAL1!L$8=0,0,(ROUND(((BF52*10)/PARCIAL2!L$8),1))) -> 0 | BJ52: 0 | BK52: 0 | BL52: 0 | BM52: 0 | BN52: 0 | BO52: 0 | BP52: 0 | BQ52: 0 | BR52: 0 | BS52: 0 | BT52: 0 | BU52: 0 | BV52: 0 | BW52: 0 | BX52: 0 | BY52: 0 | BZ52: 0 | CA52: 0 | CB52: 0 | CC52: 0 | CD52: 0 | CE52: 0 | CF52: 0 | CG52: 0 | CH52: 0 | CI52: 0 | CJ52: 0 | CK52: 0 | CL52: 0 | CM52: 0 | CN52: 0 | CO52: 0 | CP52: 0 | CQ52: 0 | CR52: 0 | CS52: 0 | CT52: 0 | CU52: 0 | CV52: 0 | CW52: 0 | CX52: 0 | CY52: 0 | CZ52: 0 | DA52: 0 | DB52: 0 | DC52: 0 | DD52: 0 | DE52: 0 | DF52: 0 | DG52: 0 | DH52: 0 | DI52: 0 | DJ52: =IF(#REF!>$Y$3,0,#REF!) ->  | DK52: =IF(#REF!>$Y$3,0,#REF!) ->  | DL52: =IF(#REF!>$Y$3,0,#REF!) ->  | DM52: =IF(#REF!>$Y$3,0,#REF!) ->  | DN52: =IF(#REF!>$Y$3,0,#REF!) ->  | DO52: =IF(#REF!>$Y$3,0,#REF!) ->  | DP52: =IF(#REF!>$Y$3,0,#REF!) ->  | DQ52: =IF(#REF!>$Y$3,0,#REF!) ->  | DR52: =IF(#REF!>$Y$3,0,#REF!) ->  | DS52: =IF(#REF!>$Y$3,0,#REF!) ->  | DT52: =IF(#REF!>$Y$3,0,#REF!) ->  | DU52: =IF(#REF!>$Y$3,0,#REF!) ->  | DV52: =IF(#REF!>$Y$3,0,#REF!) ->  | DW52: =IF(#REF!>$Y$3,0,#REF!) ->  | DX52: =IF(#REF!>$Y$3,0,#REF!) ->  | DY52: =IF(#REF!>$Y$3,0,#REF!) ->  | DZ52: =IF(#REF!>$Y$3,0,#REF!) ->  | EA52: =IF(#REF!>$Y$3,0,#REF!) ->  | EB52: =IF(#REF!>$Y$3,0,#REF!) ->  | EC52: =IF(#REF!>$Y$3,0,#REF!) ->  | ED52: =IF(#REF!>$Y$3,0,#REF!) ->  | EE52: =IF(#REF!>$Y$3,0,#REF!) ->  | EF52: =IF(#REF!>$Y$3,0,#REF!) ->  | EG52: =IF(#REF!>$Y$3,0,#REF!) ->  | EH52: =IF(#REF!>$Y$3,0,#REF!) ->  | EI52: =IF(#REF!>$Y$3,0,#REF!) ->  | EJ52: =IF(#REF!>$Y$3,0,#REF!) ->  | EK52: =IF(#REF!>$Y$3,0,#REF!) -> 
C53: 49 | D53: =IF('AS1'!D53="","",'AS1'!D53) ->  | E53: =IF('AS1'!E53="","",'AS1'!E53) ->  | BF53: 0 | BG53: =IF(PARCIAL1!L$8=0,0,(ROUND(((BF53*10)/PARCIAL2!L$8),1))) -> 0 | BJ53: 0 | BK53: 0 | BL53: 0 | BM53: 0 | BN53: 0 | BO53: 0 | BP53: 0 | BQ53: 0 | BR53: 0 | BS53: 0 | BT53: 0 | BU53: 0 | BV53: 0 | BW53: 0 | BX53: 0 | BY53: 0 | BZ53: 0 | CA53: 0 | CB53: 0 | CC53: 0 | CD53: 0 | CE53: 0 | CF53: 0 | CG53: 0 | CH53: 0 | CI53: 0 | CJ53: 0 | CK53: 0 | CL53: 0 | CM53: 0 | CN53: 0 | CO53: 0 | CP53: 0 | CQ53: 0 | CR53: 0 | CS53: 0 | CT53: 0 | CU53: 0 | CV53: 0 | CW53: 0 | CX53: 0 | CY53: 0 | CZ53: 0 | DA53: 0 | DB53: 0 | DC53: 0 | DD53: 0 | DE53: 0 | DF53: 0 | DG53: 0 | DH53: 0 | DI53: 0 | DJ53: =IF(#REF!>$Y$3,0,#REF!) ->  | DK53: =IF(#REF!>$Y$3,0,#REF!) ->  | DL53: =IF(#REF!>$Y$3,0,#REF!) ->  | DM53: =IF(#REF!>$Y$3,0,#REF!) ->  | DN53: =IF(#REF!>$Y$3,0,#REF!) ->  | DO53: =IF(#REF!>$Y$3,0,#REF!) ->  | DP53: =IF(#REF!>$Y$3,0,#REF!) ->  | DQ53: =IF(#REF!>$Y$3,0,#REF!) ->  | DR53: =IF(#REF!>$Y$3,0,#REF!) ->  | DS53: =IF(#REF!>$Y$3,0,#REF!) ->  | DT53: =IF(#REF!>$Y$3,0,#REF!) ->  | DU53: =IF(#REF!>$Y$3,0,#REF!) ->  | DV53: =IF(#REF!>$Y$3,0,#REF!) ->  | DW53: =IF(#REF!>$Y$3,0,#REF!) ->  | DX53: =IF(#REF!>$Y$3,0,#REF!) ->  | DY53: =IF(#REF!>$Y$3,0,#REF!) ->  | DZ53: =IF(#REF!>$Y$3,0,#REF!) ->  | EA53: =IF(#REF!>$Y$3,0,#REF!) ->  | EB53: =IF(#REF!>$Y$3,0,#REF!) ->  | EC53: =IF(#REF!>$Y$3,0,#REF!) ->  | ED53: =IF(#REF!>$Y$3,0,#REF!) ->  | EE53: =IF(#REF!>$Y$3,0,#REF!) ->  | EF53: =IF(#REF!>$Y$3,0,#REF!) ->  | EG53: =IF(#REF!>$Y$3,0,#REF!) ->  | EH53: =IF(#REF!>$Y$3,0,#REF!) ->  | EI53: =IF(#REF!>$Y$3,0,#REF!) ->  | EJ53: =IF(#REF!>$Y$3,0,#REF!) ->  | EK53: =IF(#REF!>$Y$3,0,#REF!) -> 
C54: 50 | D54: =IF('AS1'!D54="","",'AS1'!D54) ->  | E54: =IF('AS1'!E54="","",'AS1'!E54) ->  | BF54: 0 | BG54: =IF(PARCIAL1!L$8=0,0,(ROUND(((BF54*10)/PARCIAL2!L$8),1))) -> 0 | BJ54: =IF(F54>$Y$3,0,F54) -> 0 | BK54: 0 | BL54: 0 | BM54: 0 | BN54: 0 | BO54: 0 | BP54: 0 | BQ54: 0 | BR54: 0 | BS54: 0 | BT54: 0 | BU54: 0 | BV54: 0 | BW54: 0 | BX54: 0 | BY54: 0 | BZ54: 0 | CA54: 0 | CB54: 0 | CC54: 0 | CD54: 0 | CE54: 0 | CF54: 0 | CG54: 0 | CH54: 0 | CI54: 0 | CJ54: 0 | CK54: =IF(AG54>$Y$3,0,AG54) -> 0 | CL54: 0 | CM54: 0 | CN54: 0 | CO54: 0 | CP54: 0 | CQ54: 0 | CR54: 0 | CS54: 0 | CT54: 0 | CU54: 0 | CV54: 0 | CW54: 0 | CX54: 0 | CY54: 0 | CZ54: 0 | DA54: 0 | DB54: 0 | DC54: 0 | DD54: 0 | DE54: 0 | DF54: 0 | DG54: 0 | DH54: 0 | DI54: 0 | DJ54: =IF(#REF!>$Y$3,0,#REF!) ->  | DK54: =IF(#REF!>$Y$3,0,#REF!) ->  | DL54: =IF(#REF!>$Y$3,0,#REF!) ->  | DM54: =IF(#REF!>$Y$3,0,#REF!) ->  | DN54: =IF(#REF!>$Y$3,0,#REF!) ->  | DO54: =IF(#REF!>$Y$3,0,#REF!) ->  | DP54: =IF(#REF!>$Y$3,0,#REF!) ->  | DQ54: =IF(#REF!>$Y$3,0,#REF!) ->  | DR54: =IF(#REF!>$Y$3,0,#REF!) ->  | DS54: =IF(#REF!>$Y$3,0,#REF!) ->  | DT54: =IF(#REF!>$Y$3,0,#REF!) ->  | DU54: =IF(#REF!>$Y$3,0,#REF!) ->  | DV54: =IF(#REF!>$Y$3,0,#REF!) ->  | DW54: =IF(#REF!>$Y$3,0,#REF!) ->  | DX54: =IF(#REF!>$Y$3,0,#REF!) ->  | DY54: =IF(#REF!>$Y$3,0,#REF!) ->  | DZ54: =IF(#REF!>$Y$3,0,#REF!) ->  | EA54: =IF(#REF!>$Y$3,0,#REF!) ->  | EB54: =IF(#REF!>$Y$3,0,#REF!) ->  | EC54: =IF(#REF!>$Y$3,0,#REF!) ->  | ED54: =IF(#REF!>$Y$3,0,#REF!) ->  | EE54: =IF(#REF!>$Y$3,0,#REF!) ->  | EF54: =IF(#REF!>$Y$3,0,#REF!) ->  | EG54: =IF(#REF!>$Y$3,0,#REF!) ->  | EH54: =IF(#REF!>$Y$3,0,#REF!) ->  | EI54: =IF(#REF!>$Y$3,0,#REF!) ->  | EJ54: =IF(#REF!>$Y$3,0,#REF!) ->  | EK54: =IF(#REF!>$Y$3,0,#REF!) -> 
C55: 51 | D55: =IF('AS1'!D55="","",'AS1'!D55) ->  | E55: =IF('AS1'!E55="","",'AS1'!E55) ->  | BF55: 0 | BG55: =IF(PARCIAL1!L$8=0,0,(ROUND(((BF55*10)/PARCIAL2!L$8),1))) -> 0 | BJ55: 0 | BK55: 0 | BL55: 0 | BM55: 0 | BN55: 0 | BO55: 0 | BP55: 0 | BQ55: 0 | BR55: 0 | BS55: 0 | BT55: 0 | BU55: 0 | BV55: 0 | BW55: 0 | BX55: 0 | BY55: 0 | BZ55: =IF(V55>$Y$3,0,V55) -> 0 | CA55: 0 | CB55: 0 | CC55: 0 | CD55: 0 | CE55: 0 | CF55: 0 | CG55: 0 | CH55: 0 | CI55: 0 | CJ55: 0 | CK55: 0 | CL55: 0 | CM55: 0 | CN55: 0 | CO55: 0 | CP55: 0 | CQ55: 0 | CR55: 0 | CS55: 0 | CT55: 0 | CU55: 0 | CV55: 0 | CW55: 0 | CX55: 0 | CY55: 0 | CZ55: 0 | DA55: 0 | DB55: 0 | DC55: 0 | DD55: 0 | DE55: 0 | DF55: 0 | DG55: 0 | DH55: 0 | DI55: 0 | DJ55: =IF(#REF!>$Y$3,0,#REF!) ->  | DK55: =IF(#REF!>$Y$3,0,#REF!) ->  | DL55: =IF(#REF!>$Y$3,0,#REF!) ->  | DM55: =IF(#REF!>$Y$3,0,#REF!) ->  | DN55: =IF(#REF!>$Y$3,0,#REF!) ->  | DO55: =IF(#REF!>$Y$3,0,#REF!) ->  | DP55: =IF(#REF!>$Y$3,0,#REF!) ->  | DQ55: =IF(#REF!>$Y$3,0,#REF!) ->  | DR55: =IF(#REF!>$Y$3,0,#REF!) ->  | DS55: =IF(#REF!>$Y$3,0,#REF!) ->  | DT55: =IF(#REF!>$Y$3,0,#REF!) ->  | DU55: =IF(#REF!>$Y$3,0,#REF!) ->  | DV55: =IF(#REF!>$Y$3,0,#REF!) ->  | DW55: =IF(#REF!>$Y$3,0,#REF!) ->  | DX55: =IF(#REF!>$Y$3,0,#REF!) ->  | DY55: =IF(#REF!>$Y$3,0,#REF!) ->  | DZ55: =IF(#REF!>$Y$3,0,#REF!) ->  | EA55: =IF(#REF!>$Y$3,0,#REF!) ->  | EB55: =IF(#REF!>$Y$3,0,#REF!) ->  | EC55: =IF(#REF!>$Y$3,0,#REF!) ->  | ED55: =IF(#REF!>$Y$3,0,#REF!) ->  | EE55: =IF(#REF!>$Y$3,0,#REF!) ->  | EF55: =IF(#REF!>$Y$3,0,#REF!) ->  | EG55: =IF(#REF!>$Y$3,0,#REF!) ->  | EH55: =IF(#REF!>$Y$3,0,#REF!) ->  | EI55: =IF(#REF!>$Y$3,0,#REF!) ->  | EJ55: =IF(#REF!>$Y$3,0,#REF!) ->  | EK55: =IF(#REF!>$Y$3,0,#REF!) -> 
C56: 52 | D56: =IF('AS1'!D56="","",'AS1'!D56) ->  | E56: =IF('AS1'!E56="","",'AS1'!E56) ->  | BF56: 0 | BG56: =IF(PARCIAL1!L$8=0,0,(ROUND(((BF56*10)/PARCIAL2!L$8),1))) -> 0 | BJ56: 0 | BK56: 0 | BL56: 0 | BM56: 0 | BN56: 0 | BO56: 0 | BP56: 0 | BQ56: 0 | BR56: 0 | BS56: 0 | BT56: 0 | BU56: 0 | BV56: 0 | BW56: 0 | BX56: 0 | BY56: 0 | BZ56: 0 | CA56: 0 | CB56: 0 | CC56: 0 | CD56: 0 | CE56: 0 | CF56: 0 | CG56: 0 | CH56: 0 | CI56: 0 | CJ56: 0 | CK56: 0 | CL56: 0 | CM56: 0 | CN56: 0 | CO56: 0 | CP56: 0 | CQ56: 0 | CR56: 0 | CS56: 0 | CT56: 0 | CU56: 0 | CV56: 0 | CW56: 0 | CX56: 0 | CY56: 0 | CZ56: 0 | DA56: 0 | DB56: 0 | DC56: 0 | DD56: 0 | DE56: 0 | DF56: 0 | DG56: 0 | DH56: 0 | DI56: 0 | DJ56: =IF(#REF!>$Y$3,0,#REF!) ->  | DK56: =IF(#REF!>$Y$3,0,#REF!) ->  | DL56: =IF(#REF!>$Y$3,0,#REF!) ->  | DM56: =IF(#REF!>$Y$3,0,#REF!) ->  | DN56: =IF(#REF!>$Y$3,0,#REF!) ->  | DO56: =IF(#REF!>$Y$3,0,#REF!) ->  | DP56: =IF(#REF!>$Y$3,0,#REF!) ->  | DQ56: =IF(#REF!>$Y$3,0,#REF!) ->  | DR56: =IF(#REF!>$Y$3,0,#REF!) ->  | DS56: =IF(#REF!>$Y$3,0,#REF!) ->  | DT56: =IF(#REF!>$Y$3,0,#REF!) ->  | DU56: =IF(#REF!>$Y$3,0,#REF!) ->  | DV56: =IF(#REF!>$Y$3,0,#REF!) ->  | DW56: =IF(#REF!>$Y$3,0,#REF!) ->  | DX56: =IF(#REF!>$Y$3,0,#REF!) ->  | DY56: =IF(#REF!>$Y$3,0,#REF!) ->  | DZ56: =IF(#REF!>$Y$3,0,#REF!) ->  | EA56: =IF(#REF!>$Y$3,0,#REF!) ->  | EB56: =IF(#REF!>$Y$3,0,#REF!) ->  | EC56: =IF(#REF!>$Y$3,0,#REF!) ->  | ED56: =IF(#REF!>$Y$3,0,#REF!) ->  | EE56: =IF(#REF!>$Y$3,0,#REF!) ->  | EF56: =IF(#REF!>$Y$3,0,#REF!) ->  | EG56: =IF(#REF!>$Y$3,0,#REF!) ->  | EH56: =IF(#REF!>$Y$3,0,#REF!) ->  | EI56: =IF(#REF!>$Y$3,0,#REF!) ->  | EJ56: =IF(#REF!>$Y$3,0,#REF!) ->  | EK56: =IF(#REF!>$Y$3,0,#REF!) -> 
C57: 53 | D57: =IF('AS1'!D57="","",'AS1'!D57) ->  | E57: =IF('AS1'!E57="","",'AS1'!E57) ->  | BF57: 0 | BG57: =IF(PARCIAL1!L$8=0,0,(ROUND(((BF57*10)/PARCIAL2!L$8),1))) -> 0 | BJ57: 0 | BK57: 0 | BL57: 0 | BM57: 0 | BN57: 0 | BO57: 0 | BP57: 0 | BQ57: 0 | BR57: 0 | BS57: 0 | BT57: 0 | BU57: 0 | BV57: 0 | BW57: 0 | BX57: 0 | BY57: 0 | BZ57: 0 | CA57: 0 | CB57: 0 | CC57: 0 | CD57: 0 | CE57: 0 | CF57: 0 | CG57: 0 | CH57: 0 | CI57: 0 | CJ57: 0 | CK57: 0 | CL57: 0 | CM57: 0 | CN57: 0 | CO57: 0 | CP57: 0 | CQ57: 0 | CR57: 0 | CS57: 0 | CT57: 0 | CU57: 0 | CV57: 0 | CW57: 0 | CX57: 0 | CY57: 0 | CZ57: 0 | DA57: 0 | DB57: 0 | DC57: 0 | DD57: 0 | DE57: 0 | DF57: 0 | DG57: 0 | DH57: 0 | DI57: 0 | DJ57: =IF(#REF!>$Y$3,0,#REF!) ->  | DK57: =IF(#REF!>$Y$3,0,#REF!) ->  | DL57: =IF(#REF!>$Y$3,0,#REF!) ->  | DM57: =IF(#REF!>$Y$3,0,#REF!) ->  | DN57: =IF(#REF!>$Y$3,0,#REF!) ->  | DO57: =IF(#REF!>$Y$3,0,#REF!) ->  | DP57: =IF(#REF!>$Y$3,0,#REF!) ->  | DQ57: =IF(#REF!>$Y$3,0,#REF!) ->  | DR57: =IF(#REF!>$Y$3,0,#REF!) ->  | DS57: =IF(#REF!>$Y$3,0,#REF!) ->  | DT57: =IF(#REF!>$Y$3,0,#REF!) ->  | DU57: =IF(#REF!>$Y$3,0,#REF!) ->  | DV57: =IF(#REF!>$Y$3,0,#REF!) ->  | DW57: =IF(#REF!>$Y$3,0,#REF!) ->  | DX57: =IF(#REF!>$Y$3,0,#REF!) ->  | DY57: =IF(#REF!>$Y$3,0,#REF!) ->  | DZ57: =IF(#REF!>$Y$3,0,#REF!) ->  | EA57: =IF(#REF!>$Y$3,0,#REF!) ->  | EB57: =IF(#REF!>$Y$3,0,#REF!) ->  | EC57: =IF(#REF!>$Y$3,0,#REF!) ->  | ED57: =IF(#REF!>$Y$3,0,#REF!) ->  | EE57: =IF(#REF!>$Y$3,0,#REF!) ->  | EF57: =IF(#REF!>$Y$3,0,#REF!) ->  | EG57: =IF(#REF!>$Y$3,0,#REF!) ->  | EH57: =IF(#REF!>$Y$3,0,#REF!) ->  | EI57: =IF(#REF!>$Y$3,0,#REF!) ->  | EJ57: =IF(#REF!>$Y$3,0,#REF!) ->  | EK57: =IF(#REF!>$Y$3,0,#REF!) -> 
C58: 54 | D58: =IF('AS1'!D58="","",'AS1'!D58) ->  | E58: =IF('AS1'!E58="","",'AS1'!E58) ->  | BF58: 0 | BG58: =IF(PARCIAL1!L$8=0,0,(ROUND(((BF58*10)/PARCIAL2!L$8),1))) -> 0 | BJ58: 0 | BK58: 0 | BL58: 0 | BM58: 0 | BN58: 0 | BO58: 0 | BP58: 0 | BQ58: 0 | BR58: 0 | BS58: 0 | BT58: 0 | BU58: 0 | BV58: 0 | BW58: 0 | BX58: 0 | BY58: 0 | BZ58: 0 | CA58: 0 | CB58: 0 | CC58: 0 | CD58: 0 | CE58: 0 | CF58: 0 | CG58: 0 | CH58: 0 | CI58: 0 | CJ58: 0 | CK58: 0 | CL58: 0 | CM58: 0 | CN58: 0 | CO58: 0 | CP58: 0 | CQ58: 0 | CR58: 0 | CS58: =IF(AO58>$Y$3,0,AO58) -> 0 | CT58: 0 | CU58: 0 | CV58: 0 | CW58: 0 | CX58: 0 | CY58: 0 | CZ58: 0 | DA58: 0 | DB58: 0 | DC58: 0 | DD58: 0 | DE58: 0 | DF58: 0 | DG58: 0 | DH58: 0 | DI58: 0 | DJ58: =IF(#REF!>$Y$3,0,#REF!) ->  | DK58: =IF(#REF!>$Y$3,0,#REF!) ->  | DL58: =IF(#REF!>$Y$3,0,#REF!) ->  | DM58: =IF(#REF!>$Y$3,0,#REF!) ->  | DN58: =IF(#REF!>$Y$3,0,#REF!) ->  | DO58: =IF(#REF!>$Y$3,0,#REF!) ->  | DP58: =IF(#REF!>$Y$3,0,#REF!) ->  | DQ58: =IF(#REF!>$Y$3,0,#REF!) ->  | DR58: =IF(#REF!>$Y$3,0,#REF!) ->  | DS58: =IF(#REF!>$Y$3,0,#REF!) ->  | DT58: =IF(#REF!>$Y$3,0,#REF!) ->  | DU58: =IF(#REF!>$Y$3,0,#REF!) ->  | DV58: =IF(#REF!>$Y$3,0,#REF!) ->  | DW58: =IF(#REF!>$Y$3,0,#REF!) ->  | DX58: =IF(#REF!>$Y$3,0,#REF!) ->  | DY58: =IF(#REF!>$Y$3,0,#REF!) ->  | DZ58: =IF(#REF!>$Y$3,0,#REF!) ->  | EA58: =IF(#REF!>$Y$3,0,#REF!) ->  | EB58: =IF(#REF!>$Y$3,0,#REF!) ->  | EC58: =IF(#REF!>$Y$3,0,#REF!) ->  | ED58: =IF(#REF!>$Y$3,0,#REF!) ->  | EE58: =IF(#REF!>$Y$3,0,#REF!) ->  | EF58: =IF(#REF!>$Y$3,0,#REF!) ->  | EG58: =IF(#REF!>$Y$3,0,#REF!) ->  | EH58: =IF(#REF!>$Y$3,0,#REF!) ->  | EI58: =IF(#REF!>$Y$3,0,#REF!) ->  | EJ58: =IF(#REF!>$Y$3,0,#REF!) ->  | EK58: =IF(#REF!>$Y$3,0,#REF!) -> 
C59: 55 | D59: =IF('AS1'!D59="","",'AS1'!D59) ->  | E59: =IF('AS1'!E59="","",'AS1'!E59) ->  | BF59: 0 | BG59: =IF(PARCIAL1!L$8=0,0,(ROUND(((BF59*10)/PARCIAL2!L$8),1))) -> 0 | BJ59: 0 | BK59: 0 | BL59: 0 | BM59: 0 | BN59: 0 | BO59: 0 | BP59: 0 | BQ59: 0 | BR59: 0 | BS59: 0 | BT59: 0 | BU59: 0 | BV59: 0 | BW59: 0 | BX59: 0 | BY59: 0 | BZ59: 0 | CA59: 0 | CB59: 0 | CC59: 0 | CD59: 0 | CE59: 0 | CF59: 0 | CG59: 0 | CH59: 0 | CI59: 0 | CJ59: 0 | CK59: 0 | CL59: 0 | CM59: 0 | CN59: 0 | CO59: 0 | CP59: 0 | CQ59: 0 | CR59: 0 | CS59: 0 | CT59: 0 | CU59: 0 | CV59: 0 | CW59: 0 | CX59: 0 | CY59: 0 | CZ59: 0 | DA59: 0 | DB59: 0 | DC59: 0 | DD59: 0 | DE59: 0 | DF59: 0 | DG59: 0 | DH59: 0 | DI59: 0 | DJ59: =IF(#REF!>$Y$3,0,#REF!) ->  | DK59: =IF(#REF!>$Y$3,0,#REF!) ->  | DL59: =IF(#REF!>$Y$3,0,#REF!) ->  | DM59: =IF(#REF!>$Y$3,0,#REF!) ->  | DN59: =IF(#REF!>$Y$3,0,#REF!) ->  | DO59: =IF(#REF!>$Y$3,0,#REF!) ->  | DP59: =IF(#REF!>$Y$3,0,#REF!) ->  | DQ59: =IF(#REF!>$Y$3,0,#REF!) ->  | DR59: =IF(#REF!>$Y$3,0,#REF!) ->  | DS59: =IF(#REF!>$Y$3,0,#REF!) ->  | DT59: =IF(#REF!>$Y$3,0,#REF!) ->  | DU59: =IF(#REF!>$Y$3,0,#REF!) ->  | DV59: =IF(#REF!>$Y$3,0,#REF!) ->  | DW59: =IF(#REF!>$Y$3,0,#REF!) ->  | DX59: =IF(#REF!>$Y$3,0,#REF!) ->  | DY59: =IF(#REF!>$Y$3,0,#REF!) ->  | DZ59: =IF(#REF!>$Y$3,0,#REF!) ->  | EA59: =IF(#REF!>$Y$3,0,#REF!) ->  | EB59: =IF(#REF!>$Y$3,0,#REF!) ->  | EC59: =IF(#REF!>$Y$3,0,#REF!) ->  | ED59: =IF(#REF!>$Y$3,0,#REF!) ->  | EE59: =IF(#REF!>$Y$3,0,#REF!) ->  | EF59: =IF(#REF!>$Y$3,0,#REF!) ->  | EG59: =IF(#REF!>$Y$3,0,#REF!) ->  | EH59: =IF(#REF!>$Y$3,0,#REF!) ->  | EI59: =IF(#REF!>$Y$3,0,#REF!) ->  | EJ59: =IF(#REF!>$Y$3,0,#REF!) ->  | EK59: =IF(#REF!>$Y$3,0,#REF!) -> 
C60: 56 | D60: =IF('AS1'!D60="","",'AS1'!D60) ->  | E60: =IF('AS1'!E60="","",'AS1'!E60) ->  | BF60: 0 | BG60: =IF(PARCIAL1!L$8=0,0,(ROUND(((BF60*10)/PARCIAL2!L$8),1))) -> 0 | BJ60: 0 | BK60: 0 | BL60: 0 | BM60: 0 | BN60: 0 | BO60: 0 | BP60: 0 | BQ60: 0 | BR60: 0 | BS60: 0 | BT60: 0 | BU60: 0 | BV60: 0 | BW60: 0 | BX60: 0 | BY60: 0 | BZ60: 0 | CA60: 0 | CB60: 0 | CC60: 0 | CD60: 0 | CE60: 0 | CF60: 0 | CG60: 0 | CH60: 0 | CI60: 0 | CJ60: 0 | CK60: 0 | CL60: 0 | CM60: 0 | CN60: 0 | CO60: 0 | CP60: 0 | CQ60: 0 | CR60: 0 | CS60: 0 | CT60: 0 | CU60: 0 | CV60: 0 | CW60: 0 | CX60: 0 | CY60: 0 | CZ60: 0 | DA60: 0 | DB60: 0 | DC60: 0 | DD60: 0 | DE60: 0 | DF60: 0 | DG60: 0 | DH60: 0 | DI60: 0 | DJ60: =IF(#REF!>$Y$3,0,#REF!) ->  | DK60: =IF(#REF!>$Y$3,0,#REF!) ->  | DL60: =IF(#REF!>$Y$3,0,#REF!) ->  | DM60: =IF(#REF!>$Y$3,0,#REF!) ->  | DN60: =IF(#REF!>$Y$3,0,#REF!) ->  | DO60: =IF(#REF!>$Y$3,0,#REF!) ->  | DP60: =IF(#REF!>$Y$3,0,#REF!) ->  | DQ60: =IF(#REF!>$Y$3,0,#REF!) ->  | DR60: =IF(#REF!>$Y$3,0,#REF!) ->  | DS60: =IF(#REF!>$Y$3,0,#REF!) ->  | DT60: =IF(#REF!>$Y$3,0,#REF!) ->  | DU60: =IF(#REF!>$Y$3,0,#REF!) ->  | DV60: =IF(#REF!>$Y$3,0,#REF!) ->  | DW60: =IF(#REF!>$Y$3,0,#REF!) ->  | DX60: =IF(#REF!>$Y$3,0,#REF!) ->  | DY60: =IF(#REF!>$Y$3,0,#REF!) ->  | DZ60: =IF(#REF!>$Y$3,0,#REF!) ->  | EA60: =IF(#REF!>$Y$3,0,#REF!) ->  | EB60: =IF(#REF!>$Y$3,0,#REF!) ->  | EC60: =IF(#REF!>$Y$3,0,#REF!) ->  | ED60: =IF(#REF!>$Y$3,0,#REF!) ->  | EE60: =IF(#REF!>$Y$3,0,#REF!) ->  | EF60: =IF(#REF!>$Y$3,0,#REF!) ->  | EG60: =IF(#REF!>$Y$3,0,#REF!) ->  | EH60: =IF(#REF!>$Y$3,0,#REF!) ->  | EI60: =IF(#REF!>$Y$3,0,#REF!) ->  | EJ60: =IF(#REF!>$Y$3,0,#REF!) ->  | EK60: =IF(#REF!>$Y$3,0,#REF!) -> 
C61: 57 | D61: =IF('AS1'!D61="","",'AS1'!D61) ->  | E61: =IF('AS1'!E61="","",'AS1'!E61) ->  | BF61: 0 | BG61: =IF(PARCIAL1!L$8=0,0,(ROUND(((BF61*10)/PARCIAL2!L$8),1))) -> 0 | BJ61: 0 | BK61: 0 | BL61: 0 | BM61: 0 | BN61: 0 | BO61: 0 | BP61: 0 | BQ61: 0 | BR61: 0 | BS61: 0 | BT61: 0 | BU61: 0 | BV61: 0 | BW61: 0 | BX61: 0 | BY61: 0 | BZ61: 0 | CA61: 0 | CB61: 0 | CC61: 0 | CD61: 0 | CE61: 0 | CF61: 0 | CG61: 0 | CH61: 0 | CI61: 0 | CJ61: 0 | CK61: 0 | CL61: 0 | CM61: 0 | CN61: 0 | CO61: 0 | CP61: 0 | CQ61: 0 | CR61: 0 | CS61: 0 | CT61: 0 | CU61: 0 | CV61: 0 | CW61: 0 | CX61: 0 | CY61: 0 | CZ61: 0 | DA61: 0 | DB61: 0 | DC61: 0 | DD61: 0 | DE61: 0 | DF61: 0 | DG61: 0 | DH61: 0 | DI61: 0 | DJ61: =IF(#REF!>$Y$3,0,#REF!) ->  | DK61: =IF(#REF!>$Y$3,0,#REF!) ->  | DL61: =IF(#REF!>$Y$3,0,#REF!) ->  | DM61: =IF(#REF!>$Y$3,0,#REF!) ->  | DN61: =IF(#REF!>$Y$3,0,#REF!) ->  | DO61: =IF(#REF!>$Y$3,0,#REF!) ->  | DP61: =IF(#REF!>$Y$3,0,#REF!) ->  | DQ61: =IF(#REF!>$Y$3,0,#REF!) ->  | DR61: =IF(#REF!>$Y$3,0,#REF!) ->  | DS61: =IF(#REF!>$Y$3,0,#REF!) ->  | DT61: =IF(#REF!>$Y$3,0,#REF!) ->  | DU61: =IF(#REF!>$Y$3,0,#REF!) ->  | DV61: =IF(#REF!>$Y$3,0,#REF!) ->  | DW61: =IF(#REF!>$Y$3,0,#REF!) ->  | DX61: =IF(#REF!>$Y$3,0,#REF!) ->  | DY61: =IF(#REF!>$Y$3,0,#REF!) ->  | DZ61: =IF(#REF!>$Y$3,0,#REF!) ->  | EA61: =IF(#REF!>$Y$3,0,#REF!) ->  | EB61: =IF(#REF!>$Y$3,0,#REF!) ->  | EC61: =IF(#REF!>$Y$3,0,#REF!) ->  | ED61: =IF(#REF!>$Y$3,0,#REF!) ->  | EE61: =IF(#REF!>$Y$3,0,#REF!) ->  | EF61: =IF(#REF!>$Y$3,0,#REF!) ->  | EG61: =IF(#REF!>$Y$3,0,#REF!) ->  | EH61: =IF(#REF!>$Y$3,0,#REF!) ->  | EI61: =IF(#REF!>$Y$3,0,#REF!) ->  | EJ61: =IF(#REF!>$Y$3,0,#REF!) ->  | EK61: =IF(#REF!>$Y$3,0,#REF!) -> 
C62: 58 | D62: =IF('AS1'!D62="","",'AS1'!D62) ->  | E62: =IF('AS1'!E62="","",'AS1'!E62) ->  | BF62: 0 | BG62: =IF(PARCIAL1!L$8=0,0,(ROUND(((BF62*10)/PARCIAL2!L$8),1))) -> 0 | BJ62: 0 | BK62: 0 | BL62: 0 | BM62: 0 | BN62: 0 | BO62: 0 | BP62: 0 | BQ62: 0 | BR62: 0 | BS62: 0 | BT62: 0 | BU62: 0 | BV62: 0 | BW62: 0 | BX62: 0 | BY62: 0 | BZ62: 0 | CA62: 0 | CB62: 0 | CC62: 0 | CD62: 0 | CE62: 0 | CF62: 0 | CG62: 0 | CH62: 0 | CI62: 0 | CJ62: 0 | CK62: 0 | CL62: 0 | CM62: 0 | CN62: 0 | CO62: 0 | CP62: 0 | CQ62: 0 | CR62: 0 | CS62: 0 | CT62: 0 | CU62: 0 | CV62: 0 | CW62: 0 | CX62: 0 | CY62: 0 | CZ62: 0 | DA62: 0 | DB62: 0 | DC62: 0 | DD62: 0 | DE62: 0 | DF62: 0 | DG62: 0 | DH62: 0 | DI62: 0 | DJ62: =IF(#REF!>$Y$3,0,#REF!) ->  | DK62: =IF(#REF!>$Y$3,0,#REF!) ->  | DL62: =IF(#REF!>$Y$3,0,#REF!) ->  | DM62: =IF(#REF!>$Y$3,0,#REF!) ->  | DN62: =IF(#REF!>$Y$3,0,#REF!) ->  | DO62: =IF(#REF!>$Y$3,0,#REF!) ->  | DP62: =IF(#REF!>$Y$3,0,#REF!) ->  | DQ62: =IF(#REF!>$Y$3,0,#REF!) ->  | DR62: =IF(#REF!>$Y$3,0,#REF!) ->  | DS62: =IF(#REF!>$Y$3,0,#REF!) ->  | DT62: =IF(#REF!>$Y$3,0,#REF!) ->  | DU62: =IF(#REF!>$Y$3,0,#REF!) ->  | DV62: =IF(#REF!>$Y$3,0,#REF!) ->  | DW62: =IF(#REF!>$Y$3,0,#REF!) ->  | DX62: =IF(#REF!>$Y$3,0,#REF!) ->  | DY62: =IF(#REF!>$Y$3,0,#REF!) ->  | DZ62: =IF(#REF!>$Y$3,0,#REF!) ->  | EA62: =IF(#REF!>$Y$3,0,#REF!) ->  | EB62: =IF(#REF!>$Y$3,0,#REF!) ->  | EC62: =IF(#REF!>$Y$3,0,#REF!) ->  | ED62: =IF(#REF!>$Y$3,0,#REF!) ->  | EE62: =IF(#REF!>$Y$3,0,#REF!) ->  | EF62: =IF(#REF!>$Y$3,0,#REF!) ->  | EG62: =IF(#REF!>$Y$3,0,#REF!) ->  | EH62: =IF(#REF!>$Y$3,0,#REF!) ->  | EI62: =IF(#REF!>$Y$3,0,#REF!) ->  | EJ62: =IF(#REF!>$Y$3,0,#REF!) ->  | EK62: =IF(#REF!>$Y$3,0,#REF!) -> 
C63: 59 | D63: =IF('AS1'!D63="","",'AS1'!D63) ->  | E63: =IF('AS1'!E63="","",'AS1'!E63) ->  | BF63: 0 | BG63: =IF(PARCIAL1!L$8=0,0,(ROUND(((BF63*10)/PARCIAL2!L$8),1))) -> 0 | BJ63: 0 | BK63: 0 | BL63: 0 | BM63: 0 | BN63: 0 | BO63: 0 | BP63: 0 | BQ63: 0 | BR63: 0 | BS63: 0 | BT63: 0 | BU63: 0 | BV63: 0 | BW63: 0 | BX63: 0 | BY63: 0 | BZ63: 0 | CA63: 0 | CB63: 0 | CC63: 0 | CD63: 0 | CE63: 0 | CF63: 0 | CG63: 0 | CH63: 0 | CI63: 0 | CJ63: 0 | CK63: 0 | CL63: 0 | CM63: 0 | CN63: 0 | CO63: 0 | CP63: 0 | CQ63: 0 | CR63: 0 | CS63: 0 | CT63: 0 | CU63: 0 | CV63: 0 | CW63: 0 | CX63: 0 | CY63: 0 | CZ63: 0 | DA63: 0 | DB63: 0 | DC63: 0 | DD63: 0 | DE63: 0 | DF63: 0 | DG63: 0 | DH63: 0 | DI63: 0 | DJ63: =IF(#REF!>$Y$3,0,#REF!) ->  | DK63: =IF(#REF!>$Y$3,0,#REF!) ->  | DL63: =IF(#REF!>$Y$3,0,#REF!) ->  | DM63: =IF(#REF!>$Y$3,0,#REF!) ->  | DN63: =IF(#REF!>$Y$3,0,#REF!) ->  | DO63: =IF(#REF!>$Y$3,0,#REF!) ->  | DP63: =IF(#REF!>$Y$3,0,#REF!) ->  | DQ63: =IF(#REF!>$Y$3,0,#REF!) ->  | DR63: =IF(#REF!>$Y$3,0,#REF!) ->  | DS63: =IF(#REF!>$Y$3,0,#REF!) ->  | DT63: =IF(#REF!>$Y$3,0,#REF!) ->  | DU63: =IF(#REF!>$Y$3,0,#REF!) ->  | DV63: =IF(#REF!>$Y$3,0,#REF!) ->  | DW63: =IF(#REF!>$Y$3,0,#REF!) ->  | DX63: =IF(#REF!>$Y$3,0,#REF!) ->  | DY63: =IF(#REF!>$Y$3,0,#REF!) ->  | DZ63: =IF(#REF!>$Y$3,0,#REF!) ->  | EA63: =IF(#REF!>$Y$3,0,#REF!) ->  | EB63: =IF(#REF!>$Y$3,0,#REF!) ->  | EC63: =IF(#REF!>$Y$3,0,#REF!) ->  | ED63: =IF(#REF!>$Y$3,0,#REF!) ->  | EE63: =IF(#REF!>$Y$3,0,#REF!) ->  | EF63: =IF(#REF!>$Y$3,0,#REF!) ->  | EG63: =IF(#REF!>$Y$3,0,#REF!) ->  | EH63: =IF(#REF!>$Y$3,0,#REF!) ->  | EI63: =IF(#REF!>$Y$3,0,#REF!) ->  | EJ63: =IF(#REF!>$Y$3,0,#REF!) ->  | EK63: =IF(#REF!>$Y$3,0,#REF!) -> 
C64: 60 | D64: =IF('AS1'!D64="","",'AS1'!D64) ->  | E64: =IF('AS1'!E64="","",'AS1'!E64) ->  | BF64: 0 | BG64: =IF(PARCIAL1!L$8=0,0,(ROUND(((BF64*10)/PARCIAL2!L$8),1))) -> 0 | BJ64: 0 | BK64: 0 | BL64: 0 | BM64: 0 | BN64: 0 | BO64: 0 | BP64: 0 | BQ64: 0 | BR64: 0 | BS64: 0 | BT64: 0 | BU64: 0 | BV64: 0 | BW64: 0 | BX64: 0 | BY64: 0 | BZ64: 0 | CA64: 0 | CB64: 0 | CC64: 0 | CD64: 0 | CE64: 0 | CF64: 0 | CG64: 0 | CH64: 0 | CI64: 0 | CJ64: 0 | CK64: 0 | CL64: 0 | CM64: 0 | CN64: 0 | CO64: 0 | CP64: 0 | CQ64: 0 | CR64: 0 | CS64: 0 | CT64: 0 | CU64: 0 | CV64: 0 | CW64: 0 | CX64: 0 | CY64: 0 | CZ64: 0 | DA64: 0 | DB64: 0 | DC64: 0 | DD64: 0 | DE64: 0 | DF64: 0 | DG64: 0 | DH64: 0 | DI64: 0 | DJ64: =IF(#REF!>$Y$3,0,#REF!) ->  | DK64: =IF(#REF!>$Y$3,0,#REF!) ->  | DL64: =IF(#REF!>$Y$3,0,#REF!) ->  | DM64: =IF(#REF!>$Y$3,0,#REF!) ->  | DN64: =IF(#REF!>$Y$3,0,#REF!) ->  | DO64: =IF(#REF!>$Y$3,0,#REF!) ->  | DP64: =IF(#REF!>$Y$3,0,#REF!) ->  | DQ64: =IF(#REF!>$Y$3,0,#REF!) ->  | DR64: =IF(#REF!>$Y$3,0,#REF!) ->  | DS64: =IF(#REF!>$Y$3,0,#REF!) ->  | DT64: =IF(#REF!>$Y$3,0,#REF!) ->  | DU64: =IF(#REF!>$Y$3,0,#REF!) ->  | DV64: =IF(#REF!>$Y$3,0,#REF!) ->  | DW64: =IF(#REF!>$Y$3,0,#REF!) ->  | DX64: =IF(#REF!>$Y$3,0,#REF!) ->  | DY64: =IF(#REF!>$Y$3,0,#REF!) ->  | DZ64: =IF(#REF!>$Y$3,0,#REF!) ->  | EA64: =IF(#REF!>$Y$3,0,#REF!) ->  | EB64: =IF(#REF!>$Y$3,0,#REF!) ->  | EC64: =IF(#REF!>$Y$3,0,#REF!) ->  | ED64: =IF(#REF!>$Y$3,0,#REF!) ->  | EE64: =IF(#REF!>$Y$3,0,#REF!) ->  | EF64: =IF(#REF!>$Y$3,0,#REF!) ->  | EG64: =IF(#REF!>$Y$3,0,#REF!) ->  | EH64: =IF(#REF!>$Y$3,0,#REF!) ->  | EI64: =IF(#REF!>$Y$3,0,#REF!) ->  | EJ64: =IF(#REF!>$Y$3,0,#REF!) ->  | EK64: =IF(#REF!>$Y$3,0,#REF!) -> 
C65: 61 | D65: =IF('AS1'!D65="","",'AS1'!D65) ->  | E65: =IF('AS1'!E65="","",'AS1'!E65) ->  | BF65: 0 | BG65: =IF(PARCIAL1!L$8=0,0,(ROUND(((BF65*10)/PARCIAL2!L$8),1))) -> 0 | BJ65: 0 | BK65: 0 | BL65: 0 | BM65: 0 | BN65: 0 | BO65: 0 | BP65: 0 | BQ65: 0 | BR65: 0 | BS65: 0 | BT65: 0 | BU65: 0 | BV65: 0 | BW65: 0 | BX65: 0 | BY65: 0 | BZ65: 0 | CA65: 0 | CB65: 0 | CC65: 0 | CD65: 0 | CE65: 0 | CF65: 0 | CG65: 0 | CH65: 0 | CI65: 0 | CJ65: 0 | CK65: 0 | CL65: 0 | CM65: 0 | CN65: 0 | CO65: 0 | CP65: 0 | CQ65: 0 | CR65: 0 | CS65: 0 | CT65: 0 | CU65: 0 | CV65: 0 | CW65: 0 | CX65: 0 | CY65: 0 | CZ65: 0 | DA65: 0 | DB65: 0 | DC65: 0 | DD65: 0 | DE65: 0 | DF65: 0 | DG65: 0 | DH65: 0 | DI65: 0 | DJ65: =IF(#REF!>$Y$3,0,#REF!) ->  | DK65: =IF(#REF!>$Y$3,0,#REF!) ->  | DL65: =IF(#REF!>$Y$3,0,#REF!) ->  | DM65: =IF(#REF!>$Y$3,0,#REF!) ->  | DN65: =IF(#REF!>$Y$3,0,#REF!) ->  | DO65: =IF(#REF!>$Y$3,0,#REF!) ->  | DP65: =IF(#REF!>$Y$3,0,#REF!) ->  | DQ65: =IF(#REF!>$Y$3,0,#REF!) ->  | DR65: =IF(#REF!>$Y$3,0,#REF!) ->  | DS65: =IF(#REF!>$Y$3,0,#REF!) ->  | DT65: =IF(#REF!>$Y$3,0,#REF!) ->  | DU65: =IF(#REF!>$Y$3,0,#REF!) ->  | DV65: =IF(#REF!>$Y$3,0,#REF!) ->  | DW65: =IF(#REF!>$Y$3,0,#REF!) ->  | DX65: =IF(#REF!>$Y$3,0,#REF!) ->  | DY65: =IF(#REF!>$Y$3,0,#REF!) ->  | DZ65: =IF(#REF!>$Y$3,0,#REF!) ->  | EA65: =IF(#REF!>$Y$3,0,#REF!) ->  | EB65: =IF(#REF!>$Y$3,0,#REF!) ->  | EC65: =IF(#REF!>$Y$3,0,#REF!) ->  | ED65: =IF(#REF!>$Y$3,0,#REF!) ->  | EE65: =IF(#REF!>$Y$3,0,#REF!) ->  | EF65: =IF(#REF!>$Y$3,0,#REF!) ->  | EG65: =IF(#REF!>$Y$3,0,#REF!) ->  | EH65: =IF(#REF!>$Y$3,0,#REF!) ->  | EI65: =IF(#REF!>$Y$3,0,#REF!) ->  | EJ65: =IF(#REF!>$Y$3,0,#REF!) ->  | EK65: =IF(#REF!>$Y$3,0,#REF!) -> 
C66: 62 | D66: =IF('AS1'!D66="","",'AS1'!D66) ->  | E66: =IF('AS1'!E66="","",'AS1'!E66) ->  | BF66: 0 | BG66: =IF(PARCIAL1!L$8=0,0,(ROUND(((BF66*10)/PARCIAL2!L$8),1))) -> 0 | BJ66: 0 | BK66: 0 | BL66: 0 | BM66: 0 | BN66: 0 | BO66: 0 | BP66: 0 | BQ66: 0 | BR66: 0 | BS66: 0 | BT66: 0 | BU66: 0 | BV66: 0 | BW66: 0 | BX66: 0 | BY66: 0 | BZ66: 0 | CA66: 0 | CB66: 0 | CC66: 0 | CD66: 0 | CE66: 0 | CF66: 0 | CG66: 0 | CH66: 0 | CI66: 0 | CJ66: 0 | CK66: 0 | CL66: 0 | CM66: 0 | CN66: 0 | CO66: 0 | CP66: 0 | CQ66: 0 | CR66: 0 | CS66: 0 | CT66: 0 | CU66: 0 | CV66: 0 | CW66: 0 | CX66: 0 | CY66: 0 | CZ66: 0 | DA66: 0 | DB66: 0 | DC66: 0 | DD66: 0 | DE66: 0 | DF66: 0 | DG66: 0 | DH66: 0 | DI66: 0 | DJ66: =IF(#REF!>$Y$3,0,#REF!) ->  | DK66: =IF(#REF!>$Y$3,0,#REF!) ->  | DL66: =IF(#REF!>$Y$3,0,#REF!) ->  | DM66: =IF(#REF!>$Y$3,0,#REF!) ->  | DN66: =IF(#REF!>$Y$3,0,#REF!) ->  | DO66: =IF(#REF!>$Y$3,0,#REF!) ->  | DP66: =IF(#REF!>$Y$3,0,#REF!) ->  | DQ66: =IF(#REF!>$Y$3,0,#REF!) ->  | DR66: =IF(#REF!>$Y$3,0,#REF!) ->  | DS66: =IF(#REF!>$Y$3,0,#REF!) ->  | DT66: =IF(#REF!>$Y$3,0,#REF!) ->  | DU66: =IF(#REF!>$Y$3,0,#REF!) ->  | DV66: =IF(#REF!>$Y$3,0,#REF!) ->  | DW66: =IF(#REF!>$Y$3,0,#REF!) ->  | DX66: =IF(#REF!>$Y$3,0,#REF!) ->  | DY66: =IF(#REF!>$Y$3,0,#REF!) ->  | DZ66: =IF(#REF!>$Y$3,0,#REF!) ->  | EA66: =IF(#REF!>$Y$3,0,#REF!) ->  | EB66: =IF(#REF!>$Y$3,0,#REF!) ->  | EC66: =IF(#REF!>$Y$3,0,#REF!) ->  | ED66: =IF(#REF!>$Y$3,0,#REF!) ->  | EE66: =IF(#REF!>$Y$3,0,#REF!) ->  | EF66: =IF(#REF!>$Y$3,0,#REF!) ->  | EG66: =IF(#REF!>$Y$3,0,#REF!) ->  | EH66: =IF(#REF!>$Y$3,0,#REF!) ->  | EI66: =IF(#REF!>$Y$3,0,#REF!) ->  | EJ66: =IF(#REF!>$Y$3,0,#REF!) ->  | EK66: =IF(#REF!>$Y$3,0,#REF!) -> 
C67: 63 | D67: =IF('AS1'!D67="","",'AS1'!D67) ->  | E67: =IF('AS1'!E67="","",'AS1'!E67) ->  | BF67: 0 | BG67: =IF(PARCIAL1!L$8=0,0,(ROUND(((BF67*10)/PARCIAL2!L$8),1))) -> 0 | BJ67: 0 | BK67: 0 | BL67: 0 | BM67: 0 | BN67: 0 | BO67: 0 | BP67: 0 | BQ67: 0 | BR67: 0 | BS67: 0 | BT67: 0 | BU67: 0 | BV67: 0 | BW67: 0 | BX67: 0 | BY67: 0 | BZ67: 0 | CA67: 0 | CB67: 0 | CC67: 0 | CD67: 0 | CE67: 0 | CF67: 0 | CG67: 0 | CH67: 0 | CI67: 0 | CJ67: 0 | CK67: 0 | CL67: 0 | CM67: 0 | CN67: 0 | CO67: 0 | CP67: 0 | CQ67: 0 | CR67: 0 | CS67: 0 | CT67: 0 | CU67: 0 | CV67: 0 | CW67: 0 | CX67: 0 | CY67: 0 | CZ67: 0 | DA67: 0 | DB67: 0 | DC67: 0 | DD67: 0 | DE67: 0 | DF67: 0 | DG67: 0 | DH67: 0 | DI67: 0 | DJ67: =IF(#REF!>$Y$3,0,#REF!) ->  | DK67: =IF(#REF!>$Y$3,0,#REF!) ->  | DL67: =IF(#REF!>$Y$3,0,#REF!) ->  | DM67: =IF(#REF!>$Y$3,0,#REF!) ->  | DN67: =IF(#REF!>$Y$3,0,#REF!) ->  | DO67: =IF(#REF!>$Y$3,0,#REF!) ->  | DP67: =IF(#REF!>$Y$3,0,#REF!) ->  | DQ67: =IF(#REF!>$Y$3,0,#REF!) ->  | DR67: =IF(#REF!>$Y$3,0,#REF!) ->  | DS67: =IF(#REF!>$Y$3,0,#REF!) ->  | DT67: =IF(#REF!>$Y$3,0,#REF!) ->  | DU67: =IF(#REF!>$Y$3,0,#REF!) ->  | DV67: =IF(#REF!>$Y$3,0,#REF!) ->  | DW67: =IF(#REF!>$Y$3,0,#REF!) ->  | DX67: =IF(#REF!>$Y$3,0,#REF!) ->  | DY67: =IF(#REF!>$Y$3,0,#REF!) ->  | DZ67: =IF(#REF!>$Y$3,0,#REF!) ->  | EA67: =IF(#REF!>$Y$3,0,#REF!) ->  | EB67: =IF(#REF!>$Y$3,0,#REF!) ->  | EC67: =IF(#REF!>$Y$3,0,#REF!) ->  | ED67: =IF(#REF!>$Y$3,0,#REF!) ->  | EE67: =IF(#REF!>$Y$3,0,#REF!) ->  | EF67: =IF(#REF!>$Y$3,0,#REF!) ->  | EG67: =IF(#REF!>$Y$3,0,#REF!) ->  | EH67: =IF(#REF!>$Y$3,0,#REF!) ->  | EI67: =IF(#REF!>$Y$3,0,#REF!) ->  | EJ67: =IF(#REF!>$Y$3,0,#REF!) ->  | EK67: =IF(#REF!>$Y$3,0,#REF!) -> 
C68: 64 | D68: =IF('AS1'!D68="","",'AS1'!D68) ->  | E68: =IF('AS1'!E68="","",'AS1'!E68) ->  | BF68: 0 | BG68: =IF(PARCIAL1!L$8=0,0,(ROUND(((BF68*10)/PARCIAL2!L$8),1))) -> 0 | BJ68: 0 | BK68: 0 | BL68: 0 | BM68: 0 | BN68: 0 | BO68: 0 | BP68: 0 | BQ68: 0 | BR68: 0 | BS68: 0 | BT68: 0 | BU68: 0 | BV68: 0 | BW68: 0 | BX68: 0 | BY68: 0 | BZ68: 0 | CA68: 0 | CB68: 0 | CC68: 0 | CD68: 0 | CE68: 0 | CF68: 0 | CG68: 0 | CH68: 0 | CI68: 0 | CJ68: 0 | CK68: 0 | CL68: 0 | CM68: 0 | CN68: 0 | CO68: 0 | CP68: 0 | CQ68: 0 | CR68: 0 | CS68: 0 | CT68: 0 | CU68: 0 | CV68: 0 | CW68: 0 | CX68: 0 | CY68: 0 | CZ68: 0 | DA68: 0 | DB68: 0 | DC68: 0 | DD68: 0 | DE68: 0 | DF68: 0 | DG68: 0 | DH68: 0 | DI68: =IF(BE68>$Y$3,0,BE68) -> 0 | DJ68: =IF(#REF!>$Y$3,0,#REF!) ->  | DK68: =IF(#REF!>$Y$3,0,#REF!) ->  | DL68: =IF(#REF!>$Y$3,0,#REF!) ->  | DM68: =IF(#REF!>$Y$3,0,#REF!) ->  | DN68: =IF(#REF!>$Y$3,0,#REF!) ->  | DO68: =IF(#REF!>$Y$3,0,#REF!) ->  | DP68: =IF(#REF!>$Y$3,0,#REF!) ->  | DQ68: =IF(#REF!>$Y$3,0,#REF!) ->  | DR68: =IF(#REF!>$Y$3,0,#REF!) ->  | DS68: =IF(#REF!>$Y$3,0,#REF!) ->  | DT68: =IF(#REF!>$Y$3,0,#REF!) ->  | DU68: =IF(#REF!>$Y$3,0,#REF!) ->  | DV68: =IF(#REF!>$Y$3,0,#REF!) ->  | DW68: =IF(#REF!>$Y$3,0,#REF!) ->  | DX68: =IF(#REF!>$Y$3,0,#REF!) ->  | DY68: =IF(#REF!>$Y$3,0,#REF!) ->  | DZ68: =IF(#REF!>$Y$3,0,#REF!) ->  | EA68: =IF(#REF!>$Y$3,0,#REF!) ->  | EB68: =IF(#REF!>$Y$3,0,#REF!) ->  | EC68: =IF(#REF!>$Y$3,0,#REF!) ->  | ED68: =IF(#REF!>$Y$3,0,#REF!) ->  | EE68: =IF(#REF!>$Y$3,0,#REF!) ->  | EF68: =IF(#REF!>$Y$3,0,#REF!) ->  | EG68: =IF(#REF!>$Y$3,0,#REF!) ->  | EH68: =IF(#REF!>$Y$3,0,#REF!) ->  | EI68: =IF(#REF!>$Y$3,0,#REF!) ->  | EJ68: =IF(#REF!>$Y$3,0,#REF!) ->  | EK68: =IF(#REF!>$Y$3,0,#REF!) -> 
C69: 65 | D69: =IF('AS1'!D69="","",'AS1'!D69) ->  | E69: =IF('AS1'!E69="","",'AS1'!E69) ->  | BF69: 0 | BG69: =IF(PARCIAL1!L$8=0,0,(ROUND(((BF69*10)/PARCIAL2!L$8),1))) -> 0 | BJ69: 0 | BK69: 0 | BL69: 0 | BM69: 0 | BN69: 0 | BO69: 0 | BP69: 0 | BQ69: 0 | BR69: 0 | BS69: 0 | BT69: 0 | BU69: 0 | BV69: 0 | BW69: 0 | BX69: 0 | BY69: 0 | BZ69: 0 | CA69: 0 | CB69: 0 | CC69: 0 | CD69: 0 | CE69: 0 | CF69: 0 | CG69: 0 | CH69: 0 | CI69: 0 | CJ69: 0 | CK69: 0 | CL69: 0 | CM69: 0 | CN69: 0 | CO69: 0 | CP69: 0 | CQ69: 0 | CR69: 0 | CS69: 0 | CT69: 0 | CU69: 0 | CV69: 0 | CW69: 0 | CX69: 0 | CY69: 0 | CZ69: 0 | DA69: 0 | DB69: 0 | DC69: 0 | DD69: 0 | DE69: 0 | DF69: 0 | DG69: 0 | DH69: 0 | DI69: 0 | DJ69: =IF(#REF!>$Y$3,0,#REF!) ->  | DK69: =IF(#REF!>$Y$3,0,#REF!) ->  | DL69: =IF(#REF!>$Y$3,0,#REF!) ->  | DM69: =IF(#REF!>$Y$3,0,#REF!) ->  | DN69: =IF(#REF!>$Y$3,0,#REF!) ->  | DO69: =IF(#REF!>$Y$3,0,#REF!) ->  | DP69: =IF(#REF!>$Y$3,0,#REF!) ->  | DQ69: =IF(#REF!>$Y$3,0,#REF!) ->  | DR69: =IF(#REF!>$Y$3,0,#REF!) ->  | DS69: =IF(#REF!>$Y$3,0,#REF!) ->  | DT69: =IF(#REF!>$Y$3,0,#REF!) ->  | DU69: =IF(#REF!>$Y$3,0,#REF!) ->  | DV69: =IF(#REF!>$Y$3,0,#REF!) ->  | DW69: =IF(#REF!>$Y$3,0,#REF!) ->  | DX69: =IF(#REF!>$Y$3,0,#REF!) ->  | DY69: =IF(#REF!>$Y$3,0,#REF!) ->  | DZ69: =IF(#REF!>$Y$3,0,#REF!) ->  | EA69: =IF(#REF!>$Y$3,0,#REF!) ->  | EB69: =IF(#REF!>$Y$3,0,#REF!) ->  | EC69: =IF(#REF!>$Y$3,0,#REF!) ->  | ED69: =IF(#REF!>$Y$3,0,#REF!) ->  | EE69: =IF(#REF!>$Y$3,0,#REF!) ->  | EF69: =IF(#REF!>$Y$3,0,#REF!) ->  | EG69: =IF(#REF!>$Y$3,0,#REF!) ->  | EH69: =IF(#REF!>$Y$3,0,#REF!) ->  | EI69: =IF(#REF!>$Y$3,0,#REF!) ->  | EJ69: =IF(#REF!>$Y$3,0,#REF!) ->  | EK69: =IF(#REF!>$Y$3,0,#REF!) -> 
C70: 66 | D70: =IF('AS1'!D70="","",'AS1'!D70) ->  | E70: =IF('AS1'!E70="","",'AS1'!E70) ->  | BF70: 0 | BG70: =IF(PARCIAL1!L$8=0,0,(ROUND(((BF70*10)/PARCIAL2!L$8),1))) -> 0 | BJ70: =IF(F70>$Y$3,0,F70) -> 0 | BK70: 0 | BL70: 0 | BM70: 0 | BN70: 0 | BO70: 0 | BP70: 0 | BQ70: 0 | BR70: 0 | BS70: 0 | BT70: 0 | BU70: 0 | BV70: 0 | BW70: 0 | BX70: 0 | BY70: 0 | BZ70: 0 | CA70: 0 | CB70: 0 | CC70: 0 | CD70: 0 | CE70: 0 | CF70: 0 | CG70: 0 | CH70: 0 | CI70: 0 | CJ70: 0 | CK70: 0 | CL70: 0 | CM70: 0 | CN70: 0 | CO70: 0 | CP70: 0 | CQ70: 0 | CR70: 0 | CS70: 0 | CT70: 0 | CU70: 0 | CV70: 0 | CW70: 0 | CX70: 0 | CY70: 0 | CZ70: 0 | DA70: 0 | DB70: 0 | DC70: 0 | DD70: 0 | DE70: 0 | DF70: 0 | DG70: 0 | DH70: 0 | DI70: 0 | DJ70: =IF(#REF!>$Y$3,0,#REF!) ->  | DK70: =IF(#REF!>$Y$3,0,#REF!) ->  | DL70: =IF(#REF!>$Y$3,0,#REF!) ->  | DM70: =IF(#REF!>$Y$3,0,#REF!) ->  | DN70: =IF(#REF!>$Y$3,0,#REF!) ->  | DO70: =IF(#REF!>$Y$3,0,#REF!) ->  | DP70: =IF(#REF!>$Y$3,0,#REF!) ->  | DQ70: =IF(#REF!>$Y$3,0,#REF!) ->  | DR70: =IF(#REF!>$Y$3,0,#REF!) ->  | DS70: =IF(#REF!>$Y$3,0,#REF!) ->  | DT70: =IF(#REF!>$Y$3,0,#REF!) ->  | DU70: =IF(#REF!>$Y$3,0,#REF!) ->  | DV70: =IF(#REF!>$Y$3,0,#REF!) ->  | DW70: =IF(#REF!>$Y$3,0,#REF!) ->  | DX70: =IF(#REF!>$Y$3,0,#REF!) ->  | DY70: =IF(#REF!>$Y$3,0,#REF!) ->  | DZ70: =IF(#REF!>$Y$3,0,#REF!) ->  | EA70: =IF(#REF!>$Y$3,0,#REF!) ->  | EB70: =IF(#REF!>$Y$3,0,#REF!) ->  | EC70: =IF(#REF!>$Y$3,0,#REF!) ->  | ED70: =IF(#REF!>$Y$3,0,#REF!) ->  | EE70: =IF(#REF!>$Y$3,0,#REF!) ->  | EF70: =IF(#REF!>$Y$3,0,#REF!) ->  | EG70: =IF(#REF!>$Y$3,0,#REF!) ->  | EH70: =IF(#REF!>$Y$3,0,#REF!) ->  | EI70: =IF(#REF!>$Y$3,0,#REF!) ->  | EJ70: =IF(#REF!>$Y$3,0,#REF!) ->  | EK70: =IF(#REF!>$Y$3,0,#REF!) -> 
C71: 67 | D71: =IF('AS1'!D71="","",'AS1'!D71) ->  | E71: =IF('AS1'!E71="","",'AS1'!E71) ->  | BF71: 0 | BG71: =IF(PARCIAL1!L$8=0,0,(ROUND(((BF71*10)/PARCIAL2!L$8),1))) -> 0 | BJ71: 0 | BK71: 0 | BL71: 0 | BM71: 0 | BN71: 0 | BO71: 0 | BP71: 0 | BQ71: 0 | BR71: 0 | BS71: 0 | BT71: 0 | BU71: 0 | BV71: 0 | BW71: 0 | BX71: 0 | BY71: 0 | BZ71: 0 | CA71: 0 | CB71: 0 | CC71: 0 | CD71: 0 | CE71: 0 | CF71: 0 | CG71: 0 | CH71: 0 | CI71: 0 | CJ71: 0 | CK71: 0 | CL71: 0 | CM71: 0 | CN71: 0 | CO71: 0 | CP71: 0 | CQ71: 0 | CR71: 0 | CS71: 0 | CT71: 0 | CU71: 0 | CV71: 0 | CW71: 0 | CX71: 0 | CY71: 0 | CZ71: 0 | DA71: 0 | DB71: 0 | DC71: 0 | DD71: 0 | DE71: 0 | DF71: 0 | DG71: 0 | DH71: 0 | DI71: 0 | DJ71: =IF(#REF!>$Y$3,0,#REF!) ->  | DK71: =IF(#REF!>$Y$3,0,#REF!) ->  | DL71: =IF(#REF!>$Y$3,0,#REF!) ->  | DM71: =IF(#REF!>$Y$3,0,#REF!) ->  | DN71: =IF(#REF!>$Y$3,0,#REF!) ->  | DO71: =IF(#REF!>$Y$3,0,#REF!) ->  | DP71: =IF(#REF!>$Y$3,0,#REF!) ->  | DQ71: =IF(#REF!>$Y$3,0,#REF!) ->  | DR71: =IF(#REF!>$Y$3,0,#REF!) ->  | DS71: =IF(#REF!>$Y$3,0,#REF!) ->  | DT71: =IF(#REF!>$Y$3,0,#REF!) ->  | DU71: =IF(#REF!>$Y$3,0,#REF!) ->  | DV71: =IF(#REF!>$Y$3,0,#REF!) ->  | DW71: =IF(#REF!>$Y$3,0,#REF!) ->  | DX71: =IF(#REF!>$Y$3,0,#REF!) ->  | DY71: =IF(#REF!>$Y$3,0,#REF!) ->  | DZ71: =IF(#REF!>$Y$3,0,#REF!) ->  | EA71: =IF(#REF!>$Y$3,0,#REF!) ->  | EB71: =IF(#REF!>$Y$3,0,#REF!) ->  | EC71: =IF(#REF!>$Y$3,0,#REF!) ->  | ED71: =IF(#REF!>$Y$3,0,#REF!) ->  | EE71: =IF(#REF!>$Y$3,0,#REF!) ->  | EF71: =IF(#REF!>$Y$3,0,#REF!) ->  | EG71: =IF(#REF!>$Y$3,0,#REF!) ->  | EH71: =IF(#REF!>$Y$3,0,#REF!) ->  | EI71: =IF(#REF!>$Y$3,0,#REF!) ->  | EJ71: =IF(#REF!>$Y$3,0,#REF!) ->  | EK71: =IF(#REF!>$Y$3,0,#REF!) -> 
C72: 68 | D72: =IF('AS1'!D72="","",'AS1'!D72) ->  | E72: =IF('AS1'!E72="","",'AS1'!E72) ->  | BF72: =SUM(F72:BE72) -> 0 | BG72: =IF(PARCIAL1!L$8=0,0,(ROUND(((BF72*10)/PARCIAL2!L$8),1))) -> 0 | BJ72: 0 | BK72: 0 | BL72: 0 | BM72: 0 | BN72: 0 | BO72: 0 | BP72: 0 | BQ72: 0 | BR72: 0 | BS72: 0 | BT72: 0 | BU72: 0 | BV72: 0 | BW72: 0 | BX72: 0 | BY72: 0 | BZ72: 0 | CA72: 0 | CB72: 0 | CC72: 0 | CD72: 0 | CE72: 0 | CF72: 0 | CG72: 0 | CH72: 0 | CI72: 0 | CJ72: 0 | CK72: 0 | CL72: 0 | CM72: 0 | CN72: 0 | CO72: 0 | CP72: 0 | CQ72: 0 | CR72: 0 | CS72: 0 | CT72: 0 | CU72: 0 | CV72: 0 | CW72: 0 | CX72: 0 | CY72: 0 | CZ72: 0 | DA72: 0 | DB72: 0 | DC72: 0 | DD72: 0 | DE72: 0 | DF72: 0 | DG72: 0 | DH72: 0 | DI72: 0 | DJ72: =IF(#REF!>$Y$3,0,#REF!) ->  | DK72: =IF(#REF!>$Y$3,0,#REF!) ->  | DL72: =IF(#REF!>$Y$3,0,#REF!) ->  | DM72: =IF(#REF!>$Y$3,0,#REF!) ->  | DN72: =IF(#REF!>$Y$3,0,#REF!) ->  | DO72: =IF(#REF!>$Y$3,0,#REF!) ->  | DP72: =IF(#REF!>$Y$3,0,#REF!) ->  | DQ72: =IF(#REF!>$Y$3,0,#REF!) ->  | DR72: =IF(#REF!>$Y$3,0,#REF!) ->  | DS72: =IF(#REF!>$Y$3,0,#REF!) ->  | DT72: =IF(#REF!>$Y$3,0,#REF!) ->  | DU72: =IF(#REF!>$Y$3,0,#REF!) ->  | DV72: =IF(#REF!>$Y$3,0,#REF!) ->  | DW72: =IF(#REF!>$Y$3,0,#REF!) ->  | DX72: =IF(#REF!>$Y$3,0,#REF!) ->  | DY72: =IF(#REF!>$Y$3,0,#REF!) ->  | DZ72: =IF(#REF!>$Y$3,0,#REF!) ->  | EA72: =IF(#REF!>$Y$3,0,#REF!) ->  | EB72: =IF(#REF!>$Y$3,0,#REF!) ->  | EC72: =IF(#REF!>$Y$3,0,#REF!) ->  | ED72: =IF(#REF!>$Y$3,0,#REF!) ->  | EE72: =IF(#REF!>$Y$3,0,#REF!) ->  | EF72: =IF(#REF!>$Y$3,0,#REF!) ->  | EG72: =IF(#REF!>$Y$3,0,#REF!) ->  | EH72: =IF(#REF!>$Y$3,0,#REF!) ->  | EI72: =IF(#REF!>$Y$3,0,#REF!) ->  | EJ72: =IF(#REF!>$Y$3,0,#REF!) ->  | EK72: =IF(#REF!>$Y$3,0,#REF!) -> 
C73: 69 | D73: =IF('AS1'!D73="","",'AS1'!D73) ->  | E73: =IF('AS1'!E73="","",'AS1'!E73) ->  | BF73: 0 | BG73: =IF(PARCIAL1!L$8=0,0,(ROUND(((BF73*10)/PARCIAL2!L$8),1))) -> 0 | BJ73: 0 | BK73: 0 | BL73: 0 | BM73: 0 | BN73: 0 | BO73: 0 | BP73: 0 | BQ73: 0 | BR73: 0 | BS73: 0 | BT73: 0 | BU73: 0 | BV73: 0 | BW73: 0 | BX73: 0 | BY73: 0 | BZ73: 0 | CA73: 0 | CB73: 0 | CC73: 0 | CD73: 0 | CE73: 0 | CF73: 0 | CG73: 0 | CH73: 0 | CI73: 0 | CJ73: 0 | CK73: 0 | CL73: 0 | CM73: 0 | CN73: 0 | CO73: 0 | CP73: 0 | CQ73: 0 | CR73: 0 | CS73: 0 | CT73: 0 | CU73: 0 | CV73: 0 | CW73: 0 | CX73: 0 | CY73: 0 | CZ73: 0 | DA73: 0 | DB73: 0 | DC73: 0 | DD73: 0 | DE73: 0 | DF73: 0 | DG73: 0 | DH73: 0 | DI73: 0 | DJ73: =IF(#REF!>$Y$3,0,#REF!) ->  | DK73: =IF(#REF!>$Y$3,0,#REF!) ->  | DL73: =IF(#REF!>$Y$3,0,#REF!) ->  | DM73: =IF(#REF!>$Y$3,0,#REF!) ->  | DN73: =IF(#REF!>$Y$3,0,#REF!) ->  | DO73: =IF(#REF!>$Y$3,0,#REF!) ->  | DP73: =IF(#REF!>$Y$3,0,#REF!) ->  | DQ73: =IF(#REF!>$Y$3,0,#REF!) ->  | DR73: =IF(#REF!>$Y$3,0,#REF!) ->  | DS73: =IF(#REF!>$Y$3,0,#REF!) ->  | DT73: =IF(#REF!>$Y$3,0,#REF!) ->  | DU73: =IF(#REF!>$Y$3,0,#REF!) ->  | DV73: =IF(#REF!>$Y$3,0,#REF!) ->  | DW73: =IF(#REF!>$Y$3,0,#REF!) ->  | DX73: =IF(#REF!>$Y$3,0,#REF!) ->  | DY73: =IF(#REF!>$Y$3,0,#REF!) ->  | DZ73: =IF(#REF!>$Y$3,0,#REF!) ->  | EA73: =IF(#REF!>$Y$3,0,#REF!) ->  | EB73: =IF(#REF!>$Y$3,0,#REF!) ->  | EC73: =IF(#REF!>$Y$3,0,#REF!) ->  | ED73: =IF(#REF!>$Y$3,0,#REF!) ->  | EE73: =IF(#REF!>$Y$3,0,#REF!) ->  | EF73: =IF(#REF!>$Y$3,0,#REF!) ->  | EG73: =IF(#REF!>$Y$3,0,#REF!) ->  | EH73: =IF(#REF!>$Y$3,0,#REF!) ->  | EI73: =IF(#REF!>$Y$3,0,#REF!) ->  | EJ73: =IF(#REF!>$Y$3,0,#REF!) ->  | EK73: =IF(#REF!>$Y$3,0,#REF!) -> 
C74: 70 | D74: =IF('AS1'!D74="","",'AS1'!D74) ->  | E74: =IF('AS1'!E74="","",'AS1'!E74) ->  | BF74: 0 | BG74: =IF(PARCIAL1!L$8=0,0,(ROUND(((BF74*10)/PARCIAL2!L$8),1))) -> 0 | BJ74: 0 | BK74: 0 | BL74: 0 | BM74: 0 | BN74: 0 | BO74: 0 | BP74: 0 | BQ74: 0 | BR74: 0 | BS74: 0 | BT74: 0 | BU74: 0 | BV74: 0 | BW74: 0 | BX74: 0 | BY74: 0 | BZ74: 0 | CA74: 0 | CB74: 0 | CC74: 0 | CD74: 0 | CE74: 0 | CF74: 0 | CG74: 0 | CH74: 0 | CI74: 0 | CJ74: 0 | CK74: 0 | CL74: 0 | CM74: 0 | CN74: 0 | CO74: 0 | CP74: 0 | CQ74: 0 | CR74: 0 | CS74: 0 | CT74: 0 | CU74: 0 | CV74: 0 | CW74: 0 | CX74: 0 | CY74: 0 | CZ74: 0 | DA74: 0 | DB74: 0 | DC74: 0 | DD74: 0 | DE74: 0 | DF74: 0 | DG74: 0 | DH74: 0 | DI74: 0 | DJ74: =IF(#REF!>$Y$3,0,#REF!) ->  | DK74: =IF(#REF!>$Y$3,0,#REF!) ->  | DL74: =IF(#REF!>$Y$3,0,#REF!) ->  | DM74: =IF(#REF!>$Y$3,0,#REF!) ->  | DN74: =IF(#REF!>$Y$3,0,#REF!) ->  | DO74: =IF(#REF!>$Y$3,0,#REF!) ->  | DP74: =IF(#REF!>$Y$3,0,#REF!) ->  | DQ74: =IF(#REF!>$Y$3,0,#REF!) ->  | DR74: =IF(#REF!>$Y$3,0,#REF!) ->  | DS74: =IF(#REF!>$Y$3,0,#REF!) ->  | DT74: =IF(#REF!>$Y$3,0,#REF!) ->  | DU74: =IF(#REF!>$Y$3,0,#REF!) ->  | DV74: =IF(#REF!>$Y$3,0,#REF!) ->  | DW74: =IF(#REF!>$Y$3,0,#REF!) ->  | DX74: =IF(#REF!>$Y$3,0,#REF!) ->  | DY74: =IF(#REF!>$Y$3,0,#REF!) ->  | DZ74: =IF(#REF!>$Y$3,0,#REF!) ->  | EA74: =IF(#REF!>$Y$3,0,#REF!) ->  | EB74: =IF(#REF!>$Y$3,0,#REF!) ->  | EC74: =IF(#REF!>$Y$3,0,#REF!) ->  | ED74: =IF(#REF!>$Y$3,0,#REF!) ->  | EE74: =IF(#REF!>$Y$3,0,#REF!) ->  | EF74: =IF(#REF!>$Y$3,0,#REF!) ->  | EG74: =IF(#REF!>$Y$3,0,#REF!) ->  | EH74: =IF(#REF!>$Y$3,0,#REF!) ->  | EI74: =IF(#REF!>$Y$3,0,#REF!) ->  | EJ74: =IF(#REF!>$Y$3,0,#REF!) ->  | EK74: =IF(#REF!>$Y$3,0,#REF!) -> 

Sheet DOC2
C2: Aprendizaje en contacto con el docente - SEGUNDO PARCIAL
C3: Conferencias, Seminarios, Estudios de Casos, Foros, Clases en Línea, Servicios realizados en escenarios laborables. Experiencias colectivas en proyectos: sistematización de prácticas de investigación-intervención, proyectos de integración de saberes, construcción de modelos y prototipos, proyectos de problematización, resolución de problemas, entornos virtuales, entre otros. Evaluaciones orales, escritas entre otras.
C4: N | D4: NRO DE CÉDULA | E4: NOMINA | F4: 1 | G4: 2 | H4: 3 | I4: 4 | J4: 5 | K4: 6 | L4: 7 | M4: 8 | N4: 9 | O4: 10 | P4: suma | Q4: PROMEDIO sobre 10 | R4: EQUIVALENCIA sobre 3,5
F5: Parcial II | G5: Exp. Hem. Obst. Primera y II mitad del emb. | H5: Exposición PAE II mitad del embarazo | I5: Lección RMAP | J5: Exp. Rotura uterina+afecciones ovulares | K5: Exp. Amenaza de PP/Incomp.Rh | L5: Exp.Hem.PP+Diabetes Gest. | M5: Hiperemesi Gravídica+ Cardiopatías /lección | N5: Ca. De cérvix | O5: Ca. Mama
C6: 1 | D6: =IF('AS1'!D5="","",'AS1'!D5) ->  | E6: =IF('AS1'!E5="","",'AS1'!E5) -> DAQUILEMA LONDO SHIRLEY ESTEFAFANÍA | F6: 8 | G6: 9.6 | H6: 5 | I6: 0 | J6: 8.2 | L6: 9.4 | M6: 6 | O6: 8.8 | P6: =IF(COUNT(F6:O6)=0,"",SUM(F6:O6)) -> 55 | Q6: =IF(COUNT(F6:O6)=0,0,ROUND(P6/COUNT(F6:O6),2)) -> 6.88 | R6: =(Q6*3.5)/10 -> 2.408
C7: 2 | D7: =IF('AS1'!D6="","",'AS1'!D6) ->  | E7: =IF('AS1'!E6="","",'AS1'!E6) -> GOYES ORTIZ NATASHA DAYANA | F7: 7.2 | G7: 9.4 | H7: 5 | I7: 0 | J7: 9.4 | L7: 9 | M7: 9.6 | O7: 9 | P7: 58.6 | Q7: 7.33 | R7: =(Q7*3.5)/10 -> 2.5655
C8: 3 | D8: =IF('AS1'!D7="","",'AS1'!D7) ->  | E8: =IF('AS1'!E7="","",'AS1'!E7) -> GUADALUPE RUIZ YULISA NATALY | F8: 5.5 | G8: 8.8 | H8: 5 | I8: 0 | J8: 9.6 | L8: 8.2 | M8: 9 | O8: 8.4 | P8: 54.5 | Q8: 6.81 | R8: =(Q8*3.5)/10 -> 2.3835
C9: 4 | D9: =IF('AS1'!D8="","",'AS1'!D8) ->  | E9: =IF('AS1'!E8="","",'AS1'!E8) -> MELO CHAVEZ KEVIN JOSUE | F9: 9.5 | G9: 6.2 | H9: 5 | I9: 0 | J9: 8.8 | L9: 6.8 | M9: 9.4 | O9: 8.6 | P9: 54.3 | Q9: 6.79 | R9: 2.3765
C10: 5 | D10: =IF('AS1'!D9="","",'AS1'!D9) ->  | E10: =IF('AS1'!E9="","",'AS1'!E9) -> MULLO PAUCAR ADRIANA ANABEL | F10: 10 | G10: 9.6 | H10: 5 | I10: 0 | K10: 7.8 | L10: 9.6 | N10: 7.8 | O10: 8.8 | P10: 58.6 | Q10: 7.33 | R10: 2.5655
C11: 6 | D11: =IF('AS1'!D10="","",'AS1'!D10) ->  | E11: =IF('AS1'!E10="","",'AS1'!E10) -> NARANJO PALACIOS FERNANDA BRIGUITTE | Q11: 0 | R11: 0
C12: 7 | D12: =IF('AS1'!D11="","",'AS1'!D11) ->  | E12: =IF('AS1'!E11="","",'AS1'!E11) -> SOTO VARGAS ERIKA SAMANTA | F12: 7 | G12: 9.2 | H12: 5 | I12: 0 | K12: 9.8 | L12: 8.8 | N12: 9.6 | O12: 9 | P12: 58.4 | Q12: 7.3 | R12: 2.555
C13: 8 | D13: =IF('AS1'!D12="","",'AS1'!D12) ->  | E13: =IF('AS1'!E12="","",'AS1'!E12) -> VALLEJO ORDOÑEZ SAYONARA ELIZABETH | F13: 5.5 | G13: 8 | H13: 5 | I13: 0 | K13: 7.4 | L13: 4.2 | M13: 0 | N13: 6.2 | O13: 8 | P13: 44.3 | Q13: 4.92 | R13: 1.722
C14: 9 | D14: =IF('AS1'!D13="","",'AS1'!D13) ->  | E14: =IF('AS1'!E13="","",'AS1'!E13) ->  | Q14: 0 | R14: 0
C15: 10 | D15: =IF('AS1'!D14="","",'AS1'!D14) ->  | E15: =IF('AS1'!E14="","",'AS1'!E14) ->  | Q15: 0 | R15: 0
C16: 11 | D16: =IF('AS1'!D15="","",'AS1'!D15) ->  | E16: =IF('AS1'!E15="","",'AS1'!E15) ->  | Q16: 0 | R16: 0
C17: 12 | D17: =IF('AS1'!D16="","",'AS1'!D16) ->  | E17: =IF('AS1'!E16="","",'AS1'!E16) ->  | Q17: 0 | R17: 0
C18: 13 | D18: =IF('AS1'!D17="","",'AS1'!D17) ->  | E18: =IF('AS1'!E17="","",'AS1'!E17) ->  | Q18: 0 | R18: 0
C19: 14 | D19: =IF('AS1'!D18="","",'AS1'!D18) ->  | E19: =IF('AS1'!E18="","",'AS1'!E18) ->  | Q19: 0 | R19: 0
C20: 15 | D20: =IF('AS1'!D19="","",'AS1'!D19) ->  | E20: =IF('AS1'!E19="","",'AS1'!E19) ->  | Q20: 0 | R20: 0
C21: 16 | D21: =IF('AS1'!D20="","",'AS1'!D20) ->  | E21: =IF('AS1'!E20="","",'AS1'!E20) ->  | Q21: 0 | R21: 0
C22: 17 | D22: =IF('AS1'!D21="","",'AS1'!D21) ->  | E22: =IF('AS1'!E21="","",'AS1'!E21) ->  | Q22: 0 | R22: 0
C23: 18 | D23: =IF('AS1'!D22="","",'AS1'!D22) ->  | E23: =IF('AS1'!E22="","",'AS1'!E22) ->  | Q23: 0 | R23: 0
C24: 19 | D24: =IF('AS1'!D23="","",'AS1'!D23) ->  | E24: =IF('AS1'!E23="","",'AS1'!E23) ->  | Q24: 0 | R24: 0
C25: 20 | D25: =IF('AS1'!D24="","",'AS1'!D24) ->  | E25: =IF('AS1'!E24="","",'AS1'!E24) ->  | Q25: 0 | R25: 0
C26: 21 | D26: =IF('AS1'!D25="","",'AS1'!D25) ->  | E26: =IF('AS1'!E25="","",'AS1'!E25) ->  | Q26: 0 | R26: 0
C27: 22 | D27: =IF('AS1'!D26="","",'AS1'!D26) ->  | E27: =IF('AS1'!E26="","",'AS1'!E26) ->  | Q27: 0 | R27: 0
C28: 23 | D28: =IF('AS1'!D27="","",'AS1'!D27) ->  | E28: =IF('AS1'!E27="","",'AS1'!E27) ->  | Q28: 0 | R28: 0
C29: 24 | D29: =IF('AS1'!D28="","",'AS1'!D28) ->  | E29: =IF('AS1'!E28="","",'AS1'!E28) ->  | Q29: 0 | R29: 0
C30: 25 | D30: =IF('AS1'!D29="","",'AS1'!D29) ->  | E30: =IF('AS1'!E29="","",'AS1'!E29) ->  | Q30: 0 | R30: 0
C31: 26 | D31: =IF('AS1'!D30="","",'AS1'!D30) ->  | E31: =IF('AS1'!E30="","",'AS1'!E30) ->  | Q31: 0 | R31: 0
C32: 27 | D32: =IF('AS1'!D31="","",'AS1'!D31) ->  | E32: =IF('AS1'!E31="","",'AS1'!E31) ->  | Q32: 0 | R32: 0
C33: 28 | D33: =IF('AS1'!D32="","",'AS1'!D32) ->  | E33: =IF('AS1'!E32="","",'AS1'!E32) ->  | Q33: 0 | R33: 0
C34: 29 | D34: =IF('AS1'!D33="","",'AS1'!D33) ->  | E34: =IF('AS1'!E33="","",'AS1'!E33) ->  | Q34: 0 | R34: 0
C35: 30 | D35: =IF('AS1'!D34="","",'AS1'!D34) ->  | E35: =IF('AS1'!E34="","",'AS1'!E34) ->  | Q35: 0 | R35: 0
C36: 31 | D36: =IF('AS1'!D35="","",'AS1'!D35) ->  | E36: =IF('AS1'!E35="","",'AS1'!E35) ->  | Q36: 0 | R36: 0
C37: 32 | D37: =IF('AS1'!D36="","",'AS1'!D36) ->  | E37: =IF('AS1'!E36="","",'AS1'!E36) ->  | Q37: 0 | R37: 0
C38: 33 | D38: =IF('AS1'!D37="","",'AS1'!D37) ->  | E38: =IF('AS1'!E37="","",'AS1'!E37) ->  | P38: =IF(COUNT(F38:O38)=0,"",SUM(F38:O38)) ->  | Q38: =IF(COUNT(F38:O38)=0,0,ROUND(P38/COUNT(F38:O38),2)) -> 0 | R38: 0
C39: 34 | D39: =IF('AS1'!D38="","",'AS1'!D38) ->  | E39: =IF('AS1'!E38="","",'AS1'!E38) ->  | Q39: 0 | R39: 0
C40: 35 | D40: =IF('AS1'!D39="","",'AS1'!D39) ->  | E40: =IF('AS1'!E39="","",'AS1'!E39) ->  | Q40: 0 | R40: 0
C41: 36 | D41: =IF('AS1'!D40="","",'AS1'!D40) ->  | E41: =IF('AS1'!E40="","",'AS1'!E40) ->  | Q41: 0 | R41: 0
C42: 37 | D42: =IF('AS1'!D41="","",'AS1'!D41) ->  | E42: =IF('AS1'!E41="","",'AS1'!E41) ->  | Q42: 0 | R42: 0
C43: 38 | D43: =IF('AS1'!D42="","",'AS1'!D42) ->  | E43: =IF('AS1'!E42="","",'AS1'!E42) ->  | Q43: 0 | R43: 0
C44: 39 | D44: =IF('AS1'!D43="","",'AS1'!D43) ->  | E44: =IF('AS1'!E43="","",'AS1'!E43) ->  | Q44: 0 | R44: 0
C45: 40 | D45: =IF('AS1'!D44="","",'AS1'!D44) ->  | E45: =IF('AS1'!E44="","",'AS1'!E44) ->  | Q45: 0 | R45: 0
C46: 41 | D46: =IF('AS1'!D45="","",'AS1'!D45) ->  | E46: =IF('AS1'!E45="","",'AS1'!E45) ->  | Q46: 0 | R46: 0
C47: 42 | D47: =IF('AS1'!D46="","",'AS1'!D46) ->  | E47: =IF('AS1'!E46="","",'AS1'!E46) ->  | Q47: 0 | R47: 0
C48: 43 | D48: =IF('AS1'!D47="","",'AS1'!D47) ->  | E48: =IF('AS1'!E47="","",'AS1'!E47) ->  | Q48: 0 | R48: 0
C49: 44 | D49: =IF('AS1'!D48="","",'AS1'!D48) ->  | E49: =IF('AS1'!E48="","",'AS1'!E48) ->  | Q49: 0 | R49: 0
C50: 45 | D50: =IF('AS1'!D49="","",'AS1'!D49) ->  | E50: =IF('AS1'!E49="","",'AS1'!E49) ->  | Q50: 0 | R50: 0
C51: 46 | D51: =IF('AS1'!D50="","",'AS1'!D50) ->  | E51: =IF('AS1'!E50="","",'AS1'!E50) ->  | Q51: 0 | R51: 0
C52: 47 | D52: =IF('AS1'!D51="","",'AS1'!D51) ->  | E52: =IF('AS1'!E51="","",'AS1'!E51) ->  | Q52: 0 | R52: 0
C53: 48 | D53: =IF('AS1'!D52="","",'AS1'!D52) ->  | E53: =IF('AS1'!E52="","",'AS1'!E52) ->  | Q53: 0 | R53: 0
C54: 49 | D54: =IF('AS1'!D53="","",'AS1'!D53) ->  | E54: =IF('AS1'!E53="","",'AS1'!E53) ->  | Q54: 0 | R54: 0
C55: 50 | D55: =IF('AS1'!D54="","",'AS1'!D54) ->  | E55: =IF('AS1'!E54="","",'AS1'!E54) ->  | Q55: 0 | R55: 0
C56: 51 | D56: =IF('AS1'!D55="","",'AS1'!D55) ->  | E56: =IF('AS1'!E55="","",'AS1'!E55) ->  | Q56: 0 | R56: 0
C57: 52 | D57: =IF('AS1'!D56="","",'AS1'!D56) ->  | E57: =IF('AS1'!E56="","",'AS1'!E56) ->  | Q57: 0 | R57: 0
C58: 53 | D58: =IF('AS1'!D57="","",'AS1'!D57) ->  | E58: =IF('AS1'!E57="","",'AS1'!E57) ->  | Q58: 0 | R58: 0
C59: 54 | D59: =IF('AS1'!D58="","",'AS1'!D58) ->  | E59: =IF('AS1'!E58="","",'AS1'!E58) ->  | Q59: 0 | R59: 0
C60: 55 | D60: =IF('AS1'!D59="","",'AS1'!D59) ->  | E60: =IF('AS1'!E59="","",'AS1'!E59) ->  | Q60: 0 | R60: 0
C61: 56 | D61: =IF('AS1'!D60="","",'AS1'!D60) ->  | E61: =IF('AS1'!E60="","",'AS1'!E60) ->  | Q61: 0 | R61: 0
C62: 57 | D62: =IF('AS1'!D61="","",'AS1'!D61) ->  | E62: =IF('AS1'!E61="","",'AS1'!E61) ->  | Q62: 0 | R62: 0
C63: 58 | D63: =IF('AS1'!D62="","",'AS1'!D62) ->  | E63: =IF('AS1'!E62="","",'AS1'!E62) ->  | Q63: 0 | R63: 0
C64: 59 | D64: =IF('AS1'!D63="","",'AS1'!D63) ->  | E64: =IF('AS1'!E63="","",'AS1'!E63) ->  | Q64: 0 | R64: 0
C65: 60 | D65: =IF('AS1'!D64="","",'AS1'!D64) ->  | E65: =IF('AS1'!E64="","",'AS1'!E64) ->  | Q65: 0 | R65: 0
C66: 61 | D66: =IF('AS1'!D65="","",'AS1'!D65) ->  | E66: =IF('AS1'!E65="","",'AS1'!E65) ->  | Q66: 0 | R66: 0
C67: 62 | D67: =IF('AS1'!D66="","",'AS1'!D66) ->  | E67: =IF('AS1'!E66="","",'AS1'!E66) ->  | Q67: 0 | R67: 0
C68: 63 | D68: =IF('AS1'!D67="","",'AS1'!D67) ->  | E68: =IF('AS1'!E67="","",'AS1'!E67) ->  | Q68: 0 | R68: 0
C69: 64 | D69: =IF('AS1'!D68="","",'AS1'!D68) ->  | E69: =IF('AS1'!E68="","",'AS1'!E68) ->  | Q69: 0 | R69: 0
